Workbook

Sheet Instructions
A1: Instructions for MnDOT's 2016 Traffic Forecast MnESAL
G2: Last Updated: 8/21/2019
A3: There are 8 different worksheets:
A5: 1. Title: | B5: Do not need to manually enter anything, all information will automatically
B6: come from the Cover Sheet.
A8: 2. Cover: | B8: Enter all basic data in light orange filled cells that is copied to other
B9: worksheets.
B10: Use the dropdown to generate the number of B segments if any.
B11: (system only generates one segment at a time)
B12: Add all remarks.
A14: 3. Forecast A: | B14: Enter values in light orange filled cells, and then click copy AADT over to
B15: worksheet if AADT values appear on the right.
B16: If AADT values do not appear, manually type them in A7:B22.
A18: 4. ESAL A: | B18: In cell C3, the worksheet is saved to two-way. If you are working on a
B19: one-way road, ramp, or roundabout, change the drop down to one-way.
A21: 5. Forecast B: | B21: Follow same directions as Forecast A.
A23: 6. ESAL B: | B23: Follow same directions as ESAL A.
B24: Change User Adjustment to Base/Futue Yr Vol accordingly, so Base
B25: Volume and Future Volume of % change from A segment are within
B26: -50% and 50%.
B27: The Urban/Rural area is derived from the sequence number, but can be
B28: changed if needed.
A30: 7. VC 1-4: | B30: Enter values in light orange filled cells.
B31: Enter the Month Numer of Count and 16 or 24 HR if needed.
B32: Enter the raw count for each vehicle class in C8:C15 where indicated in
B33: light yellow if needed.
B34: The contrain AADT is derived from the sequence number of the A segment
B35: The Urban/Rural area is derived from the sequence number, but can be
B36: changed if needed.
A38: 8. VC Avg: | B38: Numbers are automatically transferred.
B39: If Heavy 5+ Ax Semi Percentages do not transfer for a manual count,
B40: enter the percent of Tank, Dump, Grain, and Stake Loaded.
A42: Save workbook as a PDF.
A44: Order of worksheets: | B44: Title Sheet
B45: Cover Sheet
B46: Project Location Map
B47: ESAL A Report
B48: ESAL A Worksheet
B49: ESAL B Report(s)
B50: ESAL B Worksheet(s)
B51: Appendix
B52: Least Square Analysis
B53: Vehicle Class Expansion Worksheet
B54: Vehicle Class Reports
B55: AADT Diagram
B56: Other Supporting Documents

Sheet Title
C2: Traffic Forecast for Cumulative ESALs
H5: Note: The information on this sheet is pulled in from the "Cover" tab
D7: =Cover!G12 -> Forecast #: | E7: =IF(Cover!H12=0," ",Cover!H12) -> 
D8: =Cover!G13 -> SP#: | E8: =IF(Cover!H13=0," ",Cover!H13) -> 
B10: =IF(Cover!H15=0," ",Cover!H15&" "&Cover!H14) -> 
B11: =IF(Cover!$C$20=0," ",Cover!$C$20) -> 
B37: Office of Transportation System Management
B38: 395 John Ireland Boulevard, MS 450
B39: Saint Paul, MN 55155
F41: =Cover!C10 -> 2019-12-18T08:22:16.670

Sheet Cover
C1: Minnesota Department of Transportation | J1: Non-print area
B2: =IF(Cover!H15="Interstate",Cover!J25&Cover!H14,IF(Cover!H15="US Trunk",Cover!J26&Cover!H14,IF(Cover!H15="MN Trunk",Cover!J27&Cover!H14,IF(Cover!H15="CSAH",Cover!J28&Cover!H14,IF(Cover!H15="CR",Cover!J29&Cover!H14," "))))) ->  | C2: Office of Transportation System Management | H2: Phone: (651) 366-3856
C3: 395 John Ireland Boulevard, MS 450 | H3: Fax: (651) 366-3886
C4: Saint Paul, MN 55155
B6: TO: | F6: FROM: | G6: Gene Hicks
G7: Section Director
G8: Traffic Forecasting and Analysis, MS 450
B10: DATE: | C10: =NOW() -> 2019-12-18T08:22:16.670 | L10: 0
B11: SUBJECT: | C11: Traffic Forecast for Cumulative ESALs | J11: Interstate | L11: 1
G12: Forecast #: | J12: US Trunk | L12: 2
A13: Author: | G13: SP#: | J13: MN Trunk | L13: 3
A14: Author's District: | G14: Route Num: | J14: CSAH | L14: 4
A15: District: | G15: Route Type: | J15: CR | L15: 5
A16: Letting Date: | G16: County: | L16: Denotes fields to be filled in
A17: Program Category: | G17: Beg Reference Post:
A18: Project Manager: | G18: End Reference Post: | K18: Select the number of B segments in drop down below and click generate
G19: Miles:
B20: Project Limits: | K20: 5 | L20: Number of B Segments
B22: ESAL SUMMARY:
A23: Seq # | B23: Segment Location | D23: AADT | F23: 20 YEAR | H23: 35 YEAR
D24: =IF('Forecast A'!B4="","",'Forecast A'!B4) ->  | E24: =IF('Forecast A'!B4="","",'Forecast A'!B4+20) ->  | F24: BESAL | G24: CESAL | H24: BESAL | I24: CESAL
A25: =IF('Forecast A'!H4="","",'Forecast A'!H4) ->  | B25: =IF('Forecast A'!B3:F3="","",'Forecast A'!B3:F3) ->  | D25: =IF('Forecast A'!H4="","",'Forecast A'!I33) ->  | E25: =IF('Forecast A'!H4="","",'Forecast A'!I34) ->  | F25: =IF('ESAL A'!D55=" "," ",'ESAL A'!F82) ->  | G25: =IF('ESAL A'!D55=" "," ",'ESAL A'!G82) ->  | H25: =IF('ESAL A'!D55=" "," ",'ESAL A'!F88) ->  | I25: =IF('ESAL A'!D55=" "," ",'ESAL A'!G88) ->  | J25: I | K25: Segments in other spreadsheets need to be complied into one ESAL Summary
A26: =IF('Forecast B1'!H4="","",'Forecast B1'!H4) ->  | B26: =IF('Forecast B1'!B3:F3="","",'Forecast B1'!B3:F3) ->  | D26: =IF('Forecast B1'!H4="","",'Forecast B1'!I33) ->  | E26: =IF('Forecast B1'!H4="","",'Forecast B1'!I34) ->  | F26: =IF('ESAL B1'!D65=" "," ",'ESAL B1'!F92) ->  | G26: =IF('ESAL B1'!D65=" "," ",'ESAL B1'!G92) ->  | H26: =IF('ESAL B1'!D65=" "," ",'ESAL B1'!F98) ->  | I26: =IF('ESAL B1'!D65=" "," ",'ESAL B1'!G98) ->  | J26: US
A27: =IF('Forecast B2'!H4="","",'Forecast B2'!H4) ->  | B27: =IF('Forecast B2'!B3:F3="","",'Forecast B2'!B3:F3) ->  | D27: =IF('Forecast B2'!H4="","",'Forecast B2'!I33) ->  | E27: =IF('Forecast B2'!H4="","",'Forecast B2'!I34) ->  | F27: =IF('ESAL B2'!D65=" "," ",'ESAL B2'!F92) ->  | G27: =IF('ESAL B2'!D65=" "," ",'ESAL B2'!G92) ->  | H27: =IF('ESAL B2'!D65=" "," ",'ESAL B2'!F98) ->  | I27: =IF('ESAL B2'!D65=" "," ",'ESAL B2'!G98) ->  | J27: MN | K27: Recommended Sheet Order:
A28: =IF('Forecast B3'!H4="","",'Forecast B3'!H4) ->  | B28: =IF('Forecast B3'!B3:F3="","",'Forecast B3'!B3:F3) ->  | D28: =IF('Forecast B3'!H4="","",'Forecast B3'!I33) ->  | E28: =IF('Forecast B3'!H4="","",'Forecast B3'!I34) ->  | F28: =IF('ESAL B3'!D65=" "," ",'ESAL B3'!F92) ->  | G28: =IF('ESAL B3'!D65=" "," ",'ESAL B3'!G92) ->  | H28: =IF('ESAL B3'!D65=" "," ",'ESAL B3'!F98) ->  | I28: =IF('ESAL B3'!D65=" "," ",'ESAL B3'!G98) ->  | J28: CSAH | K28: Title Sheet
A29: =IF('Forecast B4'!H4="","",'Forecast B4'!H4) ->  | B29: =IF('Forecast B4'!B3:F3="","",'Forecast B4'!B3:F3) ->  | D29: =IF('Forecast B4'!H4="","",'Forecast B4'!I33) ->  | E29: =IF('Forecast B4'!H4="","",'Forecast B4'!I34) ->  | F29: =IF('ESAL B4'!D65=" "," ",'ESAL B4'!F92) ->  | G29: =IF('ESAL B4'!D65=" "," ",'ESAL B4'!G92) ->  | H29: =IF('ESAL B4'!D65=" "," ",'ESAL B4'!F98) ->  | I29: =IF('ESAL B4'!D65=" "," ",'ESAL B4'!G98) ->  | J29: CR | K29: Cover Sheet
A30: =IF('Forecast B5'!H4="","",'Forecast B5'!H4) ->  | B30: =IF('Forecast B5'!B3:F3="","",'Forecast B5'!B3:F3) ->  | D30: =IF('Forecast B5'!H4="","",'Forecast B5'!I33) ->  | E30: =IF('Forecast B5'!H4="","",'Forecast B5'!I34) ->  | F30: =IF('ESAL B5'!D65=" "," ",'ESAL B5'!F92) ->  | G30: =IF('ESAL B5'!D65=" "," ",'ESAL B5'!G92) ->  | H30: =IF('ESAL B5'!D65=" "," ",'ESAL B5'!F98) ->  | I30: =IF('ESAL B5'!D65=" "," ",'ESAL B5'!G98) ->  | K30: Project Location map
K31: ESAL Report A
K32: ESAL Worksheet A
K33: ESAL Report(s) B
K34: ESAL Worksheet(s) B
K35: Appendix
A36: REMARKS: | K36: Least Squares Analysis (A & B)
K37: Vehicle Class Expansion Worksheet
K38: Vehicle Class Reports
K39: AADT Diagram
K40: Other Suppporting Documents

Sheet Forecast A
A1: LEAST SQUARES WORKSHEET | E1: SEGMENT A1 | J1: Non-print area
A2: ROUTE: | B2: =IF(Cover!H15="Interstate",Cover!J25&Cover!H14,IF(Cover!H15="US Trunk",Cover!J26&Cover!H14,IF(Cover!H15="MN Trunk",Cover!J27&Cover!H14,IF(Cover!H15="CSAH",Cover!J28&Cover!H14,IF(Cover!H15="CR",Cover!J29&Cover!H14," "))))) ->  | D2: SP#: | E2: =IF(Cover!H13=0," ",Cover!H13) ->  | G2: DATE : | H2: =Cover!C10 -> 2019-12-18T08:22:16.670
A3: LOCATION: | G3: Miles : | H3: =IF(H4="","",VLOOKUP(H4,AADT_Data!A:AC,29,FALSE)) ->  | J3: =IF(B3="","Location field is empty. Please enter location description. E.g. MN 169 to CSAH 5","") -> Location field is empty. Please enter location description. E.g. MN 169 to CSAH 5
A4: BASE YEAR: | E4: FORECAST YEAR: | F4: =IF(B4="","",B4+20) ->  | G4: Seq # | J4: =IF(H4="","No Seq # is listed. Please enter sequence number","") -> No Seq # is listed. Please enter sequence number
G5: # of lanes | J5: =IF(H5="","Please indicate the number of lanes in this segment","") -> Please indicate the number of lanes in this segment
A6: COUNTED YEAR | B6: FLOW MAP AADT (SEG A) | J6: Year | K6: AADT
C7: 850 | J7: =IF(LARGE($D$64:$D$90,E75)=0,"",LARGE($D$64:$D$90,E75)) ->  | K7: =IF(ISNA(VLOOKUP(F75,$A$64:$C$90,3,FALSE)),"",VLOOKUP(F75,$A$64:$C$90,3,FALSE)) -> 
C8: 880
C9: 880 | J9: =IF(LARGE($D$64:$D$90,E77)=0,"",LARGE($D$64:$D$90,E77)) ->  | K9: =IF(ISNA(VLOOKUP(F77,$A$64:$C$90,3,FALSE)),"",VLOOKUP(F77,$A$64:$C$90,3,FALSE)) -> 
C10: 1350
C11: 1150
C12: 1000
C13: 1150
C14: 1100
C15: 1100
C16: 1100
C17: 1000
J22: =IF(LARGE($D$64:$D$90,E90)=0,"",LARGE($D$64:$D$90,E90)) ->  | K22: =IF(ISNA(VLOOKUP(F90,$A$64:$C$90,3,FALSE)),"",VLOOKUP(F90,$A$64:$C$90,3,FALSE)) -> 
A24: LEAST SQUARES BASED FORECASTS:
A25: Year | B25: AADT | D25: Calc | E25: ADT Calc
A26: =INDEX(A7:A22,MATCH(9.99999999999999E+307,B7:B22)) ->  | B26: =FORECAST(A26,B7:B22,A7:A22) ->  | D26: =VLOOKUP(A26,$A$13:$B$22,2,FALSE)-B26 ->  | E26: =B26+D26 -> 
A27: =B4 -> 0 | B27: =FORECAST(A27,B7:B22,A7:A22) ->  | E27: =B27+D26 ->  | F27: =E27 -> 
A28: =F4 ->  | B28: =FORECAST(A28,B7:B22,A7:A22) ->  | E28: =B28+D26 ->  | F28: =E26+(E28-E26)*F40 -> 
A30: Statistics | B30: AADT | E30: Raw Least Squares Forecasts | H30: Demographically Adjusted Forecasts
A31: R 2 | B31: =RSQ(B7:B22,A7:A22) ->  | E31: YEAR | F31: AADT | H31: YEAR | I31: AADT
A32: SLOPE | B32: =SLOPE(B7:B22,A7:A22) ->  | E32: =A26 ->  | F32: =ROUND(E26,-1) ->  | H32: =A26 ->  | I32: =F32 -> 
A33: INTERCEPT | B33: =INTERCEPT(B7:B22,A7:A22) ->  | E33: =A27 -> 0 | F33: =ROUND(E27,-1) ->  | H33: =A27 -> 0 | I33: =ROUND(((I34-I32)/(H34-H32)*(H33-H32)+I32),-1) -> 
A34: N | B34: =COUNT(B7:B22) -> 0 | E34: =A28 ->  | F34: =ROUND(E28,-1) ->  | H34: =A28 ->  | I34: =ROUND(F32*(1+H38*(H34-H32)),-1) -> 
A35: NOTE:
A36: County Adjustment Factors were developed to Apply to Projected AADT. They are based on 1992-2007 VMT, Population, Labor Force, Household, and Employment Data. | E36: Slope Over Base Year | H36: Slope Over Base Year
E37: =B32/F33 ->  | H37: =((I34-I33)/(H34-H33)/I33) -> 
H38: =IF(E37*F40<=0.5%,0.5%,E37*F40) -> 
D39: COUNTY | F39: COUNTY FACTOR | H39: GROWTH PROFILE
D40: =UPPER(VLOOKUP(Cover!H16,$A$177:$C$264,1,FALSE)) ->  | F40: =VLOOKUP(Cover!H16,$A$177:$C$264,2,FALSE) ->  | H40: =UPPER(VLOOKUP(Cover!H16,$A$177:$C$264,3,FALSE)) -> 
B61: AADT_Data column reference
A63: year | C63: aadt | D63: data years | E63: nth largest
A64: 2019 | B64: 2 | C64: =VLOOKUP($H$4,AADT_Data!A:AB,B64,FALSE) ->  | D64: =IF(C64=0,0,A64) ->  | E64: 27
A65: 2018 | B65: 3 | C65: =VLOOKUP($H$4,AADT_Data!A:AB,B65,FALSE) ->  | D65: =IF(C65=0,0,A65) ->  | E65: 26 | F65: =IF(LARGE($D$65:$D$90,E65)=0,"",LARGE($D$65:$D$90,E65)) ->  | G65: =IF(ISNA(VLOOKUP(F65,$A$65:$C$90,3,FALSE)),"",VLOOKUP(F65,$A$65:$C$90,3,FALSE)) -> 
A66: 2017 | B66: 4 | C66: =VLOOKUP($H$4,AADT_Data!A:AB,B66,FALSE) ->  | D66: =IF(C66=0,0,A66) ->  | E66: 25
A67: 2016 | B67: 5 | C67: =VLOOKUP($H$4,AADT_Data!A:AB,B67,FALSE) ->  | D67: =IF(C67=0,0,A67) ->  | E67: 24
A68: 2015 | B68: 6 | C68: =VLOOKUP($H$4,AADT_Data!A:AB,B68,FALSE) ->  | D68: =IF(C68=0,0,A68) ->  | E68: 23
A69: 2014 | B69: 7 | C69: =VLOOKUP($H$4,AADT_Data!A:AB,B69,FALSE) ->  | D69: =IF(C69=0,0,A69) ->  | E69: 22
A70: 2013 | B70: 8 | C70: =VLOOKUP($H$4,AADT_Data!A:AB,B70,FALSE) ->  | E70: 21
A71: 2012 | B71: 9 | C71: =VLOOKUP($H$4,AADT_Data!A:AB,B71,FALSE) ->  | E71: 20
A72: 2011 | B72: 10 | C72: =VLOOKUP($H$4,AADT_Data!A:AB,B72,FALSE) ->  | E72: 19
A73: 2010 | B73: 11 | C73: =VLOOKUP($H$4,AADT_Data!A:AB,B73,FALSE) ->  | E73: 18
A74: 2009 | B74: 12 | C74: =VLOOKUP($H$4,AADT_Data!A:AB,B74,FALSE) ->  | E74: 17
A75: 2008 | B75: 13 | C75: =VLOOKUP($H$4,AADT_Data!A:AB,B75,FALSE) ->  | E75: 16
A76: 2007 | B76: 14 | C76: =VLOOKUP($H$4,AADT_Data!A:AB,B76,FALSE) ->  | E76: 15
A77: 2006 | B77: 15 | C77: =VLOOKUP($H$4,AADT_Data!A:AB,B77,FALSE) ->  | E77: 14 | F77: =IF(LARGE($D$64:$D$90,E77)=0,"",LARGE($D$64:$D$90,E77)) ->  | G77: =IF(ISNA(VLOOKUP(F77,$A$64:$C$90,3,FALSE)),"",VLOOKUP(F77,$A$64:$C$90,3,FALSE)) -> 
A78: 2005 | B78: 16 | C78: =VLOOKUP($H$4,AADT_Data!A:AB,B78,FALSE) ->  | E78: 13 | F78: =IF(LARGE($D$64:$D$90,E78)=0,"",LARGE($D$64:$D$90,E78)) ->  | G78: =IF(ISNA(VLOOKUP(F78,$A$64:$C$90,3,FALSE)),"",VLOOKUP(F78,$A$64:$C$90,3,FALSE)) -> 
A79: 2004 | B79: 17 | C79: =VLOOKUP($H$4,AADT_Data!A:AB,B79,FALSE) ->  | E79: 12
A80: 2003 | B80: 18 | C80: =VLOOKUP($H$4,AADT_Data!A:AB,B80,FALSE) ->  | E80: 11
A81: 2002 | B81: 19 | C81: =VLOOKUP($H$4,AADT_Data!A:AB,B81,FALSE) ->  | E81: 10
A82: 2001 | B82: 20 | C82: =VLOOKUP($H$4,AADT_Data!A:AB,B82,FALSE) ->  | E82: 9
A83: 2000 | B83: 21 | C83: =VLOOKUP($H$4,AADT_Data!A:AB,B83,FALSE) ->  | E83: 8
A84: 1999 | B84: 22 | C84: =VLOOKUP($H$4,AADT_Data!A:AB,B84,FALSE) ->  | E84: 7
A85: 1998 | B85: 23 | C85: =VLOOKUP($H$4,AADT_Data!A:AB,B85,FALSE) ->  | E85: 6
A86: 1997 | B86: 24 | C86: =VLOOKUP($H$4,AADT_Data!A:AB,B86,FALSE) ->  | E86: 5
A87: 1996 | B87: 25 | C87: =VLOOKUP($H$4,AADT_Data!A:AB,B87,FALSE) ->  | E87: 4
A88: 1995 | B88: 26 | C88: =VLOOKUP($H$4,AADT_Data!A:AB,B88,FALSE) ->  | E88: 3
A89: 1994 | B89: 27 | C89: =VLOOKUP($H$4,AADT_Data!A:AB,B89,FALSE) ->  | E89: 2
A90: 1992 | B90: 28 | C90: =VLOOKUP($H$4,AADT_Data!A:AB,B90,FALSE) ->  | D90: =IF(C90=0,0,A90) ->  | E90: 1
A177: County | B177: Factor | C177: Area Type
A178: Aitkin | B178: 0.95 | C178: High Growth Area
A179: Anoka | B179: 0.95 | C179: High Growth Area
A180: Becker | B180: 0.9387339609 | C180: Medium Growth Area
A181: Beltrami | B181: 0.95 | C181: High Growth Area
A182: Benton | B182: 0.95 | C182: High Growth Area
A183: Big Stone | B183: 0.8944759202 | C183: Low Growth Area
A184: Blue Earth | B184: 0.75 | C184: Medium Growth Area
A185: Brown | B185: 0.7896922659 | C185: Low Growth Area
A186: Carlton | B186: 0.95 | C186: Medium Growth Area
A187: Carver | B187: 0.95 | C187: High Growth Area
A188: Cass | B188: 0.95 | C188: High Growth Area
A189: Chippewa | B189: 0.8733104434 | C189: Low Growth Area
A190: Chisago | B190: 0.881279837 | C190: High Growth Area
A191: Clay | B191: 0.75 | C191: Low Growth Area
A192: Clearwater | B192: 0.8438234218 | C192: Low Growth Area
A193: Cook | B193: 0.75 | C193: Medium Growth Area
A194: Cottonwood | B194: 0.8331705696 | C194: Low Growth Area
A195: Crow Wing | B195: 0.8832312646 | C195: High Growth Area
A196: Dakota | B196: 0.8547421962 | C196: High Growth Area
A197: Dodge | B197: 0.95 | C197: High Growth Area
A198: Douglas | B198: 0.8873831958 | C198: High Growth Area
A199: Faribault | B199: 0.865981121 | C199: Low Growth Area
A200: Fillmore | B200: 0.8896061418 | C200: Low Growth Area
A201: Freeborn | B201: 0.755552827 | C201: Low Growth Area
A202: Goodhue | B202: 0.9273647987 | C202: Medium Growth Area
A203: Grant | B203: 0.75 | C203: Low Growth Area
A204: Hennepin | B204: 0.8272566422 | C204: Low Growth Area
A205: Houston | B205: 0.8378015226 | C205: Low Growth Area
A206: Hubbard | B206: 0.8346205138 | C206: High Growth Area
A207: Isanti | B207: 0.95 | C207: High Growth Area
A208: Itasca | B208: 0.8886716849 | C208: Medium Growth Area
A209: Jackson | B209: 0.9180626248 | C209: Medium Growth Area
A210: Kanabec | B210: 0.8135838922 | C210: Medium Growth Area
A211: Kandiyohi | B211: 0.8938419831 | C211: Medium Growth Area
A212: Kittson | B212: 0.8024358458 | C212: Low Growth Area
A213: Koochiching | B213: 0.7937489549 | C213: Low Growth Area
A214: Lac qui Parle | B214: 0.75 | C214: Low Growth Area
A215: Lake | B215: 0.8562919136 | C215: Low Growth Area
A216: Lake of the Woods | B216: 0.9138862817 | C216: Low Growth Area
A217: Le Sueur | B217: 0.95 | C217: Medium Growth Area
A218: Lincoln | B218: 0.8857449991 | C218: Low Growth Area
A219: Lyon | B219: 0.75 | C219: Low Growth Area
A220: Mahnomen | B220: 0.75 | C220: Low Growth Area
A221: Marshall | B221: 0.95 | C221: Low Growth Area
A222: Martin | B222: 0.8201303604 | C222: Low Growth Area
A223: McLeod | B223: 0.8928164106 | C223: Medium Growth Area
A224: Meeker | B224: 0.926111411 | C224: Medium Growth Area
A225: Mille Lacs | B225: 0.95 | C225: High Growth Area
A226: Morrison | B226: 0.9495694712 | C226: Medium Growth Area
A227: Mower | B227: 0.8302978459 | C227: Low Growth Area
A228: Murray | B228: 0.8387247211 | C228: Medium Growth Area
A229: Nicollet | B229: 0.8240013933 | C229: Medium Growth Area
A230: Nobles | B230: 0.7549960093 | C230: Low Growth Area
A231: Norman | B231: 0.8022447962 | C231: Low Growth Area
A232: Olmsted | B232: 0.95 | C232: High Growth Area
A233: Otter Tail | B233: 0.8614026285 | C233: Medium Growth Area
A234: Pennington | B234: 0.95 | C234: Medium Growth Area
A235: Pine | B235: 0.8448776659 | C235: High Growth Area
A236: Pipestone | B236: 0.75 | C236: Low Growth Area
A237: Polk | B237: 0.75 | C237: Low Growth Area
A238: Pope | B238: 0.9029074643 | C238: Medium Growth Area
A239: Ramsey | B239: 0.8087858109 | C239: Low Growth Area
A240: Red Lake | B240: 0.95 | C240: Medium Growth Area
A241: Redwood | B241: 0.75 | C241: Low Growth Area
A242: Renville | B242: 0.8480251476 | C242: Low Growth Area
A243: Rice | B243: 0.8220040162 | C243: Medium Growth Area
A244: Rock | B244: 0.75 | C244: Low Growth Area
A245: Roseau | B245: 0.8847517198 | C245: Medium Growth Area
A246: Scott | B246: 0.95 | C246: High Growth Area
A247: Sherburne | B247: 0.95 | C247: High Growth Area
A248: Sibley | B248: 0.8646549065 | C248: Medium Growth Area
A249: St. Louis | B249: 0.850777855 | C249: Low Growth Area
A250: Stearns | B250: 0.8586120378 | C250: High Growth Area
A251: Steele | B251: 0.8848664209 | C251: Medium Growth Area
A252: Stevens | B252: 0.7999567113 | C252: Low Growth Area
A253: Swift | B253: 0.8706429381 | C253: Low Growth Area
A254: Todd | B254: 0.8988708026 | C254: Medium Growth Area
A255: Traverse | B255: 0.7652278953 | C255: Low Growth Area
A256: Wabasha | B256: 0.8182478469 | C256: Low Growth Area
A257: Wadena | B257: 0.95 | C257: Medium Growth Area
A258: Waseca | B258: 0.7963073355 | C258: Low Growth Area
A259: Washington | B259: 0.95 | C259: High Growth Area
A260: Watonwan | B260: 0.75 | C260: Low Growth Area
A261: Wilkin | B261: 0.75 | C261: Low Growth Area
A262: Winona | B262: 0.8284012539 | C262: Low Growth Area
A263: Wright | B263: 0.95 | C263: High Growth Area
A264: Yellow Medicine | B264: 0.8780713455 | C264: Low Growth Area

Sheet ESAL A
A1: CUMULATIVE ESALS WORKSHEET | D1: ='Forecast A'!E1 -> SEGMENT A1 | H1: Non-print area | N1: ONE-WAY
A2: SP#: | B2: =IF(Cover!H13="","",Cover!H13) ->  | N2: TWO-WAY
A3: ROUTE: | B3: ='Forecast A'!B2 ->  | C3: TWO-WAY | D3: # LANES: | E3: =IF('Forecast A'!H5=0," ",'Forecast A'!H5) ->  | F3: DATE: | G3: =Cover!C10 -> 2019-12-18T08:22:16.670
A4: LOCATION: | B4: =IF('Forecast A'!B3=0," ",'Forecast A'!B3) -> 
A5: VCL SITE #: | B5: ='VC Avg'!B2 ->  | H5: Use the Defaults when an "A" Segment on a local road does not contain a VC Site
B6: YEAR | C6: AADT | D6: CALC HCADT | E6: HCADT % | F6: INIT CALC 5AX TST
A7: BASE YEAR: | B7: ='Forecast A'!B4 -> 0 | C7: ='Forecast A'!I33 ->  | D7: =SUM(B11:B19)*C7 ->  | E7: =SUM(D11:D19)/C7 ->  | F7: =SUM(B15:B17)*C7 ->  | H7: If the segment splits, multiple the percent heavies by 0.89% to indicate the 5 AX+ TST MAX.
A8: FORECAST YEAR: | B8: ='Forecast A'!F4 ->  | C8: ='Forecast A'!I34 ->  | D8: =SUM(F11:F19)*C8 ->  | E8: =SUM(G11:G19)/C8 ->  | F8: =SUM(F15:F17)*C8 ->  | H8: Then take the 5AX+ TST MAX and subtract 0.89% to indicate the 5AX+ TST OTHER
A10: RESULTING PERCENTS | D10: BASE YR VOLUME | E10: Additonal Trucks | F10: FORECAST % | G10: FUTURE YR VOLUME | I10: VEHICLE TYPE | J10: URBAN | K10: RURAL
A11: 2AX-6TIRE SU | B11: ='VC Avg'!L11 ->  | D11: =ROUND($C$7*B11+E11,0) ->  | E11: 0 | F11: =B11 ->  | G11: =ROUND($C$8*B11+E11,0) ->  | I11: 2AX-6TIRE SU | J11: 0.0152 | K11: 0.0317
A12: 3AX+ SU | B12: ='VC Avg'!L12 ->  | D12: =ROUND($C$7*B12+E12,0) ->  | E12: 0 | F12: =B12 ->  | G12: =ROUND($C$8*B12+E12,0) ->  | I12: 3AX+ SU | J12: 0.0046 | K12: 0.0164
A13: 3AX TST | B13: ='VC Avg'!L13 ->  | D13: =ROUND($C$7*B13+E13,0) ->  | E13: 0 | G13: =ROUND($C$8*B13+E13,0) ->  | I13: 3AX TST | J13: 0.0009 | K13: 0.0028
A14: 4AX TST | B14: ='VC Avg'!L14 ->  | D14: =ROUND($C$7*B14+E14,0) ->  | E14: 0 | I14: 4AX TST | J14: 0.0012 | K14: 0.005
A15: 5AX+ TST | B15: =IF('VC Avg'!L20<0.3,'VC Avg'!L15,0) ->  | E15: 0 | I15: 5AX+ TST | J15: 0.0089 | K15: 0.0326
A16: (5AX+ TST MAX) | B16: =IF('VC Avg'!L20>=0.3,'VC Avg'!K24,0) ->  | E16: 0 | F16: =B16 ->  | G16: =ROUND($C$8*B16+E16,0) ->  | I16: TR TR, BUSES | J16: 0.0047 | K16: 0.012
A17: (5AX+ TST OTH) | B17: =IF('VC Avg'!L20>=0.3,'VC Avg'!K25,0) ->  | E17: 0 | F17: =B17 ->  | I17: TWIN TRAILERS | J17: 0.0002 | K17: 0.0002
A18: TR TR, BUSES | B18: ='VC Avg'!L16 ->  | E18: 0 | F18: =B18 ->  | I18: TOTAL | J18: =SUM(J11:J17) -> 0.0357 | K18: =SUM(K11:K17) -> 0.1007
A19: TWIN TRAILERS | B19: ='VC Avg'!L17 ->  | E19: 0
F21: =B8-B7 ->  | G21: YR DESIGN
F22: LANE CUMULATIVE ESAL
F23: | | G23: |
F24: ***************** | G24: *****************
F25: FLEXIBLE | G25: RIGID
A26: DESIGN LANE FACTOR: | C26: =IF(C3=N2,CHOOSE((E3)+1,#VALUE!,1,0.5,0.5,0.45,0.45,0.35,0.35),CHOOSE(E3,1,0.9,0.7,0.7,0.7,0.7)) ->  | F26: =ROUND(CHOOSE(C119,F119,F120,F121,F122,F123,F124,F125,F126,F127,F128,F129,F130,F131,F132,F133,F134,F135,F136,F137,F138,F139,F140,F141,F142,F143,F144,F145,F146,F147,F148,F149,F150,F151,F152,F153,F154)*1.12,-3) ->  | G26: =ROUND(CHOOSE(C119,G119,G120,G121,G122,G123,G124,G125,G126,G127,G128,G129,G130,G131,G132,G133,G134,G135,G136,G137,G138,G139,G140,G141,G142,G143,G144,G145,G146,G147,G148,G149,G150,G151,G152,G153,G154)*1.12,-3) -> 
F27: ***************** | G27: *****************
A29: ADDITIONAL OUTPUTS: | E29: ESAL FACTORS
B30: BASE % | C30: FORECAST % | E30: FLEXIBLE | F30: RIGID
A31: 2AX-6TIRE SU | B31: =D11/$C$7 ->  | C31: =G11/$C$8 ->  | E31: 0.25 | F31: =IF(E31<0.11,E31,E31-0.01) -> 0.24
A32: 3AX+ SU | B32: =D12/$C$7 ->  | C32: =G12/$C$8 ->  | E32: 0.58 | F32: =IF(E32<0.36,(E32*1.62364-0.070909)+0.01,(IF(E32<0.4,E32*1.62364-0.07909,(IF(E32<0.66,(E32*1.62364-0.07909)-0.01,(IF(E32<0.69,E32*1.62364-0.07909,(E32*1.62364-0.07909)+0.02))))))) -> 0.8526212
A33: 3AX TST | E33: 0.39 | F33: =IF(E33<0.28,E33-0.01,(IF(E33<0.56,E33-0.02,E33-0.03))) -> 0.37
A34: 4AX TST | E34: 0.51 | F34: =IF(E34<0.41,E34,(IF(E34<0.47,E34+0.01,(IF(E34<0.54,E34+0.02,(IF(E34<0.61,E34+0.03,(IF(E34<0.67,E34+0.04,E34+0.05))))))))) -> 0.53
A35: 5AX+ TST | E35: 1.13 | F35: =(+E35*1.71536-0.05351)+0.005 -> 1.8898468
A36: (5AX+ TST MAX) | E36: 2.4 | F36: =(+E36*1.71536-0.05351)+0.005 -> 4.068354
A37: (5AX+ TST OTH) | E37: 0.87 | F37: =(+E37*1.71536-0.05351)+0.005 -> 1.4438532
A38: TR TR, BUSES | E38: 0.57 | F38: =E38*1.35636-0.03091 -> 0.7422152
A39: TWIN TRAILERS | C39: =G19/$C$8 ->  | E39: 2.4 | F39: =(+E39*0.97519-0.01494)+0.005 -> 2.330516
A40: Notes:
A48: CUMULATIVE ESAL REPORT | D48: ='Forecast A'!E1 -> SEGMENT A1
E49: DATE: | F49: =+Cover!C10 -> 2019-12-18T08:22:16.670
A50: ROUTE #: | B50: ='Forecast A'!B2 ->  | C50: DISTRICT: | D50: =IF(Cover!C15=0," ",Cover!C15) ->  | E50: SP#: | F50: =IF(+Cover!H13=0," ",+Cover!H13) -> 
A51: FORECAST #: | B51: =IF(Cover!H12=0," ",Cover!H12) ->  | C51: COUNTY: | D51: =IF(+Cover!H16=0," ",Cover!H16) ->  | E51: MILES: | F51: ='Forecast A'!H3 -> 
A52: LOCATION: | B52: ='Forecast A'!B3 -> 0
A53: AUTHOR: | B53: =IF(Cover!C13=0," ",Cover!C13) ->  | E53: AUTHOR'S DISTRICT: | F53: =IF(Cover!C14=0," ",Cover!C14) -> 
A55: BASE YEAR NUMBER OF LANES: | D55: =IF('Forecast A'!H5=0," ",'Forecast A'!H5) -> 
G56: YEARLY GROWTH (SIMPLE %)
A57: TRAFFIC SUMMARY | D57: BASE YEAR | F57: DESIGN YEAR
A58: =C3 -> TWO-WAY | D58: =B7 -> 0 | F58: =B8 -> 
A59: AADT: | D59: =C7 ->  | F59: =C8 ->  | G59: =((F59-D59)/($F$58-$D$58))/D59 -> 
A60: DESIGN LANE: | D60: =ROUND(C26*D59,-1) ->  | F60: =ROUND(C26*F59,-1) -> 
A61: HCADT: | D61: =IF(SUM(D11:D19)<500,ROUND(SUM(D11:D19)/5,0)*5,IF(SUM(D11:D19)<1000,ROUND(SUM(D11:D19)/10,0)*10,IF(SUM(D11:D19)<5000,ROUND(SUM(D11:D19)/50,0)*50,IF(SUM(D11:D19)<25000,ROUND(SUM(D11:D19)/500,0)*500,ROUND(SUM(D11:D19)/1000,0)*1000)))) ->  | F61: =IF(SUM(G11:G19)<500,ROUND(SUM(G11:G19)/5,0)*5,IF(SUM(G11:G19)<1000,ROUND(SUM(G11:G19)/10,0)*10,IF(SUM(G11:G19)<5000,ROUND(SUM(G11:G19)/50,0)*50,IF(SUM(G11:G19)<25000,ROUND(SUM(G11:G19)/500,0)*500,ROUND(SUM(G11:G19)/1000,0)*1000)))) -> 
A62: SINGLE UNITS: | D62: =IF(SUM(D11:D12)<500,ROUND(SUM(D11:D12)/5,0)*5,IF(SUM(D11:D12)<1000,ROUND(SUM(D11:D12)/10,0)*10,IF(SUM(D11:D12)<5000,ROUND(SUM(D11:D12)/50,0)*50,IF(SUM(D11:D12)<25000,ROUND(SUM(D11:D12)/500,0)*500,ROUND(SUM(D11:D12)/1000,0)*1000)))) ->  | F62: =IF(SUM(G11:G12)<500,ROUND(SUM(G11:G12)/5,0)*5,IF(SUM(G11:G12)<1000,ROUND(SUM(G11:G12)/10,0)*10,IF(SUM(G11:G12)<5000,ROUND(SUM(G11:G12)/50,0)*50,IF(SUM(G11:G12)<25000,ROUND(SUM(G11:G12)/500,0)*500,ROUND(SUM(G11:G12)/1000,0)*1000)))) -> 
A63: TST'S: | D63: =IF(SUM(D13:D17)<500,ROUND(SUM(D13:D17)/5,0)*5,IF(SUM(D13:D17)<1000,ROUND(SUM(D13:D17)/10,0)*10,IF(SUM(D13:D17)<5000,ROUND(SUM(D13:D17)/50,0)*50,IF(SUM(D13:D17)<25000,ROUND(SUM(D13:D17)/500,0)*500,ROUND(SUM(D13:D17)/1000,0)*1000)))) ->  | F63: =IF(SUM(G13:G17)<500,ROUND(SUM(G13:G17)/5,0)*5,IF(SUM(G13:G17)<1000,ROUND(SUM(G13:G17)/10,0)*10,IF(SUM(G13:G17)<5000,ROUND(SUM(G13:G17)/50,0)*50,IF(SUM(G13:G17)<25000,ROUND(SUM(G13:G17)/500,0)*500,ROUND(SUM(G13:G17)/1000,0)*1000)))) -> 
A64: 5 Ax+: | D64: =IF(SUM(D15:D17)<500,ROUND(SUM(D15:D17)/5,0)*5,IF(SUM(D15:D17)<1000,ROUND(SUM(D15:D17)/10,0)*10,IF(SUM(D15:D17)<5000,ROUND(SUM(D15:D17)/50,0)*50,IF(SUM(D15:D17)<25000,ROUND(SUM(D15:D17)/500,0)*500,ROUND(SUM(D15:D17)/1000,0)*1000)))) ->  | F64: =IF(SUM(G15:G17)<500,ROUND(SUM(G15:G17)/5,0)*5,IF(SUM(G15:G17)<1000,ROUND(SUM(G15:G17)/10,0)*10,IF(SUM(G15:G17)<5000,ROUND(SUM(G15:G17)/50,0)*50,IF(SUM(G15:G17)<25000,ROUND(SUM(G15:G17)/500,0)*500,ROUND(SUM(G15:G17)/1000,0)*1000)))) ->  | G64: =((F64-D64)/($F$58-$D$58))/D64 -> 
A66: ESAL SUMMARY
A67: ANNUAL DESIGN LANE ESAL
A68: FLEXIBLE: | D68: =D115*C26*365.25 ->  | F68: =F115*C26*365.25 -> 
A69: RIGID: | D69: =E115*C26*365.25 ->  | F69: =G115*C26*365.25 -> 
A72: CUMULATIVE DESIGN-LANE ESALS (10 TON) | F72: Design-lane factor: | G72: =C26 -> 
A73: FOR VARIABLE TIME PERIODS
A76: BASE | B76: DESIGN | C76: TIME | D76: DESIGN-LANE | F76: ESALS
A77: YEAR | B77: YEAR | C77: PERIOD | D77: TST'S | F77: FLEXIBLE | G77: RIGID
A78: =D58 -> 0 | B78: =D58+10 -> 10 | C78: 10 Year | D78: =G72*(10*($F$63-$D$63)/(F58-D58)+D63) ->  | F78: =ROUND(F129*1.12,-3) ->  | G78: =ROUND(G129*1.12,-3) -> 
A80: =D58 -> 0 | B80: =D58+15 -> 15 | C80: 15 Year | D80: =G72*(15*($F$63-$D$63)/(F58-D58)+D63) ->  | F80: =ROUND(F134*1.12,-3) ->  | G80: =ROUND(G134*1.12,-3) -> 
A82: =D58 -> 0 | B82: =D58+20 -> 20 | C82: 20 Year | D82: =G72*(20*($F$63-$D$63)/(F58-D58)+D63) ->  | F82: =ROUND(F139*1.12,-3) ->  | G82: =ROUND(G139*1.12,-3) -> 
A84: =D58 -> 0 | B84: =D58+25 -> 25 | C84: 25 Year | D84: =G72*(25*($F$63-$D$63)/(F58-D58)+D63) ->  | F84: =ROUND(F144*1.12,-3) ->  | G84: =ROUND(G144*1.12,-3) -> 
A86: =D58 -> 0 | B86: =D58+30 -> 30 | C86: 30 Year | D86: =G72*(30*($F$63-$D$63)/(F58-D58)+D63) ->  | F86: =ROUND(F149*1.12,-3) ->  | G86: =ROUND(G149*1.12,-3) -> 
A88: =D58 -> 0 | B88: =D58+35 -> 35 | C88: 35 Year | D88: =G72*(35*($F$63-$D$63)/(F58-D58)+D63) ->  | F88: =ROUND(F154*1.12,-3) ->  | G88: =ROUND(G154*1.12,-3) -> 
B95: APPROVED BY: | F95: DATE:
A103: CUMULATIVE ESAL WORK AREA | D103: BY VOL | E103: BY VOL | F103: FY VOL | G103: FY VOL
B104: BYVOLS | C104: FYVOLS | D104: *BESAL | E104: *CESAL | F104: *BESAL | G104: *CESAL
B105: =D11 ->  | C105: =G11 ->  | D105: =E31*B105 ->  | E105: =F31*B105 ->  | F105: =E31*C105 ->  | G105: =F31*C105 -> 
B106: =D12 ->  | D106: =E32*B106 -> 
D114: FLEX ADL | E114: RIG ADL | F114: FLEX ADL | G114: RIG ADL
C115: Esals Per Day | D115: =(C7-SUM(B105:B113))*0.0007+SUM(D105:D113) ->  | E115: =(C7-SUM(B105:B113))*0.0007+SUM(E105:E113) ->  | F115: =(C8-SUM(C105:C113))*0.0007+SUM(F105:F113) ->  | G115: =(C8-SUM(C105:C113))*0.0007+SUM(G105:G113) -> 
A117: CUMULATIVE ESAL CALCULATIONS (DESIGN LANE) | F117: FLEXIBLE | G117: RIGID
B118: INCLUSIVE | C118: YEARS | E118: DAYS
B119: FUTURE YR - BASE YR = | C119: =B8-B7+1 ->  | E119: 365.25 | F119: =$D$115*$E119*$C$26+F118 ->  | G119: =$E$115*$E119*$C$26+G118 -> 
E120: =E119+365.25 -> 730.5 | F120: =(365.25*$D$115+$E119*$A$123)*$C$26+F119 ->  | G120: =(365.25*$E$115+$E119*$B$123)*$C$26+G119 -> 
A121: ANNUAL AVERAGE CHANGE IN 2 WAY ADL | E121: 1095.75
A122: FLEXIBLE | B122: RIGID | E122: 1461
A123: =(F115-D115)/($C$119-1) ->  | B123: =(G115-E115)/($C$119-1) ->  | E123: 1826.25
E124: 2191.5
E125: 2556.75
E126: 2922
E127: 3287.25
E128: 3652.5
E129: 4017.75
E130: 4383
E131: 4748.25
E132: 5113.5
E133: 5478.75
E134: 5844
E135: 6209.25
E136: 6574.5
E137: 6939.75
E138: 7305
E139: 7670.25
E140: 8035.5
E141: 8400.75
E142: 8766
E143: 9131.25
E144: 9496.5
E145: 9861.75
E146: 10227
E147: 10592.25
E148: 10957.5
E149: 11322.75
E150: 11688
E151: 12053.25
E152: 12418.5
E153: 12783.75
E154: 13149

Sheet Forecast B1
A1: LEAST SQUARES WORKSHEET | E1: SEGMENT B1 | G1: Corresponds : | H1: ='Forecast A'!E1 -> SEGMENT A1 | J1: Non-print area
A2: ROUTE: | B2: =IF(Cover!H15="Interstate",Cover!J25&Cover!H14,IF(Cover!H15="US Trunk",Cover!J26&Cover!H14,IF(Cover!H15="MN Trunk",Cover!J27&Cover!H14,IF(Cover!H15="CSAH",Cover!J28&Cover!H14,IF(Cover!H15="CR",Cover!J29&Cover!H14," "))))) ->  | D2: SP#: | E2: =IF(Cover!H13=0," ",Cover!H13) ->  | G2: DATE : | H2: =Cover!C10 -> 2019-12-18T08:22:16.670
A3: LOCATION: | G3: Miles : | H3: =IF(H4="","",VLOOKUP(H4,AADT_Data!A:AC,29,FALSE)) ->  | J3: =IF(B3="","Location field is empty. Please enter location description. E.g. MN 169 to CSAH 5","") -> Location field is empty. Please enter location description. E.g. MN 169 to CSAH 5
A4: BASE YEAR: | B4: =IF('Forecast A'!B4=""," ",'Forecast A'!B4) ->  | E4: FORECAST YEAR: | F4: =IF(B4=" "," ",B4+20) ->  | G4: Seq # | J4: =IF(H4="","No Seq # is listed. Please enter sequence number","") -> No Seq # is listed. Please enter sequence number
G5: # of lanes | J5: =IF(H5="","Please indicate the number of lanes in this segment","") -> Please indicate the number of lanes in this segment
A6: COUNTED YEAR | B6: FLOW MAP AADT (SEG A) | J6: Year | K6: AADT
C7: 850 | J7: =IF(LARGE($D$64:$D$90,E75)=0,"",LARGE($D$64:$D$90,E75)) ->  | K7: =IF(ISNA(VLOOKUP(F75,$A$64:$C$90,3,FALSE)),"",VLOOKUP(F75,$A$64:$C$90,3,FALSE)) -> 
C8: 880
C9: 880
C10: 1350
C11: 1150
C12: 1000
C13: 1150
C14: 1100
C15: 1100
C16: 1100
C17: 1000
J22: =IF(LARGE($D$64:$D$90,E90)=0,"",LARGE($D$64:$D$90,E90)) ->  | K22: =IF(ISNA(VLOOKUP(F90,$A$64:$C$90,3,FALSE)),"",VLOOKUP(F90,$A$64:$C$90,3,FALSE)) -> 
A24: LEAST SQUARES BASED FORECASTS:
A25: Year | B25: AADT | D25: Calc | E25: ADT Calc
A26: =INDEX(A7:A22,MATCH(9.99999999999999E+307,B7:B22)) ->  | B26: =FORECAST(A26,B7:B22,A7:A22) ->  | D26: =VLOOKUP(A26,$A$11:$B$22,2,FALSE)-B26 ->  | E26: =B26+D26 -> 
A27: =B4 ->  | B27: =FORECAST(A27,B7:B22,A7:A22) ->  | E27: =B27+D26 ->  | F27: =E27 -> 
A28: =F4 ->  | B28: =FORECAST(A28,B7:B22,A7:A22) ->  | E28: =B28+D26 ->  | F28: =E26+(E28-E26)*F40 -> 
A30: Statistics | B30: AADT | E30: Raw Least Squares Forecasts | H30: Demographically Adjusted Forecasts
A31: R 2 | B31: =RSQ(B7:B22,A7:A22) ->  | E31: YEAR | F31: AADT | H31: YEAR | I31: AADT
A32: SLOPE | B32: =SLOPE(B7:B22,A7:A22) ->  | E32: =A26 ->  | F32: =ROUND(E26,-1) ->  | H32: =A26 ->  | I32: =F32 -> 
A33: INTERCEPT | B33: =INTERCEPT(B7:B22,A7:A22) ->  | E33: =A27 ->  | F33: =ROUND(E27,-1) ->  | H33: =A27 ->  | I33: =ROUND(((I34-I32)/(H34-H32)*(H33-H32)+I32),-1) -> 
A34: N | B34: =COUNT(B7:B22) -> 0 | E34: =A28 ->  | F34: =ROUND(E28,-1) ->  | H34: =A28 ->  | I34: =ROUND(F32*(1+H38*(H34-H32)),-1) -> 
A35: NOTE:
A36: County Adjustment Factors were developed to Apply to Projected AADT. They are based on 1992-2007 VMT, Population, Labor Force, Household, and Employment Data. | E36: Slope Over Base Year | H36: Slope Over Base Year
E37: =B32/F33 ->  | H37: =((I34-I33)/(H34-H33)/I33) -> 
H38: =IF(E37*F40<=0.5%,0.5%,E37*F40) -> 
D39: COUNTY | F39: COUNTY FACTOR | H39: GROWTH PROFILE
D40: =UPPER(VLOOKUP(Cover!H16,$A$174:$C$261,1,FALSE)) ->  | F40: =VLOOKUP(Cover!H16,$A$174:$C$261,2,FALSE) ->  | H40: =UPPER(VLOOKUP(Cover!H16,$A$174:$C$261,3,FALSE)) -> 
B61: AADT_Data column reference
A63: year | C63: aadt | D63: data years | E63: nth largest
A64: 2019 | B64: 2 | C64: =VLOOKUP($H$4,AADT_Data!A:AB,B64,FALSE) ->  | D64: =IF(C64=0,0,A64) ->  | E64: 27 | G64: =IF(ISNA(VLOOKUP(F64,$A$64:$C$89,3,FALSE)),"",VLOOKUP(F64,$A$64:$C$89,3,FALSE)) -> 
A65: 2018 | B65: 3 | C65: =VLOOKUP($H$4,AADT_Data!A:AB,B65,FALSE) ->  | D65: =IF(C65=0,0,A65) ->  | E65: 26 | F65: =IF(LARGE($D$65:$D$90,E65)=0,"",LARGE($D$65:$D$90,E65)) -> 
A66: 2017 | B66: 4 | C66: =VLOOKUP($H$4,AADT_Data!A:AB,B66,FALSE) ->  | D66: =IF(C66=0,0,A66) ->  | E66: 25
A67: 2016 | B67: 5 | C67: =VLOOKUP($H$4,AADT_Data!A:AB,B67,FALSE) ->  | D67: =IF(C67=0,0,A67) ->  | E67: 24
A68: 2015 | B68: 6 | C68: =VLOOKUP($H$4,AADT_Data!A:AB,B68,FALSE) ->  | D68: =IF(C68=0,0,A68) ->  | E68: 23
A69: 2014 | B69: 7 | C69: =VLOOKUP($H$4,AADT_Data!A:AB,B69,FALSE) ->  | D69: =IF(C69=0,0,A69) ->  | E69: 22
A70: 2013 | B70: 8 | C70: =VLOOKUP($H$4,AADT_Data!A:AB,B70,FALSE) ->  | E70: 21
A71: 2012 | B71: 9 | C71: =VLOOKUP($H$4,AADT_Data!A:AB,B71,FALSE) ->  | E71: 20
A72: 2011 | B72: 10 | C72: =VLOOKUP($H$4,AADT_Data!A:AB,B72,FALSE) ->  | E72: 19
A73: 2010 | B73: 11 | C73: =VLOOKUP($H$4,AADT_Data!A:AB,B73,FALSE) ->  | E73: 18
A74: 2009 | B74: 12 | C74: =VLOOKUP($H$4,AADT_Data!A:AB,B74,FALSE) ->  | E74: 17
A75: 2008 | B75: 13 | C75: =VLOOKUP($H$4,AADT_Data!A:AB,B75,FALSE) ->  | E75: 16
A76: 2007 | B76: 14 | C76: =VLOOKUP($H$4,AADT_Data!A:AB,B76,FALSE) ->  | E76: 15
A77: 2006 | B77: 15 | C77: =VLOOKUP($H$4,AADT_Data!A:AB,B77,FALSE) ->  | E77: 14 | F77: =IF(LARGE($D$64:$D$90,E77)=0,"",LARGE($D$64:$D$90,E77)) -> 
A78: 2005 | B78: 16 | C78: =VLOOKUP($H$4,AADT_Data!A:AB,B78,FALSE) ->  | E78: 13 | F78: =IF(LARGE($D$64:$D$90,E78)=0,"",LARGE($D$64:$D$90,E78)) -> 
A79: 2004 | B79: 17 | C79: =VLOOKUP($H$4,AADT_Data!A:AB,B79,FALSE) ->  | E79: 12
A80: 2003 | B80: 18 | C80: =VLOOKUP($H$4,AADT_Data!A:AB,B80,FALSE) ->  | E80: 11
A81: 2002 | B81: 19 | C81: =VLOOKUP($H$4,AADT_Data!A:AB,B81,FALSE) ->  | E81: 10
A82: 2001 | B82: 20 | C82: =VLOOKUP($H$4,AADT_Data!A:AB,B82,FALSE) ->  | E82: 9
A83: 2000 | B83: 21 | C83: =VLOOKUP($H$4,AADT_Data!A:AB,B83,FALSE) ->  | E83: 8
A84: 1999 | B84: 22 | C84: =VLOOKUP($H$4,AADT_Data!A:AB,B84,FALSE) ->  | E84: 7
A85: 1998 | B85: 23 | C85: =VLOOKUP($H$4,AADT_Data!A:AB,B85,FALSE) ->  | E85: 6
A86: 1997 | B86: 24 | C86: =VLOOKUP($H$4,AADT_Data!A:AB,B86,FALSE) ->  | E86: 5
A87: 1996 | B87: 25 | C87: =VLOOKUP($H$4,AADT_Data!A:AB,B87,FALSE) ->  | E87: 4
A88: 1995 | B88: 26 | C88: =VLOOKUP($H$4,AADT_Data!A:AB,B88,FALSE) ->  | E88: 3
A89: 1994 | B89: 27 | C89: =VLOOKUP($H$4,AADT_Data!A:AB,B89,FALSE) ->  | E89: 2 | G89: =IF(ISNA(VLOOKUP(F89,$A$64:$C$89,3,FALSE)),"",VLOOKUP(F89,$A$64:$C$89,3,FALSE)) -> 
A90: 1992 | B90: 28 | C90: =VLOOKUP($H$4,AADT_Data!A:AB,B90,FALSE) ->  | E90: 1
A174: County | B174: Factor | C174: Area Type
A175: Aitkin | B175: 0.95 | C175: High Growth Area
A176: Anoka | B176: 0.95 | C176: High Growth Area
A177: Becker | B177: 0.9387339609 | C177: Medium Growth Area
A178: Beltrami | B178: 0.95 | C178: High Growth Area
A179: Benton | B179: 0.95 | C179: High Growth Area
A180: Big Stone | B180: 0.8944759202 | C180: Low Growth Area
A181: Blue Earth | B181: 0.75 | C181: Medium Growth Area
A182: Brown | B182: 0.7896922659 | C182: Low Growth Area
A183: Carlton | B183: 0.95 | C183: Medium Growth Area
A184: Carver | B184: 0.95 | C184: High Growth Area
A185: Cass | B185: 0.95 | C185: High Growth Area
A186: Chippewa | B186: 0.8733104434 | C186: Low Growth Area
A187: Chisago | B187: 0.881279837 | C187: High Growth Area
A188: Clay | B188: 0.75 | C188: Low Growth Area
A189: Clearwater | B189: 0.8438234218 | C189: Low Growth Area
A190: Cook | B190: 0.75 | C190: Medium Growth Area
A191: Cottonwood | B191: 0.8331705696 | C191: Low Growth Area
A192: Crow Wing | B192: 0.8832312646 | C192: High Growth Area
A193: Dakota | B193: 0.8547421962 | C193: High Growth Area
A194: Dodge | B194: 0.95 | C194: High Growth Area
A195: Douglas | B195: 0.8873831958 | C195: High Growth Area
A196: Faribault | B196: 0.865981121 | C196: Low Growth Area
A197: Fillmore | B197: 0.8896061418 | C197: Low Growth Area
A198: Freeborn | B198: 0.755552827 | C198: Low Growth Area
A199: Goodhue | B199: 0.9273647987 | C199: Medium Growth Area
A200: Grant | B200: 0.75 | C200: Low Growth Area
A201: Hennepin | B201: 0.8272566422 | C201: Low Growth Area
A202: Houston | B202: 0.8378015226 | C202: Low Growth Area
A203: Hubbard | B203: 0.8346205138 | C203: High Growth Area
A204: Isanti | B204: 0.95 | C204: High Growth Area
A205: Itasca | B205: 0.8886716849 | C205: Medium Growth Area
A206: Jackson | B206: 0.9180626248 | C206: Medium Growth Area
A207: Kanabec | B207: 0.8135838922 | C207: Medium Growth Area
A208: Kandiyohi | B208: 0.8938419831 | C208: Medium Growth Area
A209: Kittson | B209: 0.8024358458 | C209: Low Growth Area
A210: Koochiching | B210: 0.7937489549 | C210: Low Growth Area
A211: Lac qui Parle | B211: 0.75 | C211: Low Growth Area
A212: Lake | B212: 0.8562919136 | C212: Low Growth Area
A213: Lake of the Woods | B213: 0.9138862817 | C213: Low Growth Area
A214: Le Sueur | B214: 0.95 | C214: Medium Growth Area
A215: Lincoln | B215: 0.8857449991 | C215: Low Growth Area
A216: Lyon | B216: 0.75 | C216: Low Growth Area
A217: Mahnomen | B217: 0.75 | C217: Low Growth Area
A218: Marshall | B218: 0.95 | C218: Low Growth Area
A219: Martin | B219: 0.8201303604 | C219: Low Growth Area
A220: McLeod | B220: 0.8928164106 | C220: Medium Growth Area
A221: Meeker | B221: 0.926111411 | C221: Medium Growth Area
A222: Mille Lacs | B222: 0.95 | C222: High Growth Area
A223: Morrison | B223: 0.9495694712 | C223: Medium Growth Area
A224: Mower | B224: 0.8302978459 | C224: Low Growth Area
A225: Murray | B225: 0.8387247211 | C225: Medium Growth Area
A226: Nicollet | B226: 0.8240013933 | C226: Medium Growth Area
A227: Nobles | B227: 0.7549960093 | C227: Low Growth Area
A228: Norman | B228: 0.8022447962 | C228: Low Growth Area
A229: Olmsted | B229: 0.95 | C229: High Growth Area
A230: Otter Tail | B230: 0.8614026285 | C230: Medium Growth Area
A231: Pennington | B231: 0.95 | C231: Medium Growth Area
A232: Pine | B232: 0.8448776659 | C232: High Growth Area
A233: Pipestone | B233: 0.75 | C233: Low Growth Area
A234: Polk | B234: 0.75 | C234: Low Growth Area
A235: Pope | B235: 0.9029074643 | C235: Medium Growth Area
A236: Ramsey | B236: 0.8087858109 | C236: Low Growth Area
A237: Red Lake | B237: 0.95 | C237: Medium Growth Area
A238: Redwood | B238: 0.75 | C238: Low Growth Area
A239: Renville | B239: 0.8480251476 | C239: Low Growth Area
A240: Rice | B240: 0.8220040162 | C240: Medium Growth Area
A241: Rock | B241: 0.75 | C241: Low Growth Area
A242: Roseau | B242: 0.8847517198 | C242: Medium Growth Area
A243: Scott | B243: 0.95 | C243: High Growth Area
A244: Sherburne | B244: 0.95 | C244: High Growth Area
A245: Sibley | B245: 0.8646549065 | C245: Medium Growth Area
A246: St. Louis | B246: 0.850777855 | C246: Low Growth Area
A247: Stearns | B247: 0.8586120378 | C247: High Growth Area
A248: Steele | B248: 0.8848664209 | C248: Medium Growth Area
A249: Stevens | B249: 0.7999567113 | C249: Low Growth Area
A250: Swift | B250: 0.8706429381 | C250: Low Growth Area
A251: Todd | B251: 0.8988708026 | C251: Medium Growth Area
A252: Traverse | B252: 0.7652278953 | C252: Low Growth Area
A253: Wabasha | B253: 0.8182478469 | C253: Low Growth Area
A254: Wadena | B254: 0.95 | C254: Medium Growth Area
A255: Waseca | B255: 0.7963073355 | C255: Low Growth Area
A256: Washington | B256: 0.95 | C256: High Growth Area
A257: Watonwan | B257: 0.75 | C257: Low Growth Area
A258: Wilkin | B258: 0.75 | C258: Low Growth Area
A259: Winona | B259: 0.8284012539 | C259: Low Growth Area
A260: Wright | B260: 0.95 | C260: High Growth Area
A261: Yellow Medicine | B261: 0.8780713455 | C261: Low Growth Area

Sheet ESAL B1
A1: CUMULATIVE ESAL WORKSHEET | D1: ='Forecast B1'!E1 -> SEGMENT B1 | J1: Non-print area | P1: ONE-WAY
A2: SP#: | B2: =IF(Cover!H13="","",Cover!H13) ->  | F2: CORRESPONDS: | G2: ='Forecast B1'!H1 -> SEGMENT A1 | P2: TWO-WAY
A3: ROUTE: | B3: ='Forecast B1'!B2 ->  | C3: TWO-WAY | D3: # LANES: | E3: =IF('Forecast B1'!H5=0," ",'Forecast B1'!H5) ->  | F3: DATE: | G3: =Cover!C10 -> 2019-12-18T08:22:16.670 | J3: Urban/Rural Classification
A4: LOCATION: | B4: =IF('Forecast B1'!B3=0," ",'Forecast B1'!B3) ->  | J4: =VLOOKUP('Forecast B1'!H4,'Urban&Rural'!A1:B18088,2,FALSE) -> 
B6: YEAR | C6: AADT | D6: HCADT % | E6: AADT Difference from A Seg
A7: BASE YEAR: | B7: ='Forecast B1'!B4 ->  | C7: ='Forecast B1'!I33 ->  | D7: =SUM(E13:E21)/C7 ->  | E7: =C7-'ESAL A'!C7 ->  | N7: RURAL
A8: FORECAST YEAR: | B8: ='Forecast B1'!F4 ->  | C8: ='Forecast B1'!I34 ->  | D8: =SUM(H13:H21)/C8 ->  | E8: =C8-'ESAL A'!C8 ->  | N8: URBAN
C10: User Adjustment to Base Yr Vol | D10: Base Year Incremental Volume | E10: Base Year Volume | F10: User Adjustment to Future Yr Vol | G10: Future Year Incremental Volume | H10: Future Year Volume | I10: RESULTING PERCENTS | L10: VEHICLE TYPE | M10: URBAN | N10: RURAL
L11: 2AX-6TIRE SU | M11: 0.0152 | N11: 0.0317
A12: INCREMENTAL PROPORTIONS | L12: 3AX+ SU | M12: 0.0046 | N12: 0.0164
A13: 2AX-6TIRE SU | B13: =IF($E$7=0,'ESAL A'!B11,(D13+C13)/$E$7) ->  | C13: =IF(J13>0.5,0.5*'ESAL A'!D11-D13,IF(J13<-0.5,-0.5*'ESAL A'!D11-D13,0)) ->  | D13: =IF($J$4="urban",M11*$E$7,IF($J$4="rural",N11*$E$7,"See J3")) ->  | E13: ='ESAL A'!D11+(D13+C13) ->  | F13: =IF(K13>0.5,0.5*'ESAL A'!G11-G13,IF(K13<-0.5,-0.5*'ESAL A'!G11-G13,0)) ->  | G13: =IF($J$4="urban",M11*$E$8,IF($J$4="rural",N11*$E$8,"See J3")) ->  | H13: ='ESAL A'!G11+(G13+F13) ->  | I13: =H13/$C$8 ->  | J13: =IF('ESAL A'!D11=0,0,D13/'ESAL A'!D11) ->  | K13: =IF('ESAL A'!G11=0,0,G13/'ESAL A'!G11) ->  | L13: 3AX TST | M13: 0.0009 | N13: 0.0028
A14: 3AX+ SU | B14: =IF($E$7=0,'ESAL A'!B12,(D14+C14)/$E$7) ->  | C14: =IF(J14>0.5,0.5*'ESAL A'!D12-D14,IF(J14<-0.5,-0.5*'ESAL A'!D12-D14,0)) ->  | D14: =IF($J$4="urban",M12*$E$7,IF($J$4="rural",N12*$E$7,"See J3")) ->  | E14: ='ESAL A'!D12+(D14+C14) ->  | F14: =IF(K14>0.5,0.5*'ESAL A'!G12-G14,IF(K14<-0.5,-0.5*'ESAL A'!G12-G14,0)) ->  | G14: =IF($J$4="urban",M12*$E$8,IF($J$4="rural",N12*$E$8,"See J3")) ->  | H14: ='ESAL A'!G12+(G14+F14) ->  | I14: =H14/$C$8 ->  | J14: =IF('ESAL A'!D12=0,0,D14/'ESAL A'!D12) ->  | K14: =IF('ESAL A'!G12=0,0,G14/'ESAL A'!G12) ->  | L14: 4AX TST | M14: 0.0012 | N14: 0.005
A15: 3AX TST | B15: =IF($E$7=0,'ESAL A'!B13,(D15+C15)/$E$7) ->  | C15: =IF(J15>0.5,0.5*'ESAL A'!D13-D15,IF(J15<-0.5,-0.5*'ESAL A'!D13-D15,0)) ->  | D15: =IF($J$4="urban",M13*$E$7,IF($J$4="rural",N13*$E$7,"See J3")) ->  | E15: ='ESAL A'!D13+(D15+C15) ->  | F15: =IF(K15>0.5,0.5*'ESAL A'!G13-G15,IF(K15<-0.5,-0.5*'ESAL A'!G13-G15,0)) ->  | H15: ='ESAL A'!G13+(G15+F15) ->  | J15: =IF('ESAL A'!D13=0,0,D15/'ESAL A'!D13) ->  | K15: =IF('ESAL A'!G13=0,0,G15/'ESAL A'!G13) ->  | L15: 5AX+ TST | M15: 0.0089 | N15: 0.0326
A16: 4AX TST | B16: =IF($E$7=0,'ESAL A'!B14,(D16+C16)/$E$7) ->  | C16: =IF(J16>0.5,0.5*'ESAL A'!D14-D16,IF(J16<-0.5,-0.5*'ESAL A'!D14-D16,0)) ->  | D16: =IF($J$4="urban",M14*$E$7,IF($J$4="rural",N14*$E$7,"See J3")) ->  | E16: ='ESAL A'!D14+(D16+C16) ->  | F16: =IF(K16>0.5,0.5*'ESAL A'!G14-G16,IF(K16<-0.5,-0.5*'ESAL A'!G14-G16,0)) ->  | H16: ='ESAL A'!G14+(G16+F16) ->  | J16: =IF('ESAL A'!D14=0,0,D16/'ESAL A'!D14) ->  | K16: =IF('ESAL A'!G14=0,0,G16/'ESAL A'!G14) ->  | L16: TR TR, BUSES | M16: 0.0047 | N16: 0.012
A17: 5AX+ TST | B17: =IF('ESAL A'!B15=0,0,(D17+C17)/$E$7) ->  | C17: =IF(J17>0.5,0.5*SUM('ESAL A'!D15:D17)-D17,IF(J17<-0.5,-0.5*SUM('ESAL A'!D15:D17)-D17,0)) ->  | D17: =IF('ESAL A'!B15=0,0,IF($J$4="urban",M15*$E$7,IF($J$4="rural",N15*$E$7,"See J3"))) ->  | E17: =IF('ESAL A'!B15=0,"-",'ESAL A'!D15+D17) ->  | F17: =IF(K17>0.5,0.5*SUM('ESAL A'!G15:G17)-G17,IF(K17<-0.5,-0.5*SUM('ESAL A'!G15:G17)-G17,0)) ->  | G17: =IF('ESAL A'!B15=0,0,IF($J$4="urban",M15*$E$8,IF($J$4="rural",N15*$E$8,"See J3"))) ->  | H17: =IF('ESAL A'!B15=0,"-",'ESAL A'!G15+G17) ->  | I17: =IF(H17="-","-",H17/$C$8) ->  | J17: =IF(SUM('ESAL A'!D15:D17)=0,0,(D17/SUM('ESAL A'!D15:D17))) ->  | K17: =IF(SUM('ESAL A'!G15:G17)=0,0,G17/SUM('ESAL A'!G15:G17)) ->  | L17: TWIN TRAILERS | M17: 0.0002 | N17: 0.0002
A18: (5AX+ TST MAX) | B18: =IF($E$7=0,'ESAL A'!B16,D18/$E$7) ->  | C18: 0 | D18: =IF('ESAL A'!B16=0,0,IF($J$4="urban",M15*$E$7*('ESAL A'!D16/SUM('ESAL A'!D16:D17))+C18,IF($J$4="rural",N15*$E$7*('ESAL A'!D16/SUM('ESAL A'!D16:D17))+C18,"See J3"))) ->  | E18: ='ESAL A'!D16+D18 ->  | F18: 0 | G18: =IF('ESAL A'!B16=0,0,IF($J$4="urban",M15*$E$8*('ESAL A'!D16/SUM('ESAL A'!D16:D17))+F18,IF($J$4="rural",N15*$E$8*('ESAL A'!D16/SUM('ESAL A'!D16:D17))+F18,"See J3"))) ->  | H18: ='ESAL A'!G16+G18 ->  | I18: =H18/$C$8 ->  | J18: =IF('ESAL A'!D16=0,0,D18/'ESAL A'!D16) ->  | K18: =IF('ESAL A'!G16=0,0,G18/'ESAL A'!G16) ->  | L18: TOTAL | M18: =SUM(M11:M17) -> 0.0357 | N18: =SUM(N11:N17) -> 0.1007
A19: (5AX+ TST OTH) | B19: =IF($E$7=0,'ESAL A'!B17,D19/$E$7) ->  | C19: 0 | D19: =IF('ESAL A'!B16=0,0,IF($J$4="urban",M15*$E$7*('ESAL A'!D17/SUM('ESAL A'!D16:D17))+C19,IF($J$4="rural",N15*$E$7*('ESAL A'!D17/SUM('ESAL A'!D16:D17))+C19,"See J3"))) ->  | E19: ='ESAL A'!D17+D19 ->  | F19: 0 | G19: =IF('ESAL A'!B16=0,0,IF($J$4="urban",M15*$E$8*('ESAL A'!D17/SUM('ESAL A'!D16:D17))+F19,IF($J$4="rural",N15*$E$8*('ESAL A'!D17/SUM('ESAL A'!D16:D17))+F19,"See J3"))) ->  | H19: ='ESAL A'!G17+G19 ->  | J19: =IF('ESAL A'!D17=0,0,D19/'ESAL A'!D17) ->  | K19: =IF('ESAL A'!G17=0,0,G19/'ESAL A'!G17) -> 
A20: TR TR, BUSES | B20: =IF($E$7=0,'ESAL A'!B18,(D20+C20)/$E$7) ->  | C20: =IF(J20>0.5,0.5*'ESAL A'!D18-D20,IF(J20<-0.5,-0.5*'ESAL A'!D18-D20,0)) ->  | D20: =IF($J$4="urban",M16*$E$7,IF($J$4="rural",N16*$E$7,"See J3")) ->  | E20: ='ESAL A'!D18+(D20+C20) ->  | F20: =IF(K20>0.5,0.5*'ESAL A'!G18-G20,IF(K20<-0.5,-0.5*'ESAL A'!G18-G20,0)) ->  | G20: =IF($J$4="urban",M16*$E$8,IF($J$4="rural",N16*$E$8,"See J3")) ->  | H20: ='ESAL A'!G18+(G20+F20) ->  | J20: =IF('ESAL A'!D18=0,0,D20/'ESAL A'!D18) ->  | K20: =IF('ESAL A'!G18=0,0,G20/'ESAL A'!G18) -> 
A21: TWIN TRAILERS | B21: =IF($E$7=0,'ESAL A'!B19,(D21+C21)/$E$7) ->  | C21: =IF(J21>0.5,0.5*'ESAL A'!D19-D21,IF(J21<-0.5,-0.5*'ESAL A'!D19-D21,0)) ->  | D21: =IF($J$4="urban",M17*$E$7,IF($J$4="rural",N17*$E$7,"See J3")) ->  | E21: ='ESAL A'!D19+(D21+C21) ->  | F21: =IF(K21>0.5,0.5*'ESAL A'!G19-G21,IF(K21<-0.5,-0.5*'ESAL A'!G19-G21,0)) ->  | G21: =IF($J$4="urban",M17*$E$8,IF($J$4="rural",N17*$E$8,"See J3")) ->  | H21: ='ESAL A'!G19+(G21+F21) ->  | J21: =IF('ESAL A'!D19=0,0,D21/'ESAL A'!D19) ->  | K21: =IF('ESAL A'!G19=0,0,G21/'ESAL A'!G19) -> 
A23: CLASSIFICATION: | B23: =J4 ->  | F23: =B8-B7 ->  | G23: YR DESIGN
F24: LANE CUMULATIVE ESAL
F25: | | G25: |
F26: ***************** | G26: *****************
A27: DESIGN LANE FACTOR: | C27: =IF(C3=P2,CHOOSE((E3)+1,#VALUE!,1,0.5,0.5,0.45,0.45,0.35,0.35),CHOOSE(E3,1,0.9,0.7,0.7,0.7,0.7)) ->  | F27: FLEXIBLE | G27: RIGID
E28: SEGMENT B INCREMENT ONLY: | F28: =ROUND(CHOOSE(C129,F129,F130,F131,F132,F133,F134,F135,F136,F137,F138,F139,F140,F141,F142,F143,F144,F145,F146,F147,F148,F149,F150,F151,F152,F153,F154,F155,F156,F157,F158,F159,F160,F161,F162,F163,F164)*1.12,-3) ->  | G28: =ROUND(CHOOSE(C129,G129,G130,G131,G132,G133,G134,G135,G136,G137,G138,G139,G140,G141,G142,G143,G144,G145,G146,G147,G148,G149,G150,G151,G152,G153,G154,G155,G156,G157,G158,G159,G160,G161,G162,G163,G164)*1.12,-3) -> 
E29: SEGMENT A + SEGMENT B: | F29: =ROUND(F28+'ESAL A'!F26*C27/'ESAL A'!C26,-3) ->  | G29: =ROUND(G28+'ESAL A'!G26*C27/'ESAL A'!C26,-3) -> 
F30: ***************** | G30: *****************
A32: ADDITIONAL OUTPUTS: | E32: ESAL FACTORS
B33: BASE % | C33: FORECAST % | E33: FLEXIBLE | F33: RIGID
A34: 2AX-6TIRE SU | B34: =D13/$E$7 ->  | C34: =G13/$E$8 ->  | E34: 0.25 | F34: =IF(E34<0.11,E34,E34-0.01) -> 0.24
A35: 3AX+ SU | B35: =D14/$E$7 ->  | C35: =G14/$E$8 ->  | E35: 0.58 | F35: =IF(E35<0.36,(E35*1.62364-0.070909)+0.01,(IF(E35<0.4,E35*1.62364-0.07909,(IF(E35<0.66,(E35*1.62364-0.07909)-0.01,(IF(E35<0.69,E35*1.62364-0.07909,(E35*1.62364-0.07909)+0.02))))))) -> 0.8526212
A36: 3AX TST | C36: =G15/$E$8 ->  | E36: 0.39 | F36: =IF(E36<0.28,E36-0.01,(IF(E36<0.56,E36-0.02,E36-0.03))) -> 0.37
A37: 4AX TST | E37: 0.51 | F37: =IF(E37<0.41,E37,(IF(E37<0.47,E37+0.01,(IF(E37<0.54,E37+0.02,(IF(E37<0.61,E37+0.03,(IF(E37<0.67,E37+0.04,E37+0.05))))))))) -> 0.53
A38: 5AX+ TST | E38: 1.13 | F38: =(+E38*1.71536-0.05351)+0.005 -> 1.8898468
A39: (5AX+ TST MAX) | E39: 2.4 | F39: =(+E39*1.71536-0.05351)+0.005 -> 4.068354
A40: (5AX+ TST OTH) | C40: =G19/$E$8 ->  | E40: 0.87 | F40: =(+E40*1.71536-0.05351)+0.005 -> 1.4438532
A41: TR TR, BUSES | E41: 0.57 | F41: =E41*1.35636-0.03091 -> 0.7422152
A42: TWIN TRAILERS | E42: 2.4 | F42: =(+E42*0.97519-0.01494)+0.005 -> 2.330516
A58: CUMULATIVE ESAL REPORT | D58: =D1 -> SEGMENT B1
G59: CORRESPONDS: | H59: ='Forecast B1'!H1 -> SEGMENT A1
A60: ROUTE #: | B60: ='Forecast B1'!B2 ->  | C60: DISTRICT: | D60: =IF(Cover!C15="","",Cover!C15) ->  | E60: SP#: | F60: =IF(Cover!H13="","",Cover!H13) ->  | G60: DATE: | H60: =Cover!C10 -> 2019-12-18T08:22:16.670
A61: FORECAST #: | B61: =IF(Cover!H12="","",Cover!H12) ->  | C61: COUNTY: | D61: =IF(Cover!H16="","",Cover!H16) ->  | E61: MILES: | F61: ='Forecast B1'!H3 -> 
A62: LOCATION: | B62: =B4 -> 
A63: AUTHOR: | B63: =IF(Cover!C13="","",Cover!C13) ->  | E63: AUTHOR'S DISTRICT: | F63: =IF(Cover!C14="","",Cover!C14) -> 
A65: BASE YEAR NUMBER OF LANES: | D65: =IF('Forecast B1'!H5=0," ",'Forecast B1'!H5) -> 
G66: YEARLY GROWTH (SIMPLE %)
A67: TRAFFIC SUMMARY | D67: BASE YEAR | F67: DESIGN YEAR
A68: =C3 -> TWO-WAY | D68: =B7 ->  | F68: =B8 -> 
A69: AADT: | D69: =C7 ->  | F69: =C8 ->  | G69: =((F69-D69)/($F$68-$D$68))/D69 -> 
A70: DESIGN LANE: | D70: =ROUND(C27*D69,-1) ->  | F70: =ROUND(C27*F69,-1) -> 
A71: HCADT: | D71: =IF(SUM(E13:E21)<500,ROUND(SUM(E13:E21)/5,0)*5,IF(SUM(E13:E21)<1000,ROUND(SUM(E13:E21)/10,0)*10,IF(SUM(E13:E21)<5000,ROUND(SUM(E13:E21)/50,0)*50,IF(SUM(E13:E21)<25000,ROUND(SUM(E13:E21)/500,0)*500,ROUND(SUM(E13:E21)/1000,0)*1000)))) ->  | F71: =IF(SUM(H13:H21)<500,ROUND(SUM(H13:H21)/5,0)*5,IF(SUM(H13:H21)<1000,ROUND(SUM(H13:H21)/10,0)*10,IF(SUM(H13:H21)<5000,ROUND(SUM(H13:H21)/50,0)*50,IF(SUM(H13:H21)<25000,ROUND(SUM(H13:H21)/500,0)*500,ROUND(SUM(H13:H21)/1000,0)*1000)))) ->  | G71: =((F71-D71)/($F$68-$D$68))/D71 -> 
A72: SINGLE UNITS: | D72: =IF(SUM(E13:E14)<500,ROUND(SUM(E13:E14)/5,0)*5,IF(SUM(E13:E14)<1000,ROUND(SUM(E13:E14)/10,0)*10,IF(SUM(E13:E14)<5000,ROUND(SUM(E13:E14)/50,0)*50,IF(SUM(E13:E14)<25000,ROUND(SUM(E13:E14)/500,0)*500,ROUND(SUM(E13:E14)/1000,0)*1000)))) ->  | F72: =IF(SUM(H13:H14)<500,ROUND(SUM(H13:H14)/5,0)*5,IF(SUM(H13:H14)<1000,ROUND(SUM(H13:H14)/10,0)*10,IF(SUM(H13:H14)<5000,ROUND(SUM(H13:H14)/50,0)*50,IF(SUM(H13:H14)<25000,ROUND(SUM(H13:H14)/500,0)*500,ROUND(SUM(H13:H14)/1000,0)*1000)))) -> 
A73: TST'S: | D73: =IF(SUM(E15:E19)<500,ROUND(SUM(E15:E19)/5,0)*5,IF(SUM(E15:E19)<1000,ROUND(SUM(E15:E19)/10,0)*10,IF(SUM(E15:E19)<5000,ROUND(SUM(E15:E19)/50,0)*50,IF(SUM(E15:E19)<25000,ROUND(SUM(E15:E19)/500,0)*500,ROUND(SUM(E15:E19)/1000,0)*1000)))) ->  | F73: =IF(SUM(H15:H19)<500,ROUND(SUM(H15:H19)/5,0)*5,IF(SUM(H15:H19)<1000,ROUND(SUM(H15:H19)/10,0)*10,IF(SUM(H15:H19)<5000,ROUND(SUM(H15:H19)/50,0)*50,IF(SUM(H15:H19)<25000,ROUND(SUM(H15:H19)/500,0)*500,ROUND(SUM(H15:H19)/1000,0)*1000)))) -> 
A74: 5 Ax+: | D74: =IF(SUM(E17:E19)<500,ROUND(SUM(E17:E19)/5,0)*5,IF(SUM(E17:E19)<1000,ROUND(SUM(E17:E19)/10,0)*10,IF(SUM(E17:E19)<5000,ROUND(SUM(E17:E19)/50,0)*50,IF(SUM(E17:E19)<25000,ROUND(SUM(E17:E19)/500,0)*500,ROUND(SUM(E17:E19)/1000,0)*1000)))) ->  | F74: =IF(SUM(H17:H19)<500,ROUND(SUM(H17:H19)/5,0)*5,IF(SUM(H17:H19)<1000,ROUND(SUM(H17:H19)/10,0)*10,IF(SUM(H17:H19)<5000,ROUND(SUM(H17:H19)/50,0)*50,IF(SUM(H17:H19)<25000,ROUND(SUM(H17:H19)/500,0)*500,ROUND(SUM(H17:H19)/1000,0)*1000)))) -> 
A76: ESAL SUMMARY
A77: ANNUAL DESIGN LANE ESAL
A78: FLEXIBLE: | D78: =('ESAL A'!D115*'ESAL A'!C26+D125*C27)*365.25 ->  | F78: =('ESAL A'!F115*'ESAL A'!C26+F125*C27)*365.25 -> 
A79: RIGID: | D79: =('ESAL A'!E115*'ESAL A'!C26+E125*C27)*365.25 ->  | F79: =('ESAL A'!G115*'ESAL A'!C26+G125*C27)*365.25 -> 
A81: CUMULATIVE DESIGN-LANE ESALS (10 TON) | F81: Design-lane factor: | G81: =C27 -> 
A82: FOR VARIABLE TIME PERIODS
A86: BASE | B86: DESIGN | C86: TIME | D86: DESIGN-LANE | F86: ESALS
A87: YEAR | B87: YEAR | C87: PERIOD | D87: TST'S | F87: FLEXIBLE | G87: RIGID
A88: =D68 ->  | B88: =A88+10 ->  | C88: 10 Year | D88: =G81*(10*(F73-D73)/(F68-D68)+D73) ->  | F88: =ROUND(('ESAL A'!F129*C27/'ESAL A'!C26+F139)*1.12,-3) ->  | G88: =ROUND(('ESAL A'!G129*C27/'ESAL A'!C26+G139)*1.12,-3) -> 
A90: =D68 ->  | B90: =A90+15 ->  | C90: 15 Year | D90: =G81*(15*(F73-D73)/(F68-D68)+D73) ->  | F90: =ROUND(('ESAL A'!F134*C27/'ESAL A'!C26+F144)*1.12,-3) ->  | G90: =ROUND(('ESAL A'!G134*C27/'ESAL A'!C26+G144)*1.12,-3) -> 
A92: =D68 ->  | B92: =A92+20 ->  | C92: 20 Year | D92: =G81*(20*(F73-D73)/(F68-D68)+D73) ->  | F92: =ROUND(('ESAL A'!F139*C27/'ESAL A'!C26+F149)*1.12,-3) ->  | G92: =ROUND(('ESAL A'!G139*C27/'ESAL A'!C26+G149)*1.12,-3) -> 
A94: =D68 ->  | B94: =A94+25 ->  | C94: 25 Year | D94: =G81*(25*(F73-D73)/(F68-D68)+D73) ->  | F94: =ROUND(('ESAL A'!F144*C27/'ESAL A'!C26+F154)*1.12,-3) ->  | G94: =ROUND(('ESAL A'!G144*C27/'ESAL A'!C26+G154)*1.12,-3) -> 
A96: =D68 ->  | B96: =A96+30 ->  | C96: 30 Year | D96: =G81*(30*(F73-D73)/(F68-D68)+D73) ->  | F96: =ROUND(('ESAL A'!F149*C27/'ESAL A'!C26+F159)*1.12,-3) ->  | G96: =ROUND(('ESAL A'!G149*C27/'ESAL A'!C26+G159)*1.12,-3) -> 
A98: =D68 ->  | B98: =A98+35 ->  | C98: 35 Year | D98: =G81*(35*(F73-D73)/(F68-D68)+D73) ->  | F98: =ROUND(('ESAL A'!F154*C27/'ESAL A'!C26+F164)*1.12,-3) ->  | G98: =ROUND(('ESAL A'!G154*C27/'ESAL A'!C26+G164)*1.12,-3) -> 
B104: APPROVED BY: | F104: DATE:
A113: CUMULATIVE ESAL WORK AREA
B114: BYVOLS | C114: FYVOLS | D114: BY VOL * BESAL | E114: BY VOL *CESAL | F114: FY VOL *BESAL | G114: FY VOL *CESAL
B115: =D13+C13 ->  | C115: =G13+F13 ->  | D115: =E34*B115 ->  | E115: =F34*B115 ->  | F115: =E34*C115 ->  | G115: =F34*C115 -> 
B116: =D14+C14 ->  | D116: =E35*B116 -> 
F119: =E38*C119 -> 
A124: TWO WAY ADL --> | D124: FLEX ADL | E124: RIG ADL | F124: FLEX ADL | G124: RIG ADL
A125: | | D125: =$E$7*0.0007+SUM(D115:D123) ->  | E125: =$E$7*0.0007+SUM(E115:E123) ->  | F125: =$E$8*0.0007+SUM(F115:F123) ->  | G125: =$E$8*0.0007+SUM(G115:G123) -> 
A127: CUMULATIVE ESAL CALCULATIONS (DESIGN LANE) | F127: FLEXIBLE | G127: RIGID
B128: INCLUSIVE | C128: YEARS | E128: DAYS
A129: FUTURE YR - BASE YR = | C129: =B8-B7+1 ->  | E129: 365.25 | F129: =$D$125*$E129*$C$27+F128 ->  | G129: =$E$125*$E129*$C$27+G128 -> 
E130: 730.5 | F130: =(365.25*$D$125+$E129*$A$133)*$C$27+F129 ->  | G130: =(365.25*$E$125+$E129*$B$133)*$C$27+G129 -> 
A131: ANNUAL AVERAGE CHANGE IN 2 WAY ADL | E131: 1095.75 | F131: =(365.25*$D$125+$E130*$A$133)*$C$27+F130 -> 
A132: FLEXIBLE | B132: RIGID | E132: 1461
A133: =(+F125-D125)/($C$129-1) ->  | B133: =(+G125-E125)/($C$129-1) ->  | E133: 1826.25
E134: 2191.5
E135: 2556.75
E136: 2922
E137: 3287.25
E138: 3652.5
E139: 4017.75
E140: 4383
E141: 4748.25
E142: 5113.5
E143: 5478.75
E144: 5844
E145: 6209.25
E146: 6574.5
E147: 6939.75
E148: 7305
E149: 7670.25
E150: 8035.5
E151: 8400.75
E152: 8766
E153: 9131.25
E154: 9496.5
E155: 9861.75
E156: 10227
E157: 10592.25
E158: 10957.5
E159: 11322.75
E160: 11688
E161: 12053.25
E162: 12418.5
E163: 12783.75
E164: 13149

Sheet Forecast B2
A1: LEAST SQUARES WORKSHEET | E1: SEGMENT B2 | G1: Corresponds : | H1: ='Forecast A'!E1 -> SEGMENT A1 | J1: Non-print area
A2: ROUTE: | B2: =IF(Cover!H15="Interstate",Cover!J25&Cover!H14,IF(Cover!H15="US Trunk",Cover!J26&Cover!H14,IF(Cover!H15="MN Trunk",Cover!J27&Cover!H14,IF(Cover!H15="CSAH",Cover!J28&Cover!H14,IF(Cover!H15="CR",Cover!J29&Cover!H14," "))))) ->  | D2: SP#: | E2: =IF(Cover!H13=0," ",Cover!H13) ->  | G2: DATE : | H2: =Cover!C10 -> 2019-12-18T08:22:16.670
A3: LOCATION: | G3: Miles : | H3: =IF(H4="","",VLOOKUP(H4,AADT_Data!A:AC,29,FALSE)) ->  | J3: =IF(B3="","Location field is empty. Please enter location description. E.g. MN 169 to CSAH 5","") -> Location field is empty. Please enter location description. E.g. MN 169 to CSAH 5
A4: BASE YEAR: | B4: =IF('Forecast A'!B4=0," ",'Forecast A'!B4) ->  | E4: FORECAST YEAR: | F4: =IF(B4=" "," ",B4+20) ->  | G4: Seq # | J4: =IF(H4="","No Seq # is listed. Please enter sequence number","") -> No Seq # is listed. Please enter sequence number
G5: # of lanes | J5: =IF(H5="","Please indicate the number of lanes in this segment","") -> Please indicate the number of lanes in this segment
A6: COUNTED YEAR | B6: FLOW MAP AADT (SEG A) | J6: Year | K6: AADT
C7: 850 | J7: =IF(LARGE($D$64:$D$90,E75)=0,"",LARGE($D$64:$D$90,E75)) ->  | K7: =IF(ISNA(VLOOKUP(F75,$A$64:$C$90,3,FALSE)),"",VLOOKUP(F75,$A$64:$C$90,3,FALSE)) -> 
C8: 880
C9: 880
C10: 1350
C11: 1150
C12: 1000
C13: 1150
C14: 1100
C15: 1100
C16: 1100
C17: 1000
J22: =IF(LARGE($D$64:$D$90,E90)=0,"",LARGE($D$64:$D$90,E90)) ->  | K22: =IF(ISNA(VLOOKUP(F90,$A$64:$C$90,3,FALSE)),"",VLOOKUP(F90,$A$64:$C$90,3,FALSE)) -> 
A24: LEAST SQUARES BASED FORECASTS:
A25: Year | B25: AADT | D25: Calc | E25: ADT Calc
A26: =INDEX(A7:A22,MATCH(9.99999999999999E+307,B7:B22)) ->  | B26: =FORECAST(A26,B7:B22,A7:A22) ->  | D26: =VLOOKUP(A26,$A$13:$B$22,2,FALSE)-B26 ->  | E26: =B26+D26 -> 
A27: =B4 ->  | B27: =FORECAST(A27,B7:B22,A7:A22) ->  | E27: =B27+D26 ->  | F27: =E27 -> 
A28: =F4 ->  | B28: =FORECAST(A28,B7:B22,A7:A22) ->  | E28: =B28+D26 ->  | F28: =E26+(E28-E26)*F40 -> 
A30: Statistics | B30: AADT | E30: Raw Least Squares Forecasts | H30: Demographically Adjusted Forecasts
A31: R 2 | B31: =RSQ(B7:B22,A7:A22) ->  | E31: YEAR | F31: AADT | H31: YEAR | I31: AADT
A32: SLOPE | B32: =SLOPE(B7:B22,A7:A22) ->  | E32: =A26 ->  | F32: =ROUND(E26,-1) ->  | H32: =A26 ->  | I32: =F32 -> 
A33: INTERCEPT | B33: =INTERCEPT(B7:B22,A7:A22) ->  | E33: =A27 ->  | F33: =ROUND(E27,-1) ->  | H33: =A27 ->  | I33: =ROUND(((I34-I32)/(H34-H32)*(H33-H32)+I32),-1) -> 
A34: N | B34: =COUNT(B7:B22) -> 0 | E34: =A28 ->  | F34: =ROUND(E28,-1) ->  | H34: =A28 ->  | I34: =ROUND(F32*(1+H38*(H34-H32)),-1) -> 
A35: NOTE:
A36: County Adjustment Factors were developed to Apply to Projected AADT. They are based on 1992-2007 VMT, Population, Labor Force, Household, and Employment Data. | E36: Slope Over Base Year | H36: Slope Over Base Year
E37: =B32/F33 ->  | H37: =((I34-I33)/(H34-H33)/I33) -> 
H38: =IF(E37*F40<=0.5%,0.5%,E37*F40) -> 
D39: COUNTY | F39: COUNTY FACTOR | H39: GROWTH PROFILE
D40: =UPPER(VLOOKUP(Cover!H16,$A$174:$C$261,1,FALSE)) ->  | F40: =VLOOKUP(Cover!H16,$A$174:$C$261,2,FALSE) ->  | H40: =UPPER(VLOOKUP(Cover!H16,$A$174:$C$261,3,FALSE)) -> 
B61: AADT_Data column reference
A63: year | C63: aadt | D63: data years | E63: nth largest
A64: 2019 | B64: 2 | C64: =VLOOKUP($H$4,AADT_Data!A:AB,B64,FALSE) ->  | D64: =IF(C64=0,0,A64) ->  | E64: 27 | G64: =IF(ISNA(VLOOKUP(F64,$A$64:$C$89,3,FALSE)),"",VLOOKUP(F64,$A$64:$C$89,3,FALSE)) -> 
A65: 2018 | B65: 3 | C65: =VLOOKUP($H$4,AADT_Data!A:AB,B65,FALSE) ->  | D65: =IF(C65=0,0,A65) ->  | E65: 26 | F65: =IF(LARGE($D$65:$D$90,E65)=0,"",LARGE($D$65:$D$90,E65)) -> 
A66: 2017 | B66: 4 | C66: =VLOOKUP($H$4,AADT_Data!A:AB,B66,FALSE) ->  | D66: =IF(C66=0,0,A66) ->  | E66: 25
A67: 2016 | B67: 5 | C67: =VLOOKUP($H$4,AADT_Data!A:AB,B67,FALSE) ->  | D67: =IF(C67=0,0,A67) ->  | E67: 24
A68: 2015 | B68: 6 | C68: =VLOOKUP($H$4,AADT_Data!A:AB,B68,FALSE) ->  | D68: =IF(C68=0,0,A68) ->  | E68: 23
A69: 2014 | B69: 7 | C69: =VLOOKUP($H$4,AADT_Data!A:AB,B69,FALSE) ->  | D69: =IF(C69=0,0,A69) ->  | E69: 22
A70: 2013 | B70: 8 | C70: =VLOOKUP($H$4,AADT_Data!A:AB,B70,FALSE) ->  | E70: 21
A71: 2012 | B71: 9 | C71: =VLOOKUP($H$4,AADT_Data!A:AB,B71,FALSE) ->  | E71: 20
A72: 2011 | B72: 10 | C72: =VLOOKUP($H$4,AADT_Data!A:AB,B72,FALSE) ->  | E72: 19
A73: 2010 | B73: 11 | C73: =VLOOKUP($H$4,AADT_Data!A:AB,B73,FALSE) ->  | E73: 18
A74: 2009 | B74: 12 | C74: =VLOOKUP($H$4,AADT_Data!A:AB,B74,FALSE) ->  | E74: 17
A75: 2008 | B75: 13 | C75: =VLOOKUP($H$4,AADT_Data!A:AB,B75,FALSE) ->  | E75: 16
A76: 2007 | B76: 14 | C76: =VLOOKUP($H$4,AADT_Data!A:AB,B76,FALSE) ->  | E76: 15
A77: 2006 | B77: 15 | C77: =VLOOKUP($H$4,AADT_Data!A:AB,B77,FALSE) ->  | E77: 14 | F77: =IF(LARGE($D$64:$D$90,E77)=0,"",LARGE($D$64:$D$90,E77)) -> 
A78: 2005 | B78: 16 | C78: =VLOOKUP($H$4,AADT_Data!A:AB,B78,FALSE) ->  | E78: 13 | F78: =IF(LARGE($D$64:$D$90,E78)=0,"",LARGE($D$64:$D$90,E78)) -> 
A79: 2004 | B79: 17 | C79: =VLOOKUP($H$4,AADT_Data!A:AB,B79,FALSE) ->  | E79: 12
A80: 2003 | B80: 18 | C80: =VLOOKUP($H$4,AADT_Data!A:AB,B80,FALSE) ->  | E80: 11
A81: 2002 | B81: 19 | C81: =VLOOKUP($H$4,AADT_Data!A:AB,B81,FALSE) ->  | E81: 10
A82: 2001 | B82: 20 | C82: =VLOOKUP($H$4,AADT_Data!A:AB,B82,FALSE) ->  | E82: 9
A83: 2000 | B83: 21 | C83: =VLOOKUP($H$4,AADT_Data!A:AB,B83,FALSE) ->  | E83: 8
A84: 1999 | B84: 22 | C84: =VLOOKUP($H$4,AADT_Data!A:AB,B84,FALSE) ->  | E84: 7
A85: 1998 | B85: 23 | C85: =VLOOKUP($H$4,AADT_Data!A:AB,B85,FALSE) ->  | E85: 6
A86: 1997 | B86: 24 | C86: =VLOOKUP($H$4,AADT_Data!A:AB,B86,FALSE) ->  | E86: 5
A87: 1996 | B87: 25 | C87: =VLOOKUP($H$4,AADT_Data!A:AB,B87,FALSE) ->  | E87: 4
A88: 1995 | B88: 26 | C88: =VLOOKUP($H$4,AADT_Data!A:AB,B88,FALSE) ->  | E88: 3
A89: 1994 | B89: 27 | C89: =VLOOKUP($H$4,AADT_Data!A:AB,B89,FALSE) ->  | E89: 2 | G89: =IF(ISNA(VLOOKUP(F89,$A$64:$C$89,3,FALSE)),"",VLOOKUP(F89,$A$64:$C$89,3,FALSE)) -> 
A90: 1992 | B90: 28 | C90: =VLOOKUP($H$4,AADT_Data!A:AB,B90,FALSE) ->  | E90: 1
A174: County | B174: Factor | C174: Area Type
A175: Aitkin | B175: 0.95 | C175: High Growth Area
A176: Anoka | B176: 0.95 | C176: High Growth Area
A177: Becker | B177: 0.9387339609 | C177: Medium Growth Area
A178: Beltrami | B178: 0.95 | C178: High Growth Area
A179: Benton | B179: 0.95 | C179: High Growth Area
A180: Big Stone | B180: 0.8944759202 | C180: Low Growth Area
A181: Blue Earth | B181: 0.75 | C181: Medium Growth Area
A182: Brown | B182: 0.7896922659 | C182: Low Growth Area
A183: Carlton | B183: 0.95 | C183: Medium Growth Area
A184: Carver | B184: 0.95 | C184: High Growth Area
A185: Cass | B185: 0.95 | C185: High Growth Area
A186: Chippewa | B186: 0.8733104434 | C186: Low Growth Area
A187: Chisago | B187: 0.881279837 | C187: High Growth Area
A188: Clay | B188: 0.75 | C188: Low Growth Area
A189: Clearwater | B189: 0.8438234218 | C189: Low Growth Area
A190: Cook | B190: 0.75 | C190: Medium Growth Area
A191: Cottonwood | B191: 0.8331705696 | C191: Low Growth Area
A192: Crow Wing | B192: 0.8832312646 | C192: High Growth Area
A193: Dakota | B193: 0.8547421962 | C193: High Growth Area
A194: Dodge | B194: 0.95 | C194: High Growth Area
A195: Douglas | B195: 0.8873831958 | C195: High Growth Area
A196: Faribault | B196: 0.865981121 | C196: Low Growth Area
A197: Fillmore | B197: 0.8896061418 | C197: Low Growth Area
A198: Freeborn | B198: 0.755552827 | C198: Low Growth Area
A199: Goodhue | B199: 0.9273647987 | C199: Medium Growth Area
A200: Grant | B200: 0.75 | C200: Low Growth Area
A201: Hennepin | B201: 0.8272566422 | C201: Low Growth Area
A202: Houston | B202: 0.8378015226 | C202: Low Growth Area
A203: Hubbard | B203: 0.8346205138 | C203: High Growth Area
A204: Isanti | B204: 0.95 | C204: High Growth Area
A205: Itasca | B205: 0.8886716849 | C205: Medium Growth Area
A206: Jackson | B206: 0.9180626248 | C206: Medium Growth Area
A207: Kanabec | B207: 0.8135838922 | C207: Medium Growth Area
A208: Kandiyohi | B208: 0.8938419831 | C208: Medium Growth Area
A209: Kittson | B209: 0.8024358458 | C209: Low Growth Area
A210: Koochiching | B210: 0.7937489549 | C210: Low Growth Area
A211: Lac qui Parle | B211: 0.75 | C211: Low Growth Area
A212: Lake | B212: 0.8562919136 | C212: Low Growth Area
A213: Lake of the Woods | B213: 0.9138862817 | C213: Low Growth Area
A214: Le Sueur | B214: 0.95 | C214: Medium Growth Area
A215: Lincoln | B215: 0.8857449991 | C215: Low Growth Area
A216: Lyon | B216: 0.75 | C216: Low Growth Area
A217: Mahnomen | B217: 0.75 | C217: Low Growth Area
A218: Marshall | B218: 0.95 | C218: Low Growth Area
A219: Martin | B219: 0.8201303604 | C219: Low Growth Area
A220: McLeod | B220: 0.8928164106 | C220: Medium Growth Area
A221: Meeker | B221: 0.926111411 | C221: Medium Growth Area
A222: Mille Lacs | B222: 0.95 | C222: High Growth Area
A223: Morrison | B223: 0.9495694712 | C223: Medium Growth Area
A224: Mower | B224: 0.8302978459 | C224: Low Growth Area
A225: Murray | B225: 0.8387247211 | C225: Medium Growth Area
A226: Nicollet | B226: 0.8240013933 | C226: Medium Growth Area
A227: Nobles | B227: 0.7549960093 | C227: Low Growth Area
A228: Norman | B228: 0.8022447962 | C228: Low Growth Area
A229: Olmsted | B229: 0.95 | C229: High Growth Area
A230: Otter Tail | B230: 0.8614026285 | C230: Medium Growth Area
A231: Pennington | B231: 0.95 | C231: Medium Growth Area
A232: Pine | B232: 0.8448776659 | C232: High Growth Area
A233: Pipestone | B233: 0.75 | C233: Low Growth Area
A234: Polk | B234: 0.75 | C234: Low Growth Area
A235: Pope | B235: 0.9029074643 | C235: Medium Growth Area
A236: Ramsey | B236: 0.8087858109 | C236: Low Growth Area
A237: Red Lake | B237: 0.95 | C237: Medium Growth Area
A238: Redwood | B238: 0.75 | C238: Low Growth Area
A239: Renville | B239: 0.8480251476 | C239: Low Growth Area
A240: Rice | B240: 0.8220040162 | C240: Medium Growth Area
A241: Rock | B241: 0.75 | C241: Low Growth Area
A242: Roseau | B242: 0.8847517198 | C242: Medium Growth Area
A243: Scott | B243: 0.95 | C243: High Growth Area
A244: Sherburne | B244: 0.95 | C244: High Growth Area
A245: Sibley | B245: 0.8646549065 | C245: Medium Growth Area
A246: St. Louis | B246: 0.850777855 | C246: Low Growth Area
A247: Stearns | B247: 0.8586120378 | C247: High Growth Area
A248: Steele | B248: 0.8848664209 | C248: Medium Growth Area
A249: Stevens | B249: 0.7999567113 | C249: Low Growth Area
A250: Swift | B250: 0.8706429381 | C250: Low Growth Area
A251: Todd | B251: 0.8988708026 | C251: Medium Growth Area
A252: Traverse | B252: 0.7652278953 | C252: Low Growth Area
A253: Wabasha | B253: 0.8182478469 | C253: Low Growth Area
A254: Wadena | B254: 0.95 | C254: Medium Growth Area
A255: Waseca | B255: 0.7963073355 | C255: Low Growth Area
A256: Washington | B256: 0.95 | C256: High Growth Area
A257: Watonwan | B257: 0.75 | C257: Low Growth Area
A258: Wilkin | B258: 0.75 | C258: Low Growth Area
A259: Winona | B259: 0.8284012539 | C259: Low Growth Area
A260: Wright | B260: 0.95 | C260: High Growth Area
A261: Yellow Medicine | B261: 0.8780713455 | C261: Low Growth Area

Sheet ESAL B2
A1: CUMULATIVE ESAL WORKSHEET | D1: ='Forecast B2'!E1 -> SEGMENT B2 | J1: Non-print area | P1: ONE-WAY
A2: SP#: | B2: =IF(Cover!H13="","",Cover!H13) ->  | F2: CORRESPONDS: | G2: ='Forecast B2'!H1 -> SEGMENT A1 | P2: TWO-WAY
A3: ROUTE: | B3: ='Forecast B2'!B2 ->  | C3: TWO-WAY | D3: # LANES: | E3: =IF('Forecast B2'!H5=0," ",'Forecast B2'!H5) ->  | F3: DATE: | G3: =Cover!C10 -> 2019-12-18T08:22:16.670 | J3: Urban/Rural Classification
A4: LOCATION: | B4: =IF('Forecast B2'!B3=0," ",'Forecast B2'!B3) ->  | J4: =VLOOKUP('Forecast B2'!H4,'Urban&Rural'!A1:B18088,2,FALSE) -> 
B6: YEAR | C6: AADT | D6: HCADT % | E6: AADT Difference from A Seg
A7: BASE YEAR: | B7: ='Forecast B2'!B4 ->  | C7: ='Forecast B2'!I33 ->  | D7: =SUM(E13:E21)/C7 ->  | E7: =C7-'ESAL A'!C7 ->  | N7: RURAL
A8: FORECAST YEAR: | B8: ='Forecast B2'!F4 ->  | C8: ='Forecast B2'!I34 ->  | D8: =SUM(H13:H21)/C8 ->  | E8: =C8-'ESAL A'!C8 ->  | N8: URBAN
C10: User Adjustment to Base Yr Vol | D10: Base Year Incremental Volume | E10: Base Year Volume | F10: User Adjustment to Future Yr Vol | G10: Future Year Incremental Volume | H10: Future Year Volume | I10: RESULTING PERCENTS | L10: VEHICLE TYPE | M10: URBAN | N10: RURAL
L11: 2AX-6TIRE SU | M11: 0.0152 | N11: 0.0317
A12: INCREMENTAL PROPORTIONS | L12: 3AX+ SU | M12: 0.0046 | N12: 0.0164
A13: 2AX-6TIRE SU | B13: =IF($E$7=0,'ESAL A'!B11,(D13+C13)/$E$7) ->  | C13: =IF(J13>0.5,0.5*'ESAL A'!D11-D13,IF(J13<-0.5,-0.5*'ESAL A'!D11-D13,0)) ->  | D13: =IF($J$4="urban",M11*$E$7,IF($J$4="rural",N11*$E$7,"See J3")) ->  | E13: ='ESAL A'!D11+(D13+C13) ->  | F13: =IF(K13>0.5,0.5*'ESAL A'!G11-G13,IF(K13<-0.5,-0.5*'ESAL A'!G11-G13,0)) ->  | G13: =IF($J$4="urban",M11*$E$8,IF($J$4="rural",N11*$E$8,"See J3")) ->  | H13: ='ESAL A'!G11+(G13+F13) ->  | I13: =H13/$C$8 ->  | J13: =IF('ESAL A'!D11=0,0,D13/'ESAL A'!D11) ->  | K13: =IF('ESAL A'!G11=0,0,G13/'ESAL A'!G11) ->  | L13: 3AX TST | M13: 0.0009 | N13: 0.0028
A14: 3AX+ SU | B14: =IF($E$7=0,'ESAL A'!B12,(D14+C14)/$E$7) ->  | C14: =IF(J14>0.5,0.5*'ESAL A'!D12-D14,IF(J14<-0.5,-0.5*'ESAL A'!D12-D14,0)) ->  | D14: =IF($J$4="urban",M12*$E$7,IF($J$4="rural",N12*$E$7,"See J3")) ->  | E14: ='ESAL A'!D12+(D14+C14) ->  | F14: =IF(K14>0.5,0.5*'ESAL A'!G12-G14,IF(K14<-0.5,-0.5*'ESAL A'!G12-G14,0)) ->  | G14: =IF($J$4="urban",M12*$E$8,IF($J$4="rural",N12*$E$8,"See J3")) ->  | H14: ='ESAL A'!G12+(G14+F14) ->  | I14: =H14/$C$8 ->  | J14: =IF('ESAL A'!D12=0,0,D14/'ESAL A'!D12) ->  | K14: =IF('ESAL A'!G12=0,0,G14/'ESAL A'!G12) ->  | L14: 4AX TST | M14: 0.0012 | N14: 0.005
A15: 3AX TST | B15: =IF($E$7=0,'ESAL A'!B13,(D15+C15)/$E$7) ->  | C15: =IF(J15>0.5,0.5*'ESAL A'!D13-D15,IF(J15<-0.5,-0.5*'ESAL A'!D13-D15,0)) ->  | D15: =IF($J$4="urban",M13*$E$7,IF($J$4="rural",N13*$E$7,"See J3")) ->  | E15: ='ESAL A'!D13+(D15+C15) ->  | F15: =IF(K15>0.5,0.5*'ESAL A'!G13-G15,IF(K15<-0.5,-0.5*'ESAL A'!G13-G15,0)) ->  | H15: ='ESAL A'!G13+(G15+F15) ->  | J15: =IF('ESAL A'!D13=0,0,D15/'ESAL A'!D13) ->  | K15: =IF('ESAL A'!G13=0,0,G15/'ESAL A'!G13) ->  | L15: 5AX+ TST | M15: 0.0089 | N15: 0.0326
A16: 4AX TST | B16: =IF($E$7=0,'ESAL A'!B14,(D16+C16)/$E$7) ->  | C16: =IF(J16>0.5,0.5*'ESAL A'!D14-D16,IF(J16<-0.5,-0.5*'ESAL A'!D14-D16,0)) ->  | D16: =IF($J$4="urban",M14*$E$7,IF($J$4="rural",N14*$E$7,"See J3")) ->  | E16: ='ESAL A'!D14+(D16+C16) ->  | F16: =IF(K16>0.5,0.5*'ESAL A'!G14-G16,IF(K16<-0.5,-0.5*'ESAL A'!G14-G16,0)) ->  | H16: ='ESAL A'!G14+(G16+F16) ->  | J16: =IF('ESAL A'!D14=0,0,D16/'ESAL A'!D14) ->  | K16: =IF('ESAL A'!G14=0,0,G16/'ESAL A'!G14) ->  | L16: TR TR, BUSES | M16: 0.0047 | N16: 0.012
A17: 5AX+ TST | B17: =IF('ESAL A'!B15=0,0,(D17+C17)/$E$7) ->  | C17: =IF(J17>0.5,0.5*SUM('ESAL A'!D15:D17)-D17,IF(J17<-0.5,-0.5*SUM('ESAL A'!D15:D17)-D17,0)) ->  | D17: =IF('ESAL A'!B15=0,0,IF($J$4="urban",M15*$E$7,IF($J$4="rural",N15*$E$7,"See J3"))) ->  | E17: =IF('ESAL A'!B15=0,"-",'ESAL A'!D15+D17) ->  | F17: =IF(K17>0.5,0.5*SUM('ESAL A'!G15:G17)-G17,IF(K17<-0.5,-0.5*SUM('ESAL A'!G15:G17)-G17,0)) ->  | G17: =IF('ESAL A'!B15=0,0,IF($J$4="urban",M15*$E$8,IF($J$4="rural",N15*$E$8,"See J3"))) ->  | H17: =IF('ESAL A'!B15=0,"-",'ESAL A'!G15+G17) ->  | I17: =IF(H17="-","-",H17/$C$8) ->  | J17: =IF(SUM('ESAL A'!D15:D17)=0,0,(D17/SUM('ESAL A'!D15:D17))) ->  | K17: =IF(SUM('ESAL A'!G15:G17)=0,0,G17/SUM('ESAL A'!G15:G17)) ->  | L17: TWIN TRAILERS | M17: 0.0002 | N17: 0.0002
A18: (5AX+ TST MAX) | B18: =IF($E$7=0,'ESAL A'!B16,D18/$E$7) ->  | C18: 0 | D18: =IF('ESAL A'!B16=0,0,IF($J$4="urban",M15*$E$7*('ESAL A'!D16/SUM('ESAL A'!D16:D17))+C18,IF($J$4="rural",N15*$E$7*('ESAL A'!D16/SUM('ESAL A'!D16:D17))+C18,"See J3"))) ->  | E18: ='ESAL A'!D16+D18 ->  | F18: 0 | G18: =IF('ESAL A'!B16=0,0,IF($J$4="urban",M15*$E$8*('ESAL A'!D16/SUM('ESAL A'!D16:D17))+F18,IF($J$4="rural",N15*$E$8*('ESAL A'!D16/SUM('ESAL A'!D16:D17))+F18,"See J3"))) ->  | H18: ='ESAL A'!G16+G18 ->  | I18: =H18/$C$8 ->  | J18: =IF('ESAL A'!D16=0,0,D18/'ESAL A'!D16) ->  | K18: =IF('ESAL A'!G16=0,0,G18/'ESAL A'!G16) ->  | L18: TOTAL | M18: =SUM(M11:M17) -> 0.0357 | N18: =SUM(N11:N17) -> 0.1007
A19: (5AX+ TST OTH) | B19: =IF($E$7=0,'ESAL A'!B17,D19/$E$7) ->  | C19: 0 | D19: =IF('ESAL A'!B16=0,0,IF($J$4="urban",M15*$E$7*('ESAL A'!D17/SUM('ESAL A'!D16:D17))+C19,IF($J$4="rural",N15*$E$7*('ESAL A'!D17/SUM('ESAL A'!D16:D17))+C19,"See J3"))) ->  | E19: ='ESAL A'!D17+D19 ->  | F19: 0 | G19: =IF('ESAL A'!B16=0,0,IF($J$4="urban",M15*$E$8*('ESAL A'!D17/SUM('ESAL A'!D16:D17))+F19,IF($J$4="rural",N15*$E$8*('ESAL A'!D17/SUM('ESAL A'!D16:D17))+F19,"See J3"))) ->  | H19: ='ESAL A'!G17+G19 ->  | J19: =IF('ESAL A'!D17=0,0,D19/'ESAL A'!D17) ->  | K19: =IF('ESAL A'!G17=0,0,G19/'ESAL A'!G17) -> 
A20: TR TR, BUSES | B20: =IF($E$7=0,'ESAL A'!B18,(D20+C20)/$E$7) ->  | C20: =IF(J20>0.5,0.5*'ESAL A'!D18-D20,IF(J20<-0.5,-0.5*'ESAL A'!D18-D20,0)) ->  | D20: =IF($J$4="urban",M16*$E$7,IF($J$4="rural",N16*$E$7,"See J3")) ->  | E20: ='ESAL A'!D18+(D20+C20) ->  | F20: =IF(K20>0.5,0.5*'ESAL A'!G18-G20,IF(K20<-0.5,-0.5*'ESAL A'!G18-G20,0)) ->  | G20: =IF($J$4="urban",M16*$E$8,IF($J$4="rural",N16*$E$8,"See J3")) ->  | H20: ='ESAL A'!G18+(G20+F20) ->  | J20: =IF('ESAL A'!D18=0,0,D20/'ESAL A'!D18) ->  | K20: =IF('ESAL A'!G18=0,0,G20/'ESAL A'!G18) -> 
A21: TWIN TRAILERS | B21: =IF($E$7=0,'ESAL A'!B19,(D21+C21)/$E$7) ->  | C21: =IF(J21>0.5,0.5*'ESAL A'!D19-D21,IF(J21<-0.5,-0.5*'ESAL A'!D19-D21,0)) ->  | D21: =IF($J$4="urban",M17*$E$7,IF($J$4="rural",N17*$E$7,"See J3")) ->  | E21: ='ESAL A'!D19+(D21+C21) ->  | F21: =IF(K21>0.5,0.5*'ESAL A'!G19-G21,IF(K21<-0.5,-0.5*'ESAL A'!G19-G21,0)) ->  | G21: =IF($J$4="urban",M17*$E$8,IF($J$4="rural",N17*$E$8,"See J3")) ->  | H21: ='ESAL A'!G19+(G21+F21) ->  | J21: =IF('ESAL A'!D19=0,0,D21/'ESAL A'!D19) ->  | K21: =IF('ESAL A'!G19=0,0,G21/'ESAL A'!G19) -> 
A23: CLASSIFICATION: | B23: =J4 ->  | F23: =B8-B7 ->  | G23: YR DESIGN
F24: LANE CUMULATIVE ESAL
F25: | | G25: |
F26: ***************** | G26: *****************
A27: DESIGN LANE FACTOR: | C27: =IF(C3=P2,CHOOSE((E3)+1,#VALUE!,1,0.5,0.5,0.45,0.45,0.35,0.35),CHOOSE(E3,1,0.9,0.7,0.7,0.7,0.7)) ->  | F27: FLEXIBLE | G27: RIGID
E28: SEGMENT B INCREMENT ONLY: | F28: =ROUND(CHOOSE(C129,F129,F130,F131,F132,F133,F134,F135,F136,F137,F138,F139,F140,F141,F142,F143,F144,F145,F146,F147,F148,F149,F150,F151,F152,F153,F154,F155,F156,F157,F158,F159,F160,F161,F162,F163,F164)*1.12,-3) ->  | G28: =ROUND(CHOOSE(C129,G129,G130,G131,G132,G133,G134,G135,G136,G137,G138,G139,G140,G141,G142,G143,G144,G145,G146,G147,G148,G149,G150,G151,G152,G153,G154,G155,G156,G157,G158,G159,G160,G161,G162,G163,G164)*1.12,-3) -> 
E29: SEGMENT A + SEGMENT B: | F29: =ROUND(F28+'ESAL A'!F26*C27/'ESAL A'!C26,-3) ->  | G29: =ROUND(G28+'ESAL A'!G26*C27/'ESAL A'!C26,-3) -> 
F30: ***************** | G30: *****************
A32: ADDITIONAL OUTPUTS: | E32: ESAL FACTORS
B33: BASE % | C33: FORECAST % | E33: FLEXIBLE | F33: RIGID
A34: 2AX-6TIRE SU | B34: =D13/$E$7 ->  | C34: =G13/$E$8 ->  | E34: 0.25 | F34: =IF(E34<0.11,E34,E34-0.01) -> 0.24
A35: 3AX+ SU | B35: =D14/$E$7 ->  | C35: =G14/$E$8 ->  | E35: 0.58 | F35: =IF(E35<0.36,(E35*1.62364-0.070909)+0.01,(IF(E35<0.4,E35*1.62364-0.07909,(IF(E35<0.66,(E35*1.62364-0.07909)-0.01,(IF(E35<0.69,E35*1.62364-0.07909,(E35*1.62364-0.07909)+0.02))))))) -> 0.8526212
A36: 3AX TST | E36: 0.39 | F36: =IF(E36<0.28,E36-0.01,(IF(E36<0.56,E36-0.02,E36-0.03))) -> 0.37
A37: 4AX TST | E37: 0.51 | F37: =IF(E37<0.41,E37,(IF(E37<0.47,E37+0.01,(IF(E37<0.54,E37+0.02,(IF(E37<0.61,E37+0.03,(IF(E37<0.67,E37+0.04,E37+0.05))))))))) -> 0.53
A38: 5AX+ TST | E38: 1.13 | F38: =(+E38*1.71536-0.05351)+0.005 -> 1.8898468
A39: (5AX+ TST MAX) | E39: 2.4 | F39: =(+E39*1.71536-0.05351)+0.005 -> 4.068354
A40: (5AX+ TST OTH) | E40: 0.87 | F40: =(+E40*1.71536-0.05351)+0.005 -> 1.4438532
A41: TR TR, BUSES | E41: 0.57 | F41: =E41*1.35636-0.03091 -> 0.7422152
A42: TWIN TRAILERS | E42: 2.4 | F42: =(+E42*0.97519-0.01494)+0.005 -> 2.330516
A58: CUMULATIVE ESAL REPORT | D58: =D1 -> SEGMENT B2
G59: CORRESPONDS: | H59: ='Forecast B2'!H1 -> SEGMENT A1
A60: ROUTE #: | B60: ='Forecast B2'!B2 ->  | C60: DISTRICT: | D60: =IF(Cover!C15="","",Cover!C15) ->  | E60: SP#: | F60: =IF(Cover!H13="","",Cover!H13) ->  | G60: DATE: | H60: =Cover!C10 -> 2019-12-18T08:22:16.670
A61: FORECAST #: | B61: =IF(Cover!H12="","",Cover!H12) ->  | C61: COUNTY: | D61: =IF(Cover!H16="","",Cover!H16) ->  | E61: MILES: | F61: ='Forecast B2'!H3 -> 
A62: LOCATION: | B62: =B4 -> 
A63: AUTHOR: | B63: =IF(Cover!C13="","",Cover!C13) ->  | E63: AUTHOR'S DISTRICT: | F63: =IF(Cover!C14="","",Cover!C14) -> 
A65: BASE YEAR NUMBER OF LANES: | D65: =IF('Forecast B2'!H5=0," ",'Forecast B2'!H5) -> 
G66: YEARLY GROWTH (SIMPLE %)
A67: TRAFFIC SUMMARY | D67: BASE YEAR | F67: DESIGN YEAR
A68: =C3 -> TWO-WAY | D68: =B7 ->  | F68: =B8 -> 
A69: AADT: | D69: =C7 ->  | F69: =C8 ->  | G69: =((F69-D69)/($F$68-$D$68))/D69 -> 
A70: DESIGN LANE: | D70: =ROUND(C27*D69,-1) ->  | F70: =ROUND(C27*F69,-1) -> 
A71: HCADT: | D71: =IF(SUM(E13:E21)<500,ROUND(SUM(E13:E21)/5,0)*5,IF(SUM(E13:E21)<1000,ROUND(SUM(E13:E21)/10,0)*10,IF(SUM(E13:E21)<5000,ROUND(SUM(E13:E21)/50,0)*50,IF(SUM(E13:E21)<25000,ROUND(SUM(E13:E21)/500,0)*500,ROUND(SUM(E13:E21)/1000,0)*1000)))) ->  | F71: =IF(SUM(H13:H21)<500,ROUND(SUM(H13:H21)/5,0)*5,IF(SUM(H13:H21)<1000,ROUND(SUM(H13:H21)/10,0)*10,IF(SUM(H13:H21)<5000,ROUND(SUM(H13:H21)/50,0)*50,IF(SUM(H13:H21)<25000,ROUND(SUM(H13:H21)/500,0)*500,ROUND(SUM(H13:H21)/1000,0)*1000)))) -> 
A72: SINGLE UNITS: | D72: =IF(SUM(E13:E14)<500,ROUND(SUM(E13:E14)/5,0)*5,IF(SUM(E13:E14)<1000,ROUND(SUM(E13:E14)/10,0)*10,IF(SUM(E13:E14)<5000,ROUND(SUM(E13:E14)/50,0)*50,IF(SUM(E13:E14)<25000,ROUND(SUM(E13:E14)/500,0)*500,ROUND(SUM(E13:E14)/1000,0)*1000)))) ->  | F72: =IF(SUM(H13:H14)<500,ROUND(SUM(H13:H14)/5,0)*5,IF(SUM(H13:H14)<1000,ROUND(SUM(H13:H14)/10,0)*10,IF(SUM(H13:H14)<5000,ROUND(SUM(H13:H14)/50,0)*50,IF(SUM(H13:H14)<25000,ROUND(SUM(H13:H14)/500,0)*500,ROUND(SUM(H13:H14)/1000,0)*1000)))) -> 
A73: TST'S: | D73: =IF(SUM(E15:E19)<500,ROUND(SUM(E15:E19)/5,0)*5,IF(SUM(E15:E19)<1000,ROUND(SUM(E15:E19)/10,0)*10,IF(SUM(E15:E19)<5000,ROUND(SUM(E15:E19)/50,0)*50,IF(SUM(E15:E19)<25000,ROUND(SUM(E15:E19)/500,0)*500,ROUND(SUM(E15:E19)/1000,0)*1000)))) ->  | F73: =IF(SUM(H15:H19)<500,ROUND(SUM(H15:H19)/5,0)*5,IF(SUM(H15:H19)<1000,ROUND(SUM(H15:H19)/10,0)*10,IF(SUM(H15:H19)<5000,ROUND(SUM(H15:H19)/50,0)*50,IF(SUM(H15:H19)<25000,ROUND(SUM(H15:H19)/500,0)*500,ROUND(SUM(H15:H19)/1000,0)*1000)))) -> 
A74: 5 Ax+: | D74: =IF(SUM(E17:E19)<500,ROUND(SUM(E17:E19)/5,0)*5,IF(SUM(E17:E19)<1000,ROUND(SUM(E17:E19)/10,0)*10,IF(SUM(E17:E19)<5000,ROUND(SUM(E17:E19)/50,0)*50,IF(SUM(E17:E19)<25000,ROUND(SUM(E17:E19)/500,0)*500,ROUND(SUM(E17:E19)/1000,0)*1000)))) ->  | F74: =IF(SUM(H17:H19)<500,ROUND(SUM(H17:H19)/5,0)*5,IF(SUM(H17:H19)<1000,ROUND(SUM(H17:H19)/10,0)*10,IF(SUM(H17:H19)<5000,ROUND(SUM(H17:H19)/50,0)*50,IF(SUM(H17:H19)<25000,ROUND(SUM(H17:H19)/500,0)*500,ROUND(SUM(H17:H19)/1000,0)*1000)))) -> 
A76: ESAL SUMMARY
A77: ANNUAL DESIGN LANE ESAL
A78: FLEXIBLE: | D78: =('ESAL A'!D115*'ESAL A'!C26+D125*C27)*365.25 ->  | F78: =('ESAL A'!F115*'ESAL A'!C26+F125*C27)*365.25 -> 
A79: RIGID: | D79: =('ESAL A'!E115*'ESAL A'!C26+E125*C27)*365.25 ->  | F79: =('ESAL A'!G115*'ESAL A'!C26+G125*C27)*365.25 -> 
A81: CUMULATIVE DESIGN-LANE ESALS (10 TON) | F81: Design-lane factor: | G81: =C27 -> 
A82: FOR VARIABLE TIME PERIODS
A86: BASE | B86: DESIGN | C86: TIME | D86: DESIGN-LANE | F86: ESALS
A87: YEAR | B87: YEAR | C87: PERIOD | D87: TST'S | F87: FLEXIBLE | G87: RIGID
A88: =D68 ->  | B88: =A88+10 ->  | C88: 10 Year | D88: =G81*(10*(F73-D73)/(F68-D68)+D73) ->  | F88: =ROUND(('ESAL A'!F129*C27/'ESAL A'!C26+F139)*1.12,-3) ->  | G88: =ROUND(('ESAL A'!G129*C27/'ESAL A'!C26+G139)*1.12,-3) -> 
A90: =D68 ->  | B90: =A90+15 ->  | C90: 15 Year | D90: =G81*(15*(F73-D73)/(F68-D68)+D73) ->  | F90: =ROUND(('ESAL A'!F134*C27/'ESAL A'!C26+F144)*1.12,-3) ->  | G90: =ROUND(('ESAL A'!G134*C27/'ESAL A'!C26+G144)*1.12,-3) -> 
A92: =D68 ->  | B92: =A92+20 ->  | C92: 20 Year | D92: =G81*(20*(F73-D73)/(F68-D68)+D73) ->  | F92: =ROUND(('ESAL A'!F139*C27/'ESAL A'!C26+F149)*1.12,-3) ->  | G92: =ROUND(('ESAL A'!G139*C27/'ESAL A'!C26+G149)*1.12,-3) -> 
A94: =D68 ->  | B94: =A94+25 ->  | C94: 25 Year | D94: =G81*(25*(F73-D73)/(F68-D68)+D73) ->  | F94: =ROUND(('ESAL A'!F144*C27/'ESAL A'!C26+F154)*1.12,-3) ->  | G94: =ROUND(('ESAL A'!G144*C27/'ESAL A'!C26+G154)*1.12,-3) -> 
A96: =D68 ->  | B96: =A96+30 ->  | C96: 30 Year | D96: =G81*(30*(F73-D73)/(F68-D68)+D73) ->  | F96: =ROUND(('ESAL A'!F149*C27/'ESAL A'!C26+F159)*1.12,-3) ->  | G96: =ROUND(('ESAL A'!G149*C27/'ESAL A'!C26+G159)*1.12,-3) -> 
A98: =D68 ->  | B98: =A98+35 ->  | C98: 35 Year | D98: =G81*(35*(F73-D73)/(F68-D68)+D73) ->  | F98: =ROUND(('ESAL A'!F154*C27/'ESAL A'!C26+F164)*1.12,-3) ->  | G98: =ROUND(('ESAL A'!G154*C27/'ESAL A'!C26+G164)*1.12,-3) -> 
B104: APPROVED BY: | F104: DATE:
A113: CUMULATIVE ESAL WORK AREA
B114: BYVOLS | C114: FYVOLS | D114: BY VOL * BESAL | E114: BY VOL *CESAL | F114: FY VOL *BESAL | G114: FY VOL *CESAL
B115: =D13+C13 ->  | C115: =G13+F13 ->  | D115: =E34*B115 ->  | E115: =F34*B115 ->  | F115: =E34*C115 ->  | G115: =F34*C115 -> 
A124: TWO WAY ADL --> | D124: FLEX ADL | E124: RIG ADL | F124: FLEX ADL | G124: RIG ADL
A125: | | D125: =$E$7*0.0007+SUM(D115:D123) ->  | E125: =$E$7*0.0007+SUM(E115:E123) ->  | F125: =$E$8*0.0007+SUM(F115:F123) ->  | G125: =$E$8*0.0007+SUM(G115:G123) -> 
A127: CUMULATIVE ESAL CALCULATIONS (DESIGN LANE) | F127: FLEXIBLE | G127: RIGID
B128: INCLUSIVE | C128: YEARS | E128: DAYS
A129: FUTURE YR - BASE YR = | C129: =B8-B7+1 ->  | E129: 365.25 | F129: =$D$125*$E129*$C$27+F128 ->  | G129: =$E$125*$E129*$C$27+G128 -> 
E130: 730.5 | F130: =(365.25*$D$125+$E129*$A$133)*$C$27+F129 ->  | G130: =(365.25*$E$125+$E129*$B$133)*$C$27+G129 -> 
A131: ANNUAL AVERAGE CHANGE IN 2 WAY ADL | E131: 1095.75
A132: FLEXIBLE | B132: RIGID | E132: 1461
A133: =(+F125-D125)/($C$129-1) ->  | B133: =(+G125-E125)/($C$129-1) ->  | E133: 1826.25
E134: 2191.5
E135: 2556.75
E136: 2922
E137: 3287.25
E138: 3652.5
E139: 4017.75
E140: 4383
E141: 4748.25
E142: 5113.5
E143: 5478.75
E144: 5844
E145: 6209.25
E146: 6574.5
E147: 6939.75
E148: 7305
E149: 7670.25
E150: 8035.5
E151: 8400.75
E152: 8766
E153: 9131.25
E154: 9496.5
E155: 9861.75
E156: 10227
E157: 10592.25
E158: 10957.5
E159: 11322.75
E160: 11688
E161: 12053.25
E162: 12418.5
E163: 12783.75
E164: 13149

Sheet Forecast B3
A1: LEAST SQUARES WORKSHEET | E1: SEGMENT B3 | G1: Corresponds : | H1: ='Forecast A'!E1 -> SEGMENT A1 | J1: Non-print area
A2: ROUTE: | B2: =IF(Cover!H15="Interstate",Cover!J25&Cover!H14,IF(Cover!H15="US Trunk",Cover!J26&Cover!H14,IF(Cover!H15="MN Trunk",Cover!J27&Cover!H14,IF(Cover!H15="CSAH",Cover!J28&Cover!H14,IF(Cover!H15="CR",Cover!J29&Cover!H14," "))))) ->  | D2: SP#: | E2: =IF(Cover!H13=0," ",Cover!H13) ->  | G2: DATE : | H2: =Cover!C10 -> 2019-12-18T08:22:16.670
A3: LOCATION: | G3: Miles : | H3: =IF(H4="","",VLOOKUP(H4,AADT_Data!A:AC,29,FALSE)) ->  | J3: =IF(B3="","Location field is empty. Please enter location description. E.g. MN 169 to CSAH 5","") -> Location field is empty. Please enter location description. E.g. MN 169 to CSAH 5
A4: BASE YEAR: | B4: =IF('Forecast A'!B4=0," ",'Forecast A'!B4) ->  | E4: FORECAST YEAR: | F4: =IF(B4=" "," ",B4+20) ->  | G4: Seq # | J4: =IF(H4="","No Seq # is listed. Please enter sequence number","") -> No Seq # is listed. Please enter sequence number
G5: # of lanes | J5: =IF(H5="","Please indicate the number of lanes in this segment","") -> Please indicate the number of lanes in this segment
A6: COUNTED YEAR | B6: FLOW MAP AADT (SEG A) | J6: Year | K6: AADT
C7: 850 | J7: =IF(LARGE($D$64:$D$90,E75)=0,"",LARGE($D$64:$D$90,E75)) ->  | K7: =IF(ISNA(VLOOKUP(F75,$A$64:$C$90,3,FALSE)),"",VLOOKUP(F75,$A$64:$C$90,3,FALSE)) -> 
C8: 880
C9: 880
C10: 1350
C11: 1150
C12: 1000
C13: 1150
C14: 1100
C15: 1100
C16: 1100
C17: 1000
J22: =IF(LARGE($D$64:$D$90,E90)=0,"",LARGE($D$64:$D$90,E90)) ->  | K22: =IF(ISNA(VLOOKUP(F90,$A$64:$C$90,3,FALSE)),"",VLOOKUP(F90,$A$64:$C$90,3,FALSE)) -> 
A24: LEAST SQUARES BASED FORECASTS:
A25: Year | B25: AADT | D25: Calc | E25: ADT Calc
A26: =INDEX(A7:A22,MATCH(9.99999999999999E+307,B7:B22)) ->  | B26: =FORECAST(A26,B7:B22,A7:A22) ->  | D26: =VLOOKUP(A26,$A$11:$B$22,2,FALSE)-B26 ->  | E26: =B26+D26 -> 
A27: =B4 ->  | B27: =FORECAST(A27,B7:B22,A7:A22) ->  | E27: =B27+D26 ->  | F27: =E27 -> 
A28: =F4 ->  | B28: =FORECAST(A28,B7:B22,A7:A22) ->  | E28: =B28+D26 ->  | F28: =E26+(E28-E26)*F40 -> 
A30: Statistics | B30: AADT | E30: Raw Least Squares Forecasts | H30: Demographically Adjusted Forecasts
A31: R 2 | B31: =RSQ(B7:B22,A7:A22) ->  | E31: YEAR | F31: AADT | H31: YEAR | I31: AADT
A32: SLOPE | B32: =SLOPE(B7:B22,A7:A22) ->  | E32: =A26 ->  | F32: =ROUND(E26,-1) ->  | H32: =A26 ->  | I32: =F32 -> 
A33: INTERCEPT | B33: =INTERCEPT(B7:B22,A7:A22) ->  | E33: =A27 ->  | F33: =ROUND(E27,-1) ->  | H33: =A27 ->  | I33: =ROUND(((I34-I32)/(H34-H32)*(H33-H32)+I32),-1) -> 
A34: N | B34: =COUNT(B7:B22) -> 0 | E34: =A28 ->  | F34: =ROUND(E28,-1) ->  | H34: =A28 ->  | I34: =ROUND(F32*(1+H38*(H34-H32)),-1) -> 
A35: NOTE:
A36: County Adjustment Factors were developed to Apply to Projected AADT. They are based on 1992-2007 VMT, Population, Labor Force, Household, and Employment Data. | E36: Slope Over Base Year | H36: Slope Over Base Year
E37: =B32/F33 ->  | H37: =((I34-I33)/(H34-H33)/I33) -> 
H38: =IF(E37*F40<=0.5%,0.5%,E37*F40) -> 
D39: COUNTY | F39: COUNTY FACTOR | H39: GROWTH PROFILE
D40: =UPPER(VLOOKUP(Cover!H16,$A$174:$C$261,1,FALSE)) ->  | F40: =VLOOKUP(Cover!H16,$A$174:$C$261,2,FALSE) ->  | H40: =UPPER(VLOOKUP(Cover!H16,$A$174:$C$261,3,FALSE)) -> 
B61: AADT_Data column reference
A63: year | C63: aadt | D63: data years | E63: nth largest
A64: 2019 | B64: 2 | C64: =VLOOKUP($H$4,AADT_Data!A:AB,B64,FALSE) ->  | D64: =IF(C64=0,0,A64) ->  | E64: 27 | G64: =IF(ISNA(VLOOKUP(F64,$A$64:$C$89,3,FALSE)),"",VLOOKUP(F64,$A$64:$C$89,3,FALSE)) -> 
A65: 2018 | B65: 3 | C65: =VLOOKUP($H$4,AADT_Data!A:AB,B65,FALSE) ->  | D65: =IF(C65=0,0,A65) ->  | E65: 26 | F65: =IF(LARGE($D$65:$D$90,E65)=0,"",LARGE($D$65:$D$90,E65)) -> 
A66: 2017 | B66: 4 | C66: =VLOOKUP($H$4,AADT_Data!A:AB,B66,FALSE) ->  | D66: =IF(C66=0,0,A66) ->  | E66: 25
A67: 2016 | B67: 5 | C67: =VLOOKUP($H$4,AADT_Data!A:AB,B67,FALSE) ->  | D67: =IF(C67=0,0,A67) ->  | E67: 24
A68: 2015 | B68: 6 | C68: =VLOOKUP($H$4,AADT_Data!A:AB,B68,FALSE) ->  | D68: =IF(C68=0,0,A68) ->  | E68: 23
A69: 2014 | B69: 7 | C69: =VLOOKUP($H$4,AADT_Data!A:AB,B69,FALSE) ->  | D69: =IF(C69=0,0,A69) ->  | E69: 22
A70: 2013 | B70: 8 | C70: =VLOOKUP($H$4,AADT_Data!A:AB,B70,FALSE) ->  | E70: 21
A71: 2012 | B71: 9 | C71: =VLOOKUP($H$4,AADT_Data!A:AB,B71,FALSE) ->  | E71: 20
A72: 2011 | B72: 10 | C72: =VLOOKUP($H$4,AADT_Data!A:AB,B72,FALSE) ->  | E72: 19
A73: 2010 | B73: 11 | C73: =VLOOKUP($H$4,AADT_Data!A:AB,B73,FALSE) ->  | E73: 18
A74: 2009 | B74: 12 | C74: =VLOOKUP($H$4,AADT_Data!A:AB,B74,FALSE) ->  | E74: 17
A75: 2008 | B75: 13 | C75: =VLOOKUP($H$4,AADT_Data!A:AB,B75,FALSE) ->  | E75: 16
A76: 2007 | B76: 14 | C76: =VLOOKUP($H$4,AADT_Data!A:AB,B76,FALSE) ->  | E76: 15
A77: 2006 | B77: 15 | C77: =VLOOKUP($H$4,AADT_Data!A:AB,B77,FALSE) ->  | E77: 14 | F77: =IF(LARGE($D$64:$D$90,E77)=0,"",LARGE($D$64:$D$90,E77)) -> 
A78: 2005 | B78: 16 | C78: =VLOOKUP($H$4,AADT_Data!A:AB,B78,FALSE) ->  | E78: 13 | F78: =IF(LARGE($D$64:$D$90,E78)=0,"",LARGE($D$64:$D$90,E78)) -> 
A79: 2004 | B79: 17 | C79: =VLOOKUP($H$4,AADT_Data!A:AB,B79,FALSE) ->  | E79: 12
A80: 2003 | B80: 18 | C80: =VLOOKUP($H$4,AADT_Data!A:AB,B80,FALSE) ->  | E80: 11
A81: 2002 | B81: 19 | C81: =VLOOKUP($H$4,AADT_Data!A:AB,B81,FALSE) ->  | E81: 10
A82: 2001 | B82: 20 | C82: =VLOOKUP($H$4,AADT_Data!A:AB,B82,FALSE) ->  | E82: 9
A83: 2000 | B83: 21 | C83: =VLOOKUP($H$4,AADT_Data!A:AB,B83,FALSE) ->  | E83: 8
A84: 1999 | B84: 22 | C84: =VLOOKUP($H$4,AADT_Data!A:AB,B84,FALSE) ->  | E84: 7
A85: 1998 | B85: 23 | C85: =VLOOKUP($H$4,AADT_Data!A:AB,B85,FALSE) ->  | E85: 6
A86: 1997 | B86: 24 | C86: =VLOOKUP($H$4,AADT_Data!A:AB,B86,FALSE) ->  | E86: 5
A87: 1996 | B87: 25 | C87: =VLOOKUP($H$4,AADT_Data!A:AB,B87,FALSE) ->  | E87: 4
A88: 1995 | B88: 26 | C88: =VLOOKUP($H$4,AADT_Data!A:AB,B88,FALSE) ->  | E88: 3
A89: 1994 | B89: 27 | C89: =VLOOKUP($H$4,AADT_Data!A:AB,B89,FALSE) ->  | E89: 2 | G89: =IF(ISNA(VLOOKUP(F89,$A$64:$C$89,3,FALSE)),"",VLOOKUP(F89,$A$64:$C$89,3,FALSE)) -> 
A90: 1992 | B90: 28 | C90: =VLOOKUP($H$4,AADT_Data!A:AB,B90,FALSE) ->  | E90: 1
A174: County | B174: Factor | C174: Area Type
A175: Aitkin | B175: 0.95 | C175: High Growth Area
A176: Anoka | B176: 0.95 | C176: High Growth Area
A177: Becker | B177: 0.9387339609 | C177: Medium Growth Area
A178: Beltrami | B178: 0.95 | C178: High Growth Area
A179: Benton | B179: 0.95 | C179: High Growth Area
A180: Big Stone | B180: 0.8944759202 | C180: Low Growth Area
A181: Blue Earth | B181: 0.75 | C181: Medium Growth Area
A182: Brown | B182: 0.7896922659 | C182: Low Growth Area
A183: Carlton | B183: 0.95 | C183: Medium Growth Area
A184: Carver | B184: 0.95 | C184: High Growth Area
A185: Cass | B185: 0.95 | C185: High Growth Area
A186: Chippewa | B186: 0.8733104434 | C186: Low Growth Area
A187: Chisago | B187: 0.881279837 | C187: High Growth Area
A188: Clay | B188: 0.75 | C188: Low Growth Area
A189: Clearwater | B189: 0.8438234218 | C189: Low Growth Area
A190: Cook | B190: 0.75 | C190: Medium Growth Area
A191: Cottonwood | B191: 0.8331705696 | C191: Low Growth Area
A192: Crow Wing | B192: 0.8832312646 | C192: High Growth Area
A193: Dakota | B193: 0.8547421962 | C193: High Growth Area
A194: Dodge | B194: 0.95 | C194: High Growth Area
A195: Douglas | B195: 0.8873831958 | C195: High Growth Area
A196: Faribault | B196: 0.865981121 | C196: Low Growth Area
A197: Fillmore | B197: 0.8896061418 | C197: Low Growth Area
A198: Freeborn | B198: 0.755552827 | C198: Low Growth Area
A199: Goodhue | B199: 0.9273647987 | C199: Medium Growth Area
A200: Grant | B200: 0.75 | C200: Low Growth Area
A201: Hennepin | B201: 0.8272566422 | C201: Low Growth Area
A202: Houston | B202: 0.8378015226 | C202: Low Growth Area
A203: Hubbard | B203: 0.8346205138 | C203: High Growth Area
A204: Isanti | B204: 0.95 | C204: High Growth Area
A205: Itasca | B205: 0.8886716849 | C205: Medium Growth Area
A206: Jackson | B206: 0.9180626248 | C206: Medium Growth Area
A207: Kanabec | B207: 0.8135838922 | C207: Medium Growth Area
A208: Kandiyohi | B208: 0.8938419831 | C208: Medium Growth Area
A209: Kittson | B209: 0.8024358458 | C209: Low Growth Area
A210: Koochiching | B210: 0.7937489549 | C210: Low Growth Area
A211: Lac qui Parle | B211: 0.75 | C211: Low Growth Area
A212: Lake | B212: 0.8562919136 | C212: Low Growth Area
A213: Lake of the Woods | B213: 0.9138862817 | C213: Low Growth Area
A214: Le Sueur | B214: 0.95 | C214: Medium Growth Area
A215: Lincoln | B215: 0.8857449991 | C215: Low Growth Area
A216: Lyon | B216: 0.75 | C216: Low Growth Area
A217: Mahnomen | B217: 0.75 | C217: Low Growth Area
A218: Marshall | B218: 0.95 | C218: Low Growth Area
A219: Martin | B219: 0.8201303604 | C219: Low Growth Area
A220: McLeod | B220: 0.8928164106 | C220: Medium Growth Area
A221: Meeker | B221: 0.926111411 | C221: Medium Growth Area
A222: Mille Lacs | B222: 0.95 | C222: High Growth Area
A223: Morrison | B223: 0.9495694712 | C223: Medium Growth Area
A224: Mower | B224: 0.8302978459 | C224: Low Growth Area
A225: Murray | B225: 0.8387247211 | C225: Medium Growth Area
A226: Nicollet | B226: 0.8240013933 | C226: Medium Growth Area
A227: Nobles | B227: 0.7549960093 | C227: Low Growth Area
A228: Norman | B228: 0.8022447962 | C228: Low Growth Area
A229: Olmsted | B229: 0.95 | C229: High Growth Area
A230: Otter Tail | B230: 0.8614026285 | C230: Medium Growth Area
A231: Pennington | B231: 0.95 | C231: Medium Growth Area
A232: Pine | B232: 0.8448776659 | C232: High Growth Area
A233: Pipestone | B233: 0.75 | C233: Low Growth Area
A234: Polk | B234: 0.75 | C234: Low Growth Area
A235: Pope | B235: 0.9029074643 | C235: Medium Growth Area
A236: Ramsey | B236: 0.8087858109 | C236: Low Growth Area
A237: Red Lake | B237: 0.95 | C237: Medium Growth Area
A238: Redwood | B238: 0.75 | C238: Low Growth Area
A239: Renville | B239: 0.8480251476 | C239: Low Growth Area
A240: Rice | B240: 0.8220040162 | C240: Medium Growth Area
A241: Rock | B241: 0.75 | C241: Low Growth Area
A242: Roseau | B242: 0.8847517198 | C242: Medium Growth Area
A243: Scott | B243: 0.95 | C243: High Growth Area
A244: Sherburne | B244: 0.95 | C244: High Growth Area
A245: Sibley | B245: 0.8646549065 | C245: Medium Growth Area
A246: St. Louis | B246: 0.850777855 | C246: Low Growth Area
A247: Stearns | B247: 0.8586120378 | C247: High Growth Area
A248: Steele | B248: 0.8848664209 | C248: Medium Growth Area
A249: Stevens | B249: 0.7999567113 | C249: Low Growth Area
A250: Swift | B250: 0.8706429381 | C250: Low Growth Area
A251: Todd | B251: 0.8988708026 | C251: Medium Growth Area
A252: Traverse | B252: 0.7652278953 | C252: Low Growth Area
A253: Wabasha | B253: 0.8182478469 | C253: Low Growth Area
A254: Wadena | B254: 0.95 | C254: Medium Growth Area
A255: Waseca | B255: 0.7963073355 | C255: Low Growth Area
A256: Washington | B256: 0.95 | C256: High Growth Area
A257: Watonwan | B257: 0.75 | C257: Low Growth Area
A258: Wilkin | B258: 0.75 | C258: Low Growth Area
A259: Winona | B259: 0.8284012539 | C259: Low Growth Area
A260: Wright | B260: 0.95 | C260: High Growth Area
A261: Yellow Medicine | B261: 0.8780713455 | C261: Low Growth Area

Sheet ESAL B3
A1: CUMULATIVE ESAL WORKSHEET | D1: ='Forecast B3'!E1 -> SEGMENT B3 | J1: Non-print area | P1: ONE-WAY
A2: SP#: | B2: =IF(Cover!H13="","",Cover!H13) ->  | F2: CORRESPONDS: | G2: ='Forecast B3'!H1 -> SEGMENT A1 | P2: TWO-WAY
A3: ROUTE: | B3: ='Forecast B3'!B2 ->  | C3: TWO-WAY | D3: # LANES: | E3: =IF('Forecast B3'!H5=0," ",'Forecast B3'!H5) ->  | F3: DATE: | G3: =Cover!C10 -> 2019-12-18T08:22:16.670 | J3: Urban/Rural Classification
A4: LOCATION: | B4: =IF('Forecast B3'!B3=0," ",'Forecast B3'!B3) ->  | J4: =VLOOKUP('Forecast B3'!H4,'Urban&Rural'!A1:B18088,2,FALSE) -> 
B6: YEAR | C6: AADT | D6: HCADT % | E6: AADT Difference from A Seg
A7: BASE YEAR: | B7: ='Forecast B3'!B4 ->  | C7: ='Forecast B3'!I33 ->  | D7: =SUM(E13:E21)/C7 ->  | E7: =C7-'ESAL A'!C7 ->  | N7: RURAL
A8: FORECAST YEAR: | B8: ='Forecast B3'!F4 ->  | C8: ='Forecast B3'!I34 ->  | D8: =SUM(H13:H21)/C8 ->  | E8: =C8-'ESAL A'!C8 ->  | N8: URBAN
C10: User Adjustment to Base Yr Vol | D10: Base Year Incremental Volume | E10: Base Year Volume | F10: User Adjustment to Future Yr Vol | G10: Future Year Incremental Volume | H10: Future Year Volume | I10: RESULTING PERCENTS | L10: VEHICLE TYPE | M10: URBAN | N10: RURAL
L11: 2AX-6TIRE SU | M11: 0.0152 | N11: 0.0317
A12: INCREMENTAL PROPORTIONS | L12: 3AX+ SU | M12: 0.0046 | N12: 0.0164
A13: 2AX-6TIRE SU | B13: =IF($E$7=0,'ESAL A'!B11,(D13+C13)/$E$7) ->  | C13: =IF(J13>0.5,0.5*'ESAL A'!D11-D13,IF(J13<-0.5,-0.5*'ESAL A'!D11-D13,0)) ->  | D13: =IF($J$4="urban",M11*$E$7,IF($J$4="rural",N11*$E$7,"See J3")) ->  | E13: ='ESAL A'!D11+(D13+C13) ->  | F13: =IF(K13>0.5,0.5*'ESAL A'!G11-G13,IF(K13<-0.5,-0.5*'ESAL A'!G11-G13,0)) ->  | G13: =IF($J$4="urban",M11*$E$8,IF($J$4="rural",N11*$E$8,"See J3")) ->  | H13: ='ESAL A'!G11+(G13+F13) ->  | I13: =H13/$C$8 ->  | J13: =IF('ESAL A'!D11=0,0,D13/'ESAL A'!D11) ->  | K13: =IF('ESAL A'!G11=0,0,G13/'ESAL A'!G11) ->  | L13: 3AX TST | M13: 0.0009 | N13: 0.0028
A14: 3AX+ SU | B14: =IF($E$7=0,'ESAL A'!B12,(D14+C14)/$E$7) ->  | C14: =IF(J14>0.5,0.5*'ESAL A'!D12-D14,IF(J14<-0.5,-0.5*'ESAL A'!D12-D14,0)) ->  | D14: =IF($J$4="urban",M12*$E$7,IF($J$4="rural",N12*$E$7,"See J3")) ->  | E14: ='ESAL A'!D12+(D14+C14) ->  | F14: =IF(K14>0.5,0.5*'ESAL A'!G12-G14,IF(K14<-0.5,-0.5*'ESAL A'!G12-G14,0)) ->  | G14: =IF($J$4="urban",M12*$E$8,IF($J$4="rural",N12*$E$8,"See J3")) ->  | H14: ='ESAL A'!G12+(G14+F14) ->  | I14: =H14/$C$8 ->  | J14: =IF('ESAL A'!D12=0,0,D14/'ESAL A'!D12) ->  | K14: =IF('ESAL A'!G12=0,0,G14/'ESAL A'!G12) ->  | L14: 4AX TST | M14: 0.0012 | N14: 0.005
A15: 3AX TST | B15: =IF($E$7=0,'ESAL A'!B13,(D15+C15)/$E$7) ->  | C15: =IF(J15>0.5,0.5*'ESAL A'!D13-D15,IF(J15<-0.5,-0.5*'ESAL A'!D13-D15,0)) ->  | D15: =IF($J$4="urban",M13*$E$7,IF($J$4="rural",N13*$E$7,"See J3")) ->  | E15: ='ESAL A'!D13+(D15+C15) ->  | F15: =IF(K15>0.5,0.5*'ESAL A'!G13-G15,IF(K15<-0.5,-0.5*'ESAL A'!G13-G15,0)) ->  | H15: ='ESAL A'!G13+(G15+F15) ->  | J15: =IF('ESAL A'!D13=0,0,D15/'ESAL A'!D13) ->  | K15: =IF('ESAL A'!G13=0,0,G15/'ESAL A'!G13) ->  | L15: 5AX+ TST | M15: 0.0089 | N15: 0.0326
A16: 4AX TST | B16: =IF($E$7=0,'ESAL A'!B14,(D16+C16)/$E$7) ->  | C16: =IF(J16>0.5,0.5*'ESAL A'!D14-D16,IF(J16<-0.5,-0.5*'ESAL A'!D14-D16,0)) ->  | D16: =IF($J$4="urban",M14*$E$7,IF($J$4="rural",N14*$E$7,"See J3")) ->  | E16: ='ESAL A'!D14+(D16+C16) ->  | F16: =IF(K16>0.5,0.5*'ESAL A'!G14-G16,IF(K16<-0.5,-0.5*'ESAL A'!G14-G16,0)) ->  | H16: ='ESAL A'!G14+(G16+F16) ->  | J16: =IF('ESAL A'!D14=0,0,D16/'ESAL A'!D14) ->  | K16: =IF('ESAL A'!G14=0,0,G16/'ESAL A'!G14) ->  | L16: TR TR, BUSES | M16: 0.0047 | N16: 0.012
A17: 5AX+ TST | B17: =IF('ESAL A'!B15=0,0,(D17+C17)/$E$7) ->  | C17: =IF(J17>0.5,0.5*SUM('ESAL A'!D15:D17)-D17,IF(J17<-0.5,-0.5*SUM('ESAL A'!D15:D17)-D17,0)) ->  | D17: =IF('ESAL A'!B15=0,0,IF($J$4="urban",M15*$E$7,IF($J$4="rural",N15*$E$7,"See J3"))) ->  | E17: =IF('ESAL A'!B15=0,"-",'ESAL A'!D15+D17) ->  | F17: =IF(K17>0.5,0.5*SUM('ESAL A'!G15:G17)-G17,IF(K17<-0.5,-0.5*SUM('ESAL A'!G15:G17)-G17,0)) ->  | G17: =IF('ESAL A'!B15=0,0,IF($J$4="urban",M15*$E$8,IF($J$4="rural",N15*$E$8,"See J3"))) ->  | H17: =IF('ESAL A'!B15=0,"-",'ESAL A'!G15+G17) ->  | I17: =IF(H17="-","-",H17/$C$8) ->  | J17: =IF(SUM('ESAL A'!D15:D17)=0,0,(D17/SUM('ESAL A'!D15:D17))) ->  | K17: =IF(SUM('ESAL A'!G15:G17)=0,0,G17/SUM('ESAL A'!G15:G17)) ->  | L17: TWIN TRAILERS | M17: 0.0002 | N17: 0.0002
A18: (5AX+ TST MAX) | B18: =IF($E$7=0,'ESAL A'!B16,D18/$E$7) ->  | C18: 0 | D18: =IF('ESAL A'!B16=0,0,IF($J$4="urban",M15*$E$7*('ESAL A'!D16/SUM('ESAL A'!D16:D17))+C18,IF($J$4="rural",N15*$E$7*('ESAL A'!D16/SUM('ESAL A'!D16:D17))+C18,"See J3"))) ->  | E18: ='ESAL A'!D16+D18 ->  | F18: 0 | G18: =IF('ESAL A'!B16=0,0,IF($J$4="urban",M15*$E$8*('ESAL A'!D16/SUM('ESAL A'!D16:D17))+F18,IF($J$4="rural",N15*$E$8*('ESAL A'!D16/SUM('ESAL A'!D16:D17))+F18,"See J3"))) ->  | H18: ='ESAL A'!G16+G18 ->  | I18: =H18/$C$8 ->  | J18: =IF('ESAL A'!D16=0,0,D18/'ESAL A'!D16) ->  | K18: =IF('ESAL A'!G16=0,0,G18/'ESAL A'!G16) ->  | L18: TOTAL | M18: =SUM(M11:M17) -> 0.0357 | N18: =SUM(N11:N17) -> 0.1007
A19: (5AX+ TST OTH) | B19: =IF($E$7=0,'ESAL A'!B17,D19/$E$7) ->  | C19: 0 | D19: =IF('ESAL A'!B16=0,0,IF($J$4="urban",M15*$E$7*('ESAL A'!D17/SUM('ESAL A'!D16:D17))+C19,IF($J$4="rural",N15*$E$7*('ESAL A'!D17/SUM('ESAL A'!D16:D17))+C19,"See J3"))) ->  | E19: ='ESAL A'!D17+D19 ->  | F19: 0 | G19: =IF('ESAL A'!B16=0,0,IF($J$4="urban",M15*$E$8*('ESAL A'!D17/SUM('ESAL A'!D16:D17))+F19,IF($J$4="rural",N15*$E$8*('ESAL A'!D17/SUM('ESAL A'!D16:D17))+F19,"See J3"))) ->  | H19: ='ESAL A'!G17+G19 ->  | J19: =IF('ESAL A'!D17=0,0,D19/'ESAL A'!D17) ->  | K19: =IF('ESAL A'!G17=0,0,G19/'ESAL A'!G17) -> 
A20: TR TR, BUSES | B20: =IF($E$7=0,'ESAL A'!B18,(D20+C20)/$E$7) ->  | C20: =IF(J20>0.5,0.5*'ESAL A'!D18-D20,IF(J20<-0.5,-0.5*'ESAL A'!D18-D20,0)) ->  | D20: =IF($J$4="urban",M16*$E$7,IF($J$4="rural",N16*$E$7,"See J3")) ->  | E20: ='ESAL A'!D18+(D20+C20) ->  | F20: =IF(K20>0.5,0.5*'ESAL A'!G18-G20,IF(K20<-0.5,-0.5*'ESAL A'!G18-G20,0)) ->  | G20: =IF($J$4="urban",M16*$E$8,IF($J$4="rural",N16*$E$8,"See J3")) ->  | H20: ='ESAL A'!G18+(G20+F20) ->  | J20: =IF('ESAL A'!D18=0,0,D20/'ESAL A'!D18) ->  | K20: =IF('ESAL A'!G18=0,0,G20/'ESAL A'!G18) -> 
A21: TWIN TRAILERS | B21: =IF($E$7=0,'ESAL A'!B19,(D21+C21)/$E$7) ->  | C21: =IF(J21>0.5,0.5*'ESAL A'!D19-D21,IF(J21<-0.5,-0.5*'ESAL A'!D19-D21,0)) ->  | D21: =IF($J$4="urban",M17*$E$7,IF($J$4="rural",N17*$E$7,"See J3")) ->  | E21: ='ESAL A'!D19+(D21+C21) ->  | F21: =IF(K21>0.5,0.5*'ESAL A'!G19-G21,IF(K21<-0.5,-0.5*'ESAL A'!G19-G21,0)) ->  | G21: =IF($J$4="urban",M17*$E$8,IF($J$4="rural",N17*$E$8,"See J3")) ->  | H21: ='ESAL A'!G19+(G21+F21) ->  | J21: =IF('ESAL A'!D19=0,0,D21/'ESAL A'!D19) ->  | K21: =IF('ESAL A'!G19=0,0,G21/'ESAL A'!G19) -> 
A23: CLASSIFICATION: | B23: =J4 ->  | F23: =B8-B7 ->  | G23: YR DESIGN
F24: LANE CUMULATIVE ESAL
F25: | | G25: |
F26: ***************** | G26: *****************
A27: DESIGN LANE FACTOR: | C27: =IF(C3=P2,CHOOSE((E3)+1,#VALUE!,1,0.5,0.5,0.45,0.45,0.35,0.35),CHOOSE(E3,1,0.9,0.7,0.7,0.7,0.7)) ->  | F27: FLEXIBLE | G27: RIGID
E28: SEGMENT B INCREMENT ONLY: | F28: =ROUND(CHOOSE(C129,F129,F130,F131,F132,F133,F134,F135,F136,F137,F138,F139,F140,F141,F142,F143,F144,F145,F146,F147,F148,F149,F150,F151,F152,F153,F154,F155,F156,F157,F158,F159,F160,F161,F162,F163,F164)*1.12,-3) ->  | G28: =ROUND(CHOOSE(C129,G129,G130,G131,G132,G133,G134,G135,G136,G137,G138,G139,G140,G141,G142,G143,G144,G145,G146,G147,G148,G149,G150,G151,G152,G153,G154,G155,G156,G157,G158,G159,G160,G161,G162,G163,G164)*1.12,-3) -> 
E29: SEGMENT A + SEGMENT B: | F29: =ROUND(F28+'ESAL A'!F26*C27/'ESAL A'!C26,-3) ->  | G29: =ROUND(G28+'ESAL A'!G26*C27/'ESAL A'!C26,-3) -> 
F30: ***************** | G30: *****************
A32: ADDITIONAL OUTPUTS: | E32: ESAL FACTORS
B33: BASE % | C33: FORECAST % | E33: FLEXIBLE | F33: RIGID
A34: 2AX-6TIRE SU | B34: =D13/$E$7 ->  | C34: =G13/$E$8 ->  | E34: 0.25 | F34: =IF(E34<0.11,E34,E34-0.01) -> 0.24
A35: 3AX+ SU | B35: =D14/$E$7 ->  | C35: =G14/$E$8 ->  | E35: 0.58 | F35: =IF(E35<0.36,(E35*1.62364-0.070909)+0.01,(IF(E35<0.4,E35*1.62364-0.07909,(IF(E35<0.66,(E35*1.62364-0.07909)-0.01,(IF(E35<0.69,E35*1.62364-0.07909,(E35*1.62364-0.07909)+0.02))))))) -> 0.8526212
A36: 3AX TST | E36: 0.39 | F36: =IF(E36<0.28,E36-0.01,(IF(E36<0.56,E36-0.02,E36-0.03))) -> 0.37
A37: 4AX TST | E37: 0.51 | F37: =IF(E37<0.41,E37,(IF(E37<0.47,E37+0.01,(IF(E37<0.54,E37+0.02,(IF(E37<0.61,E37+0.03,(IF(E37<0.67,E37+0.04,E37+0.05))))))))) -> 0.53
A38: 5AX+ TST | E38: 1.13 | F38: =(+E38*1.71536-0.05351)+0.005 -> 1.8898468
A39: (5AX+ TST MAX) | E39: 2.4 | F39: =(+E39*1.71536-0.05351)+0.005 -> 4.068354
A40: (5AX+ TST OTH) | E40: 0.87 | F40: =(+E40*1.71536-0.05351)+0.005 -> 1.4438532
A41: TR TR, BUSES | E41: 0.57 | F41: =E41*1.35636-0.03091 -> 0.7422152
A42: TWIN TRAILERS | E42: 2.4 | F42: =(+E42*0.97519-0.01494)+0.005 -> 2.330516
A58: CUMULATIVE ESAL REPORT | D58: =D1 -> SEGMENT B3
G59: CORRESPONDS: | H59: ='Forecast B3'!H1 -> SEGMENT A1
A60: ROUTE #: | B60: ='Forecast B3'!B2 ->  | C60: DISTRICT: | D60: =IF(Cover!C15="","",Cover!C15) ->  | E60: SP#: | F60: =IF(Cover!H13="","",Cover!H13) ->  | G60: DATE: | H60: =Cover!C10 -> 2019-12-18T08:22:16.670
A61: FORECAST #: | B61: =IF(Cover!H12="","",Cover!H12) ->  | C61: COUNTY: | D61: =IF(Cover!H16="","",Cover!H16) ->  | E61: MILES: | F61: ='Forecast B3'!H3 -> 
A62: LOCATION: | B62: =B4 -> 
A63: AUTHOR: | B63: =IF(Cover!C13="","",Cover!C13) ->  | E63: AUTHOR'S DISTRICT: | F63: =IF(Cover!C14="","",Cover!C14) -> 
A65: BASE YEAR NUMBER OF LANES: | D65: =IF('Forecast B3'!H5=0," ",'Forecast B3'!H5) -> 
G66: YEARLY GROWTH (SIMPLE %)
A67: TRAFFIC SUMMARY | D67: BASE YEAR | F67: DESIGN YEAR
A68: =C3 -> TWO-WAY | D68: =B7 ->  | F68: =B8 -> 
A69: AADT: | D69: =C7 ->  | F69: =C8 ->  | G69: =((F69-D69)/($F$68-$D$68))/D69 -> 
A70: DESIGN LANE: | D70: =ROUND(C27*D69,-1) ->  | F70: =ROUND(C27*F69,-1) -> 
A71: HCADT: | D71: =IF(SUM(E13:E21)<500,ROUND(SUM(E13:E21)/5,0)*5,IF(SUM(E13:E21)<1000,ROUND(SUM(E13:E21)/10,0)*10,IF(SUM(E13:E21)<5000,ROUND(SUM(E13:E21)/50,0)*50,IF(SUM(E13:E21)<25000,ROUND(SUM(E13:E21)/500,0)*500,ROUND(SUM(E13:E21)/1000,0)*1000)))) ->  | F71: =IF(SUM(H13:H21)<500,ROUND(SUM(H13:H21)/5,0)*5,IF(SUM(H13:H21)<1000,ROUND(SUM(H13:H21)/10,0)*10,IF(SUM(H13:H21)<5000,ROUND(SUM(H13:H21)/50,0)*50,IF(SUM(H13:H21)<25000,ROUND(SUM(H13:H21)/500,0)*500,ROUND(SUM(H13:H21)/1000,0)*1000)))) -> 
A72: SINGLE UNITS: | D72: =IF(SUM(E13:E14)<500,ROUND(SUM(E13:E14)/5,0)*5,IF(SUM(E13:E14)<1000,ROUND(SUM(E13:E14)/10,0)*10,IF(SUM(E13:E14)<5000,ROUND(SUM(E13:E14)/50,0)*50,IF(SUM(E13:E14)<25000,ROUND(SUM(E13:E14)/500,0)*500,ROUND(SUM(E13:E14)/1000,0)*1000)))) ->  | F72: =IF(SUM(H13:H14)<500,ROUND(SUM(H13:H14)/5,0)*5,IF(SUM(H13:H14)<1000,ROUND(SUM(H13:H14)/10,0)*10,IF(SUM(H13:H14)<5000,ROUND(SUM(H13:H14)/50,0)*50,IF(SUM(H13:H14)<25000,ROUND(SUM(H13:H14)/500,0)*500,ROUND(SUM(H13:H14)/1000,0)*1000)))) -> 
A73: TST'S: | D73: =IF(SUM(E15:E19)<500,ROUND(SUM(E15:E19)/5,0)*5,IF(SUM(E15:E19)<1000,ROUND(SUM(E15:E19)/10,0)*10,IF(SUM(E15:E19)<5000,ROUND(SUM(E15:E19)/50,0)*50,IF(SUM(E15:E19)<25000,ROUND(SUM(E15:E19)/500,0)*500,ROUND(SUM(E15:E19)/1000,0)*1000)))) ->  | F73: =IF(SUM(H15:H19)<500,ROUND(SUM(H15:H19)/5,0)*5,IF(SUM(H15:H19)<1000,ROUND(SUM(H15:H19)/10,0)*10,IF(SUM(H15:H19)<5000,ROUND(SUM(H15:H19)/50,0)*50,IF(SUM(H15:H19)<25000,ROUND(SUM(H15:H19)/500,0)*500,ROUND(SUM(H15:H19)/1000,0)*1000)))) -> 
A74: 5 Ax+: | D74: =IF(SUM(E17:E19)<500,ROUND(SUM(E17:E19)/5,0)*5,IF(SUM(E17:E19)<1000,ROUND(SUM(E17:E19)/10,0)*10,IF(SUM(E17:E19)<5000,ROUND(SUM(E17:E19)/50,0)*50,IF(SUM(E17:E19)<25000,ROUND(SUM(E17:E19)/500,0)*500,ROUND(SUM(E17:E19)/1000,0)*1000)))) ->  | F74: =IF(SUM(H17:H19)<500,ROUND(SUM(H17:H19)/5,0)*5,IF(SUM(H17:H19)<1000,ROUND(SUM(H17:H19)/10,0)*10,IF(SUM(H17:H19)<5000,ROUND(SUM(H17:H19)/50,0)*50,IF(SUM(H17:H19)<25000,ROUND(SUM(H17:H19)/500,0)*500,ROUND(SUM(H17:H19)/1000,0)*1000)))) -> 
A76: ESAL SUMMARY
A77: ANNUAL DESIGN LANE ESAL
A78: FLEXIBLE: | D78: =('ESAL A'!D115*'ESAL A'!C26+D125*C27)*365.25 ->  | F78: =('ESAL A'!F115*'ESAL A'!C26+F125*C27)*365.25 -> 
A79: RIGID: | D79: =('ESAL A'!E115*'ESAL A'!C26+E125*C27)*365.25 ->  | F79: =('ESAL A'!G115*'ESAL A'!C26+G125*C27)*365.25 -> 
A81: CUMULATIVE DESIGN-LANE ESALS (10 TON) | F81: Design-lane factor: | G81: =C27 -> 
A82: FOR VARIABLE TIME PERIODS
A86: BASE | B86: DESIGN | C86: TIME | D86: DESIGN-LANE | F86: ESALS
A87: YEAR | B87: YEAR | C87: PERIOD | D87: TST'S | F87: FLEXIBLE | G87: RIGID
A88: =D68 ->  | B88: =A88+10 ->  | C88: 10 Year | D88: =G81*(10*(F73-D73)/(F68-D68)+D73) ->  | F88: =ROUND(('ESAL A'!F129*C27/'ESAL A'!C26+F139)*1.12,-3) ->  | G88: =ROUND(('ESAL A'!G129*C27/'ESAL A'!C26+G139)*1.12,-3) -> 
A90: =D68 ->  | B90: =A90+15 ->  | C90: 15 Year | D90: =G81*(15*(F73-D73)/(F68-D68)+D73) ->  | F90: =ROUND(('ESAL A'!F134*C27/'ESAL A'!C26+F144)*1.12,-3) ->  | G90: =ROUND(('ESAL A'!G134*C27/'ESAL A'!C26+G144)*1.12,-3) -> 
A92: =D68 ->  | B92: =A92+20 ->  | C92: 20 Year | D92: =G81*(20*(F73-D73)/(F68-D68)+D73) ->  | F92: =ROUND(('ESAL A'!F139*C27/'ESAL A'!C26+F149)*1.12,-3) ->  | G92: =ROUND(('ESAL A'!G139*C27/'ESAL A'!C26+G149)*1.12,-3) -> 
A94: =D68 ->  | B94: =A94+25 ->  | C94: 25 Year | D94: =G81*(25*(F73-D73)/(F68-D68)+D73) ->  | F94: =ROUND(('ESAL A'!F144*C27/'ESAL A'!C26+F154)*1.12,-3) ->  | G94: =ROUND(('ESAL A'!G144*C27/'ESAL A'!C26+G154)*1.12,-3) -> 
A96: =D68 ->  | B96: =A96+30 ->  | C96: 30 Year | D96: =G81*(30*(F73-D73)/(F68-D68)+D73) ->  | F96: =ROUND(('ESAL A'!F149*C27/'ESAL A'!C26+F159)*1.12,-3) ->  | G96: =ROUND(('ESAL A'!G149*C27/'ESAL A'!C26+G159)*1.12,-3) -> 
A98: =D68 ->  | B98: =A98+35 ->  | C98: 35 Year | D98: =G81*(35*(F73-D73)/(F68-D68)+D73) ->  | F98: =ROUND(('ESAL A'!F154*C27/'ESAL A'!C26+F164)*1.12,-3) ->  | G98: =ROUND(('ESAL A'!G154*C27/'ESAL A'!C26+G164)*1.12,-3) -> 
B104: APPROVED BY: | F104: DATE:
A113: CUMULATIVE ESAL WORK AREA
B114: BYVOLS | C114: FYVOLS | D114: BY VOL * BESAL | E114: BY VOL *CESAL | F114: FY VOL *BESAL | G114: FY VOL *CESAL
B115: =D13+C13 ->  | C115: =G13+F13 ->  | D115: =E34*B115 ->  | E115: =F34*B115 ->  | F115: =E34*C115 ->  | G115: =F34*C115 -> 
A124: TWO WAY ADL --> | D124: FLEX ADL | E124: RIG ADL | F124: FLEX ADL | G124: RIG ADL
A125: | | D125: =$E$7*0.0007+SUM(D115:D123) ->  | E125: =$E$7*0.0007+SUM(E115:E123) ->  | F125: =$E$8*0.0007+SUM(F115:F123) ->  | G125: =$E$8*0.0007+SUM(G115:G123) -> 
A127: CUMULATIVE ESAL CALCULATIONS (DESIGN LANE) | F127: FLEXIBLE | G127: RIGID
B128: INCLUSIVE | C128: YEARS | E128: DAYS
A129: FUTURE YR - BASE YR = | C129: =B8-B7+1 ->  | E129: 365.25 | F129: =$D$125*$E129*$C$27+F128 ->  | G129: =$E$125*$E129*$C$27+G128 -> 
E130: 730.5 | F130: =(365.25*$D$125+$E129*$A$133)*$C$27+F129 ->  | G130: =(365.25*$E$125+$E129*$B$133)*$C$27+G129 -> 
A131: ANNUAL AVERAGE CHANGE IN 2 WAY ADL | E131: 1095.75
A132: FLEXIBLE | B132: RIGID | E132: 1461
A133: =(+F125-D125)/($C$129-1) ->  | B133: =(+G125-E125)/($C$129-1) ->  | E133: 1826.25
E134: 2191.5
E135: 2556.75
E136: 2922
E137: 3287.25
E138: 3652.5
E139: 4017.75
E140: 4383
E141: 4748.25
E142: 5113.5
E143: 5478.75
E144: 5844
E145: 6209.25
E146: 6574.5
E147: 6939.75
E148: 7305
E149: 7670.25
E150: 8035.5
E151: 8400.75
E152: 8766
E153: 9131.25
E154: 9496.5
E155: 9861.75
E156: 10227
E157: 10592.25
E158: 10957.5
E159: 11322.75
E160: 11688
E161: 12053.25
E162: 12418.5
E163: 12783.75
E164: 13149

Sheet Forecast B4
A1: LEAST SQUARES WORKSHEET | E1: SEGMENT B4 | G1: Corresponds : | H1: ='Forecast A'!E1 -> SEGMENT A1 | J1: Non-print area
A2: ROUTE: | B2: =IF(Cover!H15="Interstate",Cover!J25&Cover!H14,IF(Cover!H15="US Trunk",Cover!J26&Cover!H14,IF(Cover!H15="MN Trunk",Cover!J27&Cover!H14,IF(Cover!H15="CSAH",Cover!J28&Cover!H14,IF(Cover!H15="CR",Cover!J29&Cover!H14," "))))) ->  | D2: SP#: | E2: =IF(Cover!H13=0," ",Cover!H13) ->  | G2: DATE : | H2: =Cover!C10 -> 2019-12-18T08:22:16.670
A3: LOCATION: | G3: Miles : | H3: =IF(H4="","",VLOOKUP(H4,AADT_Data!A:AC,29,FALSE)) ->  | J3: =IF(B3="","Location field is empty. Please enter location description. E.g. MN 169 to CSAH 5","") -> Location field is empty. Please enter location description. E.g. MN 169 to CSAH 5
A4: BASE YEAR: | B4: =IF('Forecast A'!B4=0," ",'Forecast A'!B4) ->  | E4: FORECAST YEAR: | F4: =IF(B4=" "," ",B4+20) ->  | G4: Seq # | J4: =IF(H4="","No Seq # is listed. Please enter sequence number","") -> No Seq # is listed. Please enter sequence number
G5: # of lanes | J5: =IF(H5="","Please indicate the number of lanes in this segment","") -> Please indicate the number of lanes in this segment
A6: COUNTED YEAR | B6: FLOW MAP AADT (SEG A) | J6: Year | K6: AADT
C7: 850 | J7: =IF(LARGE($D$64:$D$90,E75)=0,"",LARGE($D$64:$D$90,E75)) ->  | K7: =IF(ISNA(VLOOKUP(F75,$A$64:$C$90,3,FALSE)),"",VLOOKUP(F75,$A$64:$C$90,3,FALSE)) -> 
C8: 880
C9: 880
C10: 1350
C11: 1150
C12: 1000
C13: 1150
C14: 1100
C15: 1100
C16: 1100
C17: 1000
J22: =IF(LARGE($D$64:$D$90,E90)=0,"",LARGE($D$64:$D$90,E90)) ->  | K22: =IF(ISNA(VLOOKUP(F90,$A$64:$C$90,3,FALSE)),"",VLOOKUP(F90,$A$64:$C$90,3,FALSE)) -> 
A24: LEAST SQUARES BASED FORECASTS:
A25: Year | B25: AADT | D25: Calc | E25: ADT Calc
A26: =INDEX(A7:A22,MATCH(9.99999999999999E+307,B7:B22)) ->  | B26: =FORECAST(A26,B7:B22,A7:A22) ->  | D26: =VLOOKUP(A26,$A$11:$B$22,2,FALSE)-B26 ->  | E26: =B26+D26 -> 
A27: =B4 ->  | B27: =FORECAST(A27,B7:B22,A7:A22) ->  | E27: =B27+D26 ->  | F27: =E27 -> 
A28: =F4 ->  | B28: =FORECAST(A28,B7:B22,A7:A22) ->  | E28: =B28+D26 ->  | F28: =E26+(E28-E26)*F40 -> 
A30: Statistics | B30: AADT | E30: Raw Least Squares Forecasts | H30: Demographically Adjusted Forecasts
A31: R 2 | B31: =RSQ(B7:B22,A7:A22) ->  | E31: YEAR | F31: AADT | H31: YEAR | I31: AADT
A32: SLOPE | B32: =SLOPE(B7:B22,A7:A22) ->  | E32: =A26 ->  | F32: =ROUND(E26,-1) ->  | H32: =A26 ->  | I32: =F32 -> 
A33: INTERCEPT | B33: =INTERCEPT(B7:B22,A7:A22) ->  | E33: =A27 ->  | F33: =ROUND(E27,-1) ->  | H33: =A27 ->  | I33: =ROUND(((I34-I32)/(H34-H32)*(H33-H32)+I32),-1) -> 
A34: N | B34: =COUNT(B7:B22) -> 0 | E34: =A28 ->  | F34: =ROUND(E28,-1) ->  | H34: =A28 ->  | I34: =ROUND(F32*(1+H38*(H34-H32)),-1) -> 
A35: NOTE:
A36: County Adjustment Factors were developed to Apply to Projected AADT. They are based on 1992-2007 VMT, Population, Labor Force, Household, and Employment Data. | E36: Slope Over Base Year | H36: Slope Over Base Year
E37: =B32/F33 ->  | H37: =((I34-I33)/(H34-H33)/I33) -> 
H38: =IF(E37*F40<=0.5%,0.5%,E37*F40) -> 
D39: COUNTY | F39: COUNTY FACTOR | H39: GROWTH PROFILE
D40: =UPPER(VLOOKUP(Cover!H16,$A$174:$C$261,1,FALSE)) ->  | F40: =VLOOKUP(Cover!H16,$A$174:$C$261,2,FALSE) ->  | H40: =UPPER(VLOOKUP(Cover!H16,$A$174:$C$261,3,FALSE)) -> 
B61: AADT_Data column reference
A63: year | C63: aadt | D63: data years | E63: nth largest
A64: 2019 | B64: 2 | C64: =VLOOKUP($H$4,AADT_Data!A:AB,B64,FALSE) ->  | D64: =IF(C64=0,0,A64) ->  | E64: 27 | G64: =IF(ISNA(VLOOKUP(F64,$A$64:$C$89,3,FALSE)),"",VLOOKUP(F64,$A$64:$C$89,3,FALSE)) -> 
A65: 2018 | B65: 3 | C65: =VLOOKUP($H$4,AADT_Data!A:AB,B65,FALSE) ->  | D65: =IF(C65=0,0,A65) ->  | E65: 26 | F65: =IF(LARGE($D$65:$D$90,E65)=0,"",LARGE($D$65:$D$90,E65)) -> 
A66: 2017 | B66: 4 | C66: =VLOOKUP($H$4,AADT_Data!A:AB,B66,FALSE) ->  | D66: =IF(C66=0,0,A66) ->  | E66: 25
A67: 2016 | B67: 5 | C67: =VLOOKUP($H$4,AADT_Data!A:AB,B67,FALSE) ->  | D67: =IF(C67=0,0,A67) ->  | E67: 24
A68: 2015 | B68: 6 | C68: =VLOOKUP($H$4,AADT_Data!A:AB,B68,FALSE) ->  | D68: =IF(C68=0,0,A68) ->  | E68: 23
A69: 2014 | B69: 7 | C69: =VLOOKUP($H$4,AADT_Data!A:AB,B69,FALSE) ->  | D69: =IF(C69=0,0,A69) ->  | E69: 22
A70: 2013 | B70: 8 | C70: =VLOOKUP($H$4,AADT_Data!A:AB,B70,FALSE) ->  | E70: 21
A71: 2012 | B71: 9 | C71: =VLOOKUP($H$4,AADT_Data!A:AB,B71,FALSE) ->  | E71: 20
A72: 2011 | B72: 10 | C72: =VLOOKUP($H$4,AADT_Data!A:AB,B72,FALSE) ->  | E72: 19
A73: 2010 | B73: 11 | C73: =VLOOKUP($H$4,AADT_Data!A:AB,B73,FALSE) ->  | E73: 18
A74: 2009 | B74: 12 | C74: =VLOOKUP($H$4,AADT_Data!A:AB,B74,FALSE) ->  | E74: 17
A75: 2008 | B75: 13 | C75: =VLOOKUP($H$4,AADT_Data!A:AB,B75,FALSE) ->  | E75: 16
A76: 2007 | B76: 14 | C76: =VLOOKUP($H$4,AADT_Data!A:AB,B76,FALSE) ->  | E76: 15
A77: 2006 | B77: 15 | C77: =VLOOKUP($H$4,AADT_Data!A:AB,B77,FALSE) ->  | E77: 14 | F77: =IF(LARGE($D$64:$D$90,E77)=0,"",LARGE($D$64:$D$90,E77)) -> 
A78: 2005 | B78: 16 | C78: =VLOOKUP($H$4,AADT_Data!A:AB,B78,FALSE) ->  | E78: 13 | F78: =IF(LARGE($D$64:$D$90,E78)=0,"",LARGE($D$64:$D$90,E78)) -> 
A79: 2004 | B79: 17 | C79: =VLOOKUP($H$4,AADT_Data!A:AB,B79,FALSE) ->  | E79: 12
A80: 2003 | B80: 18 | C80: =VLOOKUP($H$4,AADT_Data!A:AB,B80,FALSE) ->  | E80: 11
A81: 2002 | B81: 19 | C81: =VLOOKUP($H$4,AADT_Data!A:AB,B81,FALSE) ->  | E81: 10
A82: 2001 | B82: 20 | C82: =VLOOKUP($H$4,AADT_Data!A:AB,B82,FALSE) ->  | E82: 9
A83: 2000 | B83: 21 | C83: =VLOOKUP($H$4,AADT_Data!A:AB,B83,FALSE) ->  | E83: 8
A84: 1999 | B84: 22 | C84: =VLOOKUP($H$4,AADT_Data!A:AB,B84,FALSE) ->  | E84: 7
A85: 1998 | B85: 23 | C85: =VLOOKUP($H$4,AADT_Data!A:AB,B85,FALSE) ->  | E85: 6
A86: 1997 | B86: 24 | C86: =VLOOKUP($H$4,AADT_Data!A:AB,B86,FALSE) ->  | E86: 5
A87: 1996 | B87: 25 | C87: =VLOOKUP($H$4,AADT_Data!A:AB,B87,FALSE) ->  | E87: 4
A88: 1995 | B88: 26 | C88: =VLOOKUP($H$4,AADT_Data!A:AB,B88,FALSE) ->  | E88: 3
A89: 1994 | B89: 27 | C89: =VLOOKUP($H$4,AADT_Data!A:AB,B89,FALSE) ->  | E89: 2 | G89: =IF(ISNA(VLOOKUP(F89,$A$64:$C$89,3,FALSE)),"",VLOOKUP(F89,$A$64:$C$89,3,FALSE)) -> 
A90: 1992 | B90: 28 | C90: =VLOOKUP($H$4,AADT_Data!A:AB,B90,FALSE) ->  | E90: 1
A174: County | B174: Factor | C174: Area Type
A175: Aitkin | B175: 0.95 | C175: High Growth Area
A176: Anoka | B176: 0.95 | C176: High Growth Area
A177: Becker | B177: 0.9387339609 | C177: Medium Growth Area
A178: Beltrami | B178: 0.95 | C178: High Growth Area
A179: Benton | B179: 0.95 | C179: High Growth Area
A180: Big Stone | B180: 0.8944759202 | C180: Low Growth Area
A181: Blue Earth | B181: 0.75 | C181: Medium Growth Area
A182: Brown | B182: 0.7896922659 | C182: Low Growth Area
A183: Carlton | B183: 0.95 | C183: Medium Growth Area
A184: Carver | B184: 0.95 | C184: High Growth Area
A185: Cass | B185: 0.95 | C185: High Growth Area
A186: Chippewa | B186: 0.8733104434 | C186: Low Growth Area
A187: Chisago | B187: 0.881279837 | C187: High Growth Area
A188: Clay | B188: 0.75 | C188: Low Growth Area
A189: Clearwater | B189: 0.8438234218 | C189: Low Growth Area
A190: Cook | B190: 0.75 | C190: Medium Growth Area
A191: Cottonwood | B191: 0.8331705696 | C191: Low Growth Area
A192: Crow Wing | B192: 0.8832312646 | C192: High Growth Area
A193: Dakota | B193: 0.8547421962 | C193: High Growth Area
A194: Dodge | B194: 0.95 | C194: High Growth Area
A195: Douglas | B195: 0.8873831958 | C195: High Growth Area
A196: Faribault | B196: 0.865981121 | C196: Low Growth Area
A197: Fillmore | B197: 0.8896061418 | C197: Low Growth Area
A198: Freeborn | B198: 0.755552827 | C198: Low Growth Area
A199: Goodhue | B199: 0.9273647987 | C199: Medium Growth Area
A200: Grant | B200: 0.75 | C200: Low Growth Area
A201: Hennepin | B201: 0.8272566422 | C201: Low Growth Area
A202: Houston | B202: 0.8378015226 | C202: Low Growth Area
A203: Hubbard | B203: 0.8346205138 | C203: High Growth Area
A204: Isanti | B204: 0.95 | C204: High Growth Area
A205: Itasca | B205: 0.8886716849 | C205: Medium Growth Area
A206: Jackson | B206: 0.9180626248 | C206: Medium Growth Area
A207: Kanabec | B207: 0.8135838922 | C207: Medium Growth Area
A208: Kandiyohi | B208: 0.8938419831 | C208: Medium Growth Area
A209: Kittson | B209: 0.8024358458 | C209: Low Growth Area
A210: Koochiching | B210: 0.7937489549 | C210: Low Growth Area
A211: Lac qui Parle | B211: 0.75 | C211: Low Growth Area
A212: Lake | B212: 0.8562919136 | C212: Low Growth Area
A213: Lake of the Woods | B213: 0.9138862817 | C213: Low Growth Area
A214: Le Sueur | B214: 0.95 | C214: Medium Growth Area
A215: Lincoln | B215: 0.8857449991 | C215: Low Growth Area
A216: Lyon | B216: 0.75 | C216: Low Growth Area
A217: Mahnomen | B217: 0.75 | C217: Low Growth Area
A218: Marshall | B218: 0.95 | C218: Low Growth Area
A219: Martin | B219: 0.8201303604 | C219: Low Growth Area
A220: McLeod | B220: 0.8928164106 | C220: Medium Growth Area
A221: Meeker | B221: 0.926111411 | C221: Medium Growth Area
A222: Mille Lacs | B222: 0.95 | C222: High Growth Area
A223: Morrison | B223: 0.9495694712 | C223: Medium Growth Area
A224: Mower | B224: 0.8302978459 | C224: Low Growth Area
A225: Murray | B225: 0.8387247211 | C225: Medium Growth Area
A226: Nicollet | B226: 0.8240013933 | C226: Medium Growth Area
A227: Nobles | B227: 0.7549960093 | C227: Low Growth Area
A228: Norman | B228: 0.8022447962 | C228: Low Growth Area
A229: Olmsted | B229: 0.95 | C229: High Growth Area
A230: Otter Tail | B230: 0.8614026285 | C230: Medium Growth Area
A231: Pennington | B231: 0.95 | C231: Medium Growth Area
A232: Pine | B232: 0.8448776659 | C232: High Growth Area
A233: Pipestone | B233: 0.75 | C233: Low Growth Area
A234: Polk | B234: 0.75 | C234: Low Growth Area
A235: Pope | B235: 0.9029074643 | C235: Medium Growth Area
A236: Ramsey | B236: 0.8087858109 | C236: Low Growth Area
A237: Red Lake | B237: 0.95 | C237: Medium Growth Area
A238: Redwood | B238: 0.75 | C238: Low Growth Area
A239: Renville | B239: 0.8480251476 | C239: Low Growth Area
A240: Rice | B240: 0.8220040162 | C240: Medium Growth Area
A241: Rock | B241: 0.75 | C241: Low Growth Area
A242: Roseau | B242: 0.8847517198 | C242: Medium Growth Area
A243: Scott | B243: 0.95 | C243: High Growth Area
A244: Sherburne | B244: 0.95 | C244: High Growth Area
A245: Sibley | B245: 0.8646549065 | C245: Medium Growth Area
A246: St. Louis | B246: 0.850777855 | C246: Low Growth Area
A247: Stearns | B247: 0.8586120378 | C247: High Growth Area
A248: Steele | B248: 0.8848664209 | C248: Medium Growth Area
A249: Stevens | B249: 0.7999567113 | C249: Low Growth Area
A250: Swift | B250: 0.8706429381 | C250: Low Growth Area
A251: Todd | B251: 0.8988708026 | C251: Medium Growth Area
A252: Traverse | B252: 0.7652278953 | C252: Low Growth Area
A253: Wabasha | B253: 0.8182478469 | C253: Low Growth Area
A254: Wadena | B254: 0.95 | C254: Medium Growth Area
A255: Waseca | B255: 0.7963073355 | C255: Low Growth Area
A256: Washington | B256: 0.95 | C256: High Growth Area
A257: Watonwan | B257: 0.75 | C257: Low Growth Area
A258: Wilkin | B258: 0.75 | C258: Low Growth Area
A259: Winona | B259: 0.8284012539 | C259: Low Growth Area
A260: Wright | B260: 0.95 | C260: High Growth Area
A261: Yellow Medicine | B261: 0.8780713455 | C261: Low Growth Area

Sheet ESAL B4
A1: CUMULATIVE ESAL WORKSHEET | D1: ='Forecast B4'!E1 -> SEGMENT B4 | J1: Non-print area | P1: ONE-WAY
A2: SP#: | B2: =IF(Cover!H13="","",Cover!H13) ->  | F2: CORRESPONDS: | G2: ='Forecast B4'!H1 -> SEGMENT A1 | P2: TWO-WAY
A3: ROUTE: | B3: ='Forecast B4'!B2 ->  | C3: TWO-WAY | D3: # LANES: | E3: =IF('Forecast B4'!H5=0," ",'Forecast B4'!H5) ->  | F3: DATE: | G3: =Cover!C10 -> 2019-12-18T08:22:16.670 | J3: Urban/Rural Classification
A4: LOCATION: | B4: =IF('Forecast B4'!B3=0," ",'Forecast B4'!B3) ->  | J4: =VLOOKUP('Forecast B4'!H4,'Urban&Rural'!A1:B18088,2,FALSE) -> 
B6: YEAR | C6: AADT | D6: HCADT % | E6: AADT Difference from A Seg
A7: BASE YEAR: | B7: ='Forecast B4'!B4 ->  | C7: ='Forecast B4'!I33 ->  | D7: =SUM(E13:E21)/C7 ->  | E7: =C7-'ESAL A'!C7 ->  | N7: RURAL
A8: FORECAST YEAR: | B8: ='Forecast B4'!F4 ->  | C8: ='Forecast B4'!I34 ->  | D8: =SUM(H13:H21)/C8 ->  | E8: =C8-'ESAL A'!C8 ->  | N8: URBAN
C10: User Adjustment to Base Yr Vol | D10: Base Year Incremental Volume | E10: Base Year Volume | F10: User Adjustment to Future Yr Vol | G10: Future Year Incremental Volume | H10: Future Year Volume | I10: RESULTING PERCENTS | L10: VEHICLE TYPE | M10: URBAN | N10: RURAL
L11: 2AX-6TIRE SU | M11: 0.0152 | N11: 0.0317
A12: INCREMENTAL PROPORTIONS | L12: 3AX+ SU | M12: 0.0046 | N12: 0.0164
A13: 2AX-6TIRE SU | B13: =IF($E$7=0,'ESAL A'!B11,(D13+C13)/$E$7) ->  | C13: =IF(J13>0.5,0.5*'ESAL A'!D11-D13,IF(J13<-0.5,-0.5*'ESAL A'!D11-D13,0)) ->  | D13: =IF($J$4="urban",M11*$E$7,IF($J$4="rural",N11*$E$7,"See J3")) ->  | E13: ='ESAL A'!D11+(D13+C13) ->  | F13: =IF(K13>0.5,0.5*'ESAL A'!G11-G13,IF(K13<-0.5,-0.5*'ESAL A'!G11-G13,0)) ->  | G13: =IF($J$4="urban",M11*$E$8,IF($J$4="rural",N11*$E$8,"See J3")) ->  | H13: ='ESAL A'!G11+(G13+F13) ->  | I13: =H13/$C$8 ->  | J13: =IF('ESAL A'!D11=0,0,D13/'ESAL A'!D11) ->  | K13: =IF('ESAL A'!G11=0,0,G13/'ESAL A'!G11) ->  | L13: 3AX TST | M13: 0.0009 | N13: 0.0028
A14: 3AX+ SU | B14: =IF($E$7=0,'ESAL A'!B12,(D14+C14)/$E$7) ->  | C14: =IF(J14>0.5,0.5*'ESAL A'!D12-D14,IF(J14<-0.5,-0.5*'ESAL A'!D12-D14,0)) ->  | D14: =IF($J$4="urban",M12*$E$7,IF($J$4="rural",N12*$E$7,"See J3")) ->  | E14: ='ESAL A'!D12+(D14+C14) ->  | F14: =IF(K14>0.5,0.5*'ESAL A'!G12-G14,IF(K14<-0.5,-0.5*'ESAL A'!G12-G14,0)) ->  | G14: =IF($J$4="urban",M12*$E$8,IF($J$4="rural",N12*$E$8,"See J3")) ->  | H14: ='ESAL A'!G12+(G14+F14) ->  | I14: =H14/$C$8 ->  | J14: =IF('ESAL A'!D12=0,0,D14/'ESAL A'!D12) ->  | K14: =IF('ESAL A'!G12=0,0,G14/'ESAL A'!G12) ->  | L14: 4AX TST | M14: 0.0012 | N14: 0.005
A15: 3AX TST | B15: =IF($E$7=0,'ESAL A'!B13,(D15+C15)/$E$7) ->  | C15: =IF(J15>0.5,0.5*'ESAL A'!D13-D15,IF(J15<-0.5,-0.5*'ESAL A'!D13-D15,0)) ->  | D15: =IF($J$4="urban",M13*$E$7,IF($J$4="rural",N13*$E$7,"See J3")) ->  | E15: ='ESAL A'!D13+(D15+C15) ->  | F15: =IF(K15>0.5,0.5*'ESAL A'!G13-G15,IF(K15<-0.5,-0.5*'ESAL A'!G13-G15,0)) ->  | H15: ='ESAL A'!G13+(G15+F15) ->  | J15: =IF('ESAL A'!D13=0,0,D15/'ESAL A'!D13) ->  | K15: =IF('ESAL A'!G13=0,0,G15/'ESAL A'!G13) ->  | L15: 5AX+ TST | M15: 0.0089 | N15: 0.0326
A16: 4AX TST | B16: =IF($E$7=0,'ESAL A'!B14,(D16+C16)/$E$7) ->  | C16: =IF(J16>0.5,0.5*'ESAL A'!D14-D16,IF(J16<-0.5,-0.5*'ESAL A'!D14-D16,0)) ->  | D16: =IF($J$4="urban",M14*$E$7,IF($J$4="rural",N14*$E$7,"See J3")) ->  | E16: ='ESAL A'!D14+(D16+C16) ->  | F16: =IF(K16>0.5,0.5*'ESAL A'!G14-G16,IF(K16<-0.5,-0.5*'ESAL A'!G14-G16,0)) ->  | H16: ='ESAL A'!G14+(G16+F16) ->  | J16: =IF('ESAL A'!D14=0,0,D16/'ESAL A'!D14) ->  | K16: =IF('ESAL A'!G14=0,0,G16/'ESAL A'!G14) ->  | L16: TR TR, BUSES | M16: 0.0047 | N16: 0.012
A17: 5AX+ TST | B17: =IF('ESAL A'!B15=0,0,(D17+C17)/$E$7) ->  | C17: =IF(J17>0.5,0.5*SUM('ESAL A'!D15:D17)-D17,IF(J17<-0.5,-0.5*SUM('ESAL A'!D15:D17)-D17,0)) ->  | D17: =IF('ESAL A'!B15=0,0,IF($J$4="urban",M15*$E$7,IF($J$4="rural",N15*$E$7,"See J3"))) ->  | E17: =IF('ESAL A'!B15=0,"-",'ESAL A'!D15+D17) ->  | F17: =IF(K17>0.5,0.5*SUM('ESAL A'!G15:G17)-G17,IF(K17<-0.5,-0.5*SUM('ESAL A'!G15:G17)-G17,0)) ->  | G17: =IF('ESAL A'!B15=0,0,IF($J$4="urban",M15*$E$8,IF($J$4="rural",N15*$E$8,"See J3"))) ->  | H17: =IF('ESAL A'!B15=0,"-",'ESAL A'!G15+G17) ->  | I17: =IF(H17="-","-",H17/$C$8) ->  | J17: =IF(SUM('ESAL A'!D15:D17)=0,0,(D17/SUM('ESAL A'!D15:D17))) ->  | K17: =IF(SUM('ESAL A'!G15:G17)=0,0,G17/SUM('ESAL A'!G15:G17)) ->  | L17: TWIN TRAILERS | M17: 0.0002 | N17: 0.0002
A18: (5AX+ TST MAX) | B18: =IF($E$7=0,'ESAL A'!B16,D18/$E$7) ->  | C18: 0 | D18: =IF('ESAL A'!B16=0,0,IF($J$4="urban",M15*$E$7*('ESAL A'!D16/SUM('ESAL A'!D16:D17))+C18,IF($J$4="rural",N15*$E$7*('ESAL A'!D16/SUM('ESAL A'!D16:D17))+C18,"See J3"))) ->  | E18: ='ESAL A'!D16+D18 ->  | F18: 0 | G18: =IF('ESAL A'!B16=0,0,IF($J$4="urban",M15*$E$8*('ESAL A'!D16/SUM('ESAL A'!D16:D17))+F18,IF($J$4="rural",N15*$E$8*('ESAL A'!D16/SUM('ESAL A'!D16:D17))+F18,"See J3"))) ->  | H18: ='ESAL A'!G16+G18 ->  | I18: =H18/$C$8 ->  | J18: =IF('ESAL A'!D16=0,0,D18/'ESAL A'!D16) ->  | K18: =IF('ESAL A'!G16=0,0,G18/'ESAL A'!G16) ->  | L18: TOTAL | M18: =SUM(M11:M17) -> 0.0357 | N18: =SUM(N11:N17) -> 0.1007
A19: (5AX+ TST OTH) | B19: =IF($E$7=0,'ESAL A'!B17,D19/$E$7) ->  | C19: 0 | D19: =IF('ESAL A'!B16=0,0,IF($J$4="urban",M15*$E$7*('ESAL A'!D17/SUM('ESAL A'!D16:D17))+C19,IF($J$4="rural",N15*$E$7*('ESAL A'!D17/SUM('ESAL A'!D16:D17))+C19,"See J3"))) ->  | E19: ='ESAL A'!D17+D19 ->  | F19: 0 | G19: =IF('ESAL A'!B16=0,0,IF($J$4="urban",M15*$E$8*('ESAL A'!D17/SUM('ESAL A'!D16:D17))+F19,IF($J$4="rural",N15*$E$8*('ESAL A'!D17/SUM('ESAL A'!D16:D17))+F19,"See J3"))) ->  | H19: ='ESAL A'!G17+G19 ->  | J19: =IF('ESAL A'!D17=0,0,D19/'ESAL A'!D17) ->  | K19: =IF('ESAL A'!G17=0,0,G19/'ESAL A'!G17) -> 
A20: TR TR, BUSES | B20: =IF($E$7=0,'ESAL A'!B18,(D20+C20)/$E$7) ->  | C20: =IF(J20>0.5,0.5*'ESAL A'!D18-D20,IF(J20<-0.5,-0.5*'ESAL A'!D18-D20,0)) ->  | D20: =IF($J$4="urban",M16*$E$7,IF($J$4="rural",N16*$E$7,"See J3")) ->  | E20: ='ESAL A'!D18+(D20+C20) ->  | F20: =IF(K20>0.5,0.5*'ESAL A'!G18-G20,IF(K20<-0.5,-0.5*'ESAL A'!G18-G20,0)) ->  | G20: =IF($J$4="urban",M16*$E$8,IF($J$4="rural",N16*$E$8,"See J3")) ->  | H20: ='ESAL A'!G18+(G20+F20) ->  | J20: =IF('ESAL A'!D18=0,0,D20/'ESAL A'!D18) ->  | K20: =IF('ESAL A'!G18=0,0,G20/'ESAL A'!G18) -> 
A21: TWIN TRAILERS | B21: =IF($E$7=0,'ESAL A'!B19,(D21+C21)/$E$7) ->  | C21: =IF(J21>0.5,0.5*'ESAL A'!D19-D21,IF(J21<-0.5,-0.5*'ESAL A'!D19-D21,0)) ->  | D21: =IF($J$4="urban",M17*$E$7,IF($J$4="rural",N17*$E$7,"See J3")) ->  | E21: ='ESAL A'!D19+(D21+C21) ->  | F21: =IF(K21>0.5,0.5*'ESAL A'!G19-G21,IF(K21<-0.5,-0.5*'ESAL A'!G19-G21,0)) ->  | G21: =IF($J$4="urban",M17*$E$8,IF($J$4="rural",N17*$E$8,"See J3")) ->  | H21: ='ESAL A'!G19+(G21+F21) ->  | J21: =IF('ESAL A'!D19=0,0,D21/'ESAL A'!D19) ->  | K21: =IF('ESAL A'!G19=0,0,G21/'ESAL A'!G19) -> 
A23: CLASSIFICATION: | B23: =J4 ->  | F23: =B8-B7 ->  | G23: YR DESIGN
F24: LANE CUMULATIVE ESAL
F25: | | G25: |
F26: ***************** | G26: *****************
A27: DESIGN LANE FACTOR: | C27: =IF(C3=P2,CHOOSE((E3)+1,#VALUE!,1,0.5,0.5,0.45,0.45,0.35,0.35),CHOOSE(E3,1,0.9,0.7,0.7,0.7,0.7)) ->  | F27: FLEXIBLE | G27: RIGID
E28: SEGMENT B INCREMENT ONLY: | F28: =ROUND(CHOOSE(C129,F129,F130,F131,F132,F133,F134,F135,F136,F137,F138,F139,F140,F141,F142,F143,F144,F145,F146,F147,F148,F149,F150,F151,F152,F153,F154,F155,F156,F157,F158,F159,F160,F161,F162,F163,F164)*1.12,-3) ->  | G28: =ROUND(CHOOSE(C129,G129,G130,G131,G132,G133,G134,G135,G136,G137,G138,G139,G140,G141,G142,G143,G144,G145,G146,G147,G148,G149,G150,G151,G152,G153,G154,G155,G156,G157,G158,G159,G160,G161,G162,G163,G164)*1.12,-3) -> 
E29: SEGMENT A + SEGMENT B: | F29: =ROUND(F28+'ESAL A'!F26*C27/'ESAL A'!C26,-3) ->  | G29: =ROUND(G28+'ESAL A'!G26*C27/'ESAL A'!C26,-3) -> 
F30: ***************** | G30: *****************
A32: ADDITIONAL OUTPUTS: | E32: ESAL FACTORS
B33: BASE % | C33: FORECAST % | E33: FLEXIBLE | F33: RIGID
A34: 2AX-6TIRE SU | B34: =D13/$E$7 ->  | C34: =G13/$E$8 ->  | E34: 0.25 | F34: =IF(E34<0.11,E34,E34-0.01) -> 0.24
A35: 3AX+ SU | B35: =D14/$E$7 ->  | C35: =G14/$E$8 ->  | E35: 0.58 | F35: =IF(E35<0.36,(E35*1.62364-0.070909)+0.01,(IF(E35<0.4,E35*1.62364-0.07909,(IF(E35<0.66,(E35*1.62364-0.07909)-0.01,(IF(E35<0.69,E35*1.62364-0.07909,(E35*1.62364-0.07909)+0.02))))))) -> 0.8526212
A36: 3AX TST | E36: 0.39 | F36: =IF(E36<0.28,E36-0.01,(IF(E36<0.56,E36-0.02,E36-0.03))) -> 0.37
A37: 4AX TST | E37: 0.51 | F37: =IF(E37<0.41,E37,(IF(E37<0.47,E37+0.01,(IF(E37<0.54,E37+0.02,(IF(E37<0.61,E37+0.03,(IF(E37<0.67,E37+0.04,E37+0.05))))))))) -> 0.53
A38: 5AX+ TST | E38: 1.13 | F38: =(+E38*1.71536-0.05351)+0.005 -> 1.8898468
A39: (5AX+ TST MAX) | E39: 2.4 | F39: =(+E39*1.71536-0.05351)+0.005 -> 4.068354
A40: (5AX+ TST OTH) | E40: 0.87 | F40: =(+E40*1.71536-0.05351)+0.005 -> 1.4438532
A41: TR TR, BUSES | E41: 0.57 | F41: =E41*1.35636-0.03091 -> 0.7422152
A42: TWIN TRAILERS | E42: 2.4 | F42: =(+E42*0.97519-0.01494)+0.005 -> 2.330516
A58: CUMULATIVE ESAL REPORT | D58: =D1 -> SEGMENT B4
G59: CORRESPONDS: | H59: ='Forecast B4'!H1 -> SEGMENT A1
A60: ROUTE #: | B60: ='Forecast B4'!B2 ->  | C60: DISTRICT: | D60: =IF(Cover!C15="","",Cover!C15) ->  | E60: SP#: | F60: =IF(Cover!H13="","",Cover!H13) ->  | G60: DATE: | H60: =Cover!C10 -> 2019-12-18T08:22:16.670
A61: FORECAST #: | B61: =IF(Cover!H12="","",Cover!H12) ->  | C61: COUNTY: | D61: =IF(Cover!H16="","",Cover!H16) ->  | E61: MILES: | F61: ='Forecast B4'!H3 -> 
A62: LOCATION: | B62: =B4 -> 
A63: AUTHOR: | B63: =IF(Cover!C13="","",Cover!C13) ->  | E63: AUTHOR'S DISTRICT: | F63: =IF(Cover!C14="","",Cover!C14) -> 
A65: BASE YEAR NUMBER OF LANES: | D65: =IF('Forecast B4'!H5=0," ",'Forecast B4'!H5) -> 
G66: YEARLY GROWTH (SIMPLE %)
A67: TRAFFIC SUMMARY | D67: BASE YEAR | F67: DESIGN YEAR
A68: =C3 -> TWO-WAY | D68: =B7 ->  | F68: =B8 -> 
A69: AADT: | D69: =C7 ->  | F69: =C8 ->  | G69: =((F69-D69)/($F$68-$D$68))/D69 -> 
A70: DESIGN LANE: | D70: =ROUND(C27*D69,-1) ->  | F70: =ROUND(C27*F69,-1) -> 
A71: HCADT: | D71: =IF(SUM(E13:E21)<500,ROUND(SUM(E13:E21)/5,0)*5,IF(SUM(E13:E21)<1000,ROUND(SUM(E13:E21)/10,0)*10,IF(SUM(E13:E21)<5000,ROUND(SUM(E13:E21)/50,0)*50,IF(SUM(E13:E21)<25000,ROUND(SUM(E13:E21)/500,0)*500,ROUND(SUM(E13:E21)/1000,0)*1000)))) ->  | F71: =IF(SUM(H13:H21)<500,ROUND(SUM(H13:H21)/5,0)*5,IF(SUM(H13:H21)<1000,ROUND(SUM(H13:H21)/10,0)*10,IF(SUM(H13:H21)<5000,ROUND(SUM(H13:H21)/50,0)*50,IF(SUM(H13:H21)<25000,ROUND(SUM(H13:H21)/500,0)*500,ROUND(SUM(H13:H21)/1000,0)*1000)))) -> 
A72: SINGLE UNITS: | D72: =IF(SUM(E13:E14)<500,ROUND(SUM(E13:E14)/5,0)*5,IF(SUM(E13:E14)<1000,ROUND(SUM(E13:E14)/10,0)*10,IF(SUM(E13:E14)<5000,ROUND(SUM(E13:E14)/50,0)*50,IF(SUM(E13:E14)<25000,ROUND(SUM(E13:E14)/500,0)*500,ROUND(SUM(E13:E14)/1000,0)*1000)))) ->  | F72: =IF(SUM(H13:H14)<500,ROUND(SUM(H13:H14)/5,0)*5,IF(SUM(H13:H14)<1000,ROUND(SUM(H13:H14)/10,0)*10,IF(SUM(H13:H14)<5000,ROUND(SUM(H13:H14)/50,0)*50,IF(SUM(H13:H14)<25000,ROUND(SUM(H13:H14)/500,0)*500,ROUND(SUM(H13:H14)/1000,0)*1000)))) -> 
A73: TST'S: | D73: =IF(SUM(E15:E19)<500,ROUND(SUM(E15:E19)/5,0)*5,IF(SUM(E15:E19)<1000,ROUND(SUM(E15:E19)/10,0)*10,IF(SUM(E15:E19)<5000,ROUND(SUM(E15:E19)/50,0)*50,IF(SUM(E15:E19)<25000,ROUND(SUM(E15:E19)/500,0)*500,ROUND(SUM(E15:E19)/1000,0)*1000)))) ->  | F73: =IF(SUM(H15:H19)<500,ROUND(SUM(H15:H19)/5,0)*5,IF(SUM(H15:H19)<1000,ROUND(SUM(H15:H19)/10,0)*10,IF(SUM(H15:H19)<5000,ROUND(SUM(H15:H19)/50,0)*50,IF(SUM(H15:H19)<25000,ROUND(SUM(H15:H19)/500,0)*500,ROUND(SUM(H15:H19)/1000,0)*1000)))) -> 
A74: 5 Ax+: | D74: =IF(SUM(E17:E19)<500,ROUND(SUM(E17:E19)/5,0)*5,IF(SUM(E17:E19)<1000,ROUND(SUM(E17:E19)/10,0)*10,IF(SUM(E17:E19)<5000,ROUND(SUM(E17:E19)/50,0)*50,IF(SUM(E17:E19)<25000,ROUND(SUM(E17:E19)/500,0)*500,ROUND(SUM(E17:E19)/1000,0)*1000)))) ->  | F74: =IF(SUM(H17:H19)<500,ROUND(SUM(H17:H19)/5,0)*5,IF(SUM(H17:H19)<1000,ROUND(SUM(H17:H19)/10,0)*10,IF(SUM(H17:H19)<5000,ROUND(SUM(H17:H19)/50,0)*50,IF(SUM(H17:H19)<25000,ROUND(SUM(H17:H19)/500,0)*500,ROUND(SUM(H17:H19)/1000,0)*1000)))) -> 
A76: ESAL SUMMARY
A77: ANNUAL DESIGN LANE ESAL
A78: FLEXIBLE: | D78: =('ESAL A'!D115*'ESAL A'!C26+D125*C27)*365.25 ->  | F78: =('ESAL A'!F115*'ESAL A'!C26+F125*C27)*365.25 -> 
A79: RIGID: | D79: =('ESAL A'!E115*'ESAL A'!C26+E125*C27)*365.25 ->  | F79: =('ESAL A'!G115*'ESAL A'!C26+G125*C27)*365.25 -> 
A81: CUMULATIVE DESIGN-LANE ESALS (10 TON) | F81: Design-lane factor: | G81: =C27 -> 
A82: FOR VARIABLE TIME PERIODS
A86: BASE | B86: DESIGN | C86: TIME | D86: DESIGN-LANE | F86: ESALS
A87: YEAR | B87: YEAR | C87: PERIOD | D87: TST'S | F87: FLEXIBLE | G87: RIGID
A88: =D68 ->  | B88: =A88+10 ->  | C88: 10 Year | D88: =G81*(10*(F73-D73)/(F68-D68)+D73) ->  | F88: =ROUND(('ESAL A'!F129*C27/'ESAL A'!C26+F139)*1.12,-3) ->  | G88: =ROUND(('ESAL A'!G129*C27/'ESAL A'!C26+G139)*1.12,-3) -> 
A90: =D68 ->  | B90: =A90+15 ->  | C90: 15 Year | D90: =G81*(15*(F73-D73)/(F68-D68)+D73) ->  | F90: =ROUND(('ESAL A'!F134*C27/'ESAL A'!C26+F144)*1.12,-3) ->  | G90: =ROUND(('ESAL A'!G134*C27/'ESAL A'!C26+G144)*1.12,-3) -> 
A92: =D68 ->  | B92: =A92+20 ->  | C92: 20 Year | D92: =G81*(20*(F73-D73)/(F68-D68)+D73) ->  | F92: =ROUND(('ESAL A'!F139*C27/'ESAL A'!C26+F149)*1.12,-3) ->  | G92: =ROUND(('ESAL A'!G139*C27/'ESAL A'!C26+G149)*1.12,-3) -> 
A94: =D68 ->  | B94: =A94+25 ->  | C94: 25 Year | D94: =G81*(25*(F73-D73)/(F68-D68)+D73) ->  | F94: =ROUND(('ESAL A'!F144*C27/'ESAL A'!C26+F154)*1.12,-3) ->  | G94: =ROUND(('ESAL A'!G144*C27/'ESAL A'!C26+G154)*1.12,-3) -> 
A96: =D68 ->  | B96: =A96+30 ->  | C96: 30 Year | D96: =G81*(30*(F73-D73)/(F68-D68)+D73) ->  | F96: =ROUND(('ESAL A'!F149*C27/'ESAL A'!C26+F159)*1.12,-3) ->  | G96: =ROUND(('ESAL A'!G149*C27/'ESAL A'!C26+G159)*1.12,-3) -> 
A98: =D68 ->  | B98: =A98+35 ->  | C98: 35 Year | D98: =G81*(35*(F73-D73)/(F68-D68)+D73) ->  | F98: =ROUND(('ESAL A'!F154*C27/'ESAL A'!C26+F164)*1.12,-3) ->  | G98: =ROUND(('ESAL A'!G154*C27/'ESAL A'!C26+G164)*1.12,-3) -> 
B104: APPROVED BY: | F104: DATE:
A113: CUMULATIVE ESAL WORK AREA
B114: BYVOLS | C114: FYVOLS | D114: BY VOL * BESAL | E114: BY VOL *CESAL | F114: FY VOL *BESAL | G114: FY VOL *CESAL
B115: =D13+C13 ->  | C115: =G13+F13 ->  | D115: =E34*B115 ->  | E115: =F34*B115 ->  | F115: =E34*C115 ->  | G115: =F34*C115 -> 
A124: TWO WAY ADL --> | D124: FLEX ADL | E124: RIG ADL | F124: FLEX ADL | G124: RIG ADL
A125: | | D125: =$E$7*0.0007+SUM(D115:D123) ->  | E125: =$E$7*0.0007+SUM(E115:E123) ->  | F125: =$E$8*0.0007+SUM(F115:F123) ->  | G125: =$E$8*0.0007+SUM(G115:G123) -> 
A127: CUMULATIVE ESAL CALCULATIONS (DESIGN LANE) | F127: FLEXIBLE | G127: RIGID
B128: INCLUSIVE | C128: YEARS | E128: DAYS
A129: FUTURE YR - BASE YR = | C129: =B8-B7+1 ->  | E129: 365.25 | F129: =$D$125*$E129*$C$27+F128 ->  | G129: =$E$125*$E129*$C$27+G128 -> 
E130: 730.5 | F130: =(365.25*$D$125+$E129*$A$133)*$C$27+F129 ->  | G130: =(365.25*$E$125+$E129*$B$133)*$C$27+G129 -> 
A131: ANNUAL AVERAGE CHANGE IN 2 WAY ADL | E131: 1095.75
A132: FLEXIBLE | B132: RIGID | E132: 1461
A133: =(+F125-D125)/($C$129-1) ->  | B133: =(+G125-E125)/($C$129-1) ->  | E133: 1826.25
E134: 2191.5
E135: 2556.75
E136: 2922
E137: 3287.25
E138: 3652.5
E139: 4017.75
E140: 4383
E141: 4748.25
E142: 5113.5
E143: 5478.75
E144: 5844
E145: 6209.25
E146: 6574.5
E147: 6939.75
E148: 7305
E149: 7670.25
E150: 8035.5
E151: 8400.75
E152: 8766
E153: 9131.25
E154: 9496.5
E155: 9861.75
E156: 10227
E157: 10592.25
E158: 10957.5
E159: 11322.75
E160: 11688
E161: 12053.25
E162: 12418.5
E163: 12783.75
E164: 13149

Sheet Forecast B5
A1: LEAST SQUARES WORKSHEET | E1: SEGMENT B5 | G1: Corresponds : | H1: ='Forecast A'!E1 -> SEGMENT A1 | J1: Non-print area
A2: ROUTE: | B2: =IF(Cover!H15="Interstate",Cover!J25&Cover!H14,IF(Cover!H15="US Trunk",Cover!J26&Cover!H14,IF(Cover!H15="MN Trunk",Cover!J27&Cover!H14,IF(Cover!H15="CSAH",Cover!J28&Cover!H14,IF(Cover!H15="CR",Cover!J29&Cover!H14," "))))) ->  | D2: SP#: | E2: =IF(Cover!H13=0," ",Cover!H13) ->  | G2: DATE : | H2: =Cover!C10 -> 2019-12-18T08:22:16.670
A3: LOCATION: | G3: Miles : | H3: =IF(H4="","",VLOOKUP(H4,AADT_Data!A:AC,29,FALSE)) ->  | J3: =IF(B3="","Location field is empty. Please enter location description. E.g. MN 169 to CSAH 5","") -> Location field is empty. Please enter location description. E.g. MN 169 to CSAH 5
A4: BASE YEAR: | B4: =IF('Forecast A'!B4=0," ",'Forecast A'!B4) ->  | E4: FORECAST YEAR: | F4: =IF(B4=" "," ",B4+20) ->  | G4: Seq # | J4: =IF(H4="","No Seq # is listed. Please enter sequence number","") -> No Seq # is listed. Please enter sequence number
G5: # of lanes | J5: =IF(H5="","Please indicate the number of lanes in this segment","") -> Please indicate the number of lanes in this segment
A6: COUNTED YEAR | B6: FLOW MAP AADT (SEG A) | J6: Year | K6: AADT
C7: 850 | J7: =IF(LARGE($D$64:$D$90,E75)=0,"",LARGE($D$64:$D$90,E75)) ->  | K7: =IF(ISNA(VLOOKUP(F75,$A$64:$C$90,3,FALSE)),"",VLOOKUP(F75,$A$64:$C$90,3,FALSE)) -> 
C8: 880
C9: 880
C10: 1350
C11: 1150
C12: 1000
C13: 1150
C14: 1100
C15: 1100
C16: 1100
C17: 1000
J22: =IF(LARGE($D$64:$D$90,E90)=0,"",LARGE($D$64:$D$90,E90)) ->  | K22: =IF(ISNA(VLOOKUP(F90,$A$64:$C$90,3,FALSE)),"",VLOOKUP(F90,$A$64:$C$90,3,FALSE)) -> 
A24: LEAST SQUARES BASED FORECASTS:
A25: Year | B25: AADT | D25: Calc | E25: ADT Calc
A26: =INDEX(A7:A22,MATCH(9.99999999999999E+307,B7:B22)) ->  | B26: =FORECAST(A26,B7:B22,A7:A22) ->  | D26: =VLOOKUP(A26,$A$11:$B$22,2,FALSE)-B26 ->  | E26: =B26+D26 -> 
A27: =B4 ->  | B27: =FORECAST(A27,B7:B22,A7:A22) ->  | E27: =B27+D26 ->  | F27: =E27 -> 
A28: =F4 ->  | B28: =FORECAST(A28,B7:B22,A7:A22) ->  | E28: =B28+D26 ->  | F28: =E26+(E28-E26)*F40 -> 
A30: Statistics | B30: AADT | E30: Raw Least Squares Forecasts | H30: Demographically Adjusted Forecasts
A31: R 2 | B31: =RSQ(B7:B22,A7:A22) ->  | E31: YEAR | F31: AADT | H31: YEAR | I31: AADT
A32: SLOPE | B32: =SLOPE(B7:B22,A7:A22) ->  | E32: =A26 ->  | F32: =ROUND(E26,-1) ->  | H32: =A26 ->  | I32: =F32 -> 
A33: INTERCEPT | B33: =INTERCEPT(B7:B22,A7:A22) ->  | E33: =A27 ->  | F33: =ROUND(E27,-1) ->  | H33: =A27 ->  | I33: =ROUND(((I34-I32)/(H34-H32)*(H33-H32)+I32),-1) -> 
A34: N | B34: =COUNT(B7:B22) -> 0 | E34: =A28 ->  | F34: =ROUND(E28,-1) ->  | H34: =A28 ->  | I34: =ROUND(F32*(1+H38*(H34-H32)),-1) -> 
A35: NOTE:
A36: County Adjustment Factors were developed to Apply to Projected AADT. They are based on 1992-2007 VMT, Population, Labor Force, Household, and Employment Data. | E36: Slope Over Base Year | H36: Slope Over Base Year
E37: =B32/F33 ->  | H37: =((I34-I33)/(H34-H33)/I33) -> 
H38: =IF(E37*F40<=0.5%,0.5%,E37*F40) -> 
D39: COUNTY | F39: COUNTY FACTOR | H39: GROWTH PROFILE
D40: =UPPER(VLOOKUP(Cover!H16,$A$174:$C$261,1,FALSE)) ->  | F40: =VLOOKUP(Cover!H16,$A$174:$C$261,2,FALSE) ->  | H40: =UPPER(VLOOKUP(Cover!H16,$A$174:$C$261,3,FALSE)) -> 
B61: AADT_Data column reference
A63: year | C63: aadt | D63: data years | E63: nth largest
A64: 2019 | B64: 2 | C64: =VLOOKUP($H$4,AADT_Data!A:AB,B64,FALSE) ->  | D64: =IF(C64=0,0,A64) ->  | E64: 27 | G64: =IF(ISNA(VLOOKUP(F64,$A$64:$C$89,3,FALSE)),"",VLOOKUP(F64,$A$64:$C$89,3,FALSE)) -> 
A65: 2018 | B65: 3 | C65: =VLOOKUP($H$4,AADT_Data!A:AB,B65,FALSE) ->  | D65: =IF(C65=0,0,A65) ->  | E65: 26 | F65: =IF(LARGE($D$65:$D$90,E65)=0,"",LARGE($D$65:$D$90,E65)) -> 
A66: 2017 | B66: 4 | C66: =VLOOKUP($H$4,AADT_Data!A:AB,B66,FALSE) ->  | D66: =IF(C66=0,0,A66) ->  | E66: 25
A67: 2016 | B67: 5 | C67: =VLOOKUP($H$4,AADT_Data!A:AB,B67,FALSE) ->  | D67: =IF(C67=0,0,A67) ->  | E67: 24
A68: 2015 | B68: 6 | C68: =VLOOKUP($H$4,AADT_Data!A:AB,B68,FALSE) ->  | D68: =IF(C68=0,0,A68) ->  | E68: 23
A69: 2014 | B69: 7 | C69: =VLOOKUP($H$4,AADT_Data!A:AB,B69,FALSE) ->  | D69: =IF(C69=0,0,A69) ->  | E69: 22
A70: 2013 | B70: 8 | C70: =VLOOKUP($H$4,AADT_Data!A:AB,B70,FALSE) ->  | E70: 21
A71: 2012 | B71: 9 | C71: =VLOOKUP($H$4,AADT_Data!A:AB,B71,FALSE) ->  | E71: 20
A72: 2011 | B72: 10 | C72: =VLOOKUP($H$4,AADT_Data!A:AB,B72,FALSE) ->  | E72: 19
A73: 2010 | B73: 11 | C73: =VLOOKUP($H$4,AADT_Data!A:AB,B73,FALSE) ->  | E73: 18
A74: 2009 | B74: 12 | C74: =VLOOKUP($H$4,AADT_Data!A:AB,B74,FALSE) ->  | E74: 17
A75: 2008 | B75: 13 | C75: =VLOOKUP($H$4,AADT_Data!A:AB,B75,FALSE) ->  | E75: 16
A76: 2007 | B76: 14 | C76: =VLOOKUP($H$4,AADT_Data!A:AB,B76,FALSE) ->  | E76: 15
A77: 2006 | B77: 15 | C77: =VLOOKUP($H$4,AADT_Data!A:AB,B77,FALSE) ->  | E77: 14 | F77: =IF(LARGE($D$64:$D$90,E77)=0,"",LARGE($D$64:$D$90,E77)) -> 
A78: 2005 | B78: 16 | C78: =VLOOKUP($H$4,AADT_Data!A:AB,B78,FALSE) ->  | E78: 13 | F78: =IF(LARGE($D$64:$D$90,E78)=0,"",LARGE($D$64:$D$90,E78)) -> 
A79: 2004 | B79: 17 | C79: =VLOOKUP($H$4,AADT_Data!A:AB,B79,FALSE) ->  | E79: 12
A80: 2003 | B80: 18 | C80: =VLOOKUP($H$4,AADT_Data!A:AB,B80,FALSE) ->  | E80: 11
A81: 2002 | B81: 19 | C81: =VLOOKUP($H$4,AADT_Data!A:AB,B81,FALSE) ->  | E81: 10
A82: 2001 | B82: 20 | C82: =VLOOKUP($H$4,AADT_Data!A:AB,B82,FALSE) ->  | E82: 9
A83: 2000 | B83: 21 | C83: =VLOOKUP($H$4,AADT_Data!A:AB,B83,FALSE) ->  | E83: 8
A84: 1999 | B84: 22 | C84: =VLOOKUP($H$4,AADT_Data!A:AB,B84,FALSE) ->  | E84: 7
A85: 1998 | B85: 23 | C85: =VLOOKUP($H$4,AADT_Data!A:AB,B85,FALSE) ->  | E85: 6
A86: 1997 | B86: 24 | C86: =VLOOKUP($H$4,AADT_Data!A:AB,B86,FALSE) ->  | E86: 5
A87: 1996 | B87: 25 | C87: =VLOOKUP($H$4,AADT_Data!A:AB,B87,FALSE) ->  | E87: 4
A88: 1995 | B88: 26 | C88: =VLOOKUP($H$4,AADT_Data!A:AB,B88,FALSE) ->  | E88: 3
A89: 1994 | B89: 27 | C89: =VLOOKUP($H$4,AADT_Data!A:AB,B89,FALSE) ->  | E89: 2 | G89: =IF(ISNA(VLOOKUP(F89,$A$64:$C$89,3,FALSE)),"",VLOOKUP(F89,$A$64:$C$89,3,FALSE)) -> 
A90: 1992 | B90: 28 | C90: =VLOOKUP($H$4,AADT_Data!A:AB,B90,FALSE) ->  | E90: 1
A174: County | B174: Factor | C174: Area Type
A175: Aitkin | B175: 0.95 | C175: High Growth Area
A176: Anoka | B176: 0.95 | C176: High Growth Area
A177: Becker | B177: 0.9387339609 | C177: Medium Growth Area
A178: Beltrami | B178: 0.95 | C178: High Growth Area
A179: Benton | B179: 0.95 | C179: High Growth Area
A180: Big Stone | B180: 0.8944759202 | C180: Low Growth Area
A181: Blue Earth | B181: 0.75 | C181: Medium Growth Area
A182: Brown | B182: 0.7896922659 | C182: Low Growth Area
A183: Carlton | B183: 0.95 | C183: Medium Growth Area
A184: Carver | B184: 0.95 | C184: High Growth Area
A185: Cass | B185: 0.95 | C185: High Growth Area
A186: Chippewa | B186: 0.8733104434 | C186: Low Growth Area
A187: Chisago | B187: 0.881279837 | C187: High Growth Area
A188: Clay | B188: 0.75 | C188: Low Growth Area
A189: Clearwater | B189: 0.8438234218 | C189: Low Growth Area
A190: Cook | B190: 0.75 | C190: Medium Growth Area
A191: Cottonwood | B191: 0.8331705696 | C191: Low Growth Area
A192: Crow Wing | B192: 0.8832312646 | C192: High Growth Area
A193: Dakota | B193: 0.8547421962 | C193: High Growth Area
A194: Dodge | B194: 0.95 | C194: High Growth Area
A195: Douglas | B195: 0.8873831958 | C195: High Growth Area
A196: Faribault | B196: 0.865981121 | C196: Low Growth Area
A197: Fillmore | B197: 0.8896061418 | C197: Low Growth Area
A198: Freeborn | B198: 0.755552827 | C198: Low Growth Area
A199: Goodhue | B199: 0.9273647987 | C199: Medium Growth Area
A200: Grant | B200: 0.75 | C200: Low Growth Area
A201: Hennepin | B201: 0.8272566422 | C201: Low Growth Area
A202: Houston | B202: 0.8378015226 | C202: Low Growth Area
A203: Hubbard | B203: 0.8346205138 | C203: High Growth Area
A204: Isanti | B204: 0.95 | C204: High Growth Area
A205: Itasca | B205: 0.8886716849 | C205: Medium Growth Area
A206: Jackson | B206: 0.9180626248 | C206: Medium Growth Area
A207: Kanabec | B207: 0.8135838922 | C207: Medium Growth Area
A208: Kandiyohi | B208: 0.8938419831 | C208: Medium Growth Area
A209: Kittson | B209: 0.8024358458 | C209: Low Growth Area
A210: Koochiching | B210: 0.7937489549 | C210: Low Growth Area
A211: Lac qui Parle | B211: 0.75 | C211: Low Growth Area
A212: Lake | B212: 0.8562919136 | C212: Low Growth Area
A213: Lake of the Woods | B213: 0.9138862817 | C213: Low Growth Area
A214: Le Sueur | B214: 0.95 | C214: Medium Growth Area
A215: Lincoln | B215: 0.8857449991 | C215: Low Growth Area
A216: Lyon | B216: 0.75 | C216: Low Growth Area
A217: Mahnomen | B217: 0.75 | C217: Low Growth Area
A218: Marshall | B218: 0.95 | C218: Low Growth Area
A219: Martin | B219: 0.8201303604 | C219: Low Growth Area
A220: McLeod | B220: 0.8928164106 | C220: Medium Growth Area
A221: Meeker | B221: 0.926111411 | C221: Medium Growth Area
A222: Mille Lacs | B222: 0.95 | C222: High Growth Area
A223: Morrison | B223: 0.9495694712 | C223: Medium Growth Area
A224: Mower | B224: 0.8302978459 | C224: Low Growth Area
A225: Murray | B225: 0.8387247211 | C225: Medium Growth Area
A226: Nicollet | B226: 0.8240013933 | C226: Medium Growth Area
A227: Nobles | B227: 0.7549960093 | C227: Low Growth Area
A228: Norman | B228: 0.8022447962 | C228: Low Growth Area
A229: Olmsted | B229: 0.95 | C229: High Growth Area
A230: Otter Tail | B230: 0.8614026285 | C230: Medium Growth Area
A231: Pennington | B231: 0.95 | C231: Medium Growth Area
A232: Pine | B232: 0.8448776659 | C232: High Growth Area
A233: Pipestone | B233: 0.75 | C233: Low Growth Area
A234: Polk | B234: 0.75 | C234: Low Growth Area
A235: Pope | B235: 0.9029074643 | C235: Medium Growth Area
A236: Ramsey | B236: 0.8087858109 | C236: Low Growth Area
A237: Red Lake | B237: 0.95 | C237: Medium Growth Area
A238: Redwood | B238: 0.75 | C238: Low Growth Area
A239: Renville | B239: 0.8480251476 | C239: Low Growth Area
A240: Rice | B240: 0.8220040162 | C240: Medium Growth Area
A241: Rock | B241: 0.75 | C241: Low Growth Area
A242: Roseau | B242: 0.8847517198 | C242: Medium Growth Area
A243: Scott | B243: 0.95 | C243: High Growth Area
A244: Sherburne | B244: 0.95 | C244: High Growth Area
A245: Sibley | B245: 0.8646549065 | C245: Medium Growth Area
A246: St. Louis | B246: 0.850777855 | C246: Low Growth Area
A247: Stearns | B247: 0.8586120378 | C247: High Growth Area
A248: Steele | B248: 0.8848664209 | C248: Medium Growth Area
A249: Stevens | B249: 0.7999567113 | C249: Low Growth Area
A250: Swift | B250: 0.8706429381 | C250: Low Growth Area
A251: Todd | B251: 0.8988708026 | C251: Medium Growth Area
A252: Traverse | B252: 0.7652278953 | C252: Low Growth Area
A253: Wabasha | B253: 0.8182478469 | C253: Low Growth Area
A254: Wadena | B254: 0.95 | C254: Medium Growth Area
A255: Waseca | B255: 0.7963073355 | C255: Low Growth Area
A256: Washington | B256: 0.95 | C256: High Growth Area
A257: Watonwan | B257: 0.75 | C257: Low Growth Area
A258: Wilkin | B258: 0.75 | C258: Low Growth Area
A259: Winona | B259: 0.8284012539 | C259: Low Growth Area
A260: Wright | B260: 0.95 | C260: High Growth Area
A261: Yellow Medicine | B261: 0.8780713455 | C261: Low Growth Area

Sheet ESAL B5
A1: CUMULATIVE ESAL WORKSHEET | D1: ='Forecast B5'!E1 -> SEGMENT B5 | J1: Non-print area | P1: ONE-WAY
A2: SP#: | B2: =IF(Cover!H13="","",Cover!H13) ->  | F2: CORRESPONDS: | G2: ='Forecast B5'!H1 -> SEGMENT A1 | P2: TWO-WAY
A3: ROUTE: | B3: ='Forecast B5'!B2 ->  | C3: TWO-WAY | D3: # LANES: | E3: =IF('Forecast B5'!H5=0," ",'Forecast B5'!H5) ->  | F3: DATE: | G3: =Cover!C10 -> 2019-12-18T08:22:16.670 | J3: Urban/Rural Classification
A4: LOCATION: | B4: =IF('Forecast B5'!B3=0," ",'Forecast B5'!B3) ->  | J4: =VLOOKUP('Forecast B5'!H4,'Urban&Rural'!A1:B18088,2,FALSE) -> 
B6: YEAR | C6: AADT | D6: HCADT % | E6: AADT Difference from A Seg
A7: BASE YEAR: | B7: ='Forecast B5'!B4 ->  | C7: ='Forecast B5'!I33 ->  | D7: =SUM(E13:E21)/C7 ->  | E7: =C7-'ESAL A'!C7 ->  | N7: RURAL
A8: FORECAST YEAR: | B8: ='Forecast B5'!F4 ->  | C8: ='Forecast B5'!I34 ->  | D8: =SUM(H13:H21)/C8 ->  | E8: =C8-'ESAL A'!C8 ->  | N8: URBAN
C10: User Adjustment to Base Yr Vol | D10: Base Year Incremental Volume | E10: Base Year Volume | F10: User Adjustment to Future Yr Vol | G10: Future Year Incremental Volume | H10: Future Year Volume | I10: RESULTING PERCENTS | L10: VEHICLE TYPE | M10: URBAN | N10: RURAL
L11: 2AX-6TIRE SU | M11: 0.0152 | N11: 0.0317
A12: INCREMENTAL PROPORTIONS | L12: 3AX+ SU | M12: 0.0046 | N12: 0.0164
A13: 2AX-6TIRE SU | B13: =IF($E$7=0,'ESAL A'!B11,(D13+C13)/$E$7) ->  | C13: =IF(J13>0.5,0.5*'ESAL A'!D11-D13,IF(J13<-0.5,-0.5*'ESAL A'!D11-D13,0)) ->  | D13: =IF($J$4="urban",M11*$E$7,IF($J$4="rural",N11*$E$7,"See J3")) ->  | E13: ='ESAL A'!D11+(D13+C13) ->  | F13: =IF(K13>0.5,0.5*'ESAL A'!G11-G13,IF(K13<-0.5,-0.5*'ESAL A'!G11-G13,0)) ->  | G13: =IF($J$4="urban",M11*$E$8,IF($J$4="rural",N11*$E$8,"See J3")) ->  | H13: ='ESAL A'!G11+(G13+F13) ->  | I13: =H13/$C$8 ->  | J13: =IF('ESAL A'!D11=0,0,D13/'ESAL A'!D11) ->  | K13: =IF('ESAL A'!G11=0,0,G13/'ESAL A'!G11) ->  | L13: 3AX TST | M13: 0.0009 | N13: 0.0028
A14: 3AX+ SU | B14: =IF($E$7=0,'ESAL A'!B12,(D14+C14)/$E$7) ->  | C14: =IF(J14>0.5,0.5*'ESAL A'!D12-D14,IF(J14<-0.5,-0.5*'ESAL A'!D12-D14,0)) ->  | D14: =IF($J$4="urban",M12*$E$7,IF($J$4="rural",N12*$E$7,"See J3")) ->  | E14: ='ESAL A'!D12+(D14+C14) ->  | F14: =IF(K14>0.5,0.5*'ESAL A'!G12-G14,IF(K14<-0.5,-0.5*'ESAL A'!G12-G14,0)) ->  | G14: =IF($J$4="urban",M12*$E$8,IF($J$4="rural",N12*$E$8,"See J3")) ->  | H14: ='ESAL A'!G12+(G14+F14) ->  | I14: =H14/$C$8 ->  | J14: =IF('ESAL A'!D12=0,0,D14/'ESAL A'!D12) ->  | K14: =IF('ESAL A'!G12=0,0,G14/'ESAL A'!G12) ->  | L14: 4AX TST | M14: 0.0012 | N14: 0.005
A15: 3AX TST | B15: =IF($E$7=0,'ESAL A'!B13,(D15+C15)/$E$7) ->  | C15: =IF(J15>0.5,0.5*'ESAL A'!D13-D15,IF(J15<-0.5,-0.5*'ESAL A'!D13-D15,0)) ->  | D15: =IF($J$4="urban",M13*$E$7,IF($J$4="rural",N13*$E$7,"See J3")) ->  | E15: ='ESAL A'!D13+(D15+C15) ->  | F15: =IF(K15>0.5,0.5*'ESAL A'!G13-G15,IF(K15<-0.5,-0.5*'ESAL A'!G13-G15,0)) ->  | H15: ='ESAL A'!G13+(G15+F15) ->  | J15: =IF('ESAL A'!D13=0,0,D15/'ESAL A'!D13) ->  | K15: =IF('ESAL A'!G13=0,0,G15/'ESAL A'!G13) ->  | L15: 5AX+ TST | M15: 0.0089 | N15: 0.0326
A16: 4AX TST | B16: =IF($E$7=0,'ESAL A'!B14,(D16+C16)/$E$7) ->  | C16: =IF(J16>0.5,0.5*'ESAL A'!D14-D16,IF(J16<-0.5,-0.5*'ESAL A'!D14-D16,0)) ->  | D16: =IF($J$4="urban",M14*$E$7,IF($J$4="rural",N14*$E$7,"See J3")) ->  | E16: ='ESAL A'!D14+(D16+C16) ->  | F16: =IF(K16>0.5,0.5*'ESAL A'!G14-G16,IF(K16<-0.5,-0.5*'ESAL A'!G14-G16,0)) ->  | H16: ='ESAL A'!G14+(G16+F16) ->  | J16: =IF('ESAL A'!D14=0,0,D16/'ESAL A'!D14) ->  | K16: =IF('ESAL A'!G14=0,0,G16/'ESAL A'!G14) ->  | L16: TR TR, BUSES | M16: 0.0047 | N16: 0.012
A17: 5AX+ TST | B17: =IF('ESAL A'!B15=0,0,(D17+C17)/$E$7) ->  | C17: =IF(J17>0.5,0.5*SUM('ESAL A'!D15:D17)-D17,IF(J17<-0.5,-0.5*SUM('ESAL A'!D15:D17)-D17,0)) ->  | D17: =IF('ESAL A'!B15=0,0,IF($J$4="urban",M15*$E$7,IF($J$4="rural",N15*$E$7,"See J3"))) ->  | E17: =IF('ESAL A'!B15=0,"-",'ESAL A'!D15+D17) ->  | F17: =IF(K17>0.5,0.5*SUM('ESAL A'!G15:G17)-G17,IF(K17<-0.5,-0.5*SUM('ESAL A'!G15:G17)-G17,0)) ->  | G17: =IF('ESAL A'!B15=0,0,IF($J$4="urban",M15*$E$8,IF($J$4="rural",N15*$E$8,"See J3"))) ->  | H17: =IF('ESAL A'!B15=0,"-",'ESAL A'!G15+G17) ->  | I17: =IF(H17="-","-",H17/$C$8) ->  | J17: =IF(SUM('ESAL A'!D15:D17)=0,0,(D17/SUM('ESAL A'!D15:D17))) ->  | K17: =IF(SUM('ESAL A'!G15:G17)=0,0,G17/SUM('ESAL A'!G15:G17)) ->  | L17: TWIN TRAILERS | M17: 0.0002 | N17: 0.0002
A18: (5AX+ TST MAX) | B18: =IF($E$7=0,'ESAL A'!B16,D18/$E$7) ->  | C18: 0 | D18: =IF('ESAL A'!B16=0,0,IF($J$4="urban",M15*$E$7*('ESAL A'!D16/SUM('ESAL A'!D16:D17))+C18,IF($J$4="rural",N15*$E$7*('ESAL A'!D16/SUM('ESAL A'!D16:D17))+C18,"See J3"))) ->  | E18: ='ESAL A'!D16+D18 ->  | F18: 0 | G18: =IF('ESAL A'!B16=0,0,IF($J$4="urban",M15*$E$8*('ESAL A'!D16/SUM('ESAL A'!D16:D17))+F18,IF($J$4="rural",N15*$E$8*('ESAL A'!D16/SUM('ESAL A'!D16:D17))+F18,"See J3"))) ->  | H18: ='ESAL A'!G16+G18 ->  | I18: =H18/$C$8 ->  | J18: =IF('ESAL A'!D16=0,0,D18/'ESAL A'!D16) ->  | K18: =IF('ESAL A'!G16=0,0,G18/'ESAL A'!G16) ->  | L18: TOTAL | M18: =SUM(M11:M17) -> 0.0357 | N18: =SUM(N11:N17) -> 0.1007
A19: (5AX+ TST OTH) | B19: =IF($E$7=0,'ESAL A'!B17,D19/$E$7) ->  | C19: 0 | D19: =IF('ESAL A'!B16=0,0,IF($J$4="urban",M15*$E$7*('ESAL A'!D17/SUM('ESAL A'!D16:D17))+C19,IF($J$4="rural",N15*$E$7*('ESAL A'!D17/SUM('ESAL A'!D16:D17))+C19,"See J3"))) ->  | E19: ='ESAL A'!D17+D19 ->  | F19: 0 | G19: =IF('ESAL A'!B16=0,0,IF($J$4="urban",M15*$E$8*('ESAL A'!D17/SUM('ESAL A'!D16:D17))+F19,IF($J$4="rural",N15*$E$8*('ESAL A'!D17/SUM('ESAL A'!D16:D17))+F19,"See J3"))) ->  | H19: ='ESAL A'!G17+G19 ->  | J19: =IF('ESAL A'!D17=0,0,D19/'ESAL A'!D17) ->  | K19: =IF('ESAL A'!G17=0,0,G19/'ESAL A'!G17) -> 
A20: TR TR, BUSES | B20: =IF($E$7=0,'ESAL A'!B18,(D20+C20)/$E$7) ->  | C20: =IF(J20>0.5,0.5*'ESAL A'!D18-D20,IF(J20<-0.5,-0.5*'ESAL A'!D18-D20,0)) ->  | D20: =IF($J$4="urban",M16*$E$7,IF($J$4="rural",N16*$E$7,"See J3")) ->  | E20: ='ESAL A'!D18+(D20+C20) ->  | F20: =IF(K20>0.5,0.5*'ESAL A'!G18-G20,IF(K20<-0.5,-0.5*'ESAL A'!G18-G20,0)) ->  | G20: =IF($J$4="urban",M16*$E$8,IF($J$4="rural",N16*$E$8,"See J3")) ->  | H20: ='ESAL A'!G18+(G20+F20) ->  | J20: =IF('ESAL A'!D18=0,0,D20/'ESAL A'!D18) ->  | K20: =IF('ESAL A'!G18=0,0,G20/'ESAL A'!G18) -> 
A21: TWIN TRAILERS | B21: =IF($E$7=0,'ESAL A'!B19,(D21+C21)/$E$7) ->  | C21: =IF(J21>0.5,0.5*'ESAL A'!D19-D21,IF(J21<-0.5,-0.5*'ESAL A'!D19-D21,0)) ->  | D21: =IF($J$4="urban",M17*$E$7,IF($J$4="rural",N17*$E$7,"See J3")) ->  | E21: ='ESAL A'!D19+(D21+C21) ->  | F21: =IF(K21>0.5,0.5*'ESAL A'!G19-G21,IF(K21<-0.5,-0.5*'ESAL A'!G19-G21,0)) ->  | G21: =IF($J$4="urban",M17*$E$8,IF($J$4="rural",N17*$E$8,"See J3")) ->  | H21: ='ESAL A'!G19+(G21+F21) ->  | J21: =IF('ESAL A'!D19=0,0,D21/'ESAL A'!D19) ->  | K21: =IF('ESAL A'!G19=0,0,G21/'ESAL A'!G19) -> 
A23: CLASSIFICATION: | B23: =J4 ->  | F23: =B8-B7 ->  | G23: YR DESIGN
F24: LANE CUMULATIVE ESAL
F25: | | G25: |
F26: ***************** | G26: *****************
A27: DESIGN LANE FACTOR: | C27: =IF(C3=P2,CHOOSE((E3)+1,#VALUE!,1,0.5,0.5,0.45,0.45,0.35,0.35),CHOOSE(E3,1,0.9,0.7,0.7,0.7,0.7)) ->  | F27: FLEXIBLE | G27: RIGID
E28: SEGMENT B INCREMENT ONLY: | F28: =ROUND(CHOOSE(C129,F129,F130,F131,F132,F133,F134,F135,F136,F137,F138,F139,F140,F141,F142,F143,F144,F145,F146,F147,F148,F149,F150,F151,F152,F153,F154,F155,F156,F157,F158,F159,F160,F161,F162,F163,F164)*1.12,-3) ->  | G28: =ROUND(CHOOSE(C129,G129,G130,G131,G132,G133,G134,G135,G136,G137,G138,G139,G140,G141,G142,G143,G144,G145,G146,G147,G148,G149,G150,G151,G152,G153,G154,G155,G156,G157,G158,G159,G160,G161,G162,G163,G164)*1.12,-3) -> 
E29: SEGMENT A + SEGMENT B: | F29: =ROUND(F28+'ESAL A'!F26*C27/'ESAL A'!C26,-3) ->  | G29: =ROUND(G28+'ESAL A'!G26*C27/'ESAL A'!C26,-3) -> 
F30: ***************** | G30: *****************
A32: ADDITIONAL OUTPUTS: | E32: ESAL FACTORS
B33: BASE % | C33: FORECAST % | E33: FLEXIBLE | F33: RIGID
A34: 2AX-6TIRE SU | B34: =D13/$E$7 ->  | C34: =G13/$E$8 ->  | E34: 0.25 | F34: =IF(E34<0.11,E34,E34-0.01) -> 0.24
A35: 3AX+ SU | B35: =D14/$E$7 ->  | C35: =G14/$E$8 ->  | E35: 0.58 | F35: =IF(E35<0.36,(E35*1.62364-0.070909)+0.01,(IF(E35<0.4,E35*1.62364-0.07909,(IF(E35<0.66,(E35*1.62364-0.07909)-0.01,(IF(E35<0.69,E35*1.62364-0.07909,(E35*1.62364-0.07909)+0.02))))))) -> 0.8526212
A36: 3AX TST | B36: =D15/$E$7 ->  | E36: 0.39 | F36: =IF(E36<0.28,E36-0.01,(IF(E36<0.56,E36-0.02,E36-0.03))) -> 0.37
A37: 4AX TST | E37: 0.51 | F37: =IF(E37<0.41,E37,(IF(E37<0.47,E37+0.01,(IF(E37<0.54,E37+0.02,(IF(E37<0.61,E37+0.03,(IF(E37<0.67,E37+0.04,E37+0.05))))))))) -> 0.53
A38: 5AX+ TST | E38: 1.13 | F38: =(+E38*1.71536-0.05351)+0.005 -> 1.8898468
A39: (5AX+ TST MAX) | E39: 2.4 | F39: =(+E39*1.71536-0.05351)+0.005 -> 4.068354
A40: (5AX+ TST OTH) | E40: 0.87 | F40: =(+E40*1.71536-0.05351)+0.005 -> 1.4438532
A41: TR TR, BUSES | E41: 0.57 | F41: =E41*1.35636-0.03091 -> 0.7422152
A42: TWIN TRAILERS | E42: 2.4 | F42: =(+E42*0.97519-0.01494)+0.005 -> 2.330516
A58: CUMULATIVE ESAL REPORT | D58: =D1 -> SEGMENT B5
G59: CORRESPONDS: | H59: ='Forecast B5'!H1 -> SEGMENT A1
A60: ROUTE #: | B60: ='Forecast B5'!B2 ->  | C60: DISTRICT: | D60: =IF(Cover!C15="","",Cover!C15) ->  | E60: SP#: | F60: =IF(Cover!H13="","",Cover!H13) ->  | G60: DATE: | H60: =Cover!C10 -> 2019-12-18T08:22:16.670
A61: FORECAST #: | B61: =IF(Cover!H12="","",Cover!H12) ->  | C61: COUNTY: | D61: =IF(Cover!H16="","",Cover!H16) ->  | E61: MILES: | F61: ='Forecast B5'!H3 -> 
A62: LOCATION: | B62: =B4 -> 
A63: AUTHOR: | B63: =IF(Cover!C13="","",Cover!C13) ->  | E63: AUTHOR'S DISTRICT: | F63: =IF(Cover!C14="","",Cover!C14) -> 
A65: BASE YEAR NUMBER OF LANES: | D65: =IF('Forecast B5'!H5=0," ",'Forecast B5'!H5) -> 
G66: YEARLY GROWTH (SIMPLE %)
A67: TRAFFIC SUMMARY | D67: BASE YEAR | F67: DESIGN YEAR
A68: =C3 -> TWO-WAY | D68: =B7 ->  | F68: =B8 -> 
A69: AADT: | D69: =C7 ->  | F69: =C8 ->  | G69: =((F69-D69)/($F$68-$D$68))/D69 -> 
A70: DESIGN LANE: | D70: =ROUND(C27*D69,-1) ->  | F70: =ROUND(C27*F69,-1) -> 
A71: HCADT: | D71: =IF(SUM(E13:E21)<500,ROUND(SUM(E13:E21)/5,0)*5,IF(SUM(E13:E21)<1000,ROUND(SUM(E13:E21)/10,0)*10,IF(SUM(E13:E21)<5000,ROUND(SUM(E13:E21)/50,0)*50,IF(SUM(E13:E21)<25000,ROUND(SUM(E13:E21)/500,0)*500,ROUND(SUM(E13:E21)/1000,0)*1000)))) ->  | F71: =IF(SUM(H13:H21)<500,ROUND(SUM(H13:H21)/5,0)*5,IF(SUM(H13:H21)<1000,ROUND(SUM(H13:H21)/10,0)*10,IF(SUM(H13:H21)<5000,ROUND(SUM(H13:H21)/50,0)*50,IF(SUM(H13:H21)<25000,ROUND(SUM(H13:H21)/500,0)*500,ROUND(SUM(H13:H21)/1000,0)*1000)))) -> 
A72: SINGLE UNITS: | D72: =IF(SUM(E13:E14)<500,ROUND(SUM(E13:E14)/5,0)*5,IF(SUM(E13:E14)<1000,ROUND(SUM(E13:E14)/10,0)*10,IF(SUM(E13:E14)<5000,ROUND(SUM(E13:E14)/50,0)*50,IF(SUM(E13:E14)<25000,ROUND(SUM(E13:E14)/500,0)*500,ROUND(SUM(E13:E14)/1000,0)*1000)))) ->  | F72: =IF(SUM(H13:H14)<500,ROUND(SUM(H13:H14)/5,0)*5,IF(SUM(H13:H14)<1000,ROUND(SUM(H13:H14)/10,0)*10,IF(SUM(H13:H14)<5000,ROUND(SUM(H13:H14)/50,0)*50,IF(SUM(H13:H14)<25000,ROUND(SUM(H13:H14)/500,0)*500,ROUND(SUM(H13:H14)/1000,0)*1000)))) -> 
A73: TST'S: | D73: =IF(SUM(E15:E19)<500,ROUND(SUM(E15:E19)/5,0)*5,IF(SUM(E15:E19)<1000,ROUND(SUM(E15:E19)/10,0)*10,IF(SUM(E15:E19)<5000,ROUND(SUM(E15:E19)/50,0)*50,IF(SUM(E15:E19)<25000,ROUND(SUM(E15:E19)/500,0)*500,ROUND(SUM(E15:E19)/1000,0)*1000)))) ->  | F73: =IF(SUM(H15:H19)<500,ROUND(SUM(H15:H19)/5,0)*5,IF(SUM(H15:H19)<1000,ROUND(SUM(H15:H19)/10,0)*10,IF(SUM(H15:H19)<5000,ROUND(SUM(H15:H19)/50,0)*50,IF(SUM(H15:H19)<25000,ROUND(SUM(H15:H19)/500,0)*500,ROUND(SUM(H15:H19)/1000,0)*1000)))) -> 
A74: 5 Ax+: | D74: =IF(SUM(E17:E19)<500,ROUND(SUM(E17:E19)/5,0)*5,IF(SUM(E17:E19)<1000,ROUND(SUM(E17:E19)/10,0)*10,IF(SUM(E17:E19)<5000,ROUND(SUM(E17:E19)/50,0)*50,IF(SUM(E17:E19)<25000,ROUND(SUM(E17:E19)/500,0)*500,ROUND(SUM(E17:E19)/1000,0)*1000)))) ->  | F74: =IF(SUM(H17:H19)<500,ROUND(SUM(H17:H19)/5,0)*5,IF(SUM(H17:H19)<1000,ROUND(SUM(H17:H19)/10,0)*10,IF(SUM(H17:H19)<5000,ROUND(SUM(H17:H19)/50,0)*50,IF(SUM(H17:H19)<25000,ROUND(SUM(H17:H19)/500,0)*500,ROUND(SUM(H17:H19)/1000,0)*1000)))) -> 
A76: ESAL SUMMARY
A77: ANNUAL DESIGN LANE ESAL
A78: FLEXIBLE: | D78: =('ESAL A'!D115*'ESAL A'!C26+D125*C27)*365.25 ->  | F78: =('ESAL A'!F115*'ESAL A'!C26+F125*C27)*365.25 -> 
A79: RIGID: | D79: =('ESAL A'!E115*'ESAL A'!C26+E125*C27)*365.25 ->  | F79: =('ESAL A'!G115*'ESAL A'!C26+G125*C27)*365.25 -> 
A81: CUMULATIVE DESIGN-LANE ESALS (10 TON) | F81: Design-lane factor: | G81: =C27 -> 
A82: FOR VARIABLE TIME PERIODS
A86: BASE | B86: DESIGN | C86: TIME | D86: DESIGN-LANE | F86: ESALS
A87: YEAR | B87: YEAR | C87: PERIOD | D87: TST'S | F87: FLEXIBLE | G87: RIGID
A88: =D68 ->  | B88: =A88+10 ->  | C88: 10 Year | D88: =G81*(10*(F73-D73)/(F68-D68)+D73) ->  | F88: =ROUND(('ESAL A'!F129*C27/'ESAL A'!C26+F139)*1.12,-3) ->  | G88: =ROUND(('ESAL A'!G129*C27/'ESAL A'!C26+G139)*1.12,-3) -> 
A90: =D68 ->  | B90: =A90+15 ->  | C90: 15 Year | D90: =G81*(15*(F73-D73)/(F68-D68)+D73) ->  | F90: =ROUND(('ESAL A'!F134*C27/'ESAL A'!C26+F144)*1.12,-3) ->  | G90: =ROUND(('ESAL A'!G134*C27/'ESAL A'!C26+G144)*1.12,-3) -> 
A92: =D68 ->  | B92: =A92+20 ->  | C92: 20 Year | D92: =G81*(20*(F73-D73)/(F68-D68)+D73) ->  | F92: =ROUND(('ESAL A'!F139*C27/'ESAL A'!C26+F149)*1.12,-3) ->  | G92: =ROUND(('ESAL A'!G139*C27/'ESAL A'!C26+G149)*1.12,-3) -> 
A94: =D68 ->  | B94: =A94+25 ->  | C94: 25 Year | D94: =G81*(25*(F73-D73)/(F68-D68)+D73) ->  | F94: =ROUND(('ESAL A'!F144*C27/'ESAL A'!C26+F154)*1.12,-3) ->  | G94: =ROUND(('ESAL A'!G144*C27/'ESAL A'!C26+G154)*1.12,-3) -> 
A96: =D68 ->  | B96: =A96+30 ->  | C96: 30 Year | D96: =G81*(30*(F73-D73)/(F68-D68)+D73) ->  | F96: =ROUND(('ESAL A'!F149*C27/'ESAL A'!C26+F159)*1.12,-3) ->  | G96: =ROUND(('ESAL A'!G149*C27/'ESAL A'!C26+G159)*1.12,-3) -> 
A98: =D68 ->  | B98: =A98+35 ->  | C98: 35 Year | D98: =G81*(35*(F73-D73)/(F68-D68)+D73) ->  | F98: =ROUND(('ESAL A'!F154*C27/'ESAL A'!C26+F164)*1.12,-3) ->  | G98: =ROUND(('ESAL A'!G154*C27/'ESAL A'!C26+G164)*1.12,-3) -> 
B104: APPROVED BY: | F104: DATE:
A113: CUMULATIVE ESAL WORK AREA
B114: BYVOLS | C114: FYVOLS | D114: BY VOL * BESAL | E114: BY VOL *CESAL | F114: FY VOL *BESAL | G114: FY VOL *CESAL
B115: =D13+C13 ->  | C115: =G13+F13 ->  | D115: =E34*B115 ->  | E115: =F34*B115 ->  | F115: =E34*C115 ->  | G115: =F34*C115 -> 
A124: TWO WAY ADL --> | D124: FLEX ADL | E124: RIG ADL | F124: FLEX ADL | G124: RIG ADL
A125: | | D125: =$E$7*0.0007+SUM(D115:D123) ->  | E125: =$E$7*0.0007+SUM(E115:E123) ->  | F125: =$E$8*0.0007+SUM(F115:F123) ->  | G125: =$E$8*0.0007+SUM(G115:G123) -> 
A127: CUMULATIVE ESAL CALCULATIONS (DESIGN LANE) | F127: FLEXIBLE | G127: RIGID
B128: INCLUSIVE | C128: YEARS | E128: DAYS
A129: FUTURE YR - BASE YR = | C129: =B8-B7+1 ->  | E129: 365.25 | F129: =$D$125*$E129*$C$27+F128 ->  | G129: =$E$125*$E129*$C$27+G128 -> 
E130: 730.5 | F130: =(365.25*$D$125+$E129*$A$133)*$C$27+F129 ->  | G130: =(365.25*$E$125+$E129*$B$133)*$C$27+G129 -> 
A131: ANNUAL AVERAGE CHANGE IN 2 WAY ADL | E131: 1095.75
A132: FLEXIBLE | B132: RIGID | E132: 1461
A133: =(+F125-D125)/($C$129-1) ->  | B133: =(+G125-E125)/($C$129-1) ->  | E133: 1826.25
E134: 2191.5
E135: 2556.75
E136: 2922
E137: 3287.25
E138: 3652.5
E139: 4017.75
E140: 4383
E141: 4748.25
E142: 5113.5
E143: 5478.75
E144: 5844
E145: 6209.25
E146: 6574.5
E147: 6939.75
E148: 7305
E149: 7670.25
E150: 8035.5
E151: 8400.75
E152: 8766
E153: 9131.25
E154: 9496.5
E155: 9861.75
E156: 10227
E157: 10592.25
E158: 10957.5
E159: 11322.75
E160: 11688
E161: 12053.25
E162: 12418.5
E163: 12783.75
E164: 13149

Sheet Appendix
D4: Appendix
D7: Least Squares Analysis
D8: Vehicle Class Expansion Worksheet
D9: Vehicle Class Reports
D10: AADT Diagram
D11: Other Suppporting Documents

Sheet VC 1
A1: VEHICLE CLASS COUNT EXPANSION WORKSHEET 1 | J1: Non-print area | R1: New Seasonal Adjustment Factors For Urban Area
A2: SITE NUMBER: | G2: COUNTY: | H2: =IF(+Cover!$H$16=0," ",+Cover!$H$16) -> 
A3: SITE DESCRIPTION: | B3: =VLOOKUP(B2,'VC History'!A:F,6,FALSE) ->  | R3: Body Type | S3: Jan | T3: Feb | U3: Mar | V3: Apr | W3: May | X3: Jun | Y3: Jul | Z3: Aug | AA3: Sep | AB3: Oct | AC3: Nov | AD3: Dec
A4: PROJECT SP#: | B4: =IF(+Cover!$H$13=0," ",+Cover!$H$13) ->  | H4: YEAR OF COUNT: | R4: CARS+PICKUP | S4: 1.101818568 | T4: 1.042399606 | U4: 1.020715235 | V4: 0.9825595111 | W4: 0.9804214303 | X4: 0.9524454101 | Y4: 0.9021672653 | Z4: 0.8851863969 | AA4: 0.8463204291 | AB4: 0.9766528447 | AC4: 1.054754554 | AD4: 1.129700419
A5: MONTH NUMBER OF COUNT: | C5: =VLOOKUP(B2&I4,'VC Data'!A:M,4,FALSE) ->  | H5: CONSTRAIN AADT: | I5: =IF('Forecast A'!H4="","",VLOOKUP(I4,'Forecast A'!A7:B22,2)) ->  | K5: Constrain AADT is automated from the sequence number of the A segment | R5: 2ASU | S5: 0.9026364913 | T5: 0.9152095345 | U5: 0.8809693435 | V5: 0.8433149801 | W5: 0.8049514058 | X5: 0.9077923889 | Y5: 0.79842163 | Z5: 0.7463956493 | AA5: 0.6742423882 | AB5: 0.8110823695 | AC5: 0.878061286 | AD5: 0.9497618566
A6: 16 or 24 HR | B6: =IF(VLOOKUP(I4,$K$15:$L$25,2,FALSE)="Manual",16,24) ->  | R6: 3+ASU | S6: 1.192485605 | T6: 1.196781163 | U6: 1.149691715 | V6: 0.8838166574 | W6: 0.7900560436 | X6: 0.8404904399 | Y6: 0.6830196815 | Z6: 0.6685616697 | AA6: 0.5786451918 | AB6: 0.6134526971 | AC6: 0.7366804617 | AD6: 1.001165084
A7: VEHICLE TYPE | C7: RAW COUNT | D7: AADT ADJ FACTOR | F7: ADJUSTED RAW | G7: VEH. TYPE PERCENTS | H7: A.C.F. | K7: URBAN / RURAL CLASSIFICATION | R7: 3A Semi | S7: 1.119647785 | T7: 1.098865688 | U7: 1.032355984 | V7: 0.9031212033 | W7: 0.8352405532 | X7: 0.8564495131 | Y7: 0.7867958545 | Z7: 0.6742755593 | AA7: 0.6669477105 | AB7: 0.8886683685 | AC7: 0.827933027 | AD7: 1.080772858
A8: CARS AND PICKUPS | C8: =VLOOKUP(B2&I4,'VC Data'!A:M,6,FALSE) ->  | D8: =IF(K8="RURAL",IF(B6=16,1.08,1)*CHOOSE((C5)+1,1,1.31,1.23,1.19,1.06,0.98,0.92,0.84,0.88,0.91,0.95,1.08,1.12),IF(B6=16,1.08,1)*CHOOSE((C5)+1,1,1.08,1.04,1.04,0.97,0.97,0.96,0.91,0.9,0.93,0.88,0.97,1)) ->  | F8: =IF(I5="",ROUND(D8*C8,0),I5-SUM(F9:F15)) ->  | H8: =IF(C16=0,"",C16/(((C8+C9)*2+(C10+C11)*3+(C12+C14)*4+(C13+C15)*5)/2)) ->  | K8: =VLOOKUP('Forecast A'!H4,'Urban&Rural'!A:B,2,FALSE) ->  | M8: <- Derived from the sequence number of the A segment | R8: 4A Semi | S8: 1.119647785 | T8: 1.098865688 | U8: 1.032355984 | V8: 0.9031212033 | W8: 0.8352405532 | X8: 0.8564495131 | Y8: 0.7867958545 | Z8: 0.6742755593 | AA8: 0.6669477105 | AB8: 0.8886683685 | AC8: 0.827933027 | AD8: 1.080772858
A9: 2 AXLE 6 TIRE | C9: =VLOOKUP(B2&I4,'VC Data'!A:M,7,FALSE) ->  | D9: =IF(K8="RURAL",IF(B6=16,1.08,1)*CHOOSE((C5)+1,1,1.02,0.93,0.96,0.89,0.85,0.87,0.83,0.83,0.76,0.77,0.88,1),IF(B6=16,1.08,1)*CHOOSE((C5)+1,1,0.96,0.88,0.92,0.9,0.89,0.86,0.8,0.76,0.83,0.76,0.79,0.84)) ->  | F9: =ROUND(D9*C9,0) ->  | G9: =F9/F16 ->  | R9: 5+A SEMI | S9: 0.8694207179 | T9: 0.8776904625 | U9: 0.8647540382 | V9: 0.8094064142 | W9: 0.792292913 | X9: 0.8333092409 | Y9: 0.7149806283 | Z9: 0.7108350254 | AA9: 0.6598929083 | AB9: 0.7505864443 | AC9: 0.8967585745 | AD9: 0.9413801686
A10: 3+ AXLE SINGLE UNIT | C10: =VLOOKUP(B2&I4,'VC Data'!A:M,8,FALSE) ->  | D10: =IF(K8="RURAL",IF(B6=16,1.07,1)*CHOOSE((C5)+1,1,1.24,1.17,1.12,0.89,0.76,0.71,0.7,0.66,0.65,0.64,0.86,1.09),IF(B6=16,1.07,1)*CHOOSE((C5)+1,1,1.23,1.16,1.21,0.86,0.75,0.67,0.59,0.54,0.64,0.64,0.8,1.09)) ->  | F10: =ROUND(D10*C10,0) ->  | G10: =F10/F16 ->  | R10: TT/BUS | S10: 1.406614623 | T10: 1.328803664 | U10: 1.158738771 | V10: 1.026157718 | W10: 0.9327073295 | X10: 0.8621004092 | Y10: 0.7705178987 | Z10: 0.623245916 | AA10: 0.5899275403 | AB10: 0.7789227543 | AC10: 0.8803850224 | AD10: 1.168382181
A11: 3 AXLE SEMI (TST) | C11: =VLOOKUP(B2&I4,'VC Data'!A:M,9,FALSE) ->  | D11: =IF(K8="RURAL",IF(B6=16,1.1,1)*CHOOSE((C5)+1,1,1.25,1.15,1.11,0.97,0.84,0.77,0.72,0.72,0.72,0.83,1.07,1.25),IF(B6=16,1.1,1)*CHOOSE((C5)+1,1,1.24,1.18,1.02,0.88,0.86,0.8,0.74,0.7,0.72,0.71,0.87,1.17)) ->  | G11: =F11/F16 ->  | K11: The table below will display available counts for VC site by year and type | N11: 2 | O11: 1 | R11: TWINS | S11: 0.890183558 | T11: 0.8452826494 | U11: 0.8246298829 | V11: 0.7536070918 | W11: 0.7787765432 | X11: 0.914883437 | Y11: 0.8313230333 | Z11: 0.7228027477 | AA11: 0.6972492539 | AB11: 0.7525653487 | AC11: 0.8886754755 | AD11: 0.8821039871
A12: 4 AXLE SEMI (TST) | C12: =VLOOKUP(B2&I4,'VC Data'!A:M,10,FALSE) ->  | D12: =IF(K8="RURAL",IF(B6=16,1.1,1)*CHOOSE((C5)+1,1,1.25,1.15,1.11,0.97,0.84,0.77,0.72,0.72,0.72,0.83,1.07,1.25),IF(B6=16,1.1,1)*CHOOSE((C5)+1,1,1.24,1.18,1.02,0.88,0.86,0.8,0.74,0.7,0.72,0.71,0.87,1.17)) ->  | G12: =F12/F16 ->  | O12: 2 | P12: 16
A13: 5+ AXLE SEMI (TST) | C13: =VLOOKUP(B2&I4,'VC Data'!A:M,11,FALSE) ->  | D13: =IF(K8="RURAL", IF(B6=16,1.17,1)*CHOOSE((C5)+1,1,0.93,0.86,0.87,0.82,0.79,0.79,0.82,0.78,0.8,0.73,0.87,0.9),IF(B6=16,1.17,1)*CHOOSE((C5)+1,1,1.02,0.99,1,0.79,0.75,0.71,0.69,0.65,0.7,0.76,0.76,0.99)) ->  | F13: =ROUND(D13*C13,0) ->  | G13: =F13/F16 ->  | K13: ="VC history for site: "&B2 -> VC history for site: | P13: 24 | R13: New Seasonal Adjustment Factors For Rural Area
A14: TR TR, BUSES | C14: =VLOOKUP(B2&I4,'VC Data'!A:M,12,FALSE) ->  | D14: =IF(K8="RURAL",IF(B6=16,1.09,1)*CHOOSE((C5)+1,1,1.6,1.44,1.31,0.99,0.81,0.75,0.67,0.68,0.7,0.68,0.96,1.4),IF(B6=16,1.09,1)*CHOOSE((C5)+1,1,1.51,1.31,1.19,1.03,0.92,0.82,0.76,0.71,0.74,0.77,0.94,1.07)) ->  | G14: =F14/F16 ->  | K14: Year | L14: Count Type
A15: TWIN TRAILERS | C15: =VLOOKUP(B2&I4,'VC Data'!A:M,13,FALSE) ->  | D15: =IF(K8="RURAL",IF(B6=16,1.3,1)*CHOOSE((C5)+1,1,0.95,0.86,0.92,0.86,0.86,0.75,0.8,0.76,0.75,0.7,0.82,0.76),IF(B6=16,1.3,1)*CHOOSE((C5)+1,1,1.07,1.02,1.02,0.84,0.78,0.74,0.69,0.65,0.67,0.77,0.93,1.09)) ->  | G15: =F15/F16 ->  | K15: =IF(INDEX('VC History'!A:A,M15)=$B$2,INDEX('VC History'!B:B,M15),"") ->  | L15: =IF(INDEX('VC History'!A:A,M15)=$B$2,INDEX('VC History'!D:D,M15),"") ->  | M15: =MATCH(B2,'VC History'!A:A,0) ->  | R15: Body Type | S15: Jan | T15: Feb | U15: Mar | V15: Apr | W15: May | X15: Jun | Y15: Jul | Z15: Aug | AA15: Sep | AB15: Oct | AC15: Nov | AD15: Dec
A16: TOTALS -----------> | C16: =SUM(C8:C15) ->  | D16: --------> | E16: =F16/C16 ->  | F16: =SUM(F8:F15) ->  | G16: =SUM(F9:F15)/F16 ->  | H16: (%HC) | K16: =IF(INDEX('VC History'!A:A,M16)=$B$2,INDEX('VC History'!B:B,M16),"") ->  | L16: =IF(INDEX('VC History'!A:A,M16)=$B$2,INDEX('VC History'!D:D,M16),"") ->  | M16: =M15+1 ->  | R16: CARS+PICKUP | S16: 1.31474341 | T16: 1.260555416 | U16: 1.21910632 | V16: 1.133579236 | W16: 0.9674365183 | X16: 0.8811334106 | Y16: 0.8068667431 | Z16: 0.8357105532 | AA16: 0.9492525986 | AB16: 1.029751516 | AC16: 1.125437083 | AD16: 1.198499723
K17: =IF(INDEX('VC History'!A:A,M17)=$B$2,INDEX('VC History'!B:B,M17),"") ->  | L17: =IF(INDEX('VC History'!A:A,M17)=$B$2,INDEX('VC History'!D:D,M17),"") ->  | M17: =M16+1 ->  | R17: 2ASU | S17: 1.042113668 | T17: 1.079615196 | U17: 1.073531771 | V17: 0.9700373761 | W17: 0.8766061595 | X17: 0.8518294275 | Y17: 0.8505186426 | Z17: 0.8291160376 | AA17: 0.8099880704 | AB17: 0.8257555049 | AC17: 0.9336566414 | AD17: 0.9644660003
K18: =IF(INDEX('VC History'!A:A,M18)=$B$2,INDEX('VC History'!B:B,M18),"") ->  | L18: =IF(INDEX('VC History'!A:A,M18)=$B$2,INDEX('VC History'!D:D,M18),"") ->  | M18: =M17+1 ->  | R18: 3+ASU | S18: 1.339197634 | T18: 1.439771113 | U18: 1.2792395 | V18: 0.9324515918 | W18: 0.8121908563 | X18: 0.6072317642 | Y18: 0.7099775765 | Z18: 0.6874079787 | AA18: 0.7041889955 | AB18: 0.6966682438 | AC18: 0.8492378659 | AD18: 1.245576541
A19: =+B2 -> 0 | K19: =IF(INDEX('VC History'!A:A,M19)=$B$2,INDEX('VC History'!B:B,M19),"") ->  | L19: =IF(INDEX('VC History'!A:A,M19)=$B$2,INDEX('VC History'!D:D,M19),"") ->  | Q19: 1 - January | R19: 3A Semi | S19: 1.574028515 | T19: 1.540791338 | U19: 1.492648881 | V19: 1.223354753 | W19: 0.8992402512 | X19: 0.8188352771 | Y19: 0.7347486488 | Z19: 0.6803021132 | AA19: 0.744357258 | AB19: 0.8756086261 | AC19: 1.096356596 | AD19: 1.273657955
A20: =+B3 ->  | K20: =IF(INDEX('VC History'!A:A,M20)=$B$2,INDEX('VC History'!B:B,M20),"") ->  | L20: =IF(INDEX('VC History'!A:A,M20)=$B$2,INDEX('VC History'!D:D,M20),"") ->  | Q20: 2 - February | R20: 4A Semi | S20: 1.574028515 | T20: 1.540791338 | U20: 1.492648881 | V20: 1.223354753 | W20: 0.8992402512 | X20: 0.8188352771 | Y20: 0.7347486488 | Z20: 0.6803021132 | AA20: 0.744357258 | AB20: 0.8756086261 | AC20: 1.096356596 | AD20: 1.273657955
K21: =IF(INDEX('VC History'!A:A,M21)=$B$2,INDEX('VC History'!B:B,M21),"") ->  | L21: =IF(INDEX('VC History'!A:A,M21)=$B$2,INDEX('VC History'!D:D,M21),"") ->  | M21: =M20+1 ->  | Q21: 3 - March | R21: 5+A SEMI | S21: 0.9774273605 | T21: 0.9048104915 | U21: 0.8599070523 | V21: 0.8206315401 | W21: 0.7778721302 | X21: 0.7171337842 | Y21: 0.7732008439 | Z21: 0.7471229023 | AA21: 0.7637578228 | AB21: 0.7392151467 | AC21: 0.877552007 | AD21: 0.9310532595
K22: =IF(INDEX('VC History'!A:A,M22)=$B$2,INDEX('VC History'!B:B,M22),"") ->  | L22: =IF(INDEX('VC History'!A:A,M22)=$B$2,INDEX('VC History'!D:D,M22),"") ->  | Q22: 4 - April | R22: TT/BUS | S22: 2.053065092 | T22: 2.059457219 | U22: 1.54934048 | V22: 1.1114678 | W22: 0.8736816042 | X22: 0.7417814046 | Y22: 0.705897493 | Z22: 0.6679690633 | AA22: 0.7016210228 | AB22: 0.7888943814 | AC22: 1.01168125 | AD22: 1.575509804
K23: =IF(INDEX('VC History'!A:A,M23)=$B$2,INDEX('VC History'!B:B,M23),"") ->  | L23: =IF(INDEX('VC History'!A:A,M23)=$B$2,INDEX('VC History'!D:D,M23),"") ->  | Q23: 5 - May | R23: TWINS | S23: 1.420065205 | T23: 0.9516135039 | U23: 0.9414734563 | V23: 0.9360222446 | W23: 0.8601389411 | X23: 0.8665974564 | Y23: 0.8294879216 | Z23: 0.6612789319 | AA23: 0.6935770556 | AB23: 0.6096555077 | AC23: 0.7557197928 | AD23: 0.8949536413
K24: =IF(INDEX('VC History'!A:A,M24)=$B$2,INDEX('VC History'!B:B,M24),"") ->  | L24: =IF(INDEX('VC History'!A:A,M24)=$B$2,INDEX('VC History'!D:D,M24),"") ->  | Q24: 6 - June
K25: =IF(INDEX('VC History'!A:A,M25)=$B$2,INDEX('VC History'!B:B,M25),"") ->  | L25: =IF(INDEX('VC History'!A:A,M25)=$B$2,INDEX('VC History'!D:D,M25),"") ->  | M25: =M24+1 ->  | Q25: 7 - July
Q26: 8 - August
Q27: 9 - September
K28: 1 | L28: 16 | Q28: 10 - October
K29: 2 | L29: 24 | Q29: 11 - November
K30: 3 | L30: RURAL | Q30: 12 - December
K31: 4 | L31: URBAN
K32: 5
K33: 6
K34: 7
K35: 8
K36: 9
K37: 10
K38: 11
K39: 12
A52: =IF(K8="RURAL","Rural Factor is Selected", "Urban Factor is selected") -> 

Sheet VC 2
A1: VEHICLE CLASS COUNT EXPANSION WORKSHEET 2 | J1: Non-print area | R1: New Seasonal Adjustment Factors For Urban Area
A2: SITE NUMBER: | G2: COUNTY: | H2: =IF(+Cover!$H$16=0," ",+Cover!$H$16) -> 
A3: SITE DESCRIPTION: | B3: =VLOOKUP(B2,'VC History'!A:F,6,FALSE) ->  | R3: Body Type | S3: Jan | T3: Feb | U3: Mar | V3: Apr | W3: May | X3: Jun | Y3: Jul | Z3: Aug | AA3: Sep | AB3: Oct | AC3: Nov | AD3: Dec
A4: PROJECT SP#: | B4: =IF(+Cover!$H$13=0," ",+Cover!$H$13) ->  | H4: YEAR OF COUNT: | R4: CARS+PICKUP | S4: 1.101818568 | T4: 1.042399606 | U4: 1.020715235 | V4: 0.9825595111 | W4: 0.9804214303 | X4: 0.9524454101 | Y4: 0.9021672653 | Z4: 0.8851863969 | AA4: 0.8463204291 | AB4: 0.9766528447 | AC4: 1.054754554 | AD4: 1.129700419
A5: MONTH NUMBER OF COUNT: | C5: =IF(I4='VC 1'!I4,INDEX('VC Data'!A:M,'VC 2'!E8+1,4),VLOOKUP(B2&I4,'VC Data'!A:M,4,FALSE)) ->  | H5: CONSTRAIN AADT: | I5: =IF('Forecast A'!H4="","",VLOOKUP(I4,'Forecast A'!A7:B22,2)) ->  | K5: Constrain AADT is automated from the sequence number of the A segment | R5: 2ASU | S5: 0.9026364913 | T5: 0.9152095345 | U5: 0.8809693435 | V5: 0.8433149801 | W5: 0.8049514058 | X5: 0.9077923889 | Y5: 0.79842163 | Z5: 0.7463956493 | AA5: 0.6742423882 | AB5: 0.8110823695 | AC5: 0.878061286 | AD5: 0.9497618566
A6: 16 or 24 HR | B6: =IF(VLOOKUP(I4,$K$15:$L$25,2,FALSE)="Manual",16,24) ->  | R6: 3+ASU | S6: 1.192485605 | T6: 1.196781163 | U6: 1.149691715 | V6: 0.8838166574 | W6: 0.7900560436 | X6: 0.8404904399 | Y6: 0.6830196815 | Z6: 0.6685616697 | AA6: 0.5786451918 | AB6: 0.6134526971 | AC6: 0.7366804617 | AD6: 1.001165084
A7: VEHICLE TYPE | C7: RAW COUNT | D7: AADT ADJ FACTOR | F7: ADJUSTED RAW | G7: VEH. TYPE PERCENTS | H7: A.C.F. | K7: URBAN / RURAL CLASSIFICATION | R7: 3A Semi | S7: 1.119647785 | T7: 1.098865688 | U7: 1.032355984 | V7: 0.9031212033 | W7: 0.8352405532 | X7: 0.8564495131 | Y7: 0.7867958545 | Z7: 0.6742755593 | AA7: 0.6669477105 | AB7: 0.8886683685 | AC7: 0.827933027 | AD7: 1.080772858
A8: CARS AND PICKUPS | C8: =IF(I4='VC 1'!I4,INDEX('VC Data'!A:M,'VC 2'!E8+1,6),VLOOKUP(B2&I4,'VC Data'!A:M,6,FALSE)) ->  | D8: =IF(K8="RURAL",IF(B6=16,1.08,1)*CHOOSE((C5)+1,1,1.31,1.23,1.19,1.06,0.98,0.92,0.84,0.88,0.91,0.95,1.08,1.12),IF(B6=16,1.08,1)*CHOOSE((C5)+1,1,1.08,1.04,1.04,0.97,0.97,0.96,0.91,0.9,0.93,0.88,0.97,1)) ->  | E8: =MATCH($B$2&$I$4,'VC Data'!A:A,0) ->  | F8: =IF(I5="",ROUND(D8*C8,0),I5-SUM(F9:F15)) ->  | H8: =IF(C16=0,"",C16/(((C8+C9)*2+(C10+C11)*3+(C12+C14)*4+(C13+C15)*5)/2)) ->  | K8: =VLOOKUP('Forecast A'!H4,'Urban&Rural'!A:B,2,FALSE) ->  | M8: <- Derived from the sequence number of the A segment | R8: 4A Semi | S8: 1.119647785 | T8: 1.098865688 | U8: 1.032355984 | V8: 0.9031212033 | W8: 0.8352405532 | X8: 0.8564495131 | Y8: 0.7867958545 | Z8: 0.6742755593 | AA8: 0.6669477105 | AB8: 0.8886683685 | AC8: 0.827933027 | AD8: 1.080772858
A9: 2 AXLE 6 TIRE | C9: =IF(I4='VC 1'!I4,INDEX('VC Data'!A:M,'VC 2'!E8+1,7),VLOOKUP(B2&I4,'VC Data'!A:M,7,FALSE)) ->  | D9: =IF(K8="RURAL",IF(B6=16,1.08,1)*CHOOSE((C5)+1,1,1.02,0.93,0.96,0.89,0.85,0.87,0.83,0.83,0.76,0.77,0.88,1),IF(B6=16,1.08,1)*CHOOSE((C5)+1,1,0.96,0.88,0.92,0.9,0.89,0.86,0.8,0.76,0.83,0.76,0.79,0.84)) ->  | E9: =MATCH($B$2&$I$4,'VC Data'!A:A,0) ->  | F9: =IF(B6=16,ROUND(+D9*C9,0),(IF(B6=24,ROUND(D9*C9,0),#VALUE!))) ->  | G9: =IF(F9=0,0,+F9/F16) ->  | R9: 5+A SEMI | S9: 0.8694207179 | T9: 0.8776904625 | U9: 0.8647540382 | V9: 0.8094064142 | W9: 0.792292913 | X9: 0.8333092409 | Y9: 0.7149806283 | Z9: 0.7108350254 | AA9: 0.6598929083 | AB9: 0.7505864443 | AC9: 0.8967585745 | AD9: 0.9413801686
A10: 3+ AXLE SINGLE UNIT | C10: =IF(I4='VC 1'!I4,INDEX('VC Data'!A:M,'VC 2'!E8+1,8),VLOOKUP(B2&I4,'VC Data'!A:M,8,FALSE)) ->  | D10: =IF(K8="RURAL",IF(B6=16,1.07,1)*CHOOSE((C5)+1,1,1.24,1.17,1.12,0.89,0.76,0.71,0.7,0.66,0.65,0.64,0.86,1.09),IF(B6=16,1.07,1)*CHOOSE((C5)+1,1,1.23,1.16,1.21,0.86,0.75,0.67,0.59,0.54,0.64,0.64,0.8,1.09)) ->  | E10: =MATCH($B$2&$I$4,'VC Data'!A:A,0) ->  | F10: =IF(B6=16,ROUND(+D10*C10,0),(IF(B6=24,ROUND(D10*C10,0),#VALUE!))) ->  | G10: =IF(F10=0,0,+F10/F16) ->  | R10: TT/BUS | S10: 1.406614623 | T10: 1.328803664 | U10: 1.158738771 | V10: 1.026157718 | W10: 0.9327073295 | X10: 0.8621004092 | Y10: 0.7705178987 | Z10: 0.623245916 | AA10: 0.5899275403 | AB10: 0.7789227543 | AC10: 0.8803850224 | AD10: 1.168382181
A11: 3 AXLE SEMI (TST) | C11: =IF(I4='VC 1'!I4,INDEX('VC Data'!A:M,'VC 2'!E8+1,9),VLOOKUP(B2&I4,'VC Data'!A:M,9,FALSE)) ->  | D11: =IF(K8="RURAL",IF(B6=16,1.1,1)*CHOOSE((C5)+1,1,1.25,1.15,1.11,0.97,0.84,0.77,0.72,0.72,0.72,0.83,1.07,1.25),IF(B6=16,1.1,1)*CHOOSE((C5)+1,1,1.24,1.18,1.02,0.88,0.86,0.8,0.74,0.7,0.72,0.71,0.87,1.17)) ->  | E11: =MATCH($B$2&$I$4,'VC Data'!A:A,0) ->  | F11: =IF(B6=16,ROUND(+D11*C11,0),(IF(B6=24,ROUND(D11*C11,0),#VALUE!))) ->  | G11: =IF(F11=0,0,+F11/F16) ->  | K11: The table below will display available counts for VC site by year and type | N11: 2 | O11: 1 | R11: TWINS | S11: 0.890183558 | T11: 0.8452826494 | U11: 0.8246298829 | V11: 0.7536070918 | W11: 0.7787765432 | X11: 0.914883437 | Y11: 0.8313230333 | Z11: 0.7228027477 | AA11: 0.6972492539 | AB11: 0.7525653487 | AC11: 0.8886754755 | AD11: 0.8821039871
A12: 4 AXLE SEMI (TST) | C12: =IF(I4='VC 1'!I4,INDEX('VC Data'!A:M,'VC 2'!E8+1,10),VLOOKUP(B2&I4,'VC Data'!A:M,10,FALSE)) ->  | D12: =IF(K8="RURAL",IF(B6=16,1.1,1)*CHOOSE((C5)+1,1,1.25,1.15,1.11,0.97,0.84,0.77,0.72,0.72,0.72,0.83,1.07,1.25),IF(B6=16,1.1,1)*CHOOSE((C5)+1,1,1.24,1.18,1.02,0.88,0.86,0.8,0.74,0.7,0.72,0.71,0.87,1.17)) ->  | E12: =MATCH($B$2&$I$4,'VC Data'!A:A,0) ->  | F12: =IF(B6=16,ROUND(+D12*C12,0),(IF(B6=24,ROUND(D12*C12,0),#VALUE!))) ->  | G12: =IF(F12=0,0,+F12/F16) ->  | O12: 2 | P12: 16
A13: 5+ AXLE SEMI (TST) | C13: =IF(I4='VC 1'!I4,INDEX('VC Data'!A:M,'VC 2'!E8+1,11),VLOOKUP(B2&I4,'VC Data'!A:M,11,FALSE)) ->  | D13: =IF(K8="RURAL", IF(B6=16,1.17,1)*CHOOSE((C5)+1,1,0.93,0.86,0.87,0.82,0.79,0.79,0.82,0.78,0.8,0.73,0.87,0.9),IF(B6=16,1.17,1)*CHOOSE((C5)+1,1,1.02,0.99,1,0.79,0.75,0.71,0.69,0.65,0.7,0.76,0.76,0.99)) ->  | E13: =MATCH($B$2&$I$4,'VC Data'!A:A,0) ->  | F13: =IF(B6=16,ROUND(+D13*C13,0),(IF(B6=24,ROUND(D13*C13,0),#VALUE!))) ->  | G13: =IF(F13=0,0,+F13/F16) ->  | K13: ="VC history for site: "&B2 -> VC history for site: | P13: 24 | R13: New Seasonal Adjustment Factors For Rural Area
A14: TR TR, BUSES | C14: =IF(I4='VC 1'!I4,INDEX('VC Data'!A:M,'VC 2'!E8+1,12),VLOOKUP(B2&I4,'VC Data'!A:M,12,FALSE)) ->  | D14: =IF(K8="RURAL",IF(B6=16,1.09,1)*CHOOSE((C5)+1,1,1.6,1.44,1.31,0.99,0.81,0.75,0.67,0.68,0.7,0.68,0.96,1.4),IF(B6=16,1.09,1)*CHOOSE((C5)+1,1,1.51,1.31,1.19,1.03,0.92,0.82,0.76,0.71,0.74,0.77,0.94,1.07)) ->  | E14: =MATCH($B$2&$I$4,'VC Data'!A:A,0) ->  | F14: =IF(B6=16,ROUND(+D14*C14,0),(IF(B6=24,ROUND(D14*C14,0),#VALUE!))) ->  | G14: =IF(F14=0,0,+F14/F16) ->  | K14: Year | L14: Count Type
A15: TWIN TRAILERS | C15: =IF(I4='VC 1'!I4,INDEX('VC Data'!A:M,'VC 2'!E8+1,13),VLOOKUP(B2&I4,'VC Data'!A:M,13,FALSE)) ->  | D15: =IF(K8="RURAL",IF(B6=16,1.3,1)*CHOOSE((C5)+1,1,0.95,0.86,0.92,0.86,0.86,0.75,0.8,0.76,0.75,0.7,0.82,0.76),IF(B6=16,1.3,1)*CHOOSE((C5)+1,1,1.07,1.02,1.02,0.84,0.78,0.74,0.69,0.65,0.67,0.77,0.93,1.09)) ->  | E15: =MATCH($B$2&$I$4,'VC Data'!A:A,0) ->  | F15: =IF(B6=16,ROUND(+D15*C15,0),(IF(B6=24,ROUND(D15*C15,0),#VALUE!))) ->  | G15: =IF(F15=0,0,+F15/F16) ->  | K15: =IF(INDEX('VC History'!A:A,M15)=$B$2,INDEX('VC History'!B:B,M15),"") ->  | L15: =IF(INDEX('VC History'!A:A,M15)=$B$2,INDEX('VC History'!D:D,M15),"") ->  | M15: =MATCH(B2,'VC History'!A:A,0) ->  | R15: Body Type | S15: Jan | T15: Feb | U15: Mar | V15: Apr | W15: May | X15: Jun | Y15: Jul | Z15: Aug | AA15: Sep | AB15: Oct | AC15: Nov | AD15: Dec
A16: TOTALS -----------> | C16: =SUM(C8:C15) ->  | D16: --------> | E16: =+F16/C16 ->  | F16: =SUM(F8:F15) ->  | G16: =SUM(F9:F15)/F16 ->  | H16: (%HC) | K16: =IF(INDEX('VC History'!A:A,M16)=$B$2,INDEX('VC History'!B:B,M16),"") ->  | L16: =IF(INDEX('VC History'!A:A,M16)=$B$2,INDEX('VC History'!D:D,M16),"") ->  | M16: =M15+1 ->  | R16: CARS+PICKUP | S16: 1.31474341 | T16: 1.260555416 | U16: 1.21910632 | V16: 1.133579236 | W16: 0.9674365183 | X16: 0.8811334106 | Y16: 0.8068667431 | Z16: 0.8357105532 | AA16: 0.9492525986 | AB16: 1.029751516 | AC16: 1.125437083 | AD16: 1.198499723
K17: =IF(INDEX('VC History'!A:A,M17)=$B$2,INDEX('VC History'!B:B,M17),"") ->  | L17: =IF(INDEX('VC History'!A:A,M17)=$B$2,INDEX('VC History'!D:D,M17),"") ->  | R17: 2ASU | S17: 1.042113668 | T17: 1.079615196 | U17: 1.073531771 | V17: 0.9700373761 | W17: 0.8766061595 | X17: 0.8518294275 | Y17: 0.8505186426 | Z17: 0.8291160376 | AA17: 0.8099880704 | AB17: 0.8257555049 | AC17: 0.9336566414 | AD17: 0.9644660003
K18: =IF(INDEX('VC History'!A:A,M18)=$B$2,INDEX('VC History'!B:B,M18),"") ->  | L18: =IF(INDEX('VC History'!A:A,M18)=$B$2,INDEX('VC History'!D:D,M18),"") ->  | R18: 3+ASU | S18: 1.339197634 | T18: 1.439771113 | U18: 1.2792395 | V18: 0.9324515918 | W18: 0.8121908563 | X18: 0.6072317642 | Y18: 0.7099775765 | Z18: 0.6874079787 | AA18: 0.7041889955 | AB18: 0.6966682438 | AC18: 0.8492378659 | AD18: 1.245576541
A19: =+B2 -> 0 | K19: =IF(INDEX('VC History'!A:A,M19)=$B$2,INDEX('VC History'!B:B,M19),"") ->  | L19: =IF(INDEX('VC History'!A:A,M19)=$B$2,INDEX('VC History'!D:D,M19),"") ->  | Q19: 1 - January | R19: 3A Semi | S19: 1.574028515 | T19: 1.540791338 | U19: 1.492648881 | V19: 1.223354753 | W19: 0.8992402512 | X19: 0.8188352771 | Y19: 0.7347486488 | Z19: 0.6803021132 | AA19: 0.744357258 | AB19: 0.8756086261 | AC19: 1.096356596 | AD19: 1.273657955
A20: =+B3 ->  | K20: =IF(INDEX('VC History'!A:A,M20)=$B$2,INDEX('VC History'!B:B,M20),"") ->  | L20: =IF(INDEX('VC History'!A:A,M20)=$B$2,INDEX('VC History'!D:D,M20),"") ->  | Q20: 2 - February | R20: 4A Semi | S20: 1.574028515 | T20: 1.540791338 | U20: 1.492648881 | V20: 1.223354753 | W20: 0.8992402512 | X20: 0.8188352771 | Y20: 0.7347486488 | Z20: 0.6803021132 | AA20: 0.744357258 | AB20: 0.8756086261 | AC20: 1.096356596 | AD20: 1.273657955
K21: =IF(INDEX('VC History'!A:A,M21)=$B$2,INDEX('VC History'!B:B,M21),"") ->  | L21: =IF(INDEX('VC History'!A:A,M21)=$B$2,INDEX('VC History'!D:D,M21),"") ->  | Q21: 3 - March | R21: 5+A SEMI | S21: 0.9774273605 | T21: 0.9048104915 | U21: 0.8599070523 | V21: 0.8206315401 | W21: 0.7778721302 | X21: 0.7171337842 | Y21: 0.7732008439 | Z21: 0.7471229023 | AA21: 0.7637578228 | AB21: 0.7392151467 | AC21: 0.877552007 | AD21: 0.9310532595
K22: =IF(INDEX('VC History'!A:A,M22)=$B$2,INDEX('VC History'!B:B,M22),"") ->  | L22: =IF(INDEX('VC History'!A:A,M22)=$B$2,INDEX('VC History'!D:D,M22),"") ->  | M22: =M21+1 ->  | Q22: 4 - April | R22: TT/BUS | S22: 2.053065092 | T22: 2.059457219 | U22: 1.54934048 | V22: 1.1114678 | W22: 0.8736816042 | X22: 0.7417814046 | Y22: 0.705897493 | Z22: 0.6679690633 | AA22: 0.7016210228 | AB22: 0.7888943814 | AC22: 1.01168125 | AD22: 1.575509804
K23: =IF(INDEX('VC History'!A:A,M23)=$B$2,INDEX('VC History'!B:B,M23),"") ->  | L23: =IF(INDEX('VC History'!A:A,M23)=$B$2,INDEX('VC History'!D:D,M23),"") ->  | Q23: 5 - May | R23: TWINS | S23: 1.420065205 | T23: 0.9516135039 | U23: 0.9414734563 | V23: 0.9360222446 | W23: 0.8601389411 | X23: 0.8665974564 | Y23: 0.8294879216 | Z23: 0.6612789319 | AA23: 0.6935770556 | AB23: 0.6096555077 | AC23: 0.7557197928 | AD23: 0.8949536413
K24: =IF(INDEX('VC History'!A:A,M24)=$B$2,INDEX('VC History'!B:B,M24),"") ->  | L24: =IF(INDEX('VC History'!A:A,M24)=$B$2,INDEX('VC History'!D:D,M24),"") ->  | Q24: 6 - June
K25: =IF(INDEX('VC History'!A:A,M25)=$B$2,INDEX('VC History'!B:B,M25),"") ->  | L25: =IF(INDEX('VC History'!A:A,M25)=$B$2,INDEX('VC History'!D:D,M25),"") ->  | Q25: 7 - July
Q26: 8 - August
Q27: 9 - September
K28: 1 | L28: 16 | Q28: 10 - October
K29: 2 | L29: 24 | Q29: 11 - November
K30: 3 | L30: RURAL | Q30: 12 - December
K31: 4 | L31: URBAN
K32: 5
K33: 6
K34: 7
K35: 8
K36: 9
K37: 10
K38: 11
K39: 12
A52: =IF(K8="RURAL","Rural Factor is Selected", "Urban Factor is selected") -> 

Sheet VC 3
A1: VEHICLE CLASS COUNT EXPANSION WORKSHEET 3 | J1: Non-print area | R1: New Seasonal Adjustment Factors For Urban Area
A2: SITE NUMBER: | G2: COUNTY: | H2: =IF(+Cover!$H$16=0," ",+Cover!$H$16) -> 
A3: SITE DESCRIPTION: | B3: =VLOOKUP(B2,'VC History'!A:F,6,FALSE) ->  | R3: Body Type | S3: Jan | T3: Feb | U3: Mar | V3: Apr | W3: May | X3: Jun | Y3: Jul | Z3: Aug | AA3: Sep | AB3: Oct | AC3: Nov | AD3: Dec
A4: PROJECT SP#: | B4: =IF(+Cover!$H$13=0," ",+Cover!$H$13) ->  | H4: YEAR OF COUNT: | R4: CARS+PICKUP | S4: 1.101818568 | T4: 1.042399606 | U4: 1.020715235 | V4: 0.9825595111 | W4: 0.9804214303 | X4: 0.9524454101 | Y4: 0.9021672653 | Z4: 0.8851863969 | AA4: 0.8463204291 | AB4: 0.9766528447 | AC4: 1.054754554 | AD4: 1.129700419
A5: MONTH NUMBER OF COUNT: | C5: =IF(I4='VC 2'!I4,INDEX('VC Data'!A:M,'VC 2'!E8+1,4),VLOOKUP(B2&I4,'VC Data'!A:M,4,FALSE)) ->  | H5: CONSTRAIN AADT: | I5: =IF('Forecast A'!H4="","",VLOOKUP(I4,'Forecast A'!A7:B22,2)) ->  | K5: Constrain AADT is automated from the sequence number of the A segment | R5: 2ASU | S5: 0.9026364913 | T5: 0.9152095345 | U5: 0.8809693435 | V5: 0.8433149801 | W5: 0.8049514058 | X5: 0.9077923889 | Y5: 0.79842163 | Z5: 0.7463956493 | AA5: 0.6742423882 | AB5: 0.8110823695 | AC5: 0.878061286 | AD5: 0.9497618566
A6: 16 or 24 HR | B6: =IF(VLOOKUP(I4,$K$15:$L$25,2,FALSE)="Manual",16,24) ->  | R6: 3+ASU | S6: 1.192485605 | T6: 1.196781163 | U6: 1.149691715 | V6: 0.8838166574 | W6: 0.7900560436 | X6: 0.8404904399 | Y6: 0.6830196815 | Z6: 0.6685616697 | AA6: 0.5786451918 | AB6: 0.6134526971 | AC6: 0.7366804617 | AD6: 1.001165084
A7: VEHICLE TYPE | C7: RAW COUNT | D7: AADT ADJ FACTOR | F7: ADJUSTED RAW | G7: VEH. TYPE PERCENTS | H7: A.C.F. | K7: URBAN / RURAL CLASSIFICATION | R7: 3A Semi | S7: 1.119647785 | T7: 1.098865688 | U7: 1.032355984 | V7: 0.9031212033 | W7: 0.8352405532 | X7: 0.8564495131 | Y7: 0.7867958545 | Z7: 0.6742755593 | AA7: 0.6669477105 | AB7: 0.8886683685 | AC7: 0.827933027 | AD7: 1.080772858
A8: CARS AND PICKUPS | C8: =IF(I4='VC 2'!I4,INDEX('VC Data'!A:M,'VC 2'!E8+1,6),VLOOKUP(B2&I4,'VC Data'!A:M,6,FALSE)) ->  | D8: =IF(K8="RURAL",IF(B6=16,1.08,1)*CHOOSE((C5)+1,1,1.31,1.23,1.19,1.06,0.98,0.92,0.84,0.88,0.91,0.95,1.08,1.12),IF(B6=16,1.08,1)*CHOOSE((C5)+1,1,1.08,1.04,1.04,0.97,0.97,0.96,0.91,0.9,0.93,0.88,0.97,1)) ->  | E8: =MATCH($B$2&$I$4,'VC Data'!A:A,0) ->  | F8: =IF(I5="",ROUND(D8*C8,0),I5-SUM(F9:F15)) ->  | H8: =IF(C16=0,"",C16/(((C8+C9)*2+(C10+C11)*3+(C12+C14)*4+(C13+C15)*5)/2)) ->  | K8: =VLOOKUP('Forecast A'!H4,'Urban&Rural'!A:B,2,FALSE) ->  | M8: <- Derived from the sequence number of the A segment | R8: 4A Semi | S8: 1.119647785 | T8: 1.098865688 | U8: 1.032355984 | V8: 0.9031212033 | W8: 0.8352405532 | X8: 0.8564495131 | Y8: 0.7867958545 | Z8: 0.6742755593 | AA8: 0.6669477105 | AB8: 0.8886683685 | AC8: 0.827933027 | AD8: 1.080772858
A9: 2 AXLE 6 TIRE | C9: =IF(I4='VC 2'!I4,INDEX('VC Data'!A:M,'VC 2'!E8+1,7),VLOOKUP(B2&I4,'VC Data'!A:M,7,FALSE)) ->  | D9: =IF(K8="RURAL",IF(B6=16,1.08,1)*CHOOSE((C5)+1,1,1.02,0.93,0.96,0.89,0.85,0.87,0.83,0.83,0.76,0.77,0.88,1),IF(B6=16,1.08,1)*CHOOSE((C5)+1,1,0.96,0.88,0.92,0.9,0.89,0.86,0.8,0.76,0.83,0.76,0.79,0.84)) ->  | E9: =MATCH($B$2&$I$4,'VC Data'!A:A,0) ->  | F9: =IF(B6=16,ROUND(+D9*C9,0),(IF(B6=24,ROUND(D9*C9,0),#VALUE!))) ->  | G9: =IF(F9=0,0,+F9/F16) ->  | R9: 5+A SEMI | S9: 0.8694207179 | T9: 0.8776904625 | U9: 0.8647540382 | V9: 0.8094064142 | W9: 0.792292913 | X9: 0.8333092409 | Y9: 0.7149806283 | Z9: 0.7108350254 | AA9: 0.6598929083 | AB9: 0.7505864443 | AC9: 0.8967585745 | AD9: 0.9413801686
A10: 3+ AXLE SINGLE UNIT | C10: =IF(I4='VC 2'!I4,INDEX('VC Data'!A:M,'VC 2'!E8+1,8),VLOOKUP(B2&I4,'VC Data'!A:M,8,FALSE)) ->  | D10: =IF(K8="RURAL",IF(B6=16,1.07,1)*CHOOSE((C5)+1,1,1.24,1.17,1.12,0.89,0.76,0.71,0.7,0.66,0.65,0.64,0.86,1.09),IF(B6=16,1.07,1)*CHOOSE((C5)+1,1,1.23,1.16,1.21,0.86,0.75,0.67,0.59,0.54,0.64,0.64,0.8,1.09)) ->  | E10: =MATCH($B$2&$I$4,'VC Data'!A:A,0) ->  | F10: =IF(B6=16,ROUND(+D10*C10,0),(IF(B6=24,ROUND(D10*C10,0),#VALUE!))) ->  | G10: =IF(F10=0,0,+F10/F16) ->  | R10: TT/BUS | S10: 1.406614623 | T10: 1.328803664 | U10: 1.158738771 | V10: 1.026157718 | W10: 0.9327073295 | X10: 0.8621004092 | Y10: 0.7705178987 | Z10: 0.623245916 | AA10: 0.5899275403 | AB10: 0.7789227543 | AC10: 0.8803850224 | AD10: 1.168382181
A11: 3 AXLE SEMI (TST) | C11: =IF(I4='VC 2'!I4,INDEX('VC Data'!A:M,'VC 2'!E8+1,9),VLOOKUP(B2&I4,'VC Data'!A:M,9,FALSE)) ->  | D11: =IF(K8="RURAL",IF(B6=16,1.1,1)*CHOOSE((C5)+1,1,1.25,1.15,1.11,0.97,0.84,0.77,0.72,0.72,0.72,0.83,1.07,1.25),IF(B6=16,1.1,1)*CHOOSE((C5)+1,1,1.24,1.18,1.02,0.88,0.86,0.8,0.74,0.7,0.72,0.71,0.87,1.17)) ->  | E11: =MATCH($B$2&$I$4,'VC Data'!A:A,0) ->  | F11: =IF(B6=16,ROUND(+D11*C11,0),(IF(B6=24,ROUND(D11*C11,0),#VALUE!))) ->  | G11: =IF(F11=0,0,+F11/F16) ->  | K11: The table below will display available counts for VC site by year and type | N11: 2 | O11: 1 | R11: TWINS | S11: 0.890183558 | T11: 0.8452826494 | U11: 0.8246298829 | V11: 0.7536070918 | W11: 0.7787765432 | X11: 0.914883437 | Y11: 0.8313230333 | Z11: 0.7228027477 | AA11: 0.6972492539 | AB11: 0.7525653487 | AC11: 0.8886754755 | AD11: 0.8821039871
A12: 4 AXLE SEMI (TST) | C12: =IF(I4='VC 2'!I4,INDEX('VC Data'!A:M,'VC 2'!E8+1,10),VLOOKUP(B2&I4,'VC Data'!A:M,10,FALSE)) ->  | D12: =IF(K8="RURAL",IF(B6=16,1.1,1)*CHOOSE((C5)+1,1,1.25,1.15,1.11,0.97,0.84,0.77,0.72,0.72,0.72,0.83,1.07,1.25),IF(B6=16,1.1,1)*CHOOSE((C5)+1,1,1.24,1.18,1.02,0.88,0.86,0.8,0.74,0.7,0.72,0.71,0.87,1.17)) ->  | E12: =MATCH($B$2&$I$4,'VC Data'!A:A,0) ->  | F12: =IF(B6=16,ROUND(+D12*C12,0),(IF(B6=24,ROUND(D12*C12,0),#VALUE!))) ->  | G12: =IF(F12=0,0,+F12/F16) ->  | O12: 2 | P12: 16
A13: 5+ AXLE SEMI (TST) | C13: =IF(I4='VC 2'!I4,INDEX('VC Data'!A:M,'VC 2'!E8+1,11),VLOOKUP(B2&I4,'VC Data'!A:M,11,FALSE)) ->  | D13: =IF(K8="RURAL", IF(B6=16,1.17,1)*CHOOSE((C5)+1,1,0.93,0.86,0.87,0.82,0.79,0.79,0.82,0.78,0.8,0.73,0.87,0.9),IF(B6=16,1.17,1)*CHOOSE((C5)+1,1,1.02,0.99,1,0.79,0.75,0.71,0.69,0.65,0.7,0.76,0.76,0.99)) ->  | E13: =MATCH($B$2&$I$4,'VC Data'!A:A,0) ->  | F13: =IF(B6=16,ROUND(+D13*C13,0),(IF(B6=24,ROUND(D13*C13,0),#VALUE!))) ->  | G13: =IF(F13=0,0,+F13/F16) ->  | K13: ="VC history for site: "&B2 -> VC history for site: | P13: 24 | R13: New Seasonal Adjustment Factors For Rural Area
A14: TR TR, BUSES | C14: =IF(I4='VC 2'!I4,INDEX('VC Data'!A:M,'VC 2'!E8+1,12),VLOOKUP(B2&I4,'VC Data'!A:M,12,FALSE)) ->  | D14: =IF(K8="RURAL",IF(B6=16,1.09,1)*CHOOSE((C5)+1,1,1.6,1.44,1.31,0.99,0.81,0.75,0.67,0.68,0.7,0.68,0.96,1.4),IF(B6=16,1.09,1)*CHOOSE((C5)+1,1,1.51,1.31,1.19,1.03,0.92,0.82,0.76,0.71,0.74,0.77,0.94,1.07)) ->  | E14: =MATCH($B$2&$I$4,'VC Data'!A:A,0) ->  | F14: =IF(B6=16,ROUND(+D14*C14,0),(IF(B6=24,ROUND(D14*C14,0),#VALUE!))) ->  | G14: =IF(F14=0,0,+F14/F16) ->  | K14: Year | L14: Count Type
A15: TWIN TRAILERS | C15: =IF(I4='VC 2'!I4,INDEX('VC Data'!A:M,'VC 2'!E8+1,13),VLOOKUP(B2&I4,'VC Data'!A:M,13,FALSE)) ->  | D15: =IF(K8="RURAL",IF(B6=16,1.3,1)*CHOOSE((C5)+1,1,0.95,0.86,0.92,0.86,0.86,0.75,0.8,0.76,0.75,0.7,0.82,0.76),IF(B6=16,1.3,1)*CHOOSE((C5)+1,1,1.07,1.02,1.02,0.84,0.78,0.74,0.69,0.65,0.67,0.77,0.93,1.09)) ->  | E15: =MATCH($B$2&$I$4,'VC Data'!A:A,0) ->  | F15: =IF(B6=16,ROUND(+D15*C15,0),(IF(B6=24,ROUND(D15*C15,0),#VALUE!))) ->  | G15: =IF(F15=0,0,+F15/F16) ->  | K15: =IF(INDEX('VC History'!A:A,M15)=$B$2,INDEX('VC History'!B:B,M15),"") ->  | L15: =IF(INDEX('VC History'!A:A,M15)=$B$2,INDEX('VC History'!D:D,M15),"") ->  | M15: =MATCH(B2,'VC History'!A:A,0) ->  | R15: Body Type | S15: Jan | T15: Feb | U15: Mar | V15: Apr | W15: May | X15: Jun | Y15: Jul | Z15: Aug | AA15: Sep | AB15: Oct | AC15: Nov | AD15: Dec
A16: TOTALS -----------> | C16: =SUM(C8:C15) ->  | D16: --------> | E16: =+F16/C16 ->  | F16: =SUM(F8:F15) ->  | G16: =SUM(F9:F15)/F16 ->  | H16: (%HC) | K16: =IF(INDEX('VC History'!A:A,M16)=$B$2,INDEX('VC History'!B:B,M16),"") ->  | L16: =IF(INDEX('VC History'!A:A,M16)=$B$2,INDEX('VC History'!D:D,M16),"") ->  | M16: =M15+1 ->  | R16: CARS+PICKUP | S16: 1.31474341 | T16: 1.260555416 | U16: 1.21910632 | V16: 1.133579236 | W16: 0.9674365183 | X16: 0.8811334106 | Y16: 0.8068667431 | Z16: 0.8357105532 | AA16: 0.9492525986 | AB16: 1.029751516 | AC16: 1.125437083 | AD16: 1.198499723
K17: =IF(INDEX('VC History'!A:A,M17)=$B$2,INDEX('VC History'!B:B,M17),"") ->  | L17: =IF(INDEX('VC History'!A:A,M17)=$B$2,INDEX('VC History'!D:D,M17),"") ->  | R17: 2ASU | S17: 1.042113668 | T17: 1.079615196 | U17: 1.073531771 | V17: 0.9700373761 | W17: 0.8766061595 | X17: 0.8518294275 | Y17: 0.8505186426 | Z17: 0.8291160376 | AA17: 0.8099880704 | AB17: 0.8257555049 | AC17: 0.9336566414 | AD17: 0.9644660003
K18: =IF(INDEX('VC History'!A:A,M18)=$B$2,INDEX('VC History'!B:B,M18),"") ->  | L18: =IF(INDEX('VC History'!A:A,M18)=$B$2,INDEX('VC History'!D:D,M18),"") ->  | R18: 3+ASU | S18: 1.339197634 | T18: 1.439771113 | U18: 1.2792395 | V18: 0.9324515918 | W18: 0.8121908563 | X18: 0.6072317642 | Y18: 0.7099775765 | Z18: 0.6874079787 | AA18: 0.7041889955 | AB18: 0.6966682438 | AC18: 0.8492378659 | AD18: 1.245576541
A19: =+B2 -> 0 | K19: =IF(INDEX('VC History'!A:A,M19)=$B$2,INDEX('VC History'!B:B,M19),"") ->  | L19: =IF(INDEX('VC History'!A:A,M19)=$B$2,INDEX('VC History'!D:D,M19),"") ->  | Q19: 1 - January | R19: 3A Semi | S19: 1.574028515 | T19: 1.540791338 | U19: 1.492648881 | V19: 1.223354753 | W19: 0.8992402512 | X19: 0.8188352771 | Y19: 0.7347486488 | Z19: 0.6803021132 | AA19: 0.744357258 | AB19: 0.8756086261 | AC19: 1.096356596 | AD19: 1.273657955
A20: =+B3 ->  | K20: =IF(INDEX('VC History'!A:A,M20)=$B$2,INDEX('VC History'!B:B,M20),"") ->  | L20: =IF(INDEX('VC History'!A:A,M20)=$B$2,INDEX('VC History'!D:D,M20),"") ->  | Q20: 2 - February | R20: 4A Semi | S20: 1.574028515 | T20: 1.540791338 | U20: 1.492648881 | V20: 1.223354753 | W20: 0.8992402512 | X20: 0.8188352771 | Y20: 0.7347486488 | Z20: 0.6803021132 | AA20: 0.744357258 | AB20: 0.8756086261 | AC20: 1.096356596 | AD20: 1.273657955
K21: =IF(INDEX('VC History'!A:A,M21)=$B$2,INDEX('VC History'!B:B,M21),"") ->  | L21: =IF(INDEX('VC History'!A:A,M21)=$B$2,INDEX('VC History'!D:D,M21),"") ->  | Q21: 3 - March | R21: 5+A SEMI | S21: 0.9774273605 | T21: 0.9048104915 | U21: 0.8599070523 | V21: 0.8206315401 | W21: 0.7778721302 | X21: 0.7171337842 | Y21: 0.7732008439 | Z21: 0.7471229023 | AA21: 0.7637578228 | AB21: 0.7392151467 | AC21: 0.877552007 | AD21: 0.9310532595
K22: =IF(INDEX('VC History'!A:A,M22)=$B$2,INDEX('VC History'!B:B,M22),"") ->  | L22: =IF(INDEX('VC History'!A:A,M22)=$B$2,INDEX('VC History'!D:D,M22),"") ->  | Q22: 4 - April | R22: TT/BUS | S22: 2.053065092 | T22: 2.059457219 | U22: 1.54934048 | V22: 1.1114678 | W22: 0.8736816042 | X22: 0.7417814046 | Y22: 0.705897493 | Z22: 0.6679690633 | AA22: 0.7016210228 | AB22: 0.7888943814 | AC22: 1.01168125 | AD22: 1.575509804
K23: =IF(INDEX('VC History'!A:A,M23)=$B$2,INDEX('VC History'!B:B,M23),"") ->  | L23: =IF(INDEX('VC History'!A:A,M23)=$B$2,INDEX('VC History'!D:D,M23),"") ->  | Q23: 5 - May | R23: TWINS | S23: 1.420065205 | T23: 0.9516135039 | U23: 0.9414734563 | V23: 0.9360222446 | W23: 0.8601389411 | X23: 0.8665974564 | Y23: 0.8294879216 | Z23: 0.6612789319 | AA23: 0.6935770556 | AB23: 0.6096555077 | AC23: 0.7557197928 | AD23: 0.8949536413
K24: =IF(INDEX('VC History'!A:A,M24)=$B$2,INDEX('VC History'!B:B,M24),"") ->  | L24: =IF(INDEX('VC History'!A:A,M24)=$B$2,INDEX('VC History'!D:D,M24),"") ->  | Q24: 6 - June
K25: =IF(INDEX('VC History'!A:A,M25)=$B$2,INDEX('VC History'!B:B,M25),"") ->  | L25: =IF(INDEX('VC History'!A:A,M25)=$B$2,INDEX('VC History'!D:D,M25),"") ->  | Q25: 7 - July
Q26: 8 - August
Q27: 9 - September
K28: 1 | L28: 16 | Q28: 10 - October
K29: 2 | L29: 24 | Q29: 11 - November
K30: 3 | L30: RURAL | Q30: 12 - December
K31: 4 | L31: URBAN
K32: 5
K33: 6
K34: 7
K35: 8
K36: 9
K37: 10
K38: 11
K39: 12
A52: =IF(K8="RURAL","Rural Factor is Selected", "Urban Factor is selected") -> 

Sheet VC 4
A1: VEHICLE CLASS COUNT EXPANSION WORKSHEET 4 | J1: Non-print area | R1: New Seasonal Adjustment Factors For Urban Area
A2: SITE NUMBER: | G2: COUNTY: | H2: =IF(+Cover!$H$16=0," ",+Cover!$H$16) -> 
A3: SITE DESCRIPTION: | B3: =VLOOKUP(B2,'VC History'!A:F,6,FALSE) ->  | R3: Body Type | S3: Jan | T3: Feb | U3: Mar | V3: Apr | W3: May | X3: Jun | Y3: Jul | Z3: Aug | AA3: Sep | AB3: Oct | AC3: Nov | AD3: Dec
A4: PROJECT SP#: | B4: =IF(+Cover!$H$13=0," ",+Cover!$H$13) ->  | H4: YEAR OF COUNT: | R4: CARS+PICKUP | S4: 1.101818568 | T4: 1.042399606 | U4: 1.020715235 | V4: 0.9825595111 | W4: 0.9804214303 | X4: 0.9524454101 | Y4: 0.9021672653 | Z4: 0.8851863969 | AA4: 0.8463204291 | AB4: 0.9766528447 | AC4: 1.054754554 | AD4: 1.129700419
A5: MONTH NUMBER OF COUNT: | C5: =IF(I4='VC 3'!I4,INDEX('VC Data'!A:M,'VC 2'!E8+1,4),VLOOKUP(B2&I4,'VC Data'!A:M,4,FALSE)) ->  | H5: CONSTRAIN AADT: | I5: =IF('Forecast A'!H4="","",VLOOKUP(I4,'Forecast A'!A7:B22,2)) ->  | K5: Constrain AADT is automated from the sequence number of the A segment | R5: 2ASU | S5: 0.9026364913 | T5: 0.9152095345 | U5: 0.8809693435 | V5: 0.8433149801 | W5: 0.8049514058 | X5: 0.9077923889 | Y5: 0.79842163 | Z5: 0.7463956493 | AA5: 0.6742423882 | AB5: 0.8110823695 | AC5: 0.878061286 | AD5: 0.9497618566
A6: 16 or 24 HR | B6: =IF(VLOOKUP(I4,$K$15:$L$25,2,FALSE)="Manual",16,24) ->  | R6: 3+ASU | S6: 1.192485605 | T6: 1.196781163 | U6: 1.149691715 | V6: 0.8838166574 | W6: 0.7900560436 | X6: 0.8404904399 | Y6: 0.6830196815 | Z6: 0.6685616697 | AA6: 0.5786451918 | AB6: 0.6134526971 | AC6: 0.7366804617 | AD6: 1.001165084
A7: VEHICLE TYPE | C7: RAW COUNT | D7: AADT ADJ FACTOR | F7: ADJUSTED RAW | G7: VEH. TYPE PERCENTS | H7: A.C.F. | K7: URBAN / RURAL CLASSIFICATION | R7: 3A Semi | S7: 1.119647785 | T7: 1.098865688 | U7: 1.032355984 | V7: 0.9031212033 | W7: 0.8352405532 | X7: 0.8564495131 | Y7: 0.7867958545 | Z7: 0.6742755593 | AA7: 0.6669477105 | AB7: 0.8886683685 | AC7: 0.827933027 | AD7: 1.080772858
A8: CARS AND PICKUPS | C8: =IF(I4='VC 2'!I4,INDEX('VC Data'!A:M,'VC 2'!E8+1,6),VLOOKUP(B2&I4,'VC Data'!A:M,6,FALSE)) ->  | D8: =IF(K8="RURAL",IF(B6=16,1.08,1)*CHOOSE((C5)+1,1,1.31,1.23,1.19,1.06,0.98,0.92,0.84,0.88,0.91,0.95,1.08,1.12),IF(B6=16,1.08,1)*CHOOSE((C5)+1,1,1.08,1.04,1.04,0.97,0.97,0.96,0.91,0.9,0.93,0.88,0.97,1)) ->  | E8: =MATCH($B$2&$I$4,'VC Data'!A:A,0) ->  | F8: =IF(I5="",ROUND(D8*C8,0),I5-SUM(F9:F15)) ->  | H8: =IF(C16=0,"",C16/(((C8+C9)*2+(C10+C11)*3+(C12+C14)*4+(C13+C15)*5)/2)) ->  | K8: =VLOOKUP('Forecast A'!H4,'Urban&Rural'!A:B,2,FALSE) ->  | M8: <- Derived from the sequence number of the A segment | R8: 4A Semi | S8: 1.119647785 | T8: 1.098865688 | U8: 1.032355984 | V8: 0.9031212033 | W8: 0.8352405532 | X8: 0.8564495131 | Y8: 0.7867958545 | Z8: 0.6742755593 | AA8: 0.6669477105 | AB8: 0.8886683685 | AC8: 0.827933027 | AD8: 1.080772858
A9: 2 AXLE 6 TIRE | C9: =IF(I4='VC 2'!I4,INDEX('VC Data'!A:M,'VC 2'!E8+1,7),VLOOKUP(B2&I4,'VC Data'!A:M,7,FALSE)) ->  | D9: =IF(K8="RURAL",IF(B6=16,1.08,1)*CHOOSE((C5)+1,1,1.02,0.93,0.96,0.89,0.85,0.87,0.83,0.83,0.76,0.77,0.88,1),IF(B6=16,1.08,1)*CHOOSE((C5)+1,1,0.96,0.88,0.92,0.9,0.89,0.86,0.8,0.76,0.83,0.76,0.79,0.84)) ->  | E9: =MATCH($B$2&$I$4,'VC Data'!A:A,0) ->  | F9: =IF(B6=16,ROUND(+D9*C9,0),(IF(B6=24,ROUND(D9*C9,0),#VALUE!))) ->  | G9: =IF(F9=0,0,+F9/F16) ->  | R9: 5+A SEMI | S9: 0.8694207179 | T9: 0.8776904625 | U9: 0.8647540382 | V9: 0.8094064142 | W9: 0.792292913 | X9: 0.8333092409 | Y9: 0.7149806283 | Z9: 0.7108350254 | AA9: 0.6598929083 | AB9: 0.7505864443 | AC9: 0.8967585745 | AD9: 0.9413801686
A10: 3+ AXLE SINGLE UNIT | C10: =IF(I4='VC 2'!I4,INDEX('VC Data'!A:M,'VC 2'!E8+1,8),VLOOKUP(B2&I4,'VC Data'!A:M,8,FALSE)) ->  | D10: =IF(K8="RURAL",IF(B6=16,1.07,1)*CHOOSE((C5)+1,1,1.24,1.17,1.12,0.89,0.76,0.71,0.7,0.66,0.65,0.64,0.86,1.09),IF(B6=16,1.07,1)*CHOOSE((C5)+1,1,1.23,1.16,1.21,0.86,0.75,0.67,0.59,0.54,0.64,0.64,0.8,1.09)) ->  | E10: =MATCH($B$2&$I$4,'VC Data'!A:A,0) ->  | F10: =IF(B6=16,ROUND(+D10*C10,0),(IF(B6=24,ROUND(D10*C10,0),#VALUE!))) ->  | G10: =IF(F10=0,0,+F10/F16) ->  | R10: TT/BUS | S10: 1.406614623 | T10: 1.328803664 | U10: 1.158738771 | V10: 1.026157718 | W10: 0.9327073295 | X10: 0.8621004092 | Y10: 0.7705178987 | Z10: 0.623245916 | AA10: 0.5899275403 | AB10: 0.7789227543 | AC10: 0.8803850224 | AD10: 1.168382181
A11: 3 AXLE SEMI (TST) | C11: =IF(I4='VC 2'!I4,INDEX('VC Data'!A:M,'VC 2'!E8+1,9),VLOOKUP(B2&I4,'VC Data'!A:M,9,FALSE)) ->  | D11: =IF(K8="RURAL",IF(B6=16,1.1,1)*CHOOSE((C5)+1,1,1.25,1.15,1.11,0.97,0.84,0.77,0.72,0.72,0.72,0.83,1.07,1.25),IF(B6=16,1.1,1)*CHOOSE((C5)+1,1,1.24,1.18,1.02,0.88,0.86,0.8,0.74,0.7,0.72,0.71,0.87,1.17)) ->  | E11: =MATCH($B$2&$I$4,'VC Data'!A:A,0) ->  | F11: =IF(B6=16,ROUND(+D11*C11,0),(IF(B6=24,ROUND(D11*C11,0),#VALUE!))) ->  | G11: =IF(F11=0,0,+F11/F16) ->  | K11: The table below will display available counts for VC site by year and type | N11: 2 | O11: 1 | R11: TWINS | S11: 0.890183558 | T11: 0.8452826494 | U11: 0.8246298829 | V11: 0.7536070918 | W11: 0.7787765432 | X11: 0.914883437 | Y11: 0.8313230333 | Z11: 0.7228027477 | AA11: 0.6972492539 | AB11: 0.7525653487 | AC11: 0.8886754755 | AD11: 0.8821039871
A12: 4 AXLE SEMI (TST) | C12: =IF(I4='VC 2'!I4,INDEX('VC Data'!A:M,'VC 2'!E8+1,10),VLOOKUP(B2&I4,'VC Data'!A:M,10,FALSE)) ->  | D12: =IF(K8="RURAL",IF(B6=16,1.1,1)*CHOOSE((C5)+1,1,1.25,1.15,1.11,0.97,0.84,0.77,0.72,0.72,0.72,0.83,1.07,1.25),IF(B6=16,1.1,1)*CHOOSE((C5)+1,1,1.24,1.18,1.02,0.88,0.86,0.8,0.74,0.7,0.72,0.71,0.87,1.17)) ->  | E12: =MATCH($B$2&$I$4,'VC Data'!A:A,0) ->  | F12: =IF(B6=16,ROUND(+D12*C12,0),(IF(B6=24,ROUND(D12*C12,0),#VALUE!))) ->  | G12: =IF(F12=0,0,+F12/F16) ->  | O12: 2 | P12: 16
A13: 5+ AXLE SEMI (TST) | C13: =IF(I4='VC 2'!I4,INDEX('VC Data'!A:M,'VC 2'!E8+1,11),VLOOKUP(B2&I4,'VC Data'!A:M,11,FALSE)) ->  | D13: =IF(K8="RURAL", IF(B6=16,1.17,1)*CHOOSE((C5)+1,1,0.93,0.86,0.87,0.82,0.79,0.79,0.82,0.78,0.8,0.73,0.87,0.9),IF(B6=16,1.17,1)*CHOOSE((C5)+1,1,1.02,0.99,1,0.79,0.75,0.71,0.69,0.65,0.7,0.76,0.76,0.99)) ->  | E13: =MATCH($B$2&$I$4,'VC Data'!A:A,0) ->  | F13: =IF(B6=16,ROUND(+D13*C13,0),(IF(B6=24,ROUND(D13*C13,0),#VALUE!))) ->  | G13: =IF(F13=0,0,+F13/F16) ->  | K13: ="VC history for site: "&B2 -> VC history for site: | P13: 24 | R13: New Seasonal Adjustment Factors For Rural Area
A14: TR TR, BUSES | C14: =IF(I4='VC 2'!I4,INDEX('VC Data'!A:M,'VC 2'!E8+1,12),VLOOKUP(B2&I4,'VC Data'!A:M,12,FALSE)) ->  | D14: =IF(K8="RURAL",IF(B6=16,1.09,1)*CHOOSE((C5)+1,1,1.6,1.44,1.31,0.99,0.81,0.75,0.67,0.68,0.7,0.68,0.96,1.4),IF(B6=16,1.09,1)*CHOOSE((C5)+1,1,1.51,1.31,1.19,1.03,0.92,0.82,0.76,0.71,0.74,0.77,0.94,1.07)) ->  | E14: =MATCH($B$2&$I$4,'VC Data'!A:A,0) ->  | F14: =IF(B6=16,ROUND(+D14*C14,0),(IF(B6=24,ROUND(D14*C14,0),#VALUE!))) ->  | G14: =IF(F14=0,0,+F14/F16) ->  | K14: Year | L14: Count Type
A15: TWIN TRAILERS | C15: =IF(I4='VC 2'!I4,INDEX('VC Data'!A:M,'VC 2'!E8+1,13),VLOOKUP(B2&I4,'VC Data'!A:M,13,FALSE)) ->  | D15: =IF(K8="RURAL",IF(B6=16,1.3,1)*CHOOSE((C5)+1,1,0.95,0.86,0.92,0.86,0.86,0.75,0.8,0.76,0.75,0.7,0.82,0.76),IF(B6=16,1.3,1)*CHOOSE((C5)+1,1,1.07,1.02,1.02,0.84,0.78,0.74,0.69,0.65,0.67,0.77,0.93,1.09)) ->  | E15: =MATCH($B$2&$I$4,'VC Data'!A:A,0) ->  | F15: =IF(B6=16,ROUND(+D15*C15,0),(IF(B6=24,ROUND(D15*C15,0),#VALUE!))) ->  | G15: =IF(F15=0,0,+F15/F16) ->  | K15: =IF(INDEX('VC History'!A:A,M15)=$B$2,INDEX('VC History'!B:B,M15),"") ->  | L15: =IF(INDEX('VC History'!A:A,M15)=$B$2,INDEX('VC History'!D:D,M15),"") ->  | M15: =MATCH(B2,'VC History'!A:A,0) ->  | R15: Body Type | S15: Jan | T15: Feb | U15: Mar | V15: Apr | W15: May | X15: Jun | Y15: Jul | Z15: Aug | AA15: Sep | AB15: Oct | AC15: Nov | AD15: Dec
A16: TOTALS -----------> | C16: =SUM(C8:C15) ->  | D16: --------> | E16: =+F16/C16 ->  | F16: =SUM(F8:F15) ->  | G16: =SUM(F9:F15)/F16 ->  | H16: (%HC) | K16: =IF(INDEX('VC History'!A:A,M16)=$B$2,INDEX('VC History'!B:B,M16),"") ->  | L16: =IF(INDEX('VC History'!A:A,M16)=$B$2,INDEX('VC History'!D:D,M16),"") ->  | M16: =M15+1 ->  | R16: CARS+PICKUP | S16: 1.31474341 | T16: 1.260555416 | U16: 1.21910632 | V16: 1.133579236 | W16: 0.9674365183 | X16: 0.8811334106 | Y16: 0.8068667431 | Z16: 0.8357105532 | AA16: 0.9492525986 | AB16: 1.029751516 | AC16: 1.125437083 | AD16: 1.198499723
K17: =IF(INDEX('VC History'!A:A,M17)=$B$2,INDEX('VC History'!B:B,M17),"") ->  | L17: =IF(INDEX('VC History'!A:A,M17)=$B$2,INDEX('VC History'!D:D,M17),"") ->  | R17: 2ASU | S17: 1.042113668 | T17: 1.079615196 | U17: 1.073531771 | V17: 0.9700373761 | W17: 0.8766061595 | X17: 0.8518294275 | Y17: 0.8505186426 | Z17: 0.8291160376 | AA17: 0.8099880704 | AB17: 0.8257555049 | AC17: 0.9336566414 | AD17: 0.9644660003
K18: =IF(INDEX('VC History'!A:A,M18)=$B$2,INDEX('VC History'!B:B,M18),"") ->  | L18: =IF(INDEX('VC History'!A:A,M18)=$B$2,INDEX('VC History'!D:D,M18),"") ->  | R18: 3+ASU | S18: 1.339197634 | T18: 1.439771113 | U18: 1.2792395 | V18: 0.9324515918 | W18: 0.8121908563 | X18: 0.6072317642 | Y18: 0.7099775765 | Z18: 0.6874079787 | AA18: 0.7041889955 | AB18: 0.6966682438 | AC18: 0.8492378659 | AD18: 1.245576541
A19: =+B2 -> 0 | K19: =IF(INDEX('VC History'!A:A,M19)=$B$2,INDEX('VC History'!B:B,M19),"") ->  | L19: =IF(INDEX('VC History'!A:A,M19)=$B$2,INDEX('VC History'!D:D,M19),"") ->  | Q19: 1 - January | R19: 3A Semi | S19: 1.574028515 | T19: 1.540791338 | U19: 1.492648881 | V19: 1.223354753 | W19: 0.8992402512 | X19: 0.8188352771 | Y19: 0.7347486488 | Z19: 0.6803021132 | AA19: 0.744357258 | AB19: 0.8756086261 | AC19: 1.096356596 | AD19: 1.273657955
A20: =+B3 ->  | K20: =IF(INDEX('VC History'!A:A,M20)=$B$2,INDEX('VC History'!B:B,M20),"") ->  | L20: =IF(INDEX('VC History'!A:A,M20)=$B$2,INDEX('VC History'!D:D,M20),"") ->  | Q20: 2 - February | R20: 4A Semi | S20: 1.574028515 | T20: 1.540791338 | U20: 1.492648881 | V20: 1.223354753 | W20: 0.8992402512 | X20: 0.8188352771 | Y20: 0.7347486488 | Z20: 0.6803021132 | AA20: 0.744357258 | AB20: 0.8756086261 | AC20: 1.096356596 | AD20: 1.273657955
K21: =IF(INDEX('VC History'!A:A,M21)=$B$2,INDEX('VC History'!B:B,M21),"") ->  | L21: =IF(INDEX('VC History'!A:A,M21)=$B$2,INDEX('VC History'!D:D,M21),"") ->  | Q21: 3 - March | R21: 5+A SEMI | S21: 0.9774273605 | T21: 0.9048104915 | U21: 0.8599070523 | V21: 0.8206315401 | W21: 0.7778721302 | X21: 0.7171337842 | Y21: 0.7732008439 | Z21: 0.7471229023 | AA21: 0.7637578228 | AB21: 0.7392151467 | AC21: 0.877552007 | AD21: 0.9310532595
K22: =IF(INDEX('VC History'!A:A,M22)=$B$2,INDEX('VC History'!B:B,M22),"") ->  | L22: =IF(INDEX('VC History'!A:A,M22)=$B$2,INDEX('VC History'!D:D,M22),"") ->  | Q22: 4 - April | R22: TT/BUS | S22: 2.053065092 | T22: 2.059457219 | U22: 1.54934048 | V22: 1.1114678 | W22: 0.8736816042 | X22: 0.7417814046 | Y22: 0.705897493 | Z22: 0.6679690633 | AA22: 0.7016210228 | AB22: 0.7888943814 | AC22: 1.01168125 | AD22: 1.575509804
K23: =IF(INDEX('VC History'!A:A,M23)=$B$2,INDEX('VC History'!B:B,M23),"") ->  | L23: =IF(INDEX('VC History'!A:A,M23)=$B$2,INDEX('VC History'!D:D,M23),"") ->  | Q23: 5 - May | R23: TWINS | S23: 1.420065205 | T23: 0.9516135039 | U23: 0.9414734563 | V23: 0.9360222446 | W23: 0.8601389411 | X23: 0.8665974564 | Y23: 0.8294879216 | Z23: 0.6612789319 | AA23: 0.6935770556 | AB23: 0.6096555077 | AC23: 0.7557197928 | AD23: 0.8949536413
K24: =IF(INDEX('VC History'!A:A,M24)=$B$2,INDEX('VC History'!B:B,M24),"") ->  | L24: =IF(INDEX('VC History'!A:A,M24)=$B$2,INDEX('VC History'!D:D,M24),"") ->  | Q24: 6 - June
K25: =IF(INDEX('VC History'!A:A,M25)=$B$2,INDEX('VC History'!B:B,M25),"") ->  | L25: =IF(INDEX('VC History'!A:A,M25)=$B$2,INDEX('VC History'!D:D,M25),"") ->  | Q25: 7 - July
Q26: 8 - August
Q27: 9 - September
K28: 1 | L28: 16 | Q28: 10 - October
K29: 2 | L29: 24 | Q29: 11 - November
K30: 3 | L30: RURAL | Q30: 12 - December
K31: 4 | L31: URBAN
K32: 5
K33: 6
K34: 7
K35: 8
K36: 9
K37: 10
K38: 11
K39: 12
A52: =IF(K8="RURAL","Rural Factor is Selected", "Urban Factor is selected") -> 

Sheet VC Avg
A1: Vehicle Class Count Averages Worksheet
A2: VCC Site Num: | B2: =IF('VC 1'!B2=0," ",'VC 1'!B2) -> 
A3: Route: | B3: =IF(Cover!H15="Interstate",Cover!J25&Cover!H14,IF(Cover!H15="US Trunk",Cover!J26&Cover!H14,IF(Cover!H15="MN Trunk",Cover!J27&Cover!H14,IF(Cover!H15="CSAH",Cover!J28&Cover!H14,IF(Cover!H15="CR",Cover!J29&Cover!H14," "))))) -> 
A4: Descripton: | B4: =IF('VC 1'!B3=0," ",'VC 1'!B3) -> 
C6: VC Count 1 | E6: VC Count 2 | G6: VC Count 3 | I6: VC Count 4
B7: Type | C7: Year | D7: Pct | E7: Year | F7: Pct | G7: Year | H7: Pct | I7: Year | J7: Pct | K7: Avg | L7: Avg
C8: =+'VC 1'!$I$4 -> 0 | E8: =+'VC 2'!$I$4 -> 0 | G8: =+'VC 3'!$I$4 -> 0 | I8: =+'VC 4'!$I$4 -> 0 | K8: Truck | L8: Vehicle
B9: Man/Tube | C9: =IF('VC 1'!$B$6=16,"Manual",IF('VC 1'!$B$6=24,"Tube",0)) ->  | E9: =IF('VC 2'!$B$6=16,"Manual",IF('VC 2'!$B$6=24,"Tube",0)) ->  | G9: =IF('VC 3'!$B$6=16,"Manual",IF('VC 3'!$B$6=24,"Tube",0)) ->  | I9: =IF('VC 4'!$B$6=16,"Manual",IF('VC 4'!$B$6=24,"Tube",0)) ->  | K9: Volumes | L9: Pctages
A10: 1 | B10: Cars | C10: ='VC 1'!F8 ->  | D10: =C10/C$18 ->  | E10: ='VC 2'!F8 ->  | F10: =E10/E$18 ->  | G10: ='VC 3'!F8 ->  | H10: =G10/G$18 ->  | I10: ='VC 4'!F8 ->  | J10: =I10/I$18 ->  | K10: =AVERAGEIF(C63:F63,">-1") ->  | L10: =AVERAGEIF(H63:K63,">-1") -> 
A11: 2 | B11: 2 ASU | C11: ='VC 1'!F9 ->  | E11: ='VC 2'!F9 ->  | G11: ='VC 3'!F9 ->  | I11: ='VC 4'!F9 -> 
A12: 3 | B12: 3+ASU | C12: ='VC 1'!F10 ->  | E12: ='VC 2'!F10 ->  | G12: ='VC 3'!F10 ->  | I12: ='VC 4'!F10 -> 
A13: 4 | B13: 3ASemi | C13: ='VC 1'!F11 ->  | E13: ='VC 2'!F11 ->  | G13: ='VC 3'!F11 ->  | I13: ='VC 4'!F11 -> 
A14: 5 | B14: 4ASemi | C14: ='VC 1'!F12 ->  | E14: ='VC 2'!F12 ->  | G14: ='VC 3'!F12 ->  | I14: ='VC 4'!F12 -> 
A15: 6 | B15: 5+Asemi | C15: ='VC 1'!F13 ->  | E15: ='VC 2'!F13 ->  | G15: ='VC 3'!F13 ->  | I15: ='VC 4'!F13 -> 
A16: 7 | B16: TT/BUS | C16: ='VC 1'!F14 ->  | E16: ='VC 2'!F14 ->  | G16: ='VC 3'!F14 ->  | I16: ='VC 4'!F14 -> 
A17: 8 | B17: Twins | C17: ='VC 1'!F15 ->  | E17: ='VC 2'!F15 ->  | G17: ='VC 3'!F15 ->  | I17: ='VC 4'!F15 -> 
A18: Total | C18: =SUM(C10:C17) ->  | D18: =SUM(D11:D17) ->  | E18: =SUM(E10:E17) ->  | F18: =SUM(F11:F17) ->  | G18: =SUM(G10:G17) ->  | H18: =SUM(H11:H17) ->  | I18: =SUM(I10:I17) ->  | J18: =SUM(J11:J17) -> 
A19: Total Heavy Comm | C19: =SUM(C11:C17) ->  | E19: =SUM(E11:E17) ->  | G19: =SUM(G11:G17) ->  | I19: =SUM(I11:I17) ->  | K19: =AVERAGEIF(C19:J19,">-1") ->  | L19: =SUM(L10:L17) -> 
A20: Heavy 5+ Ax Semi* | D20: =IF(C9="Manual",VLOOKUP(B2&C8,'% Heavies'!D:L,9,FALSE)," ") ->  | F20: =IF(E9="Manual",VLOOKUP(B2&E8,'% Heavies'!D:L,9,FALSE)," ") ->  | H20: =IF(G9="Manual",VLOOKUP(B2&G8,'% Heavies'!D:L,9,FALSE)," ") ->  | J20: =IF(I9="Manual",VLOOKUP(B2&I8,'% Heavies'!D:L,9,FALSE)," ") ->  | L20: =AVERAGEIF(C20:J20,">-1") -> 
A21: Axle Corr Factor | D21: ='VC 1'!H8 ->  | F21: ='VC 2'!H8 ->  | H21: ='VC 3'!H8 ->  | J21: ='VC 4'!H8 ->  | L21: =AVERAGEIF(D21:J21,">-1") -> 
A23: * Heavy 5+ Ax Semi = Tank, Dump, Grain, and Stake Loaded | K23: Heavy 5 Axle Semi Split
A24: When the Tank, Dumps, Grains and Loaded Stakes are 30% or more of the 5 axle semis, | K24: =$L$15*$L$20 ->  | L24: Max
A25: then they are automatically split into max and other categories | K25: =$L$15-$K$24 ->  | L25: Others
A26: Don’t use tube collected previous to 1990. | K26: =IF(L20<30%,"DON'T SPLIT","SPLIT") -> 
C63: =IF(C10="","",C10) ->  | D63: =IF(E10="","",E10) ->  | E63: =IF(G10="","",G10) ->  | F63: =IF(I10="","",I10) ->  | H63: =IF(D10="","",D10) ->  | I63: =IF(F10="","",F10) ->  | J63: =IF(H10="","",H10) ->  | K63: =IF(J10="","",J10) -> 
C64: =IF(C11="","",C11) ->  | D64: =IF(E11="","",E11) ->  | E64: =IF(G11="","",G11) ->  | F64: =IF(I11="","",I11) ->  | H64: =IF(D11="","",D11) ->  | I64: =IF(F11="","",F11) ->  | J64: =IF(H11="","",H11) ->  | K64: =IF(J11="","",J11) -> 

Sheet AADT_Data (hidden)
A1: SEQNUM | B1: AADT_2019 | C1: AADT 2018 | D1: AADT_2017 | E1: AADT_2016 | F1: AADT_2015 | G1: AADT_2014 | H1: AADT_2013 | I1: AADT_2012 | J1: AADT_2011 | K1: AADT_2010 | L1: AADT_2009 | M1: AADT_2008 | N1: AADT_2007 | O1: AADT_2006 | P1: AADT_2005 | Q1: AADT_2004 | R1: AADT_2003 | S1: AADT_2002 | T1: AADT_2001 | U1: AADT_2000 | V1: AADT_1999 | W1: AADT_1998 | X1: AADT_1997 | Y1: AADT_1996 | Z1: AADT_1995 | AA1: AADT_1994 | AB1: AADT_1992 | AC1: Length in Miles
A2: 1 | C2: 600 | E2: 630 | G2: 620 | I2: 640 | K2: 620 | M2: 660 | O2: 690 | Q2: 760 | S2: 860 | U2: 890 | W2: 700 | Y2: 700 | AA2: 650 | AB2: 650 | AC2: 13.38
A3: 4 | C3: 2050 | E3: 2050 | G3: 2100 | I3: 2100 | K3: 2050 | M3: 1950 | O3: 2100 | Q3: 2300 | S3: 2350 | U3: 2100 | W3: 2100 | Y3: 2300 | AA3: 1850 | AB3: 1850 | AC3: 1.64
A4: 9 | C4: 1450 | E4: 1400 | G4: 1500 | I4: 1600 | K4: 1700 | M4: 1550 | O4: 1650 | Q4: 1600 | S4: 1400 | U4: 1200 | W4: 1400 | Y4: 1250 | AA4: 1350 | AB4: 1000 | AC4: 5.11
A5: 13 | C5: 2500 | E5: 2500 | G5: 2400 | I5: 2400 | K5: 2550 | M5: 2350 | O5: 2450 | Q5: 2700 | S5: 2250 | U5: 2150 | W5: 2350 | Y5: 1750 | AA5: 2300 | AB5: 2000 | AC5: 4.09
A6: 14 | C6: 960 | E6: 920 | G6: 930 | I6: 1050 | K6: 1050 | M6: 950 | O6: 1000 | Q6: 1250 | S6: 1350 | U6: 1500 | W6: 920 | Y6: 780 | AA6: 750 | AB6: 650 | AC6: 12.62
A7: 16 | C7: 2900 | E7: 3100 | G7: 3050 | I7: 3150 | K7: 3250 | M7: 3000 | O7: 3300 | Q7: 3850 | S7: 3300 | U7: 3600 | W7: 3500 | Y7: 2850 | AA7: 2550 | AB7: 2350 | AC7: 1.79
A8: 17 | C8: 350 | E8: 320 | G8: 330 | I8: 345 | K8: 370 | M8: 370 | O8: 400 | Q8: 400 | S8: 475 | U8: 350 | W8: 350 | Y8: 370 | AA8: 325 | AB8: 350 | AC8: 13.12
A9: 20 | C9: 2300 | E9: 2200 | G9: 2200 | I9: 2250 | K9: 2150 | M9: 2000 | O9: 2100 | Q9: 2400 | S9: 2150 | U9: 2150 | W9: 2100 | Y9: 2350 | AA9: 1900 | AB9: 1900 | AC9: 6.28
A10: 21 | C10: 3300 | E10: 3050 | G10: 2800 | I10: 2900 | K10: 3000 | M10: 2800 | O10: 3050 | Q10: 3100 | S10: 2400 | U10: 2400 | W10: 2050 | Y10: 1950 | AA10: 2200 | AC10: 3.22
A11: 22 | C11: 1600 | E11: 1400 | G11: 1350 | I11: 1250 | K11: 1150 | M11: 1100 | O11: 1200 | Q11: 1250 | S11: 1000 | U11: 1000 | W11: 1150 | Y11: 1250 | AA11: 890 | AB11: 900 | AC11: 8.02
A12: 23 | C12: 3600 | E12: 3650 | G12: 3500 | I12: 3750 | K12: 4050 | M12: 4050 | O12: 4350 | Q12: 3950 | S12: 3300 | U12: 3100 | W12: 3000 | Y12: 3050 | AA12: 2800 | AC12: 7.72
A13: 24 | C13: 2800 | E13: 2500 | G13: 2450 | I13: 2200 | K13: 2050 | M13: 2150 | O13: 2150 | Q13: 2150 | S13: 1850 | U13: 1850 | W13: 1800 | Y13: 1750 | AA13: 1600 | AC13: 1.6
A14: 25 | C14: 3000 | E14: 3000 | G14: 3050 | I14: 2700 | K14: 3100 | M14: 2850 | O14: 3050 | Q14: 2800 | S14: 2450 | U14: 2100 | W14: 2550 | Y14: 2450 | AA14: 2100 | AB14: 1900 | AC14: 0.63
A15: 28 | C15: 6100 | E15: 6300 | G15: 6300 | I15: 5500 | K15: 6200 | M15: 5900 | O15: 6100 | Q15: 5800 | S15: 4900 | U15: 4400 | W15: 4500 | Y15: 3900 | AA15: 3600 | AB15: 3300 | AC15: 1.75
A16: 30 | C16: 2450 | E16: 2500 | G16: 2300 | I16: 2250 | K16: 2050 | M16: 2050 | O16: 2250 | Q16: 2500 | S16: 2100 | U16: 2100 | W16: 2500 | Y16: 2100 | AA16: 1950 | AB16: 1750 | AC16: 1.97
A17: 31 | C17: 4750 | E17: 4700 | G17: 4400 | I17: 4300 | K17: 4800 | M17: 4600 | O17: 5200 | Q17: 5000 | S17: 3750 | U17: 3750 | W17: 2500 | Y17: 4100 | AA17: 2350 | AB17: 3250 | AC17: 6.93
A18: 32 | C18: 2550 | E18: 2700 | G18: 2750 | I18: 2500 | K18: 2650 | M18: 2450 | O18: 2750 | Q18: 2650 | S18: 2400 | U18: 2400 | W18: 2000 | Y18: 3200 | AA18: 2500 | AB18: 2850 | AC18: 6.56
A19: 33 | C19: 2550 | E19: 2350 | G19: 2350 | I19: 2300 | K19: 2450 | M19: 2300 | O19: 2500 | Q19: 2450 | S19: 1750 | U19: 1750 | W19: 2450 | Y19: 2150 | AA19: 2000 | AB19: 2000 | AC19: 7.18
A20: 34 | C20: 2600 | E20: 2400 | G20: 2600 | I20: 2800 | K20: 2500 | M20: 2300 | O20: 2400 | Q20: 2900 | S20: 2900 | U20: 2200 | W20: 2800 | Y20: 2250 | AA20: 2150 | AB20: 1650 | AC20: 3.25
A21: 35 | C21: 4200 | E21: 4100 | G21: 3950 | I21: 3450 | K21: 3900 | M21: 3600 | O21: 3800 | Q21: 3900 | S21: 4250 | U21: 3350 | W21: 3700 | Y21: 3300 | AA21: 3100 | AB21: 2550 | AC21: 2.16
A22: 36 | E22: 510 | H22: 455 | I22: 510 | K22: 590 | M22: 600 | O22: 680 | Q22: 790 | S22: 850 | U22: 470 | W22: 700 | Y22: 510 | AA22: 430 | AC22: 8.84
A23: 39 | E23: 780 | H23: 710 | I23: 730 | K23: 720 | M23: 750 | O23: 820 | Q23: 840 | S23: 1150 | U23: 495 | W23: 700 | Y23: 660 | AA23: 640 | AC23: 0.55
A24: 42 | C24: 2250 | E24: 2100 | G24: 2050 | I24: 1900 | K24: 2050 | M24: 2100 | O24: 2250 | Q24: 2000 | S24: 2250 | U24: 1400 | W24: 2100 | Y24: 1850 | AA24: 1700 | AC24: 13.19
A25: 43 | C25: 1850 | E25: 2000 | G25: 1850 | I25: 1750 | K25: 1650 | M25: 1600 | O25: 1800 | Q25: 1700 | S25: 1650 | U25: 1650 | W25: 1550 | Y25: 1550 | AA25: 1400 | AC25: 2.29
A26: 44 | C26: 1350 | E26: 1400 | G26: 1400 | I26: 1300 | K26: 1250 | M26: 1100 | O26: 1200 | Q26: 1400 | S26: 1350 | U26: 1250 | W26: 1150 | Y26: 1150 | AA26: 960 | AB26: 800 | AC26: 15.69
A27: 46 | C27: 2150 | E27: 2000 | G27: 1950 | I27: 1950 | K27: 2100 | M27: 2000 | O27: 2150 | Q27: 1950 | S27: 1850 | U27: 1450 | W27: 2600 | Y27: 2250 | AA27: 1650 | AC27: 4.38
A28: 47 | C28: 3650 | E28: 3850 | G28: 3800 | I28: 3600 | K28: 3450 | M28: 3700 | O28: 4000 | Q28: 3700 | S28: 3950 | U28: 3650 | W28: 3450 | Y28: 3500 | AA28: 2750 | AC28: 8.45
A29: 50 | C29: 650 | E29: 710 | G29: 640 | I29: 640 | K29: 710 | M29: 600 | O29: 690 | Q29: 780 | S29: 670 | U29: 620 | W29: 690 | Y29: 590 | AA29: 550 | AB29: 560 | AC29: 9.38
A30: 51 | C30: 1350 | E30: 1250 | G30: 1250 | I30: 1200 | K30: 1100 | M30: 1100 | O30: 1200 | Q30: 1250 | S30: 1400 | U30: 1250 | W30: 1150 | Y30: 810 | AA30: 950 | AC30: 1.18
A31: 52 | C31: 2300 | E31: 2200 | G31: 2300 | I31: 2400 | K31: 2200 | M31: 2050 | O31: 2200 | Q31: 2100 | S31: 2150 | U31: 2100 | W31: 1850 | Y31: 1600 | AA31: 1600 | AC31: 0.37
A32: 53 | C32: 1450 | E32: 1350 | G32: 1150 | I32: 1250 | K32: 1200 | M32: 1100 | O32: 1100 | Q32: 1200 | S32: 1200 | U32: 1250 | W32: 1000 | Y32: 930 | AA32: 1100 | AB32: 950 | AC32: 1.44
A33: 55 | C33: 1550 | E33: 1450 | G33: 1500 | I33: 1350 | K33: 1250 | M33: 1200 | O33: 1300 | Q33: 1400 | S33: 1600 | U33: 1300 | W33: 1250 | Y33: 1800 | AA33: 1200 | AB33: 1300 | AC33: 0.6
A34: 57 | C34: 2500 | E34: 2300 | G34: 2400 | I34: 2650 | K34: 2750 | M34: 2550 | O34: 2850 | Q34: 2550 | S34: 2250 | U34: 2350 | W34: 2350 | Y34: 2300 | AA34: 2250 | AB34: 1450 | AC34: 1.73
A35: 58 | C35: 1200 | E35: 1200 | G35: 1100 | I35: 1050 | K35: 1150 | M35: 1200 | O35: 1300 | Q35: 1200 | S35: 1150 | U35: 890 | W35: 890 | Y35: 1000 | AA35: 910 | AB35: 795 | AC35: 2.88
A36: 59 | C36: 970 | E36: 940 | G36: 930 | I36: 910 | K36: 980 | M36: 890 | O36: 1000 | Q36: 1050 | S36: 970 | U36: 850 | W36: 950 | Y36: 880 | AA36: 770 | AB36: 795 | AC36: 13.51
A37: 60 | C37: 2750 | E37: 3050 | G37: 3000 | I37: 2900 | K37: 2750 | M37: 2800 | O37: 2900 | Q37: 2900 | S37: 2600 | U37: 2500 | W37: 2500 | Y37: 2350 | AA37: 2350 | AB37: 1950 | AC37: 8.1
A38: 61 | C38: 1200 | E38: 1250 | G38: 1200 | I38: 1250 | K38: 1300 | M38: 1250 | O38: 1400 | Q38: 1350 | S38: 1300 | U38: 1000 | W38: 1000 | Y38: 920 | AA38: 860 | AB38: 790 | AC38: 14.94
A39: 65 | C39: 3250 | E39: 3350 | G39: 3200 | I39: 3100 | K39: 3500 | M39: 3250 | O39: 3400 | Q39: 3300 | S39: 2950 | U39: 2450 | W39: 2450 | Y39: 2850 | AA39: 2650 | AC39: 0.76
A40: 67 | C40: 8600 | E40: 8900 | G40: 8800 | I40: 8900 | K40: 9800 | M40: 9800 | O40: 11000 | Q40: 10000 | S40: 8600 | U40: 9000 | W40: 7000 | Y40: 7300 | AA40: 7400 | AC40: 0.21
A41: 68 | C41: 7600 | E41: 7800 | G41: 7500 | I41: 7400 | K41: 7700 | M41: 7300 | O41: 7600 | Q41: 7500 | S41: 6400 | U41: 5400 | W41: 5700 | Y41: 6100 | AA41: 5500 | AB41: 4400 | AC41: 1.29
A42: 69 | C42: 4000 | E42: 4150 | G42: 4100 | I42: 3900 | K42: 4600 | M42: 4450 | O42: 4800 | Q42: 4700 | S42: 4050 | U42: 3200 | W42: 3250 | Y42: 2750 | AA42: 3000 | AC42: 0.51
A43: 72 | C43: 8300 | E43: 8300 | G43: 8500 | I43: 8400 | K43: 9000 | M43: 9400 | O43: 9700 | Q43: 9000 | S43: 7900 | U43: 7100 | W43: 7600 | Y43: 8100 | AA43: 7900 | AC43: 0.29
A44: 73 | C44: 9400 | E44: 9000 | G44: 8600 | I44: 8800 | K44: 9400 | M44: 9100 | O44: 9500 | Q44: 9400 | S44: 8300 | U44: 8200 | W44: 6600 | Y44: 6100 | AA44: 7800 | AC44: 0.5
A45: 74 | C45: 8900 | E45: 8900 | G45: 8400 | I45: 7600 | K45: 9100 | M45: 8600 | O45: 9000 | Q45: 8400 | S45: 7800 | U45: 8300 | W45: 7700 | Y45: 6300 | AA45: 7800 | AB45: 5900 | AC45: 0.98
A46: 76 | C46: 7600 | E46: 8000 | G46: 8100 | I46: 7200 | K46: 8000 | M46: 7400 | O46: 8400 | Q46: 7800 | S46: 6800 | U46: 7100 | W46: 6200 | Y46: 5400 | AA46: 5600 | AC46: 0.94
A47: 80 | C47: 3000 | E47: 3050 | G47: 3050 | I47: 3250 | K47: 3350 | M47: 3200 | O47: 3500 | Q47: 3900 | S47: 3550 | U47: 3550 | W47: 2900 | Y47: 2700 | AA47: 2500 | AB47: 2700 | AC47: 7.58
A48: 81 | C48: 5300 | E48: 5100 | G48: 5200 | I48: 5000 | K48: 5300 | M48: 5200 | O48: 5400 | Q48: 4950 | S48: 4350 | U48: 4350 | W48: 4600 | Y48: 4350 | AA48: 4300 | AB48: 3700 | AC48: 4.88
A49: 82 | C49: 3800 | E49: 4000 | G49: 4050 | I49: 4550 | K49: 5400 | M49: 6400 | O49: 6700 | Q49: 6300 | S49: 6200 | U49: 6200 | W49: 6200 | Y49: 5700 | AA49: 3700 | AC49: 1.2
A50: 84 | C50: 11800 | E50: 12000 | G50: 11500 | I50: 10700 | K50: 11300 | M50: 10600 | O50: 10900 | Q50: 10800 | S50: 9400 | U50: 8700 | W50: 6900 | Y50: 8800 | AA50: 7800 | AB50: 6500 | AC50: 3.84
A51: 87 | C51: 9400 | E51: 9100 | G51: 8500 | I51: 8000 | K51: 7600 | M51: 7200 | O51: 7400 | Q51: 7900 | S51: 6900 | U51: 7000 | W51: 6000 | Y51: 6400 | AA51: 4400 | AB51: 5000 | AC51: 1.65
A52: 89 | C52: 3500 | E52: 3350 | G52: 3550 | I52: 3450 | K52: 3650 | M52: 3550 | O52: 3650 | Q52: 3950 | S52: 3300 | U52: 3550 | W52: 3450 | Y52: 2800 | AA52: 2600 | AC52: 2.54
A53: 90 | C53: 5400 | E53: 5000 | G53: 4750 | I53: 4650 | K53: 4950 | M53: 4900 | O53: 5500 | Q53: 5300 | S53: 4950 | U53: 4500 | W53: 4550 | Y53: 3600 | AA53: 4150 | AB53: 3200 | AC53: 2.35
A54: 91 | C54: 6100 | E54: 5500 | G54: 5400 | I54: 6100 | K54: 5800 | M54: 5800 | O54: 6400 | Q54: 6100 | S54: 5900 | U54: 4500 | W54: 3900 | Y54: 4400 | AA54: 4200 | AC54: 2.61
A55: 94 | C55: 5600 | E55: 5100 | G55: 4750 | I55: 4950 | K55: 5300 | M55: 4950 | O55: 5500 | Q55: 5500 | S55: 5200 | U55: 4450 | W55: 4450 | Y55: 4050 | AA55: 3200 | AC55: 3.53
A56: 95 | C56: 6400 | G56: 5900 | I56: 5900 | K56: 6200 | M56: 5800 | O56: 5500 | Q56: 6100 | S56: 5500 | U56: 6000 | W56: 6000 | Y56: 5500 | AA56: 4750 | AC56: 1.38
A57: 98 | C57: 6800 | E57: 6600 | G57: 6200 | I57: 6400 | K57: 6200 | M57: 6400 | O57: 6300 | Q57: 6500 | S57: 5500 | U57: 4450 | W57: 4450 | Y57: 4050 | AA57: 5100 | AB57: 5500 | AC57: 0.92
A58: 99 | C58: 5500 | E58: 5200 | G58: 4800 | I58: 4950 | K58: 4900 | M58: 4900 | O58: 4900 | Q58: 5500 | S58: 4700 | U58: 4800 | W58: 4450 | Y58: 4050 | AA58: 5100 | AB58: 5500 | AC58: 1.07
A59: 106 | C59: 3950 | E59: 3900 | G59: 3650 | I59: 3850 | K59: 3950 | M59: 3750 | O59: 3550 | Q59: 3750 | S59: 3800 | U59: 3250 | W59: 3550 | Y59: 2950 | AA59: 2450 | AB59: 3050 | AC59: 17.39
A60: 108 | E60: 1500 | I60: 1450 | M60: 1550 | Q60: 1550 | S60: 1650 | U60: 1200 | W60: 910 | Y60: 900 | AA60: 910 | AB60: 830 | AC60: 3.82
A61: 109 | E61: 2650 | I61: 2500 | M61: 2250 | Q61: 2250 | S61: 2600 | U61: 1500 | W61: 2250 | Y61: 2250 | AA61: 2100 | AC61: 0.41
A62: 110 | C62: 790 | E62: 810 | G62: 700 | I62: 620 | K62: 670 | M62: 700 | O62: 650 | Q62: 680 | S62: 770 | U62: 620 | W62: 650 | Y62: 560 | AA62: 475 | AC62: 4.17
A63: 111 | C63: 1050 | E63: 1050 | G63: 1000 | I63: 900 | K63: 910 | M63: 930 | O63: 880 | Q63: 940 | S63: 970 | U63: 870 | W63: 800 | Y63: 690 | AA63: 700 | AB63: 600 | AC63: 7.35
A64: 112 | C64: 860 | E64: 890 | G64: 800 | I64: 730 | K64: 710 | M64: 740 | O64: 770 | Q64: 770 | S64: 940 | U64: 620 | W64: 560 | Y64: 550 | AA64: 490 | AB64: 430 | AC64: 2.8
A65: 113 | C65: 1100 | E65: 1150 | G65: 1000 | I65: 870 | K65: 900 | M65: 960 | O65: 950 | Q65: 970 | S65: 1100 | U65: 700 | W65: 720 | Y65: 690 | AA65: 620 | AC65: 2.71
A66: 114 | C66: 910 | E66: 920 | G66: 730 | I66: 660 | K66: 710 | M66: 770 | O66: 760 | Q66: 730 | S66: 830 | U66: 630 | W66: 710 | Y66: 570 | AA66: 520 | AB66: 380 | AC66: 2.18
A67: 115 | C67: 1600 | E67: 1450 | G67: 1450 | I67: 1450 | K67: 1400 | M67: 1400 | O67: 1500 | Q67: 1700 | S67: 1950 | U67: 1350 | W67: 1350 | Y67: 1250 | AA67: 1600 | AB67: 1600 | AC67: 2.2
A68: 116 | C68: 1150 | E68: 1150 | G68: 1200 | I68: 990 | K68: 1000 | M68: 1050 | O68: 1050 | Q68: 1250 | S68: 1400 | U68: 930 | W68: 1100 | Y68: 950 | AA68: 680 | AB68: 770 | AC68: 6.81
A69: 117 | C69: 4400 | E69: 4050 | G69: 3750 | I69: 3800 | K69: 4050 | M69: 3950 | O69: 4150 | Q69: 4250 | S69: 3950 | U69: 3300 | W69: 3300 | Y69: 2950 | AA69: 2950 | AB69: 2550 | AC69: 3.42
A70: 118 | C70: 3600 | E70: 3350 | G70: 3100 | I70: 3250 | K70: 3350 | M70: 3350 | O70: 3550 | Q70: 3600 | S70: 3500 | U70: 2950 | W70: 2950 | Y70: 2650 | AA70: 2550 | AC70: 4.76
A71: 119 | C71: 2500 | E71: 2600 | G71: 2650 | I71: 2400 | K71: 2500 | M71: 2350 | O71: 2500 | Q71: 2500 | S71: 2150 | U71: 1950 | W71: 1550 | Y71: 1950 | AA71: 1850 | AB71: 1650 | AC71: 13.31
A72: 121 | C72: 3450 | E72: 3650 | G72: 3400 | I72: 3500 | K72: 3650 | M72: 3650 | O72: 3800 | Q72: 3950 | S72: 3750 | U72: 3550 | W72: 3550 | Y72: 2800 | AA72: 1800 | AB72: 2500 | AC72: 7.44
A73: 122 | E73: 620 | G73: 660 | I73: 560 | K73: 570 | M73: 620 | O73: 650 | Q73: 710 | S73: 750 | U73: 540 | W73: 660 | Y73: 510 | AA73: 495 | AB73: 445 | AC73: 5.88
A74: 124 | C74: 3250 | E74: 3100 | G74: 2950 | I74: 3050 | K74: 3150 | M74: 3000 | O74: 3150 | Q74: 3400 | S74: 3200 | U74: 2950 | W74: 2950 | Y74: 2650 | AA74: 2650 | AC74: 0.5
A75: 125 | E75: 180 | G75: 195 | I75: 205 | K75: 210 | M75: 215 | O75: 225 | Q75: 225 | S75: 265 | U75: 175 | W75: 220 | Y75: 185 | AA75: 195 | AB75: 170 | AC75: 1.93
A76: 126 | E76: 325 | G76: 345 | I76: 350 | K76: 355 | M76: 390 | O76: 355 | Q76: 415 | S76: 480 | U76: 435 | W76: 510 | Y76: 470 | AA76: 445 | AB76: 305 | AC76: 0.99
A77: 128 | C77: 280 | E77: 265 | G77: 255 | I77: 285 | K77: 270 | M77: 300 | O77: 325 | Q77: 355 | S77: 410 | U77: 385 | W77: 445 | Y77: 405 | AA77: 275 | AB77: 315 | AC77: 7.2
A78: 129 | C78: 185 | E78: 180 | G78: 170 | I78: 200 | K78: 200 | M78: 230 | O78: 245 | Q78: 245 | S78: 260 | U78: 230 | W78: 275 | Y78: 255 | AA78: 240 | AC78: 12.77
A79: 130 | C79: 2100 | E79: 2000 | G79: 1900 | I79: 1700 | K79: 1750 | M79: 1850 | O79: 2000 | Q79: 1950 | S79: 2000 | U79: 1700 | W79: 1650 | Y79: 1450 | AA79: 1150 | AC79: 0.2
A80: 131 | C80: 2200 | E80: 2000 | G80: 2100 | I80: 1750 | K80: 1850 | M80: 1900 | O80: 2050 | Q80: 2000 | S80: 2000 | U80: 1750 | W80: 1550 | Y80: 1350 | AA80: 1400 | AC80: 0.47
A81: 134 | C81: 2600 | E81: 2400 | G81: 2300 | I81: 2300 | K81: 2100 | M81: 2050 | O81: 2200 | Q81: 2400 | S81: 2100 | U81: 2400 | W81: 2450 | Y81: 2450 | AA81: 2000 | AC81: 0.34
A82: 135 | C82: 4150 | E82: 4150 | G82: 4000 | I82: 4050 | K82: 3700 | M82: 3850 | O82: 4600 | Q82: 4200 | S82: 4100 | U82: 4100 | W82: 5100 | Y82: 3900 | AA82: 3300 | AC82: 0.06
A83: 136 | C83: 2800 | E83: 2750 | G83: 2600 | I83: 2350 | K83: 2350 | M83: 2350 | O83: 2550 | Q83: 2450 | S83: 2750 | U83: 2200 | W83: 2500 | Y83: 2550 | AA83: 2250 | AC83: 0.1
A84: 137 | C84: 2500 | E84: 2350 | G84: 2450 | I84: 2050 | K84: 2050 | M84: 2250 | O84: 2450 | Q84: 2850 | S84: 3350 | U84: 1050 | W84: 1050 | Y84: 1000 | AA84: 1400 | AC84: 0.57
A85: 142 | E85: 1600 | I85: 1300 | M85: 1450 | Q85: 1700 | S85: 1950 | U85: 1300 | W85: 1250 | Y85: 1200 | AA85: 1300 | AC85: 0.16
A86: 144 | C86: 4400 | E86: 4600 | G86: 4900 | I86: 4650 | K86: 4400 | M86: 4050 | O86: 3750 | Q86: 4000 | S86: 4200 | U86: 3950 | W86: 3900 | Y86: 3200 | AA86: 3150 | AB86: 3150 | AC86: 5.45
A87: 149 | C87: 13400 | E87: 12700 | G87: 12000 | I87: 11600 | K87: 11800 | M87: 11000 | O87: 10600 | Q87: 11900 | S87: 10400 | U87: 9200 | W87: 10000 | Y87: 8900 | AA87: 8500 | AB87: 8100 | AC87: 18.74
A88: 159 | C88: 13500 | E88: 12800 | G88: 12200 | I88: 11700 | K88: 11400 | M88: 11800 | O88: 12400 | Q88: 11600 | S88: 10700 | U88: 9400 | W88: 8500 | Y88: 8500 | AA88: 8700 | AC88: 1.49
A89: 161 | C89: 13100 | E89: 12600 | G89: 12300 | I89: 11800 | K89: 11700 | M89: 12200 | O89: 13300 | Q89: 12500 | S89: 10900 | U89: 10300 | W89: 9800 | Y89: 8200 | AA89: 9650 | AB89: 8700 | AC89: 1.27
A90: 163 | C90: 14200 | E90: 13900 | G90: 14000 | I90: 13300 | K90: 12600 | M90: 13000 | O90: 14100 | Q90: 13500 | S90: 12200 | U90: 13600 | W90: 13500 | Y90: 13200 | AA90: 13100 | AC90: 0.98
A91: 167 | C91: 16900 | E91: 16400 | G91: 16200 | I91: 16100 | K91: 15900 | M91: 16400 | O91: 18000 | Q91: 18100 | S91: 15000 | U91: 13900 | W91: 13500 | Y91: 14400 | AA91: 12750 | AC91: 0.62
A92: 171 | C92: 14400 | E92: 13400 | G92: 13300 | I92: 14000 | K92: 13400 | M92: 12600 | O92: 12400 | Q92: 11600 | S92: 10100 | U92: 9200 | W92: 9400 | Y92: 9500 | AA92: 8300 | AC92: 0.32
A93: 172 | C93: 7700 | E93: 7600 | G93: 8000 | I93: 8100 | K93: 7700 | M93: 8000 | O93: 8300 | Q93: 8300 | S93: 5800 | U93: 6200 | W93: 6300 | Y93: 6800 | AA93: 6100 | AB93: 5200 | AC93: 2.13
A94: 173 | C94: 18800 | G94: 20100 | I94: 20300 | K94: 19500 | M94: 18500 | O94: 19400 | Q94: 18900 | S94: 13900 | U94: 13100 | W94: 13600 | Y94: 13400 | AA94: 12650 | AB94: 12200 | AC94: 1.15
A95: 176 | C95: 9300 | E95: 8800 | G95: 8400 | I95: 8900 | K95: 8900 | M95: 8100 | O95: 9100 | Q95: 8300 | S95: 7300 | U95: 6700 | W95: 6700 | Y95: 5600 | AA95: 5500 | AB95: 5400 | AC95: 0.31
A96: 177 | C96: 8500 | E96: 8000 | G96: 8100 | I96: 8100 | K96: 8000 | M96: 7700 | O96: 7400 | Q96: 6600 | S96: 5800 | U96: 5800 | W96: 5800 | Y96: 6300 | AA96: 5700 | AC96: 0.43
A97: 178 | C97: 11500 | E97: 10400 | G97: 9800 | I97: 10000 | K97: 10000 | M97: 10200 | O97: 10500 | Q97: 9500 | S97: 8300 | U97: 8000 | W97: 8000 | Y97: 9800 | AA97: 7600 | AC97: 0.72
A98: 179 | C98: 8600 | E98: 7800 | G98: 7600 | I98: 8000 | K98: 8000 | M98: 8300 | O98: 8600 | Q98: 8700 | S98: 7600 | U98: 6800 | W98: 6300 | Y98: 7000 | AA98: 6200 | AC98: 0.61
A99: 182 | B99: 9100 | E99: 9500 | G99: 9500 | I99: 9100 | K99: 9600 | M99: 9000 | O99: 9550 | Q99: 9900 | S99: 10300 | U99: 8400 | W99: 7500 | Y99: 6800 | AA99: 7200 | AB99: 8300 | AC99: 1.95
A100: 183 | C100: 5900 | E100: 5700 | G100: 5500 | I100: 5300 | K100: 5600 | M100: 5200 | O100: 5200 | Q100: 5500 | S100: 5600 | U100: 4450 | W100: 4300 | Y100: 3550 | AA100: 4050 | AB100: 7000 | AC100: 1.79
A101: 185 | C101: 9300 | E101: 8200 | G101: 8600 | I101: 7500 | K101: 8000 | M101: 7500 | O101: 8600 | Q101: 9200 | S101: 9200 | U101: 6900 | W101: 5000 | Y101: 6500 | AA101: 7600 | AB101: 5200 | AC101: 1.45
A102: 187 | C102: 5900 | E102: 6000 | G102: 5700 | I102: 6100 | K102: 7200 | M102: 7200 | O102: 7700 | Q102: 8400 | S102: 8500 | U102: 5500 | W102: 5800 | Y102: 6000 | AA102: 6900 | AC102: 1.54
A103: 188 | C103: 6900 | E103: 6600 | G103: 6200 | I103: 5600 | K103: 5800 | M103: 6000 | O103: 6300 | Q103: 6100 | S103: 5900 | U103: 5200 | W103: 5200 | Y103: 5400 | AA103: 4950 | AC103: 4.67
A104: 191 | C104: 8100 | E104: 7600 | G104: 7100 | I104: 6800 | K104: 7000 | M104: 6700 | O104: 6500 | Q104: 6800 | S104: 6500 | U104: 5200 | W104: 5100 | Y104: 5900 | AA104: 4000 | AB104: 3600 | AC104: 2.7
A105: 193 | C105: 4100 | E105: 3200 | G105: 3550 | K105: 3550 | M105: 3300 | O105: 3450 | Q105: 3450 | S105: 3550 | U105: 3450 | W105: 3550 | Y105: 2900 | AA105: 2650 | AC105: 6.83
A106: 196 | C106: 2150 | E106: 1950 | G106: 2050 | I106: 2000 | K106: 2050 | M106: 1950 | O106: 2200 | Q106: 1850 | S106: 2100 | U106: 1750 | W106: 1150 | Y106: 1450 | AA106: 1500 | AB106: 1300 | AC106: 9.15
A107: 200 | C107: 1600 | E107: 1550 | G107: 1650 | I107: 1650 | K107: 1500 | M107: 1250 | O107: 1300 | Q107: 1350 | S107: 1550 | U107: 1150 | W107: 830 | Y107: 1100 | AA107: 1100 | AB107: 900 | AC107: 13.81
A108: 201 | C108: 230 | E108: 235 | G108: 265 | I108: 250 | K108: 235 | M108: 205 | O108: 225 | Q108: 250 | S108: 295 | U108: 315 | W108: 255 | Y108: 290 | AA108: 260 | AB108: 350 | AC108: 18.37
A109: 202 | C109: 35 | G109: 45 | I109: 55 | K109: 55 | M109: 45 | O109: 50 | Q109: 55 | S109: 65 | U109: 80 | W109: 85 | Y109: 90 | AA109: 90 | AB109: 145 | AC109: 16.97
A110: 203 | C110: 200 | E110: 215 | G110: 230 | I110: 210 | K110: 230 | M110: 235 | O110: 200 | Q110: 210 | S110: 275 | U110: 240 | W110: 220 | Y110: 220 | AA110: 200 | AB110: 215 | AC110: 12.98
A111: 206 | C111: 590 | E111: 570 | G111: 610 | I111: 530 | K111: 540 | M111: 500 | O111: 540 | Q111: 530 | S111: 730 | U111: 680 | W111: 590 | Y111: 570 | AA111: 530 | AB111: 440 | AC111: 1.06
A112: 207 | C112: 1100 | E112: 1250 | G112: 1400 | I112: 1200 | K112: 1150 | M112: 1200 | O112: 1400 | Q112: 1100 | S112: 1400 | U112: 1250 | W112: 960 | Y112: 810 | AA112: 860 | AC112: 4.59
A113: 208 | B113: 970 | E113: 1100 | G113: 1100 | I113: 1000 | K113: 1050 | M113: 950 | O113: 1100 | Q113: 780 | S113: 1150 | U113: 900 | W113: 770 | Y113: 820 | AA113: 570 | AB113: 770 | AC113: 5.06
A114: 209 | C114: 1250 | E114: 1400 | G114: 1350 | I114: 1350 | K114: 1300 | M114: 1200 | O114: 1250 | Q114: 1050 | S114: 1350 | U114: 1050 | W114: 1250 | Y114: 1050 | AA114: 840 | AB114: 1100 | AC114: 8.05
A115: 210 | B115: 330 | E115: 305 | G115: 320 | I115: 335 | K115: 375 | M115: 395 | O115: 465 | Q115: 410 | S115: 520 | U115: 440 | W115: 350 | Y115: 400 | AA115: 290 | AB115: 295 | AC115: 16.49
A116: 212 | C116: 3000 | E116: 2950 | G116: 3100 | I116: 3100 | K116: 2900 | M116: 2700 | O116: 2650 | Q116: 2350 | S116: 1900 | U116: 1700 | W116: 1600 | Y116: 1600 | AA116: 1600 | AC116: 2.54
A117: 215 | C117: 4050 | E117: 3800 | G117: 4050 | I117: 4450 | K117: 4650 | M117: 4450 | O117: 4700 | Q117: 4750 | S117: 4250 | U117: 3400 | W117: 2900 | Y117: 3250 | AA117: 2500 | AB117: 2750 | AC117: 2.88
A118: 216 | C118: 6000 | G118: 6100 | I118: 5600 | K118: 5300 | M118: 5000 | O118: 5000 | Q118: 5500 | S118: 5400 | U118: 3900 | W118: 3450 | Y118: 2700 | AA118: 3150 | AB118: 3800 | AC118: 1.14
A119: 217 | C119: 3800 | E119: 3700 | G119: 4000 | I119: 4050 | K119: 3500 | M119: 3100 | O119: 3250 | Q119: 3350 | S119: 3400 | U119: 2600 | W119: 2150 | Y119: 1750 | AA119: 2100 | AB119: 2350 | AC119: 1.07
A120: 218 | C120: 3300 | E120: 3150 | G120: 3850 | I120: 3300 | K120: 3050 | M120: 2900 | O120: 2950 | Q120: 3000 | S120: 3000 | U120: 2300 | W120: 1950 | Y120: 2050 | AA120: 1850 | AB120: 2200 | AC120: 9.29
A121: 219 | C121: 4550 | E121: 4700 | G121: 5600 | I121: 5200 | K121: 5000 | M121: 4800 | O121: 5200 | Q121: 5400 | S121: 4850 | U121: 3500 | W121: 3050 | Y121: 2800 | AA121: 2600 | AB121: 3150 | AC121: 1.27
A122: 220 | C122: 1000 | E122: 980 | G122: 1050 | I122: 1050 | K122: 1250 | M122: 1150 | O122: 1300 | Q122: 1200 | S122: 1300 | U122: 1200 | W122: 940 | Y122: 1000 | AA122: 840 | AC122: 0.31
A123: 223 | C123: 750 | E123: 830 | G123: 900 | I123: 860 | K123: 1000 | M123: 900 | O123: 960 | Q123: 910 | S123: 1050 | U123: 950 | W123: 730 | Y123: 730 | AA123: 680 | AB123: 880 | AC123: 16.01
A124: 225 | C124: 2400 | E124: 2400 | G124: 2550 | I124: 2700 | K124: 2600 | M124: 2650 | O124: 2750 | Q124: 2850 | S124: 2850 | U124: 2900 | W124: 2650 | Y124: 2100 | AA124: 2200 | AC124: 1.99
A125: 226 | B125: 10000 | E125: 9100 | G125: 8900 | I125: 8500 | K125: 9000 | M125: 8700 | O125: 9300 | Q125: 8200 | S125: 7900 | U125: 7400 | W125: 7900 | Y125: 5200 | AA125: 7800 | AC125: 1.35
A126: 232 | C126: 1700 | E126: 1500 | G126: 1500 | I126: 1350 | K126: 1500 | M126: 1650 | O126: 1850 | Q126: 1550 | S126: 1650 | U126: 1600 | W126: 1050 | Y126: 1500 | AA126: 1300 | AC126: 0.11
A127: 233 | C127: 1300 | E127: 1150 | G127: 1200 | I127: 1400 | K127: 1500 | M127: 1400 | O127: 1700 | Q127: 1350 | S127: 1850 | U127: 1850 | W127: 1500 | Y127: 1450 | AA127: 1200 | AC127: 0.14
A128: 234 | C128: 1150 | E128: 1050 | G128: 1050 | I128: 1100 | K128: 1150 | M128: 1200 | O128: 1450 | Q128: 1250 | S128: 1400 | U128: 1150 | W128: 970 | Y128: 1050 | AA128: 1000 | AC128: 0.5
A129: 235 | C129: 3350 | E129: 2700 | G129: 3150 | I129: 3250 | K129: 3450 | M129: 3400 | O129: 3400 | Q129: 3300 | S129: 3350 | U129: 3150 | W129: 3150 | Y129: 2850 | AA129: 2800 | AB129: 2500 | AC129: 13.71
A130: 236 | C130: 1800 | E130: 1600 | G130: 1500 | I130: 1600 | K130: 1700 | M130: 1700 | O130: 1600 | Q130: 1700 | S130: 1600 | U130: 1700 | W130: 1550 | Y130: 1300 | AA130: 1300 | AC130: 0.35
A131: 237 | C131: 1750 | E131: 1500 | G131: 1400 | I131: 1300 | K131: 1350 | M131: 1450 | O131: 1400 | Q131: 1450 | S131: 1200 | U131: 1450 | W131: 1350 | Y131: 1200 | AA131: 1400 | AB131: 1250 | AC131: 0.23
A132: 238 | C132: 1850 | E132: 1600 | G132: 1650 | I132: 1700 | K132: 1850 | M132: 2150 | O132: 2400 | Q132: 1950 | S132: 2050 | U132: 2150 | W132: 1750 | Y132: 1500 | AA132: 1300 | AB132: 1550 | AC132: 1.78
A133: 239 | C133: 3050 | E133: 3050 | G133: 2900 | I133: 2900 | K133: 2900 | M133: 2950 | O133: 2900 | Q133: 2950 | S133: 3050 | U133: 3150 | W133: 2850 | Y133: 2450 | AA133: 2700 | AC133: 0.59
A134: 240 | C134: 7500 | E134: 7800 | G134: 7300 | I134: 6700 | K134: 6900 | M134: 6900 | O134: 7400 | Q134: 7500 | S134: 7500 | U134: 6700 | W134: 6700 | Y134: 5600 | AA134: 6200 | AB134: 4150 | AC134: 5.51
A135: 244 | E135: 9300 | G135: 8800 | I135: 8600 | K135: 8700 | M135: 9200 | O135: 9500 | Q135: 9100 | S135: 10000 | U135: 10000 | W135: 7800 | Y135: 9500 | AA135: 7100 | AC135: 0.18
A136: 245 | C136: 15100 | E136: 13700 | G136: 13400 | I136: 15400 | K136: 14700 | M136: 15300 | O136: 15400 | Q136: 15400 | S136: 15400 | U136: 15400 | W136: 15400 | Y136: 17600 | AA136: 15600 | AC136: 0.22
A137: 246 | C137: 21100 | E137: 22400 | G137: 22900 | I137: 22500 | K137: 23000 | M137: 23900 | O137: 26000 | Q137: 24600 | S137: 24100 | U137: 24100 | W137: 21200 | Y137: 26000 | AA137: 21500 | AC137: 0.12
A138: 248 | B138: 11200 | C138: 11200 | E138: 10400 | G138: 9800 | I138: 9300 | K138: 9800 | M138: 9300 | O138: 9800 | Q138: 9700 | S138: 12100 | U138: 7200 | W138: 6500 | Y138: 6400 | AA138: 4900 | AB138: 5100 | AC138: 3.57
A139: 250 | C139: 23200 | E139: 22900 | G139: 23300 | I139: 22200 | K139: 22500 | M139: 22900 | O139: 24000 | Q139: 22400 | S139: 19800 | U139: 19800 | W139: 19800 | Y139: 20800 | AA139: 21500 | AC139: 0.83
A140: 251 | C140: 19700 | E140: 18600 | G140: 17800 | I140: 19100 | K140: 20100 | M140: 19800 | O140: 21500 | Q140: 22400 | S140: 22400 | U140: 22400 | W140: 19100 | Y140: 19700 | AA140: 14000 | AC140: 0.21
A141: 252 | C141: 15000 | E141: 16000 | G141: 16100 | I141: 15800 | K141: 15800 | M141: 15900 | O141: 17100 | Q141: 16300 | S141: 16300 | U141: 16300 | W141: 16300 | Y141: 17100 | AA141: 14000 | AC141: 0.71
A142: 253 | C142: 12700 | E142: 12800 | G142: 15100 | I142: 14400 | K142: 14500 | M142: 15100 | O142: 16500 | Q142: 16700 | S142: 17300 | U142: 17300 | W142: 16100 | Y142: 17200 | AA142: 17500 | AC142: 0.53
A143: 254 | C143: 11200 | E143: 10200 | G143: 11000 | I143: 12400 | K143: 13100 | M143: 12900 | O143: 13100 | Q143: 12100 | S143: 13100 | U143: 12300 | W143: 13900 | Y143: 20500 | AA143: 14200 | AC143: 0.26
A144: 255 | C144: 13200 | E144: 11500 | G144: 11900 | I144: 15300 | K144: 15600 | M144: 16500 | O144: 17700 | Q144: 17100 | S144: 17100 | U144: 17100 | W144: 17100 | Y144: 17300 | AA144: 18400 | AC144: 0.33
A145: 256 | C145: 14600 | E145: 16500 | G145: 15800 | I145: 16300 | K145: 17000 | M145: 19000 | O145: 21000 | Q145: 19200 | S145: 16900 | U145: 16900 | W145: 18000 | Y145: 17100 | AA145: 16400 | AC145: 0.71
A146: 257 | C146: 12100 | E146: 12200 | G146: 13700 | I146: 15100 | K146: 15600 | M146: 14900 | O146: 15000 | Q146: 16000 | S146: 13100 | U146: 13000 | W146: 15200 | Y146: 11700 | AA146: 11000 | AC146: 0.35
A147: 259 | B147: 11800 | C147: 10900 | E147: 10200 | G147: 9600 | I147: 9900 | K147: 10100 | M147: 9700 | O147: 9100 | Q147: 9800 | S147: 9300 | U147: 8100 | W147: 7100 | Y147: 6600 | AA147: 6000 | AC147: 0.71
A148: 261 | C148: 10700 | E148: 9700 | G148: 9100 | I148: 8800 | K148: 9100 | M148: 8600 | O148: 8300 | Q148: 9600 | S148: 7100 | U148: 5900 | W148: 5300 | Y148: 4700 | AA148: 4750 | AC148: 0.63
A149: 263 | C149: 5200 | E149: 5000 | G149: 4600 | I149: 3700 | K149: 4050 | M149: 4100 | O149: 4450 | Q149: 4400 | S149: 5300 | U149: 4150 | W149: 4600 | Y149: 3600 | AA149: 3500 | AC149: 1.17
A150: 265 | C150: 18100 | E150: 17100 | G150: 17600 | I150: 15900 | K150: 16400 | M150: 15400 | O150: 16300 | Q150: 15800 | S150: 15700 | U150: 14500 | W150: 14000 | Y150: 10900 | AA150: 12000 | AB150: 10500 | AC150: 1.04
A151: 267 | E151: 12800 | G151: 12600 | I151: 12000 | K151: 13000 | M151: 12400 | O151: 12800 | Q151: 11300 | S151: 12600 | U151: 11400 | W151: 11100 | Y151: 10000 | AA151: 9600 | AC151: 1.08
A152: 269 | B152: 2500 | D152: 2650 | F152: 2450 | H152: 2350 | J152: 2400 | L152: 2250 | O152: 2500 | Q152: 2700 | S152: 2750 | U152: 2100 | W152: 2400 | Y152: 2050 | AA152: 1900 | AB152: 1700 | AC152: 7.22
A153: 271 | D153: 4750 | F153: 4350 | H153: 4500 | J153: 4100 | L153: 3750 | O153: 4250 | Q153: 3800 | S153: 4200 | U153: 3450 | W153: 3700 | Y153: 3450 | AA153: 2850 | AB153: 2800 | AC153: 5.05
A154: 272 | B154: 2550 | E154: 2800 | F154: 2600 | H154: 2600 | J154: 2750 | L154: 2750 | O154: 2800 | Q154: 3000 | S154: 2950 | U154: 2000 | W154: 2550 | Y154: 2050 | AA154: 1900 | AB154: 1800 | AC154: 4.02
A155: 275 | B155: 9000 | F155: 8400 | H155: 7700 | J155: 7100 | L155: 7000 | O155: 7300 | Q155: 8000 | S155: 7100 | U155: 7100 | W155: 7200 | Y155: 7500 | AA155: 6100 | AB155: 5800 | AC155: 7.71
A156: 276 | B156: 6100 | D156: 5700 | F156: 5300 | H156: 5100 | J156: 4800 | L156: 4550 | O156: 5000 | Q156: 4750 | S156: 4650 | U156: 3700 | W156: 3650 | Y156: 4200 | AA156: 3800 | AB156: 3350 | AC156: 1.63
A157: 277 | B157: 13800 | F157: 13000 | H157: 12100 | J157: 12000 | L157: 11800 | O157: 13200 | Q157: 11800 | S157: 12500 | U157: 12600 | W157: 11000 | Y157: 10000 | AA157: 10800 | AC157: 2.01
A158: 278 | B158: 16900 | D158: 16500 | F158: 15100 | H158: 14500 | J158: 15100 | L158: 14300 | O158: 16000 | Q158: 14900 | S158: 15000 | U158: 14500 | W158: 12900 | Y158: 9500 | AA158: 12000 | AB158: 11400 | AC158: 1.69
A159: 279 | D159: 31000 | F159: 29000 | H159: 28500 | J159: 30000 | L159: 31000 | O159: 31000 | Q159: 28000 | S159: 28400 | U159: 26300 | W159: 25300 | Y159: 24500 | AA159: 15300 | AB159: 16100 | AC159: 3.95
A160: 281 | B160: 6500 | D160: 6200 | F160: 5500 | H160: 5300 | J160: 5600 | L160: 5400 | O160: 5500 | Q160: 5600 | S160: 5100 | U160: 4950 | W160: 4900 | Y160: 4600 | AA160: 4100 | AC160: 8.22
A161: 287 | B161: 1350 | D161: 1450 | F161: 1350 | H161: 1250 | J161: 1300 | L161: 1400 | O161: 1550 | Q161: 1850 | S161: 1550 | U161: 1550 | W161: 1400 | Y161: 1300 | AA161: 1250 | AC161: 7.14
A162: 290 | B162: 4050 | D162: 4150 | F162: 3750 | H162: 3750 | J162: 3950 | L162: 4150 | O162: 4250 | Q162: 4450 | S162: 4100 | U162: 3400 | W162: 3750 | Y162: 3000 | AA162: 2750 | AB162: 2400 | AC162: 0.51
A163: 291 | B163: 7700 | D163: 7500 | F163: 7100 | H163: 7100 | J163: 7000 | L163: 7300 | O163: 7600 | Q163: 7300 | S163: 6500 | U163: 6500 | W163: 6700 | Y163: 5800 | AA163: 5600 | AB163: 5300 | AC163: 1.14
A164: 294 | B164: 10900 | D164: 10100 | F164: 9700 | H164: 9300 | J164: 9700 | L164: 10000 | O164: 10400 | Q164: 10300 | S164: 9200 | U164: 9000 | W164: 8400 | Y164: 8400 | AA164: 7400 | AC164: 0.81
A165: 297 | B165: 4600 | D165: 4900 | F165: 4900 | H165: 4000 | J165: 4750 | L165: 5100 | O165: 4650 | Q165: 5200 | S165: 4550 | U165: 2850 | W165: 2450 | Y165: 2400 | AA165: 1950 | AC165: 0.62
A166: 298 | B166: 2550 | D166: 2700 | F166: 2600 | H166: 2550 | J166: 2750 | L166: 2650 | O166: 2750 | Q166: 3100 | S166: 2850 | U166: 2350 | W166: 2150 | Y166: 2650 | AA166: 2300 | AB166: 2350 | AC166: 3.5
A167: 300 | B167: 2000 | D167: 2000 | F167: 2000 | H167: 1850 | J167: 1950 | L167: 2100 | O167: 2150 | Q167: 2600 | S167: 2100 | U167: 1950 | W167: 1700 | Y167: 1850 | AA167: 1750 | AC167: 2.02
A168: 302 | B168: 7000 | D168: 7100 | F168: 6600 | H168: 6300 | J168: 6500 | L168: 6500 | O168: 6300 | Q168: 6600 | S168: 6200 | U168: 5900 | W168: 5700 | Y168: 4100 | AA168: 4500 | AC168: 0.94
A169: 303 | B169: 7000 | D169: 6600 | F169: 6000 | H169: 6000 | J169: 6300 | L169: 5900 | O169: 6500 | Q169: 6300 | S169: 6300 | U169: 6200 | W169: 5900 | Y169: 5600 | AA169: 4250 | AC169: 0.13
A170: 304 | D170: 25500 | F170: 23900 | H170: 20500 | J170: 24000 | L170: 24500 | O170: 25200 | Q170: 25000 | S170: 22800 | U170: 21800 | W170: 19300 | Y170: 18300 | AA170: 15200 | AB170: 14900 | AC170: 6
A171: 309 | B171: 25500 | D171: 25000 | F171: 25600 | H171: 23600 | J171: 21900 | L171: 24300 | O171: 24300 | Q171: 22400 | S171: 22700 | U171: 20600 | W171: 18600 | Y171: 19700 | AA171: 17500 | AC171: 0.56
A172: 311 | B172: 24800 | D172: 23900 | F172: 22200 | H172: 21300 | J172: 22300 | L172: 24500 | O172: 26300 | Q172: 22700 | S172: 23900 | U172: 19700 | W172: 16900 | Y172: 18100 | AA172: 18400 | AC172: 0.98
A173: 313 | B173: 27000 | D173: 26500 | F173: 25000 | H173: 26000 | J173: 25000 | L173: 24300 | O173: 24300 | Q173: 24400 | S173: 22600 | U173: 21100 | W173: 20100 | Y173: 21100 | AA173: 19600 | AB173: 16200 | AC173: 2.31
A174: 315 | B174: 26000 | D174: 27000 | F174: 25500 | H174: 24500 | J174: 25500 | L174: 25500 | O174: 25500 | Q174: 26000 | S174: 26200 | U174: 26400 | W174: 22000 | Y174: 20600 | AA174: 21300 | AC174: 0.25
A175: 319 | B175: 22500 | D175: 20900 | F175: 20300 | H175: 21200 | J175: 21000 | L175: 25000 | O175: 25000 | Q175: 19800 | S175: 22600 | U175: 18700 | W175: 17600 | Y175: 14600 | AA175: 13800 | AB175: 12500 | AC175: 3.5
A176: 327 | C176: 910 | E176: 890 | G176: 950 | I176: 930 | K176: 940 | M176: 840 | O176: 900 | Q176: 940 | S176: 1000 | U176: 1000 | W176: 940 | Y176: 1050 | AA176: 790 | AB176: 700 | AC176: 7.14
A177: 335 | C177: 1000 | E177: 1050 | G177: 1100 | I177: 930 | K177: 880 | M177: 950 | O177: 850 | Q177: 930 | S177: 780 | U177: 690 | W177: 620 | Y177: 700 | AA177: 650 | AC177: 8.76
A178: 337 | C178: 1750 | E178: 1650 | G178: 1650 | I178: 1450 | K178: 1550 | M178: 1450 | O178: 1350 | Q178: 1350 | S178: 1250 | U178: 1550 | W178: 1400 | Y178: 1450 | AA178: 1300 | AC178: 10.2
A179: 338 | C179: 355 | E179: 365 | G179: 385 | I179: 355 | K179: 395 | M179: 370 | O179: 410 | Q179: 350 | S179: 420 | U179: 305 | W179: 340 | Y179: 305 | AA179: 380 | AB179: 325 | AC179: 6.56
A180: 342 | C180: 170 | E180: 170 | G180: 170 | I180: 180 | K180: 200 | M180: 165 | O180: 165 | Q180: 165 | S180: 205 | U180: 170 | W180: 160 | Y180: 190 | AA180: 175 | AB180: 150 | AC180: 5.16
A181: 343 | C181: 270 | E181: 220 | G181: 195 | I181: 205 | K181: 190 | M181: 240 | O181: 300 | Q181: 230 | S181: 265 | U181: 210 | W181: 205 | Y181: 290 | AA181: 325 | AB181: 275 | AC181: 6.96
A182: 346 | C182: 1050 | E182: 950 | G182: 1000 | I182: 1000 | K182: 1150 | M182: 1100 | O182: 1100 | Q182: 1200 | S182: 1100 | U182: 1250 | W182: 1100 | Y182: 1050 | AA182: 1150 | AB182: 900 | AC182: 0.33
A183: 349 | C183: 720 | E183: 700 | G183: 680 | I183: 620 | K183: 690 | M183: 750 | O183: 820 | Q183: 820 | S183: 670 | U183: 760 | W183: 690 | Y183: 790 | AA183: 740 | AB183: 580 | AC183: 6.83
A184: 353 | C184: 1100 | E184: 1200 | G184: 1150 | I184: 1135 | K184: 1150 | M184: 1050 | O184: 1150 | Q184: 1200 | S184: 1400 | U184: 1400 | W184: 1200 | Y184: 1250 | AA184: 1150 | AC184: 0.5
A185: 355 | C185: 1650 | E185: 1700 | G185: 1700 | I185: 1600 | K185: 1450 | M185: 1500 | O185: 1600 | Q185: 1600 | S185: 1800 | U185: 1900 | W185: 1900 | Y185: 1900 | AA185: 1650 | AC185: 0.27
A186: 356 | C186: 1500 | E186: 1400 | G186: 1300 | I186: 1250 | K186: 1150 | M186: 1200 | O186: 1300 | Q186: 1500 | S186: 1400 | U186: 1550 | W186: 1400 | Y186: 1550 | AA186: 1250 | AC186: 7.46
A187: 362 | C187: 960 | E187: 1000 | G187: 1050 | I187: 970 | K187: 1150 | M187: 1000 | O187: 1100 | Q187: 1150 | S187: 1150 | U187: 1300 | W187: 1200 | Y187: 1300 | AA187: 1250 | AC187: 0.33
A188: 363 | C188: 1750 | E188: 1750 | G188: 1600 | I188: 1450 | K188: 1500 | M188: 1350 | O188: 1400 | Q188: 1600 | S188: 1350 | U188: 1250 | W188: 1100 | Y188: 1350 | AA188: 1300 | AB188: 1100 | AC188: 0.75
A189: 365 | C189: 1200 | E189: 1050 | G189: 1100 | I189: 1100 | K189: 1150 | M189: 940 | O189: 1000 | Q189: 1150 | S189: 1150 | U189: 1050 | W189: 1200 | Y189: 1150 | AA189: 990 | AB189: 1000 | AC189: 6.11
A190: 369 | C190: 1250 | E190: 1200 | G190: 1150 | I190: 1200 | K190: 1300 | M190: 1200 | O190: 1250 | Q190: 1150 | S190: 1300 | U190: 1000 | W190: 1100 | Y190: 1100 | AA190: 1150 | AB190: 950 | AC190: 12.5
A191: 376 | C191: 2300 | E191: 2100 | G191: 1900 | I191: 1950 | K191: 1850 | M191: 1800 | O191: 1850 | Q191: 2000 | S191: 1750 | U191: 2200 | W191: 1850 | Y191: 2000 | AA191: 1400 | AB191: 1450 | AC191: 5.09
A192: 377 | C192: 650 | E192: 700 | G192: 650 | I192: 680 | K192: 740 | M192: 690 | O192: 700 | Q192: 690 | S192: 660 | U192: 570 | W192: 680 | Y192: 720 | AA192: 810 | AC192: 0.72
A193: 378 | C193: 1100 | E193: 1250 | G193: 1300 | I193: 1100 | K193: 1200 | M193: 1250 | O193: 1150 | Q193: 1200 | S193: 990 | U193: 1150 | W193: 1050 | Y193: 1100 | AA193: 810 | AB193: 900 | AC193: 1.24
A194: 379 | C194: 2950 | E194: 2850 | G194: 2850 | I194: 2600 | K194: 2600 | M194: 2500 | O194: 2500 | Q194: 2450 | S194: 2500 | U194: 2800 | W194: 2500 | Y194: 3050 | AA194: 2500 | AB194: 2550 | AC194: 1.01
A195: 380 | C195: 4450 | E195: 4150 | G195: 4400 | I195: 4050 | K195: 4050 | M195: 4100 | O195: 4200 | Q195: 4350 | S195: 3650 | U195: 3900 | W195: 3950 | Y195: 3950 | AA195: 3350 | AC195: 0.4
A196: 381 | C196: 1500 | E196: 1550 | G196: 1450 | I196: 1350 | K196: 1250 | M196: 1350 | O196: 1450 | Q196: 1550 | S196: 1600 | U196: 1600 | W196: 1500 | Y196: 1650 | AA196: 1200 | AC196: 0.5
A197: 382 | C197: 4850 | E197: 5200 | G197: 5500 | I197: 4950 | K197: 4950 | M197: 4800 | O197: 4600 | Q197: 4300 | S197: 4500 | U197: 4250 | W197: 4700 | Y197: 4650 | AA197: 4300 | AC197: 0.38
A198: 383 | C198: 3250 | E198: 3450 | G198: 3450 | I198: 3500 | K198: 3700 | M198: 4050 | O198: 4300 | Q198: 4600 | S198: 5100 | U198: 4700 | W198: 4700 | Y198: 4350 | AA198: 3600 | AC198: 0.56
A199: 384 | C199: 5200 | E199: 4900 | G199: 5200 | I199: 5200 | K199: 5300 | M199: 4900 | O199: 5100 | Q199: 5200 | S199: 4750 | U199: 4700 | W199: 5200 | Y199: 5100 | AA199: 5600 | AC199: 0.12
A200: 385 | C200: 3900 | E200: 4450 | G200: 4650 | I200: 4350 | K200: 4200 | M200: 4200 | O200: 4100 | Q200: 3600 | S200: 4050 | U200: 4450 | W200: 4000 | Y200: 4050 | AA200: 3650 | AB200: 3800 | AC200: 0.43
... 2050 more rows

Sheet Segment Length (hidden)
A1: Sequence_Number | B1: Length_Miles_2018
A2: 1 | B2: 13.38 | D2: Sent from Christy Prentice on 12/4/2019
A3: 4 | B3: 1.64 | D3: Updated yearly during HPMS submission
A4: 9 | B4: 5.11
A5: 13 | B5: 4.09
A6: 14 | B6: 12.62
A7: 16 | B7: 1.79
A8: 17 | B8: 13.12
A9: 20 | B9: 6.28
A10: 21 | B10: 3.22
A11: 22 | B11: 8.02
A12: 23 | B12: 7.72
A13: 24 | B13: 1.6
A14: 25 | B14: 0.63
A15: 28 | B15: 1.75
A16: 30 | B16: 1.97
A17: 31 | B17: 6.93
A18: 32 | B18: 6.56
A19: 33 | B19: 7.18
A20: 34 | B20: 3.25
A21: 35 | B21: 2.16
A22: 36 | B22: 8.84
A23: 39 | B23: 0.55
A24: 42 | B24: 13.19
A25: 43 | B25: 2.29
A26: 44 | B26: 15.69
A27: 46 | B27: 4.38
A28: 47 | B28: 8.45
A29: 50 | B29: 9.38
A30: 51 | B30: 1.18
A31: 52 | B31: 0.37
A32: 53 | B32: 1.44
A33: 55 | B33: 0.6
A34: 57 | B34: 1.73
A35: 58 | B35: 2.88
A36: 59 | B36: 13.51
A37: 60 | B37: 8.1
A38: 61 | B38: 14.94
A39: 65 | B39: 0.76
A40: 67 | B40: 0.21
A41: 68 | B41: 1.29
A42: 69 | B42: 0.51
A43: 72 | B43: 0.29
A44: 73 | B44: 0.5
A45: 74 | B45: 0.98
A46: 76 | B46: 0.94
A47: 80 | B47: 7.58
A48: 81 | B48: 4.88
A49: 82 | B49: 1.2
A50: 84 | B50: 3.84
A51: 87 | B51: 1.65
A52: 89 | B52: 2.54
A53: 90 | B53: 2.35
A54: 91 | B54: 2.61
A55: 94 | B55: 3.53
A56: 95 | B56: 1.38
A57: 98 | B57: 0.92
A58: 99 | B58: 1.07
A59: 106 | B59: 17.39
A60: 108 | B60: 3.82
A61: 109 | B61: 0.41
A62: 110 | B62: 4.17
A63: 111 | B63: 7.35
A64: 112 | B64: 2.8
A65: 113 | B65: 2.71
A66: 114 | B66: 2.18
A67: 115 | B67: 2.2
A68: 116 | B68: 6.81
A69: 117 | B69: 3.42
A70: 118 | B70: 4.76
A71: 119 | B71: 13.31
A72: 121 | B72: 7.44
A73: 122 | B73: 5.88
A74: 124 | B74: 0.5
A75: 125 | B75: 1.93
A76: 126 | B76: 0.99
A77: 128 | B77: 7.2
A78: 129 | B78: 12.77
A79: 130 | B79: 0.2
A80: 131 | B80: 0.47
A81: 134 | B81: 0.34
A82: 135 | B82: 0.06
A83: 136 | B83: 0.1
A84: 137 | B84: 0.57
A85: 142 | B85: 0.16
A86: 144 | B86: 5.45
A87: 149 | B87: 18.74
A88: 159 | B88: 1.49
A89: 161 | B89: 1.27
A90: 163 | B90: 0.98
A91: 167 | B91: 0.62
A92: 171 | B92: 0.32
A93: 172 | B93: 2.13
A94: 173 | B94: 1.15
A95: 176 | B95: 0.31
A96: 177 | B96: 0.43
A97: 178 | B97: 0.72
A98: 179 | B98: 0.61
A99: 182 | B99: 1.95
A100: 183 | B100: 1.79
A101: 185 | B101: 1.45
A102: 187 | B102: 1.54
A103: 188 | B103: 4.67
A104: 191 | B104: 2.7
A105: 193 | B105: 6.83
A106: 196 | B106: 9.15
A107: 200 | B107: 13.81
A108: 201 | B108: 18.37
A109: 202 | B109: 16.97
A110: 203 | B110: 12.98
A111: 206 | B111: 1.06
A112: 207 | B112: 4.59
A113: 208 | B113: 5.06
A114: 209 | B114: 8.05
A115: 210 | B115: 16.49
A116: 212 | B116: 2.54
A117: 215 | B117: 2.88
A118: 216 | B118: 1.14
A119: 217 | B119: 1.07
A120: 218 | B120: 9.29
A121: 219 | B121: 1.27
A122: 220 | B122: 0.31
A123: 223 | B123: 16.01
A124: 225 | B124: 1.99
A125: 226 | B125: 1.35
A126: 232 | B126: 0.11
A127: 233 | B127: 0.14
A128: 234 | B128: 0.5
A129: 235 | B129: 13.71
A130: 236 | B130: 0.35
A131: 237 | B131: 0.23
A132: 238 | B132: 1.78
A133: 239 | B133: 0.59
A134: 240 | B134: 5.51
A135: 244 | B135: 0.18
A136: 245 | B136: 0.22
A137: 246 | B137: 0.12
A138: 248 | B138: 3.57
A139: 250 | B139: 0.83
A140: 251 | B140: 0.21
A141: 252 | B141: 0.71
A142: 253 | B142: 0.53
A143: 254 | B143: 0.26
A144: 255 | B144: 0.33
A145: 256 | B145: 0.71
A146: 257 | B146: 0.35
A147: 259 | B147: 0.71
A148: 261 | B148: 0.63
A149: 263 | B149: 1.17
A150: 265 | B150: 1.04
A151: 267 | B151: 1.08
A152: 269 | B152: 7.22
A153: 271 | B153: 5.05
A154: 272 | B154: 4.02
A155: 275 | B155: 7.71
A156: 276 | B156: 1.63
A157: 277 | B157: 2.01
A158: 278 | B158: 1.69
A159: 279 | B159: 3.95
A160: 281 | B160: 8.22
A161: 287 | B161: 7.14
A162: 290 | B162: 0.51
A163: 291 | B163: 1.14
A164: 294 | B164: 0.81
A165: 297 | B165: 0.62
A166: 298 | B166: 3.5
A167: 300 | B167: 2.02
A168: 302 | B168: 0.94
A169: 303 | B169: 0.13
A170: 304 | B170: 6
A171: 309 | B171: 0.56
A172: 311 | B172: 0.98
A173: 313 | B173: 2.31
A174: 315 | B174: 0.25
A175: 319 | B175: 3.5
A176: 327 | B176: 7.14
A177: 335 | B177: 8.76
A178: 337 | B178: 10.2
A179: 338 | B179: 6.56
A180: 342 | B180: 5.16
A181: 343 | B181: 6.96
A182: 346 | B182: 0.33
A183: 349 | B183: 6.83
A184: 353 | B184: 0.5
A185: 355 | B185: 0.27
A186: 356 | B186: 7.46
A187: 362 | B187: 0.33
A188: 363 | B188: 0.75
A189: 365 | B189: 6.11
A190: 369 | B190: 12.5
A191: 376 | B191: 5.09
A192: 377 | B192: 0.72
A193: 378 | B193: 1.24
A194: 379 | B194: 1.01
A195: 380 | B195: 0.4
A196: 381 | B196: 0.5
A197: 382 | B197: 0.38
A198: 383 | B198: 0.56
A199: 384 | B199: 0.12
A200: 385 | B200: 0.43
... 34643 more rows

Sheet VC Data (hidden)
A1: VC Site and Year | B1: VC Site | C1: Count Hours | D1: Month | E1: Year | F1: Passenger | G1: 2 AX SU | H1: 3+ AX SU | I1: 3 AX SEMI | J1: 4 AX SEMI | K1: 5+ AX SEMI | L1: BUS/TRTR | M1: TWINS | N1: Total | O1: ACF
A2: =B2&E2 -> 4252019 | B2: 425 | C2: 16 | D2: 7 | E2: 2019 | F2: 23070 | G2: 305 | H2: 85 | I2: 0 | J2: 9 | K2: 219 | L2: 14 | M2: 0 | N2: =SUM(F2:M2) -> 23702 | O2: =IF(N2=0,"",N2/(((F2+G2)*2+(H2+I2)*3+(J2+L2)*4+(K2+M2)*5)/2)) -> 0.9836487384
A3: 10501993 | B3: 1050 | C3: 16 | D3: 6 | E3: 1993 | F3: 3939 | G3: 94 | H3: 62 | I3: 0 | J3: 5 | K3: 40 | L3: 14 | M3: 0 | N3: 4154 | O3: 0.9742026266
A4: 10501995 | B4: 1050 | C4: 24 | D4: 10 | E4: 1995 | F4: 4444 | G4: 55 | H4: 18 | I4: 7 | J4: 12 | K4: 46 | L4: 31 | M4: 1 | N4: 4614 | O4: 0.9734177215
A5: 10501997 | B5: 1050 | C5: 24 | D5: 10 | E5: 1997 | F5: 5028 | G5: 78 | H5: 36 | I5: 4 | J5: 8 | K5: 77 | L5: 22 | M5: 1 | N5: 5254 | O5: 0.9691938757
A6: 10501997 | B6: 1050 | C6: 24 | D6: 8 | E6: 1997 | F6: 5028 | G6: 78 | H6: 36 | I6: 4 | J6: 8 | K6: 77 | L6: 22 | M6: 1 | N6: 5254 | O6: 0.9691938757
A7: 10501999 | B7: 1050 | C7: 24 | D7: 5 | E7: 1999 | F7: 3734 | G7: 79 | H7: 22 | I7: 8 | J7: 15 | K7: 46 | L7: 27 | M7: 1 | N7: 3932 | O7: 0.9685921912
A8: 10502001 | B8: 1050 | C8: 24 | D8: 6 | E8: 2001 | F8: 4090 | G8: 219 | H8: 33 | I8: 5 | J8: 8 | K8: 46 | L8: 23 | M8: 2 | N8: 4426 | O8: 0.973175022
A9: 10502019 | B9: 1050 | C9: 24 | D9: 10 | E9: 2019 | F9: 5899 | G9: 94 | H9: 230 | I9: 13 | J9: 32 | K9: 102 | L9: 55 | M9: 1 | N9: 6426 | O9: 0.9465311533
A10: 10521993 | B10: 1052 | C10: 16 | D10: 6 | E10: 1993 | F10: 488 | G10: 11 | H10: 4 | I10: 0 | J10: 0 | K10: 8 | L10: 4 | M10: 0 | N10: 515 | O10: 0.9662288931
A11: 10521995 | B11: 1052 | C11: 24 | D11: 10 | E11: 1995 | F11: 609 | G11: 31 | H11: 7 | I11: 2 | J11: 4 | K11: 8 | L11: 8 | M11: 1 | N11: 670 | O11: 0.9571428571
A12: 10521997 | B12: 1052 | C12: 24 | D12: 8 | E12: 1997 | F12: 663 | G12: 19 | H12: 12 | I12: 3 | J12: 5 | K12: 21 | L12: 0 | M12: 0 | N12: 723 | O12: 0.9426336375
A13: 10521997 | B13: 1052 | C13: 24 | D13: 10 | E13: 1997 | F13: 663 | G13: 19 | H13: 12 | I13: 3 | J13: 5 | K13: 21 | L13: 0 | M13: 0 | N13: 723 | O13: 0.9426336375
A14: 10521999 | B14: 1052 | C14: 24 | D14: 9 | E14: 1999 | F14: 491 | G14: 23 | H14: 5 | I14: 3 | J14: 6 | K14: 4 | L14: 4 | M14: 0 | N14: 536 | O14: 0.964028777
A15: 10522001 | B15: 1052 | C15: 24 | D15: 6 | E15: 2001 | F15: 445 | G15: 21 | H15: 12 | I15: 3 | J15: 5 | K15: 5 | L15: 1 | M15: 0 | N15: 492 | O15: 0.9590643275
A16: 10531994 | B16: 1053 | C16: 16 | D16: 9 | E16: 1994 | F16: 346 | G16: 15 | H16: 313 | I16: 0 | J16: 0 | K16: 33 | L16: 1 | M16: 0 | N16: 708 | O16: 0.7737704918
A17: 10531996 | B17: 1053 | C17: 24 | D17: 10 | E17: 1996 | F17: 409 | G17: 9 | H17: 7 | I17: 1 | J17: 1 | K17: 2 | L17: 1 | M17: 0 | N17: 430 | O17: 0.979498861
A18: 10531996 | B18: 1053 | C18: 24 | D18: 7 | E18: 1996 | F18: 409 | G18: 9 | H18: 7 | I18: 1 | J18: 1 | K18: 2 | L18: 1 | M18: 0 | N18: 430 | O18: 0.979498861
A19: 10531998 | B19: 1053 | C19: 24 | D19: 10 | E19: 1998 | F19: 445 | G19: 21 | H19: 26 | I19: 3 | J19: 6 | K19: 212 | L19: 52 | M19: 1 | N19: 766 | O19: 0.6614853195
A20: 10532000 | B20: 1053 | C20: 24 | D20: 10 | E20: 2000 | F20: 470 | G20: 84 | H20: 417 | I20: 6 | J20: 10 | K20: 103 | L20: 10 | M20: 0 | N20: 1100 | O20: 0.7402422611
A21: 10551993 | B21: 1055 | C21: 16 | D21: 9 | E21: 1993 | F21: 602 | G21: 21 | H21: 10 | I21: 3 | J21: 2 | K21: 24 | L21: 8 | M21: 0 | N21: 670 | O21: 0.9273356401
A22: 10551995 | B22: 1055 | C22: 16 | D22: 10 | E22: 1995 | F22: 757 | G22: 33 | H22: 3 | I22: 1 | J22: 2 | K22: 119 | L22: 12 | M22: 0 | N22: 927 | O22: 0.826571556
A23: 10551997 | B23: 1055 | C23: 24 | D23: 10 | E23: 1997 | F23: 761 | G23: 21 | H23: 9 | I23: 4 | J23: 7 | K23: 13 | L23: 6 | M23: 0 | N23: 821 | O23: 0.9546511628
A24: 10551999 | B24: 1055 | C24: 24 | D24: 10 | E24: 1999 | F24: 939 | G24: 45 | H24: 64 | I24: 9 | J24: 16 | K24: 32 | L24: 10 | M24: 1 | N24: 1116 | O24: 0.9087947883
A25: 10552001 | B25: 1055 | C25: 24 | D25: 9 | E25: 2001 | F25: 1000 | G25: 61 | H25: 12 | I25: 2 | J25: 3 | K25: 19 | L25: 3 | M25: 0 | N25: 1100 | O25: 0.9636443276
A26: 11641994 | B26: 1164 | C26: 16 | D26: 10 | E26: 1994 | F26: 5549 | G26: 183 | H26: 57 | I26: 20 | J26: 14 | K26: 481 | L26: 30 | M26: 6 | N26: 6340 | O26: 0.8863413952
A27: 11641996 | B27: 1164 | C27: 24 | D27: 6 | E27: 1996 | F27: 7325 | G27: 198 | H27: 89 | I27: 51 | J27: 96 | K27: 530 | L27: 70 | M27: 11 | N27: 8370 | O27: 0.8887709052
A28: 11641998 | B28: 1164 | C28: 24 | D28: 6 | E28: 1998 | F28: 8351 | G28: 170 | H28: 65 | I28: 68 | J28: 127 | K28: 602 | L28: 60 | M28: 9 | N28: 9452 | O28: 0.8898512521
A29: 11641998 | B29: 1164 | C29: 24 | D29: 10 | E29: 1998 | F29: 8351 | G29: 170 | H29: 65 | I29: 68 | J29: 127 | K29: 602 | L29: 60 | M29: 9 | N29: 9452 | O29: 0.8898512521
A30: 11642000 | B30: 1164 | C30: 16 | D30: 6 | E30: 2000 | F30: 9808 | G30: 192 | H30: 74 | I30: 12 | J30: 17 | K30: 602 | L30: 25 | M30: 7 | N30: 10737 | O30: 0.9149162797
A31: 11642002 | B31: 1164 | C31: 24 | D31: 6 | E31: 2002 | F31: 7754 | G31: 403 | H31: 52 | I31: 31 | J31: 58 | K31: 610 | L31: 112 | M31: 11 | N31: 9031 | O31: 0.8876548064
A32: 11642005 | B32: 1164 | C32: 24 | D32: 7 | E32: 2005 | F32: 7388 | G32: 393 | H32: 48 | I32: 100 | J32: 186 | K32: 942 | L32: 121 | M32: 20 | N32: 9198 | O32: 0.8345127926
A33: 11661994 | B33: 1166 | C33: 16 | D33: 10 | E33: 1994 | F33: 3770 | G33: 121 | H33: 37 | I33: 23 | J33: 7 | K33: 93 | L33: 33 | M33: 0 | N33: 4084 | O33: 0.9512053104
A34: 11661996 | B34: 1166 | C34: 24 | D34: 6 | E34: 1996 | F34: 4391 | G34: 107 | H34: 26 | I34: 21 | J34: 39 | K34: 134 | L34: 36 | M34: 2 | N34: =SUM(F34:M34) -> 4756 | O34: 0.9401996639
A35: 11661998 | B35: 1166 | C35: 24 | D35: 10 | E35: 1998 | F35: 4375 | G35: 108 | H35: 39 | I35: 29 | J35: 54 | K35: 129 | L35: 60 | M35: 1 | N35: 4795 | O35: 0.9332425068
A36: 11662000 | B36: 1166 | C36: 16 | D36: 6 | E36: 2000 | F36: 4491 | G36: 104 | H36: 38 | I36: 15 | J36: 10 | K36: 134 | L36: 27 | M36: 0 | N36: 4819 | O36: 0.9479689191
A37: 11662002 | B37: 1166 | C37: 24 | D37: 8 | E37: 2002 | F37: 4670 | G37: 237 | H37: 79 | I37: 9 | J37: 16 | K37: 117 | L37: 33 | M37: 3 | N37: 5164 | O37: 0.9497884863
A38: 11662005 | B38: 1166 | C38: 24 | D38: 6 | E38: 2005 | F38: 5182 | G38: 296 | H38: 124 | I38: 33 | J38: 61 | K38: 248 | L38: 44 | M38: 5 | N38: 5993 | O38: 0.9141244661
A39: 11662011 | B39: 1166 | C39: 24 | D39: 5 | E39: 2011 | F39: 5181 | G39: 134 | H39: 41 | I39: 9 | J39: 17 | K39: 194 | L39: 16 | M39: 0 | N39: 5592 | O39: 0.9412556809
A40: 11662017 | B40: 1166 | C40: 24 | D40: 6 | E40: 2017 | F40: 5727 | G40: 118 | H40: 59 | I40: 12 | J40: 22 | K40: 131 | L40: 24 | M40: 0 | N40: 6093 | O40: 0.9563647779
A41: 11662019 | B41: 1166 | C41: 16 | D41: 1 | E41: 2019 | F41: 4496 | G41: 170 | H41: 49 | I41: 10 | J41: 20 | K41: 216 | L41: 107 | M41: 0 | N41: 5068 | O41: 0.913400018
A42: 11701993 | B42: 1170 | C42: 16 | D42: 6 | E42: 1993 | F42: 2715 | G42: 87 | H42: 39 | I42: 3 | J42: 6 | K42: 412 | L42: 33 | M42: 3 | N42: 3298 | O42: 0.8285391283
A43: 11701996 | B43: 1170 | C43: 24 | D43: 10 | E43: 1996 | F43: 2256 | G43: 35 | H43: 22 | I43: 14 | J43: 27 | K43: 324 | L43: 14 | M43: 6 | N43: 2698 | O43: 0.8296432964
A44: 11701998 | B44: 1170 | C44: 24 | D44: 10 | E44: 1998 | F44: 3075 | G44: 158 | H44: 33 | I44: 41 | J44: 77 | K44: 379 | L44: 43 | M44: 3 | N44: 3809 | O44: 0.8391716237
A45: 11702000 | B45: 1170 | C45: 16 | D45: 10 | E45: 2000 | F45: 3261 | G45: 59 | H45: 18 | I45: 4 | J45: 4 | K45: 320 | L45: 34 | M45: 3 | N45: 3703 | O45: 0.8740705771
A46: 11702009 | B46: 1170 | C46: 24 | D46: 7 | E46: 2009 | F46: 3024 | G46: 57 | H46: 20 | I46: 5 | J46: 9 | K46: 149 | L46: 16 | M46: 0 | N46: 3280 | O46: 0.9262920079
A47: 11702015 | B47: 1170 | C47: 24 | D47: 10 | E47: 2015 | F47: 3416 | G47: 72 | H47: 83 | I47: 47 | J47: 87 | K47: 46 | L47: 58 | M47: 4 | N47: 3813 | O47: 0.9304538799
A48: 11702017 | B48: 1170 | C48: 24 | D48: 6 | E48: 2017 | F48: 3706 | G48: 88 | H48: 49 | I48: 31 | J48: 58 | K48: 154 | L48: 36 | M48: 7 | N48: 4129 | O48: 0.9166389166
A49: 11702019 | B49: 1170 | C49: 24 | D49: 5 | E49: 2019 | F49: 3226 | G49: 154 | H49: 23 | I49: 78 | J49: 155 | K49: 30 | L49: 88 | M49: 11 | N49: 3765 | O49: 0.9138349515
A50: 11721993 | B50: 1172 | C50: 16 | D50: 9 | E50: 1993 | F50: 11094 | G50: 148 | H50: 173 | I50: 9 | J50: 10 | K50: 972 | L50: 179 | M50: 1 | N50: 12586 | O50: 0.8785731737
A51: 11721995 | B51: 1172 | C51: 24 | D51: 10 | E51: 1995 | F51: 11375 | G51: 210 | H51: 658 | I51: 55 | J51: 102 | K51: 1075 | L51: 163 | M51: 6 | N51: 13644 | O51: 0.8588153836
A52: 11721997 | B52: 1172 | C52: 24 | D52: 7 | E52: 1997 | F52: 12648 | G52: 323 | H52: 107 | I52: 59 | J52: 109 | K52: 702 | L52: 114 | M52: 10 | N52: 14072 | O52: 0.9110449307
A53: 11721997 | B53: 1172 | C53: 24 | D53: 10 | E53: 1997 | F53: 12648 | G53: 323 | H53: 107 | I53: 59 | J53: 109 | K53: 702 | L53: 114 | M53: 10 | N53: 14072 | O53: 0.9110449307
A54: 11721999 | B54: 1172 | C54: 16 | D54: 6 | E54: 1999 | F54: 13156 | G54: 192 | H54: 222 | I54: 17 | J54: 23 | K54: 1028 | L54: 121 | M54: 7 | N54: 14766 | O54: 0.890483657
A55: 11722001 | B55: 1172 | C55: 24 | D55: 6 | E55: 2001 | F55: 13195 | G55: 513 | H55: 139 | I55: 26 | J55: 48 | K55: 830 | L55: 144 | M55: 60 | N55: 14955 | O55: 0.9028343747
A56: 11722001 | B56: 1172 | C56: 24 | D56: 9 | E56: 2001 | F56: 13195 | G56: 513 | H56: 139 | I56: 26 | J56: 48 | K56: 830 | L56: 144 | M56: 60 | N56: 14955 | O56: 0.9028343747
A57: 11722003 | B57: 1172 | C57: 24 | D57: 8 | E57: 2003 | F57: 13792 | G57: 267 | H57: 152 | I57: 9 | J57: 17 | K57: 721 | L57: 150 | M57: 1 | N57: 15109 | O57: 0.9190668816
A58: 11722009 | B58: 1172 | C58: 24 | D58: 10 | E58: 2009 | F58: 13344 | G58: 323 | H58: 157 | I58: 19 | J58: 36 | K58: 859 | L58: 72 | M58: 8 | N58: 14818 | O58: 0.9082717828
A59: 11751994 | B59: 1175 | C59: 16 | D59: 10 | E59: 1994 | F59: 13226 | G59: 297 | H59: 97 | I59: 18 | J59: 37 | K59: 2118 | L59: 59 | M59: 51 | N59: 15903 | O59: 0.8235629208
A60: 11751996 | B60: 1175 | C60: 16 | D60: 7 | E60: 1996 | F60: 13085 | G60: 473 | H60: 108 | I60: 30 | J60: 41 | K60: 2552 | L60: 84 | M60: 55 | N60: 16428 | O60: 0.8000974066
A61: 11751999 | B61: 1175 | C61: 24 | D61: 10 | E61: 1999 | F61: 12109 | G61: 583 | H61: 100 | I61: 271 | J61: 503 | K61: 1705 | L61: 284 | M61: 136 | N61: 15691 | O61: 0.8077734878
A62: 11752001 | B62: 1175 | C62: 16 | D62: 6 | E62: 2001 | F62: 12585 | G62: 263 | H62: 109 | I62: 23 | J62: 52 | K62: 2981 | L62: 137 | M62: 85 | N62: 16235 | O62: 0.7698326142
A63: 11752003 | B63: 1175 | C63: 24 | D63: 6 | E63: 2003 | F63: 14541 | G63: 502 | H63: 138 | I63: 47 | J63: 87 | K63: 2815 | L63: 92 | M63: 124 | N63: 18346 | O63: 0.7967514983
A64: 11791995 | B64: 1179 | C64: 24 | D64: 10 | E64: 1995 | F64: 1627 | G64: 79 | H64: 57 | I64: 8 | J64: 14 | K64: 171 | L64: 20 | M64: 13 | N64: 1989 | O64: 0.8530988634
A65: 11791997 | B65: 1179 | C65: 24 | D65: 10 | E65: 1997 | F65: 1457 | G65: 53 | H65: 15 | I65: 9 | J65: 17 | K65: 201 | L65: 15 | M65: 2 | N65: 1769 | O65: 0.8354191263
A66: =B66&E66 -> 11791999 | B66: 1179 | C66: 24 | D66: 10 | E66: 1999 | F66: 1526 | G66: 44 | H66: 14 | I66: 10 | J66: 18 | K66: 286 | L66: 20 | M66: 2 | N66: =SUM(F66:M66) -> 1920 | O66: =IF(N66=0,"",N66/(((F66+G66)*2+(H66+I66)*3+(J66+L66)*4+(K66+M66)*5)/2)) -> 0.7993338884
A67: 11792001 | B67: 1179 | C67: 24 | D67: 10 | E67: 2001 | F67: 1458 | G67: 79 | H67: 25 | I67: 7 | J67: 12 | K67: 225 | L67: 31 | M67: 5 | N67: 1842 | O67: 0.8201246661
A68: 11792003 | B68: 1179 | C68: 24 | D68: 7 | E68: 2003 | F68: 1833 | G68: 69 | H68: 13 | I68: 4 | J68: 8 | K68: 335 | L68: 3 | M68: 1 | N68: 2266 | O68: 0.8123319591
A69: 11792005 | B69: 1179 | C69: 24 | D69: 7 | E69: 2005 | F69: 2016 | G69: 57 | H69: 16 | I69: 6 | J69: 11 | K69: 409 | L69: 6 | M69: 1 | N69: 2522 | O69: 0.7968404423
A70: 11871993 | B70: 1187 | C70: 16 | D70: 9 | E70: 1993 | F70: 9270 | G70: 229 | H70: 70 | I70: 24 | J70: 35 | K70: 761 | L70: 21 | M70: 15 | N70: 10425 | O70: 0.8916353062
A71: 11871995 | B71: 1187 | C71: 24 | D71: 8 | E71: 1995 | F71: 12588 | G71: 250 | H71: 86 | I71: 90 | J71: 166 | K71: 815 | L71: 94 | M71: 38 | N71: 14127 | O71: 0.896696182
A72: 11871997 | B72: 1187 | C72: 24 | D72: 8 | E72: 1997 | F72: 14761 | G72: 372 | H72: 91 | I72: 129 | J72: 240 | K72: 969 | L72: 138 | M72: 27 | N72: 16727 | O72: 0.8940616815
A73: 11871997 | B73: 1187 | C73: 24 | D73: 10 | E73: 1997 | F73: 14761 | G73: 372 | H73: 91 | I73: 129 | J73: 240 | K73: 969 | L73: 138 | M73: 27 | N73: 16727 | O73: 0.8940616815
A74: 11871999 | B74: 1187 | C74: 24 | D74: 10 | E74: 1999 | F74: 13492 | G74: 354 | H74: 104 | I74: 97 | J74: 180 | K74: 1059 | L74: 159 | M74: 40 | N74: 15485 | O74: 0.8811813578
A75: 11872000 | B75: 1187 | C75: 16 | D75: 7 | E75: 2000 | F75: 17144 | G75: 275 | H75: 110 | I75: 25 | J75: 25 | K75: 946 | L75: 91 | M75: 16 | N75: 18632 | O75: 0.9197127132
A76: 11872002 | B76: 1187 | C76: 24 | D76: 7 | E76: 2002 | F76: 16095 | G76: 876 | H76: 103 | I76: 61 | J76: 113 | K76: 808 | L76: 236 | M76: 39 | N76: 18331 | O76: 0.9150630226
A77: 11872002 | B77: 1187 | C77: 24 | D77: 11 | E77: 2002 | F77: 16095 | G77: 876 | H77: 103 | I77: 61 | J77: 113 | K77: 808 | L77: 236 | M77: 39 | N77: 18331 | O77: 0.9150630226
A78: 11881993 | B78: 1188 | C78: 16 | D78: 10 | E78: 1993 | F78: 16650 | G78: 452 | H78: 342 | I78: 28 | J78: 51 | K78: 1249 | L78: 87 | M78: 42 | N78: 18901 | O78: 0.8932208596
A79: 11881995 | B79: 1188 | C79: 16 | D79: 10 | E79: 1995 | F79: 15990 | G79: 403 | H79: 259 | I79: 23 | J79: 51 | K79: 1380 | L79: 138 | M79: 21 | N79: 18265 | O79: 0.8825163675
A80: 11881997 | B80: 1188 | C80: 16 | D80: 10 | E80: 1997 | F80: 16041 | G80: 487 | H80: 307 | I80: 78 | J80: 65 | K80: 1723 | L80: 68 | M80: 30 | N80: 18799 | O80: 0.8641629126
A81: 11881999 | B81: 1188 | C81: 16 | D81: 10 | E81: 1999 | F81: 26673 | G81: 524 | H81: 378 | I81: 144 | J81: 267 | K81: 2189 | L81: 255 | M81: 66 | N81: 30496 | O81: 0.8798234352
A82: 11882002 | B82: 1188 | C82: 24 | D82: 5 | E82: 2002 | F82: 20846 | G82: 1009 | H82: 432 | I82: 59 | J82: 109 | K82: 1833 | L82: 493 | M82: 80 | N82: 24861 | O82: 0.869934915
A83: 11882008 | B83: 1188 | C83: 16 | D83: 10 | E83: 2008 | F83: 22337 | G83: 532 | H83: 316 | I83: 3 | J83: 37 | K83: 1991 | L83: 76 | M83: 17 | N83: 25309 | O83: 0.8851312361
A84: 11911993 | B84: 1191 | C84: 16 | D84: 7 | E84: 1993 | F84: 23988 | G84: 392 | H84: 99 | I84: 18 | J84: 74 | K84: 856 | L84: 156 | M84: 21 | N84: 25604 | O84: 0.941046751
A85: 11911995 | B85: 1191 | C85: 24 | D85: 11 | E85: 1995 | F85: 25365 | G85: 300 | H85: 194 | I85: 146 | J85: 271 | K85: 1016 | L85: 125 | M85: 62 | N85: 27479 | O85: 0.9264041535
A86: 11911997 | B86: 1191 | C86: 24 | D86: 8 | E86: 1997 | F86: 33554 | G86: 521 | H86: 193 | I86: 173 | J86: 321 | K86: 1028 | L86: 187 | M86: 58 | N86: 36035 | O86: 0.9395124495
A87: 11911999 | B87: 1191 | C87: 24 | D87: 9 | E87: 1999 | F87: 33757 | G87: 834 | H87: 189 | I87: 225 | J87: 417 | K87: 955 | L87: 286 | M87: 66 | N87: 36729 | O87: 0.9376699302
A88: 11912001 | B88: 1191 | C88: 24 | D88: 6 | E88: 2001 | F88: 37028 | G88: 1593 | H88: 155 | I88: 117 | J88: 218 | K88: 198 | L88: 360 | M88: 80 | N88: 39749 | O88: 0.9723336595
A89: 11912003 | B89: 1191 | C89: 24 | D89: 7 | E89: 2003 | F89: 41519 | G89: 1037 | H89: 159 | I89: 94 | J89: 175 | K89: 453 | L89: 113 | M89: 44 | N89: 43594 | O89: 0.9740805291
A90: 11912006 | B90: 1191 | C90: 24 | D90: 7 | E90: 2006 | F90: 36234 | G90: 1008 | H90: 170 | I90: 118 | J90: 220 | K90: 586 | L90: 137 | M90: 36 | N90: 38509 | O90: 0.9640988408
A91: 11961994 | B91: 1196 | C91: 16 | D91: 8 | E91: 1994 | F91: 9759 | G91: 235 | H91: 60 | I91: 9 | J91: 32 | K91: 2044 | L91: 32 | M91: 35 | N91: 12206 | O91: 0.7914154185
A92: 11961996 | B92: 1196 | C92: 16 | D92: 6 | E92: 1996 | F92: 14253 | G92: 527 | H92: 86 | I92: 31 | J92: 46 | K92: 2488 | L92: 43 | M92: 54 | N92: 17528 | O92: 0.8156921144
A93: 11961998 | B93: 1196 | C93: 24 | D93: 8 | E93: 1998 | F93: 14726 | G93: 444 | H93: 105 | I93: 206 | J93: 383 | K93: 2665 | L93: 246 | M93: 74 | N93: 18849 | O93: 0.7939095274
A94: 11962001 | B94: 1196 | C94: 24 | D94: 10 | E94: 2001 | F94: 13889 | G94: 554 | H94: 161 | I94: 67 | J94: 125 | K94: 3071 | L94: 399 | M94: 135 | N94: 18401 | O94: 0.7715951023
A95: 11962003 | B95: 1196 | C95: 24 | D95: 8 | E95: 2003 | F95: 17835 | G95: 545 | H95: 106 | I95: 58 | J95: 107 | K95: 2758 | L95: 64 | M95: 73 | N95: 21546 | O95: 0.8272446296
A96: 11962009 | B96: 1196 | C96: 24 | D96: 10 | E96: 2009 | F96: 14105 | G96: 382 | H96: 117 | I96: 26 | J96: 49 | K96: 2965 | L96: 53 | M96: 60 | N96: 17757 | O96: 0.7903240164
A97: 11962015 | B97: 1196 | C97: 24 | D97: 10 | E97: 2015 | F97: 13948 | G97: 455 | H97: 834 | I97: 287 | J97: 533 | K97: 1481 | L97: 428 | M97: 77 | N97: 18043 | O97: 0.8238248522
A98: 11971993 | B98: 1197 | C98: 16 | D98: 9 | E98: 1993 | F98: 2236 | G98: 60 | H98: 29 | I98: 10 | J98: 16 | K98: 541 | L98: 30 | M98: 3 | N98: =SUM(F98:M98) -> 2925 | O98: 0.7684224353
A99: 11971995 | B99: 1197 | C99: 24 | D99: 10 | E99: 1995 | F99: 2693 | G99: 72 | H99: 44 | I99: 23 | J99: 42 | K99: 755 | L99: 27 | M99: 35 | N99: 3691 | O99: 0.7413879683
A100: 11971997 | B100: 1197 | C100: 24 | D100: 7 | E100: 1997 | F100: 2951 | G100: 107 | H100: 30 | I100: 33 | J100: 61 | K100: 660 | L100: 63 | M100: 26 | N100: 3931 | O100: 0.768448832
A101: 11971997 | B101: 1197 | C101: 24 | D101: 10 | E101: 1997 | F101: 2951 | G101: 107 | H101: 30 | I101: 33 | J101: 61 | K101: 660 | L101: 63 | M101: 26 | N101: 3931 | O101: 0.768448832
A102: 11971999 | B102: 1197 | C102: 24 | D102: 7 | E102: 1999 | F102: 3202 | G102: 96 | H102: 62 | I102: 35 | J102: 66 | K102: 700 | L102: 59 | M102: 27 | N102: 4247 | O102: 0.7706405371
A103: 11971999 | B103: 1197 | C103: 24 | D103: 10 | E103: 1999 | F103: 3202 | G103: 96 | H103: 62 | I103: 35 | J103: 66 | K103: 700 | L103: 59 | M103: 27 | N103: 4247 | O103: 0.7706405371
A104: 11972001 | B104: 1197 | C104: 24 | D104: 10 | E104: 2001 | F104: 2958 | G104: 192 | H104: 40 | I104: 76 | J104: 141 | K104: 465 | L104: 125 | M104: 32 | N104: 4029 | O104: 0.7902324213
A105: 11972003 | B105: 1197 | C105: 24 | D105: 7 | E105: 2003 | F105: 3624 | G105: 110 | H105: 62 | I105: 11 | J105: 20 | K105: 753 | L105: 10 | M105: 17 | N105: 4607 | O105: 0.7904263533
A106: 11972005 | B106: 1197 | C106: 24 | D106: 7 | E106: 2005 | F106: 3494 | G106: 204 | H106: 52 | I106: 50 | J106: 93 | K106: 755 | L106: 207 | M106: 24 | N106: 4879 | O106: 0.7625224662
A107: 11991993 | B107: 1199 | C107: 16 | D107: 9 | E107: 1993 | F107: 1198 | G107: 27 | H107: 18 | I107: 0 | J107: 1 | K107: 67 | L107: 28 | M107: 0 | N107: 1339 | O107: 0.9062605753
A108: 11991995 | B108: 1199 | C108: 24 | D108: 10 | E108: 1995 | F108: 1356 | G108: 36 | H108: 53 | I108: 4 | J108: 7 | K108: 172 | L108: 17 | M108: 8 | N108: 1653 | O108: 0.8367501898
A109: 11991997 | B109: 1199 | C109: 16 | D109: 10 | E109: 1997 | F109: 1386 | G109: 77 | H109: 217 | I109: 12 | J109: 23 | K109: 168 | L109: 15 | M109: 8 | N109: 1906 | O109: 0.8206673843
A110: 11991999 | B110: 1199 | C110: 24 | D110: 7 | E110: 1999 | F110: 1457 | G110: 62 | H110: 41 | I110: 18 | J110: 33 | K110: 202 | L110: 21 | M110: 1 | N110: 1835 | O110: 0.8254610886
A111: 11992001 | B111: 1199 | C111: 24 | D111: 10 | E111: 2001 | F111: 1086 | G111: 135 | H111: 22 | I111: 7 | J111: 13 | K111: 99 | L111: 23 | M111: 2 | N111: 1387 | O111: 0.8728760227
A112: 11992003 | B112: 1199 | C112: 24 | D112: 7 | E112: 2003 | F112: 1480 | G112: 65 | H112: 39 | I112: 5 | J112: 8 | K112: 127 | L112: 10 | M112: 0 | N112: 1734 | O112: 0.8826673454
A113: 11992005 | B113: 1199 | C113: 24 | D113: 6 | E113: 2005 | F113: 1295 | G113: 55 | H113: 11 | I113: 12 | J113: 23 | K113: 132 | L113: 18 | M113: 2 | N113: 1548 | O113: 0.8592839301
A114: 12041994 | B114: 1204 | C114: 16 | D114: 7 | E114: 1994 | F114: 6106 | G114: 83 | H114: 7 | I114: 1 | J114: 8 | K114: 191 | L114: 19 | M114: 0 | N114: 6415 | O114: 0.9528406981
A115: 12041996 | B115: 1204 | C115: 16 | D115: 8 | E115: 1996 | F115: 8884 | G115: 123 | H115: 21 | I115: 4 | J115: 6 | K115: 206 | L115: 53 | M115: 3 | N115: 9300 | O115: 0.9602478059
A116: 12041998 | B116: 1204 | C116: 24 | D116: 10 | E116: 1998 | F116: 6258 | G116: 152 | H116: 57 | I116: 32 | J116: 59 | K116: 302 | L116: 73 | M116: 4 | N116: 6937 | O116: 0.9160779135
A117: 12042000 | B117: 1204 | C117: 16 | D117: 7 | E117: 2000 | F117: 10537 | G117: 104 | H117: 53 | I117: 3 | J117: 6 | K117: 264 | L117: 27 | M117: 1 | N117: 10995 | O117: 0.9599685686
A118: 12042002 | B118: 1204 | C118: 24 | D118: 7 | E118: 2002 | F118: 8291 | G118: 419 | H118: 48 | I118: 22 | J118: 42 | K118: 228 | L118: 71 | M118: 2 | N118: 9123 | O118: 0.9487312812
A119: 12042002 | B119: 1204 | C119: 24 | D119: 11 | E119: 2002 | F119: 8291 | G119: 419 | H119: 48 | I119: 22 | J119: 42 | K119: 228 | L119: 71 | M119: 2 | N119: 9123 | O119: 0.9487312812
A120: 12071993 | B120: 1207 | C120: 16 | D120: 9 | E120: 1993 | F120: 1276 | G120: 71 | H120: 12 | I120: 2 | J120: 3 | K120: 160 | L120: 17 | M120: 0 | N120: 1541 | O120: 0.8523230088
A121: 12071995 | B121: 1207 | C121: 24 | D121: 8 | E121: 1995 | F121: 1578 | G121: 42 | H121: 22 | I121: 12 | J121: 23 | K121: 130 | L121: 10 | M121: 2 | N121: 1819 | O121: 0.8800193517
A122: 12071997 | B122: 1207 | C122: 24 | D122: 7 | E122: 1997 | F122: 1561 | G122: 54 | H122: 24 | I122: 12 | J122: 23 | K122: 177 | L122: 19 | M122: 5 | N122: 1875 | O122: 0.8491847826
A123: 12071998 | B123: 1207 | C123: 24 | D123: 10 | E123: 1998 | F123: 563 | G123: 29 | H123: 49 | I123: 5 | J123: 10 | K123: 65 | L123: 9 | M123: 1 | N123: 731 | O123: 0.8344748858
A124: 12072000 | B124: 1207 | C124: 24 | D124: 10 | E124: 2000 | F124: 1357 | G124: 112 | H124: 18 | I124: 21 | J124: 40 | K124: 220 | L124: 43 | M124: 4 | N124: 1815 | O124: 0.8054138008
A125: 12072002 | B125: 1207 | C125: 24 | D125: 9 | E125: 2002 | F125: 1382 | G125: 134 | H125: 17 | I125: 24 | J125: 44 | K125: 142 | L125: 52 | M125: 6 | N125: 1801 | O125: 0.8417854639
A126: 12072009 | B126: 1207 | C126: 24 | D126: 6 | E126: 2009 | F126: 1648 | G126: 52 | H126: 25 | I126: 5 | J126: 10 | K126: 132 | L126: 7 | M126: 9 | N126: 1888 | O126: 0.885761201
A127: 12072015 | B127: 1207 | C127: 24 | D127: 6 | E127: 2015 | F127: 1755 | G127: 64 | H127: 53 | I127: 8 | J127: 16 | K127: 186 | L127: 23 | M127: 7 | N127: 2112 | O127: 0.8547146904
A128: 12072017 | B128: 1207 | C128: 24 | D128: 6 | E128: 2017 | F128: 1428 | G128: 44 | H128: 49 | I128: 14 | J128: 27 | K128: 76 | L128: 14 | M128: 5 | N128: 1657 | O128: 0.8951917882
A129: 12072018 | B129: 1207 | C129: 16 | D129: 12 | E129: 2018 | F129: 1339 | G129: 96 | H129: 18 | I129: 0 | J129: 0 | K129: 337 | L129: 77 | M129: 1 | N129: 1868 | O129: 0.7590410402
A130: =B130&E130 -> 12072019 | B130: 1207 | C130: 24 | D130: 8 | E130: 2019 | F130: 1657 | G130: 67 | H130: 29 | I130: 38 | J130: 79 | K130: 135 | L130: 52 | M130: 10 | N130: =SUM(F130:M130) -> 2067 | O130: =IF(N130=0,"",N130/(((F130+G130)*2+(H130+I130)*3+(J130+L130)*4+(K130+M130)*5)/2)) -> 0.8440179665
A131: 12081994 | B131: 1208 | C131: 16 | D131: 6 | E131: 1994 | F131: 13625 | G131: 335 | H131: 147 | I131: 56 | J131: 73 | K131: 2382 | L131: 77 | M131: 107 | N131: 16802 | O131: 0.8082936451
A132: 12081996 | B132: 1208 | C132: 16 | D132: 6 | E132: 1996 | F132: 14345 | G132: 555 | H132: 157 | I132: 38 | J132: 93 | K132: 3086 | L132: 57 | M132: 130 | N132: 18461 | O132: 0.7844895357
A133: 12081998 | B133: 1208 | C133: 16 | D133: 9 | E133: 1998 | F133: 17890 | G133: 468 | H133: 385 | I133: 37 | J133: 140 | K133: 3485 | L133: 148 | M133: 148 | N133: 22701 | O133: 0.7923698494
A134: 12082000 | B134: 1208 | C134: 16 | D134: 8 | E134: 2000 | F134: 19810 | G134: 485 | H134: 314 | I134: 36 | J134: 114 | K134: 3627 | L134: 136 | M134: 152 | N134: 24674 | O134: 0.8019501097
A135: 12082002 | B135: 1208 | C135: 16 | D135: 11 | E135: 2002 | F135: 21063 | G135: 543 | H135: 242 | I135: 78 | J135: 97 | K135: 4071 | L135: 198 | M135: 148 | N135: 26440 | O135: 0.7958222343
A136: 12091994 | B136: 1209 | C136: 16 | D136: 8 | E136: 1994 | F136: 581 | G136: 31 | H136: 24 | I136: 3 | J136: 0 | K136: 39 | L136: 6 | M136: 2 | N136: 686 | O136: 0.8943937419
A137: 12091996 | B137: 1209 | C137: 24 | D137: 10 | E137: 1996 | F137: 556 | G137: 46 | H137: 34 | I137: 7 | J137: 63 | K137: 122 | L137: 8 | M137: 0 | N137: 836 | O137: 0.7528140477
A138: 12091997 | B138: 1209 | C138: 24 | D138: 9 | E138: 1997 | F138: 835 | G138: 41 | H138: 51 | I138: 18 | J138: 84 | K138: 221 | L138: 8 | M138: 3 | N138: 1261 | O138: 0.7316507108
A139: 12091999 | B139: 1209 | C139: 24 | D139: 10 | E139: 1999 | F139: 679 | G139: 53 | H139: 17 | I139: 5 | J139: 59 | K139: 99 | L139: 6 | M139: 3 | N139: 921 | O139: 0.8008695652
A140: 12092001 | B140: 1209 | C140: 24 | D140: 6 | E140: 2001 | F140: 486 | G140: 36 | H140: 22 | I140: 1 | J140: 54 | K140: 100 | L140: 11 | M140: 0 | N140: 710 | O140: 0.7581420182
A141: 12092001 | B141: 1209 | C141: 24 | D141: 9 | E141: 2001 | F141: 486 | G141: 36 | H141: 22 | I141: 1 | J141: 54 | K141: 100 | L141: 11 | M141: 0 | N141: 710 | O141: 0.7581420182
A142: 12092003 | B142: 1209 | C142: 24 | D142: 5 | E142: 2003 | F142: 512 | G142: 20 | H142: 11 | I142: 1 | J142: 53 | K142: 57 | L142: 4 | M142: 0 | N142: 658 | O142: 0.8158710477
A143: 12092009 | B143: 1209 | C143: 24 | D143: 9 | E143: 2009 | F143: 554 | G143: 47 | H143: 23 | I143: 3 | J143: 56 | K143: 67 | L143: 6 | M143: 0 | N143: 756 | O143: 0.8115942029
A144: 12101994 | B144: 1210 | C144: 16 | D144: 9 | E144: 1994 | F144: 899 | G144: 23 | H144: 6 | I144: 2 | J144: 0 | K144: 76 | L144: 6 | M144: 0 | N144: 1012 | O144: 0.8908450704
A145: 12101996 | B145: 1210 | C145: 24 | D145: 6 | E145: 1996 | F145: 897 | G145: 11 | H145: 44 | I145: 16 | J145: 31 | K145: 45 | L145: 3 | M145: 36 | N145: 1083 | O145: 0.8537642885
A146: 12101998 | B146: 1210 | C146: 24 | D146: 10 | E146: 1998 | F146: 1014 | G146: 65 | H146: 4 | I146: 21 | J146: 39 | K146: 53 | L146: 12 | M146: 1 | N146: 1209 | O146: 0.8932397488
A147: 12102000 | B147: 1210 | C147: 24 | D147: 10 | E147: 2000 | F147: 1050 | G147: 83 | H147: 8 | I147: 13 | J147: 24 | K147: 76 | L147: 12 | M147: 2 | N147: 1268 | O147: 0.8857841425
A148: 12102002 | B148: 1210 | C148: 24 | D148: 6 | E148: 2002 | F148: 920 | G148: 54 | H148: 2 | I148: 7 | J148: 13 | K148: 70 | L148: 7 | M148: 2 | N148: 1075 | O148: 0.8902691511
A149: 12102010 | B149: 1210 | C149: 24 | D149: 8 | E149: 2010 | F149: 836 | G149: 43 | H149: 5 | I149: 3 | J149: 5 | K149: 89 | L149: 13 | M149: 1 | N149: 995 | O149: 0.8637152778
A150: 12111993 | B150: 1211 | C150: 16 | D150: 9 | E150: 1993 | F150: 2569 | G150: 73 | H150: 27 | I150: 4 | J150: 2 | K150: 277 | L150: 10 | M150: 1 | N150: 2963 | O150: 0.8695524578
A151: 12111995 | B151: 1211 | C151: 24 | D151: 10 | E151: 1995 | F151: 2827 | G151: 81 | H151: 31 | I151: 23 | J151: 43 | K151: 263 | L151: 14 | M151: 1 | N151: 3283 | O151: 0.8724422004
A152: 12111997 | B152: 1211 | C152: 24 | D152: 7 | E152: 1997 | F152: 3599 | G152: 63 | H152: 35 | I152: 32 | J152: 59 | K152: 344 | L152: 14 | M152: 1 | N152: 4147 | O152: 0.8692098093
A153: 12111997 | B153: 1211 | C153: 24 | D153: 10 | E153: 1997 | F153: 3599 | G153: 63 | H153: 35 | I153: 32 | J153: 59 | K153: 344 | L153: 14 | M153: 1 | N153: 4147 | O153: 0.8692098093
A154: 12111999 | B154: 1211 | C154: 24 | D154: 6 | E154: 1999 | F154: 3678 | G154: 143 | H154: 34 | I154: 64 | J154: 119 | K154: 178 | L154: 30 | M154: 2 | N154: 4248 | O154: 0.9007633588
A155: 12112001 | B155: 1211 | C155: 24 | D155: 6 | E155: 2001 | F155: 3272 | G155: 190 | H155: 37 | I155: 9 | J155: 17 | K155: 312 | L155: 30 | M155: 1 | N155: 3868 | O155: 0.8775950085
A156: 12112001 | B156: 1211 | C156: 24 | D156: 9 | E156: 2001 | F156: 3272 | G156: 190 | H156: 37 | I156: 9 | J156: 17 | K156: 312 | L156: 30 | M156: 1 | N156: 3868 | O156: 0.8775950085
A157: 12112003 | B157: 1211 | C157: 24 | D157: 4 | E157: 2003 | F157: 2661 | G157: 86 | H157: 17 | I157: 2 | J157: 5 | K157: 173 | L157: 9 | M157: 1 | N157: 2954 | O157: 0.912150687
A158: 12112004 | B158: 1211 | C158: 24 | D158: 5 | E158: 2004 | F158: 3426 | G158: 85 | H158: 35 | I158: 7 | J158: 14 | K158: 349 | L158: 10 | M158: 0 | N158: 3926 | O158: 0.8735120703
A159: 12112009 | B159: 1211 | C159: 24 | D159: 9 | E159: 2009 | F159: 3282 | G159: 87 | H159: 46 | I159: 11 | J159: 20 | K159: 131 | L159: 17 | M159: 1 | N159: 3595 | O159: 0.9317092134
A160: 12121993 | B160: 1212 | C160: 16 | D160: 9 | E160: 1993 | F160: 16313 | G160: 355 | H160: 193 | I160: 32 | J160: 38 | K160: 581 | L160: 76 | M160: 0 | N160: 17588 | O160: 0.9412394306
A161: 12121995 | B161: 1212 | C161: 16 | D161: 10 | E161: 1995 | F161: 12509 | G161: 281 | H161: 133 | I161: 21 | J161: 24 | K161: 713 | L161: 37 | M161: 21 | N161: 13739 | O161: 0.9172786754
A162: 12121997 | B162: 1212 | C162: 16 | D162: 10 | E162: 1997 | F162: 12219 | G162: 300 | H162: 358 | I162: 41 | J162: 28 | K162: 818 | L162: 53 | M162: 22 | N162: =SUM(F162:M162) -> 13839 | O162: 0.8998341949
A163: 12121999 | B163: 1212 | C163: 24 | D163: 8 | E163: 1999 | F163: 18791 | G163: 427 | H163: 248 | I163: 86 | J163: 160 | K163: 1006 | L163: 141 | M163: 35 | N163: 20894 | O163: 0.9114663991
A164: 12122001 | B164: 1212 | C164: 24 | D164: 7 | E164: 2001 | F164: 19871 | G164: 731 | H164: 380 | I164: 37 | J164: 69 | K164: 925 | L164: 185 | M164: 48 | N164: 22246 | O164: 0.9204733532
A165: 12122003 | B165: 1212 | C165: 24 | D165: 10 | E165: 2003 | F165: 21791 | G165: 415 | H165: 283 | I165: 9 | J165: 16 | K165: 1058 | L165: 64 | M165: 38 | N165: 23674 | O165: 0.9267929847
A166: 12122005 | B166: 1212 | C166: 24 | D166: 10 | E166: 2005 | F166: 12444 | G166: 634 | H166: 143 | I166: 117 | J166: 217 | K166: 642 | L166: 198 | M166: 89 | N166: 14484 | O166: 0.8982047068
A167: 12131993 | B167: 1213 | C167: 16 | D167: 9 | E167: 1993 | F167: 6781 | G167: 136 | H167: 38 | I167: 14 | J167: 3 | K167: 311 | L167: 59 | M167: 1 | N167: 7343 | O167: 0.9296113432
A168: 12131995 | B168: 1213 | C168: 24 | D168: 10 | E168: 1995 | F168: 6464 | G168: 100 | H168: 19 | I168: 22 | J168: 41 | K168: 348 | L168: 45 | M168: 3 | N168: 7042 | O168: 0.91752443
A169: 12131997 | B169: 1213 | C169: 24 | D169: 7 | E169: 1997 | F169: 7489 | G169: 152 | H169: 60 | I169: 48 | J169: 89 | K169: 342 | L169: 49 | M169: 1 | N169: 8230 | O169: 0.9209422033
A170: 12131997 | B170: 1213 | C170: 24 | D170: 10 | E170: 1997 | F170: 7489 | G170: 152 | H170: 60 | I170: 48 | J170: 89 | K170: 342 | L170: 49 | M170: 1 | N170: 8230 | O170: 0.9209422033
A171: 12131999 | B171: 1213 | C171: 24 | D171: 6 | E171: 1999 | F171: 7112 | G171: 146 | H171: 46 | I171: 48 | J171: 88 | K171: 393 | L171: 64 | M171: 1 | N171: 7898 | O171: 0.9090699816
A172: 12132001 | B172: 1213 | C172: 16 | D172: 9 | E172: 2001 | F172: 6302 | G172: 143 | H172: 41 | I172: 12 | J172: 5 | K172: 351 | L172: 47 | M172: 0 | N172: 6901 | O172: 0.9193978151
A173: 12132003 | B173: 1213 | C173: 24 | D173: 5 | E173: 2003 | F173: 7262 | G173: 208 | H173: 46 | I173: 8 | J173: 16 | K173: 353 | L173: 13 | M173: 1 | N173: 7907 | O173: 0.9308923946
A174: 12132005 | B174: 1213 | C174: 24 | D174: 7 | E174: 2005 | F174: 8599 | G174: 453 | H174: 136 | I174: 69 | J174: 129 | K174: 316 | L174: 83 | M174: 1 | N174: 9786 | O174: 0.9253025719
A175: 12161993 | B175: 1216 | C175: 16 | D175: 9 | E175: 1993 | F175: 1103 | G175: 23 | H175: 5 | I175: 1 | J175: 0 | K175: 118 | L175: 8 | M175: 0 | N175: 1258 | O175: 0.8699861687
A176: 12161995 | B176: 1216 | C176: 16 | D176: 10 | E176: 1995 | F176: 1101 | G176: 28 | H176: 0 | I176: 0 | J176: 0 | K176: 50 | L176: 5 | M176: 0 | N176: 1184 | O176: 0.9367088608
A177: 12161997 | B177: 1216 | C177: 24 | D177: 7 | E177: 1997 | F177: 1158 | G177: 39 | H177: 22 | I177: 9 | J177: 18 | K177: 76 | L177: 16 | M177: 1 | N177: 1339 | O177: 0.8902925532
A178: 12161999 | B178: 1216 | C178: 24 | D178: 9 | E178: 1999 | F178: 1132 | G178: 47 | H178: 26 | I178: 16 | J178: 31 | K178: 90 | L178: 12 | M178: 1 | N178: 1355 | O178: 0.8711025394
A179: 12162001 | B179: 1216 | C179: 24 | D179: 8 | E179: 2001 | F179: 1512 | G179: 103 | H179: 16 | I179: 8 | J179: 14 | K179: 98 | L179: 18 | M179: 0 | N179: 1769 | O179: 0.9025510204
A180: 12162003 | B180: 1216 | C180: 24 | D180: 6 | E180: 2003 | F180: 1391 | G180: 48 | H180: 9 | I180: 4 | J180: 7 | K180: 64 | L180: 6 | M180: 1 | N180: 1530 | O180: 0.9289617486
A181: 12162006 | B181: 1216 | C181: 24 | D181: 4 | E181: 2006 | F181: 996 | G181: 33 | H181: 10 | I181: 2 | J181: 4 | K181: 94 | L181: 1 | M181: 1 | N181: 1141 | O181: 0.8814213982
A182: 12162011 | B182: 1216 | C182: 24 | D182: 8 | E182: 2011 | F182: 1175 | G182: 68 | H182: 19 | I182: 7 | J182: 14 | K182: 64 | L182: 15 | M182: 0 | N182: 1362 | O182: 0.908
A183: 12162017 | B183: 1216 | C183: 16 | D183: 8 | E183: 2017 | F183: 1220 | G183: 47 | H183: 26 | I183: 0 | J183: 3 | K183: 71 | L183: 33 | M183: 0 | N183: 1400 | O183: 0.900032144
A184: 12162019 | B184: 1216 | C184: 24 | D184: 7 | E184: 2019 | F184: 1465 | G184: 74 | H184: 30 | I184: 21 | J184: 45 | K184: 43 | L184: 38 | M184: 2 | N184: 1718 | O184: 0.9070749736
A185: 12171993 | B185: 1217 | C185: 16 | D185: 9 | E185: 1993 | F185: 612 | G185: 25 | H185: 8 | I185: 1 | J185: 3 | K185: 75 | L185: 12 | M185: 0 | N185: 736 | O185: 0.8479262673
A186: 12171995 | B186: 1217 | C186: 24 | D186: 10 | E186: 1995 | F186: 657 | G186: 51 | H186: 21 | I186: 4 | J186: 7 | K186: 98 | L186: 9 | M186: 1 | N186: 848 | O186: 0.8273170732
A187: 12171997 | B187: 1217 | C187: 24 | D187: 10 | E187: 1997 | F187: 656 | G187: 54 | H187: 40 | I187: 6 | J187: 12 | K187: 139 | L187: 13 | M187: 1 | N187: 921 | O187: 0.7811704835
A188: 12171999 | B188: 1217 | C188: 24 | D188: 7 | E188: 1999 | F188: 667 | G188: 38 | H188: 7 | I188: 9 | J188: 16 | K188: 41 | L188: 7 | M188: 1 | N188: 786 | O188: 0.8931818182
A189: 12172001 | B189: 1217 | C189: 24 | D189: 9 | E189: 2001 | F189: 619 | G189: 59 | H189: 30 | I189: 3 | J189: 6 | K189: 103 | L189: 18 | M189: 1 | N189: 839 | O189: 0.8102366007
A190: 12172002 | B190: 1217 | C190: 24 | D190: 10 | E190: 2002 | F190: 599 | G190: 70 | H190: 10 | I190: 3 | J190: 5 | K190: 195 | L190: 35 | M190: 0 | N190: 917 | O190: 0.7300955414
A191: 12172008 | B191: 1217 | C191: 24 | D191: 5 | E191: 2008 | F191: 632 | G191: 29 | H191: 12 | I191: 2 | J191: 5 | K191: 75 | L191: 3 | M191: 0 | N191: 758 | O191: 0.8560135517
A192: 12172014 | B192: 1217 | C192: 24 | D192: 8 | E192: 2014 | F192: 599 | G192: 19 | H192: 22 | I192: 1 | J192: 1 | K192: 100 | L192: 7 | M192: 0 | N192: 749 | O192: 0.8154599891
A193: 12172018 | B193: 1217 | C193: 24 | D193: 9 | E193: 2018 | F193: 656 | G193: 31 | H193: 22 | I193: 14 | J193: 26 | K193: 239 | L193: 27 | M193: 0 | N193: 1015 | O193: 0.7026652821
A194: =B194&E194 -> 12172019 | B194: 1217 | C194: 16 | D194: 3 | E194: 2019 | F194: 579 | G194: 25 | H194: 30 | I194: 0 | J194: 0 | K194: 201 | L194: 22 | M194: 0 | N194: =SUM(F194:M194) -> 857 | O194: =IF(N194=0,"",N194/(((F194+G194)*2+(H194+I194)*3+(J194+L194)*4+(K194+M194)*5)/2)) -> 0.7168548724
A195: 12181994 | B195: 1218 | C195: 16 | D195: 9 | E195: 1994 | F195: 496 | G195: 15 | H195: 11 | I195: 2 | J195: 4 | K195: 54 | L195: 17 | M195: 0 | N195: 599 | O195: 0.8466431095
A196: 12181996 | B196: 1218 | C196: 16 | D196: 8 | E196: 1996 | F196: 687 | G196: 14 | H196: 26 | I196: 0 | J196: 3 | K196: 51 | L196: 3 | M196: 0 | N196: 784 | O196: 0.891415577
A197: 12181998 | B197: 1218 | C197: 24 | D197: 7 | E197: 1998 | F197: 625 | G197: 32 | H197: 16 | I197: 12 | J197: 22 | K197: 58 | L197: 7 | M197: 0 | N197: 772 | O197: 0.8558758315
A198: 12182000 | B198: 1218 | C198: 24 | D198: 10 | E198: 2000 | F198: 600 | G198: 26 | H198: 15 | I198: 8 | J198: 14 | K198: 55 | L198: 13 | M198: 3 | N198: 734 | O198: 0.8539848749
A199: 12182002 | B199: 1218 | C199: 24 | D199: 10 | E199: 2002 | F199: 751 | G199: 68 | H199: 47 | I199: 10 | J199: 19 | K199: 271 | L199: 23 | M199: 1 | N199: 1190 | O199: 0.713215463
A200: 12182008 | B200: 1218 | C200: 24 | D200: 7 | E200: 2008 | F200: 613 | G200: 35 | H200: 3 | I200: 7 | J200: 13 | K200: 52 | L200: 4 | M200: 1 | N200: 728 | O200: 0.8776371308
... 4300 more rows

Sheet VC History (hidden)
A1: Site | B1: Year | C1: Site&Year | D1: CMethod | E1: Sequence Number | F1: Description
A2: 425 | B2: 2019 | C2: =A2&B2 -> 4252019 | D2: Manual | E2: 9896 | F2: 0.5 MI E OF JCT I 35E IN EAGAN
A3: 1050 | B3: 2019 | C3: 10502019 | D3: Tube | E3: 32672 | F3: N. of CSAH 31 Wyoming
A4: 1050 | B4: 2001 | C4: =A4&B4 -> 10502001 | D4: Tube | E4: 32672 | F4: N. of CSAH 31 Wyoming
A5: 1050 | B5: 1999 | C5: 10501999 | D5: Tube | E5: 32672 | F5: N. of CSAH 31 Wyoming
A6: 1050 | B6: 1997 | C6: 10501997 | D6: Tube | E6: 32672 | F6: N. of CSAH 31 Wyoming
A7: 1050 | B7: 1995 | C7: 10501995 | D7: Tube | E7: 32672 | F7: N. of CSAH 31 Wyoming
A8: 1050 | B8: 1993 | C8: 10501993 | D8: Manual | E8: 32672 | F8: N. of CSAH 31 Wyoming
A9: 1052 | B9: 2001 | C9: 10522001 | D9: Tube | E9: 29504 | F9: W OF CSAH21
A10: 1052 | B10: 1999 | C10: 10521999 | D10: Tube | E10: 29504 | F10: W OF CSAH21
A11: 1052 | B11: 1997 | C11: 10521997 | D11: Tube | E11: 29504 | F11: W OF CSAH21
A12: 1052 | B12: 1995 | C12: 10521995 | D12: Tube | E12: 29504 | F12: W OF CSAH21
A13: 1052 | B13: 1993 | C13: 10521993 | D13: Manual | E13: 29504 | F13: W OF CSAH21
A14: 1053 | B14: 2000 | C14: 10532000 | D14: Tube | E14: 9817 | F14: 1.3 MI N OF CSAH45
A15: 1053 | B15: 1998 | C15: 10531998 | D15: Tube | E15: 9817 | F15: 1.3 MI N OF CSAH45
A16: 1053 | B16: 1996 | C16: 10531996 | D16: Tube | E16: 9817 | F16: 1.3 MI N OF CSAH45
A17: 1053 | B17: 1994 | C17: 10531994 | D17: Manual | E17: 9817 | F17: 1.3 MI N OF CSAH45
A18: 1055 | B18: 2001 | C18: 10552001 | D18: Tube | E18: 9819 | F18: W OF CR134 W OF MANHATTAN BEACH
A19: 1055 | B19: 1999 | C19: 10551999 | D19: Tube | E19: 9819 | F19: W OF CR134 W OF MANHATTAN BEACH
A20: 1055 | B20: 1997 | C20: 10551997 | D20: Tube | E20: 9819 | F20: W OF CR134 W OF MANHATTAN BEACH
A21: 1055 | B21: 1995 | C21: 10551995 | D21: Manual | E21: 9819 | F21: W OF CR134 W OF MANHATTAN BEACH
A22: 1055 | B22: 1993 | C22: 10551993 | D22: Manual | E22: 9819 | F22: W OF CR134 W OF MANHATTAN BEACH
A23: 1164 | B23: 2005 | C23: 11642005 | D23: Tube | E23: 6763 | F23: 1.25 MI S OF TH 37 AND CSAH 132
A24: 1164 | B24: 2002 | C24: 11642002 | D24: Tube | E24: 6763 | F24: 1.25 MI S OF TH 37 AND CSAH 132
A25: 1164 | B25: 2000 | C25: 11642000 | D25: Manual | E25: 6763 | F25: 1.25 MI S OF TH 37 AND CSAH 132
A26: 1164 | B26: 1998 | C26: 11641998 | D26: Tube | E26: 6763 | F26: 1.25 MI S OF TH 37 AND CSAH 132
A27: 1164 | B27: 1996 | C27: 11641996 | D27: Tube | E27: 6763 | F27: 1.25 MI S OF TH 37 AND CSAH 132
A28: 1164 | B28: 1994 | C28: 11641994 | D28: Manual | E28: 6763 | F28: 1.25 MI S OF TH 37 AND CSAH 132
A29: 1166 | B29: 2019 | C29: 11662019 | D29: Manual | E29: 6766 | F29: W OF JCT CSAH83 NEAR CALUMET
A30: 1166 | B30: 2017 | C30: 11662017 | D30: Tube | E30: 6766 | F30: W OF JCT CSAH83 NEAR CALUMET
A31: 1166 | B31: 2011 | C31: 11662011 | D31: Tube | E31: 6766 | F31: W OF JCT CSAH83 NEAR CALUMET
A32: 1166 | B32: 2005 | C32: 11662005 | D32: Tube | E32: 6766 | F32: W OF JCT CSAH83 NEAR CALUMET
A33: 1166 | B33: 2002 | C33: 11662002 | D33: Tube | E33: 6766 | F33: W OF JCT CSAH83 NEAR CALUMET
A34: 1166 | B34: 2000 | C34: 11662000 | D34: Manual | E34: 6766 | F34: W OF JCT CSAH83 NEAR CALUMET
A35: 1166 | B35: 1998 | C35: 11661998 | D35: Tube | E35: 6766 | F35: W OF JCT CSAH83 NEAR CALUMET
A36: 1166 | B36: 1996 | C36: =A36&B36 -> 11661996 | D36: Tube | E36: 6766 | F36: W OF JCT CSAH83 NEAR CALUMET
A37: 1166 | B37: 1994 | C37: 11661994 | D37: Manual | E37: 6766 | F37: W OF JCT CSAH83 NEAR CALUMET
A38: 1170 | B38: 2019 | C38: 11702019 | D38: Tube | E38: 6725 | F38: W OF JCT CSAH20
A39: 1170 | B39: 2017 | C39: 11702017 | D39: Tube | E39: 6725 | F39: W OF JCT CSAH20
A40: 1170 | B40: 2015 | C40: 11702015 | D40: Tube | E40: 6725 | F40: W OF JCT CSAH20
A41: 1170 | B41: 2009 | C41: 11702009 | D41: Tube | E41: 6725 | F41: W OF JCT CSAH20
A42: 1170 | B42: 2000 | C42: 11702000 | D42: Manual | E42: 6725 | F42: W OF JCT CSAH20
A43: 1170 | B43: 1998 | C43: 11701998 | D43: Tube | E43: 6725 | F43: W OF JCT CSAH20
A44: 1170 | B44: 1996 | C44: 11701996 | D44: Tube | E44: 6725 | F44: W OF JCT CSAH20
A45: 1170 | B45: 1993 | C45: 11701993 | D45: Manual | E45: 6725 | F45: W OF JCT CSAH20
A46: 1172 | B46: 2009 | C46: 11722009 | D46: Tube | E46: 6733 | F46: 0.3 MI W OF JCT CR68
A47: 1172 | B47: 2003 | C47: 11722003 | D47: Tube | E47: 6733 | F47: 0.3 MI W OF JCT CR68
A48: 1172 | B48: 2001 | C48: 11722001 | D48: Tube | E48: 6733 | F48: 0.3 MI W OF JCT CR68
A49: 1172 | B49: 1999 | C49: 11721999 | D49: Manual | E49: 6733 | F49: 0.3 MI W OF JCT CR68
A50: 1172 | B50: 1997 | C50: 11721997 | D50: Tube | E50: 6733 | F50: 0.3 MI W OF JCT CR68
A51: 1172 | B51: 1995 | C51: 11721995 | D51: Tube | E51: 6733 | F51: 0.3 MI W OF JCT CR68
A52: 1172 | B52: 1993 | C52: 11721993 | D52: Manual | E52: 6733 | F52: 0.3 MI W OF JCT CR68
A53: 1175 | B53: 2003 | C53: 11752003 | D53: Tube | E53: 6776 | F53: W OF CR 186 NEAR SAUK CENTRE
A54: 1175 | B54: 2001 | C54: 11752001 | D54: Manual | E54: 6776 | F54: W OF CR 186 NEAR SAUK CENTRE
A55: 1175 | B55: 1999 | C55: 11751999 | D55: Tube | E55: 6776 | F55: W OF CR 186 NEAR SAUK CENTRE
A56: 1175 | B56: 1996 | C56: 11751996 | D56: Manual | E56: 6776 | F56: W OF CR 186 NEAR SAUK CENTRE
A57: 1175 | B57: 1994 | C57: 11751994 | D57: Manual | E57: 6776 | F57: W OF CR 186 NEAR SAUK CENTRE
A58: 1179 | B58: 2005 | C58: 11792005 | D58: Tube | E58: 6746 | F58: S OF S JCT CSAH14
A59: 1179 | B59: 2003 | C59: 11792003 | D59: Tube | E59: 6746 | F59: S OF S JCT CSAH14
A60: 1179 | B60: 2001 | C60: 11792001 | D60: Tube | E60: 6746 | F60: S OF S JCT CSAH14
A61: 1179 | B61: 1999 | C61: 11791999 | D61: Tube | E61: 6746 | F61: S OF S JCT CSAH14
A62: 1179 | B62: 1997 | C62: 11791997 | D62: Tube | E62: 6746 | F62: S OF S JCT CSAH14
A63: 1179 | B63: 1995 | C63: 11791995 | D63: Tube | E63: 6746 | F63: S OF S JCT CSAH14
A64: 1187 | B64: 2002 | C64: 11872002 | D64: Tube | E64: 6775 | F64: 2.5 MI N OF JCT CSAH2 NEAR RICE
A65: 1187 | B65: 2000 | C65: 11872000 | D65: Manual | E65: 6775 | F65: 2.5 MI N OF JCT CSAH2 NEAR RICE
A66: 1187 | B66: 1999 | C66: 11871999 | D66: Tube | E66: 6775 | F66: 2.5 MI N OF JCT CSAH2 NEAR RICE
A67: 1187 | B67: 1997 | C67: 11871997 | D67: Tube | E67: 6775 | F67: 2.5 MI N OF JCT CSAH2 NEAR RICE
A68: 1187 | B68: 1995 | C68: =A68&B68 -> 11871995 | D68: Tube | E68: 6775 | F68: 2.5 MI N OF JCT CSAH2 NEAR RICE
A69: 1187 | B69: 1993 | C69: 11871993 | D69: Manual | E69: 6775 | F69: 2.5 MI N OF JCT CSAH2 NEAR RICE
A70: 1188 | B70: 2008 | C70: 11882008 | D70: Manual | E70: 9828 | F70: .2 MI N OF CSAH14 S OF ORONOCO
A71: 1188 | B71: 2002 | C71: 11882002 | D71: Tube | E71: 9828 | F71: .2 MI N OF CSAH14 S OF ORONOCO
A72: 1188 | B72: 1999 | C72: 11881999 | D72: Tube | E72: 9828 | F72: .2 MI N OF CSAH14 S OF ORONOCO
A73: 1188 | B73: 1999 | C73: 11881999 | D73: Manual | E73: 9828 | F73: .2 MI N OF CSAH14 S OF ORONOCO
A74: 1188 | B74: 1997 | C74: 11881997 | D74: Manual | E74: 9828 | F74: .2 MI N OF CSAH14 S OF ORONOCO
A75: 1188 | B75: 1995 | C75: 11881995 | D75: Manual | E75: 9828 | F75: .2 MI N OF CSAH14 S OF ORONOCO
A76: 1188 | B76: 1993 | C76: 11881993 | D76: Manual | E76: 9828 | F76: .2 MI N OF CSAH14 S OF ORONOCO
A77: 1191 | B77: 2006 | C77: 11912006 | D77: Tube | E77: 6784 | F77: 1.5 MI N OF JCT CSAH22
A78: 1191 | B78: 2003 | C78: 11912003 | D78: Tube | E78: 6784 | F78: 1.5 MI N OF JCT CSAH22
A79: 1191 | B79: 2001 | C79: 11912001 | D79: Tube | E79: 6784 | F79: 1.5 MI N OF JCT CSAH22
A80: 1191 | B80: 1999 | C80: 11911999 | D80: Tube | E80: 6784 | F80: 1.5 MI N OF JCT CSAH22
A81: 1191 | B81: 1997 | C81: 11911997 | D81: Tube | E81: 6784 | F81: 1.5 MI N OF JCT CSAH22
A82: 1191 | B82: 1995 | C82: 11911995 | D82: Tube | E82: 6784 | F82: 1.5 MI N OF JCT CSAH22
A83: 1191 | B83: 1993 | C83: 11911993 | D83: Manual | E83: 6784 | F83: 1.5 MI N OF JCT CSAH22
A84: 1196 | B84: 2015 | C84: 11962015 | D84: Tube | E84: 6756 | F84: AT MP 273 S of NB Dakota Exit
A85: 1196 | B85: 2009 | C85: 11962009 | D85: Tube | E85: 6756 | F85: AT MP 273 S of NB Dakota Exit
A86: 1196 | B86: 2003 | C86: 11962003 | D86: Tube | E86: 6756 | F86: AT MP 273 S of NB Dakota Exit
A87: 1196 | B87: 2001 | C87: 11962001 | D87: Tube | E87: 6756 | F87: AT MP 273 S of NB Dakota Exit
A88: 1196 | B88: 1998 | C88: 11961998 | D88: Tube | E88: 6756 | F88: AT MP 273 S of NB Dakota Exit
A89: 1196 | B89: 1996 | C89: 11961996 | D89: Manual | E89: 6756 | F89: AT MP 273 S of NB Dakota Exit
A90: 1196 | B90: 1994 | C90: 11961994 | D90: Manual | E90: 6756 | F90: AT MP 273 S of NB Dakota Exit
A91: 1197 | B91: 2005 | C91: 11972005 | D91: Tube | E91: 9830 | F91: 0.7 MI W OF W JCT TH 4
A92: 1197 | B92: 2003 | C92: 11972003 | D92: Tube | E92: 9830 | F92: 0.7 MI W OF W JCT TH 4
